Workbook

Sheet Contents
A1: BenCost
B4: Section | C4: Worksheet | D4: Description
B5: Outputs | C5: Tables | D5: Tables for Status Report | U5: Program Outputs
B6: Inputs | C6: =HYPERLINK("#'"&U6&"'!a1",U6) -> Program Inputs | D6: Program-level budgets and participation | U6: Program Inputs
C7: Measure Inputs | D7: Measure-level savings, lifetimes, incremental costs, and incentives | U7: Measure Inputs
C8: General Inputs | D8: Avoided costs, discount rates, line losses, retail rates, etc. | U8: General Inputs
B9: Analysis | C9: Analysis | D9: Measure-level benefit-cost analysis | U9: 2019 | V9: 2019

Sheet RTTY Table (hidden)
C1: Cost Effectiveness
C2: Program Name/Sector | D2: mTRC
C3: Residential Sector
C4: Residential Retail Products | D4: =INDEX('Program Inputs'!$S$8:$Y$19,MATCH($C4,'Program Inputs'!#REF!,0),MATCH(D$2&" Total",'Program Inputs'!$S$3:$Y$3,0)) -> 
C5: Residential High Efficiency Cooling | D5: =INDEX('Program Inputs'!$S$8:$Y$19,MATCH($C5,'Program Inputs'!#REF!,0),MATCH(D$2&" Total",'Program Inputs'!$S$3:$Y$3,0)) -> 
C6: Residential Appliance Recycling | D6: =INDEX('Program Inputs'!$S$8:$Y$19,MATCH($C6,'Program Inputs'!#REF!,0),MATCH(D$2&" Total",'Program Inputs'!$S$3:$Y$3,0)) -> 
C7: Residential On-Site Evaluation | D7: =INDEX('Program Inputs'!$S$8:$Y$19,MATCH($C7,'Program Inputs'!#REF!,0),MATCH(D$2&" Total",'Program Inputs'!$S$3:$Y$3,0)) -> 
C8: Residential Home Energy Comparison Report | D8: =#REF! -> 
C9: Residential New Homes | D9: =INDEX('Program Inputs'!$S$8:$Y$19,MATCH($C9,'Program Inputs'!#REF!,0),MATCH(D$2&" Total",'Program Inputs'!$S$3:$Y$3,0)) -> 
C10: Residential Sector Total | D10: =#REF! -> 
C11: C&I Sector
C12: C&I New Construction | D12: =INDEX('Program Inputs'!$S$8:$Y$19,MATCH($C12,'Program Inputs'!#REF!,0),MATCH(D$2&" Total",'Program Inputs'!$S$3:$Y$3,0)) -> 
C13: C&I Custom | D13: =INDEX('Program Inputs'!$S$8:$Y$19,MATCH($C13,'Program Inputs'!#REF!,0),MATCH(D$2&" Total",'Program Inputs'!$S$3:$Y$3,0)) -> 
C14: C&I Self Direct | D14: =INDEX('Program Inputs'!$S$8:$Y$19,MATCH($C14,'Program Inputs'!#REF!,0),MATCH(D$2&" Total",'Program Inputs'!$S$3:$Y$3,0)) -> 
C15: C&I Prescriptive | D15: =INDEX('Program Inputs'!$S$8:$Y$19,MATCH($C15,'Program Inputs'!#REF!,0),MATCH(D$2&" Total",'Program Inputs'!$S$3:$Y$3,0)) -> 
C16: C&I Lighting | D16: =INDEX('Program Inputs'!$S$8:$Y$19,MATCH($C16,'Program Inputs'!#REF!,0),MATCH(D$2&" Total",'Program Inputs'!$S$3:$Y$3,0)) -> 
C17: C&I SBDI | D17: =INDEX('Program Inputs'!$S$8:$Y$19,MATCH($C17,'Program Inputs'!#REF!,0),MATCH(D$2&" Total",'Program Inputs'!$S$3:$Y$3,0)) -> 
C18: Advanced C&I Upgrade | D18: =INDEX('Program Inputs'!$S$8:$Y$19,MATCH($C18,'Program Inputs'!#REF!,0),MATCH(D$2&" Total",'Program Inputs'!$S$3:$Y$3,0)) -> 
C19: C&I Compressed Air Audit | D19: =INDEX('Program Inputs'!$S$8:$Y$19,MATCH($C19,'Program Inputs'!#REF!,0),MATCH(D$2&" Total",'Program Inputs'!$S$3:$Y$3,0)) -> 
C20: C&I Upstream Incentives | D20: =INDEX('Program Inputs'!$S$8:$Y$19,MATCH($C20,'Program Inputs'!#REF!,0),MATCH(D$2&" Total",'Program Inputs'!$S$3:$Y$3,0)) -> 
C21: Large Industrial Audits | D21: =INDEX('Program Inputs'!$S$8:$Y$19,MATCH($C21,'Program Inputs'!#REF!,0),MATCH(D$2&" Total",'Program Inputs'!$S$3:$Y$3,0)) -> 
C22: C&I Sector Total | D22: =#REF! -> 
C23: Special Sector
C24: Low-Income Assistance | D24: =INDEX('Program Inputs'!$S$8:$Y$19,MATCH($C24,'Program Inputs'!#REF!,0),MATCH(D$2&" Total",'Program Inputs'!$S$3:$Y$3,0)) -> 
C25: School Based Energy Education | D25: =INDEX('Program Inputs'!$S$8:$Y$19,MATCH($C25,'Program Inputs'!#REF!,0),MATCH(D$2&" Total",'Program Inputs'!$S$3:$Y$3,0)) -> 
C26: Special Sector Total | D26: =#REF! -> 
C27: Total Portfolio | D27: =#REF! -> 

Sheet Tables
A1: =IFERROR(VALUE(MID(CELL("filename",$A$1),FIND("]",CELL("filename",$A$1))+1,255)),MID(CELL("filename",$A$1),FIND("]",CELL("filename",$A$1))+1,255)) -> Tables
A2: =HYPERLINK("#'Contents'!a1","Return to Contents") -> Return to Contents
C3: Key | D3: Sector | E3: Program | F3: Measure | K3: Plan | L3: Actual
H4: Executive Summary
I6: Budget by Sector
J8: Sector | K8: Goal | L8: Actual | M8: % Goal Achieved
C9: =D9&"_"&E9&"_"&F9 -> Residential_All_All | D9: Residential | E9: All | F9: All | J9: Residential | K9: =SUM(K19:K23) -> 140673.82 | L9: =SUM(L19:L23) -> 125783.37 | M9: =IFERROR(L9/K9,0) -> 0.8941491032
C10: =D10&"_"&E10&"_"&F10 -> C&I_All_All | D10: C&I | E10: All | F10: All | J10: Non-Residential | K10: =SUM(K25:K26) -> 542027.46 | L10: =SUM(L25:L26) -> 713261.54 | M10: 1.315914031
C11: All_Cross Marketing and Training_All | D11: All | E11: Cross Marketing and Training | F11: All | J11: Cross Marketing & Training | K11: =K27 -> 118709.75 | L11: =L27 -> 104730.38 | M11: 0.8822390747
C12: All_General Administration_All | D12: All | E12: General Administration | F12: All | J12: General Administration | K12: =K28 -> 58564.45 | L12: =L28 -> 29702.78 | M12: =IFERROR(L12/K12,0) -> 0.5071810629
C13: All_All_All | D13: All | E13: All | F13: All | J13: Total | K13: =SUM(K9:K12) -> 859975.48 | L13: =SUM(L9:L12) -> 973478.07 | M13: =IFERROR(L13/K13,0) -> 1.131983519
I15: Budget by Program
J17: Program | K17: Goal | L17: Actual | M17: % Goal Achieved
J18: Residential Programs
B19: Budget | C19: =D19&"_"&E19&"_"&F19 -> Residential_Residential Lighting_* | D19: Residential | E19: Residential Lighting | F19: * | J19: =E19 -> Residential Lighting | K19: 30212.05 | L19: =INDEX('Program Inputs'!$G$8:$L$16,MATCH($C19,'Program Inputs'!$B$8:$B$16,0),MATCH(L$17&"_"&$B19,'Program Inputs'!$G$4:$L$4,0)) -> 6865.53 | M19: =IFERROR(L19/K19,0) -> 0.2272447583
B20: Budget | C20: =D20&"_"&E20&"_"&F20 -> Residential_Appliance Recycling_* | D20: Residential | E20: Appliance Recycling | F20: * | J20: =E20 -> Appliance Recycling | K20: 13103.63 | L20: =INDEX('Program Inputs'!$G$8:$L$16,MATCH($C20,'Program Inputs'!$B$8:$B$16,0),MATCH(L$17&"_"&$B20,'Program Inputs'!$G$4:$L$4,0)) -> 22625.5 | M20: =IFERROR(L20/K20,0) -> 1.726658949
B21: Budget | C21: Residential_High Efficiency HVAC_* | D21: Residential | E21: High Efficiency HVAC | F21: * | J21: =E21 -> High Efficiency HVAC | K21: 23858.51 | L21: =INDEX('Program Inputs'!$G$8:$L$16,MATCH($C21,'Program Inputs'!$B$8:$B$16,0),MATCH(L$17&"_"&$B21,'Program Inputs'!$G$4:$L$4,0)) -> 42559.84 | M21: =IFERROR(L21/K21,0) -> 1.783843165
B22: Budget | C22: Residential_Whole House Efficiency_* | D22: Residential | E22: Whole House Efficiency | F22: * | J22: =E22 -> Whole House Efficiency | K22: 10349.63 | L22: =INDEX('Program Inputs'!$G$8:$L$16,MATCH($C22,'Program Inputs'!$B$8:$B$16,0),MATCH(L$17&"_"&$B22,'Program Inputs'!$G$4:$L$4,0)) -> 1692.45 | M22: =IFERROR(L22/K22,0) -> 0.163527585
B23: Budget | C23: Residential_School-Based Education_* | D23: Residential | E23: School-Based Education | F23: * | J23: =E23 -> School-Based Education | K23: 63150 | L23: =INDEX('Program Inputs'!$G$8:$L$16,MATCH($C23,'Program Inputs'!$B$8:$B$16,0),MATCH(L$17&"_"&$B23,'Program Inputs'!$G$4:$L$4,0)) -> 52040.05 | M23: =IFERROR(L23/K23,0) -> 0.8240704671
B24: Budget | C24: __ | J24: C&I Programs
B25: Budget | C25: C&I_C&I Prescriptive_* | D25: C&I | E25: C&I Prescriptive | F25: * | J25: =E25 -> C&I Prescriptive | K25: 97117.5 | L25: =INDEX('Program Inputs'!$G$8:$L$16,MATCH($C25,'Program Inputs'!$B$8:$B$16,0),MATCH(L$17&"_"&$B25,'Program Inputs'!$G$4:$L$4,0)) -> 48956.21 | M25: =IFERROR(L25/K25,0) -> 0.5040925683
B26: Budget | C26: C&I_C&I Custom_* | D26: C&I | E26: C&I Custom | F26: * | J26: =E26 -> C&I Custom | K26: 444909.96 | L26: =INDEX('Program Inputs'!$G$8:$L$16,MATCH($C26,'Program Inputs'!$B$8:$B$16,0),MATCH(L$17&"_"&$B26,'Program Inputs'!$G$4:$L$4,0)) -> 664305.33 | M26: =IFERROR(L26/K26,0) -> 1.49312308
B27: Budget | C27: Total_Cross Marketing and Training_* | D27: Total | E27: Cross Marketing and Training | F27: * | J27: Cross Marketing and Training | K27: 118709.75 | L27: =INDEX('Program Inputs'!$G$8:$L$16,MATCH($C27,'Program Inputs'!$B$8:$B$16,0),MATCH(L$17&"_"&$B27,'Program Inputs'!$G$4:$L$4,0)) -> 104730.38 | M27: =IFERROR(L27/K27,0) -> 0.8822390747
B28: Budget | C28: Total_General Administration_* | D28: Total | E28: General Administration | F28: * | J28: General Administration | K28: 58564.45 | L28: =INDEX('Program Inputs'!$G$8:$L$16,MATCH($C28,'Program Inputs'!$B$8:$B$16,0),MATCH(L$17&"_"&$B28,'Program Inputs'!$G$4:$L$4,0)) -> 29702.78 | M28: =IFERROR(L28/K28,0) -> 0.5071810629
J29: Total | K29: =SUM(K19:K28) -> 859975.48 | L29: =SUM(L19:L28) -> 973478.07 | M29: =IFERROR(L29/K29,0) -> 1.131983519
I31: Energy Impacts by Sector
J33: Sector | K33: Goal | L33: Actual | M33: % Goal Achieved
C34: =D34&"_"&E34&"_"&F34 -> Residential_All_All | D34: Residential | E34: All | F34: All | J34: =D34 -> Residential | K34: =SUM(K41:K45) -> 862609.75 | L34: =SUM(L41:L45) -> 843855.3942 | M34: =IFERROR(L34/K34,0) -> 0.9782585858
C35: C&I_All_All | D35: C&I | E35: All | F35: All | J35: =D35 -> C&I | K35: =SUM(K46:K47) -> 4253630 | L35: =SUM(L46:L47) -> 3986177.166 | M35: =IFERROR(L35/K35,0) -> 0.9371236252
C36: All_All_All | D36: All | E36: All | F36: All | J36: Total | K36: =SUM(K34:K35) -> 5116239.75 | L36: =L34+L35 -> 4830032.56 | M36: =IFERROR(L36/K36,0) -> 0.9440590739
I38: Energy Impacts by Program
J40: Program | K40: Goal | L40: Actual | M40: % Goal Achieved
B41: kWh | C41: =D41&"_"&E41&"_"&F41 -> Residential_Residential Lighting_* | D41: Residential | E41: Residential Lighting | F41: * | J41: =E41 -> Residential Lighting | K41: 139932.75 | L41: =INDEX('Program Inputs'!$G$8:$L$16,MATCH($C41,'Program Inputs'!$B$8:$B$16,0),MATCH(L$17&"_"&$B41,'Program Inputs'!$G$4:$L$4,0)) -> 69371.89 | M41: =IFERROR(L41/K41,0) -> 0.4957516378
B42: kWh | C42: Residential_Appliance Recycling_* | D42: Residential | E42: Appliance Recycling | F42: * | J42: Appliance Recycling | K42: 105515 | L42: =INDEX('Program Inputs'!$G$8:$L$16,MATCH($C42,'Program Inputs'!$B$8:$B$16,0),MATCH(L$17&"_"&$B42,'Program Inputs'!$G$4:$L$4,0)) -> 123379 | M42: 1.169302943
B43: kWh | C43: Residential_High Efficiency HVAC_* | D43: Residential | E43: High Efficiency HVAC | F43: * | J43: High Efficiency HVAC | K43: 109356 | L43: =INDEX('Program Inputs'!$G$8:$L$16,MATCH($C43,'Program Inputs'!$B$8:$B$16,0),MATCH(L$17&"_"&$B43,'Program Inputs'!$G$4:$L$4,0)) -> 177996.5042 | M43: 1.627679361
B44: kWh | C44: Residential_Whole House Efficiency_* | D44: Residential | E44: Whole House Efficiency | F44: * | J44: Whole House Efficiency | K44: 31406 | L44: =INDEX('Program Inputs'!$G$8:$L$16,MATCH($C44,'Program Inputs'!$B$8:$B$16,0),MATCH(L$17&"_"&$B44,'Program Inputs'!$G$4:$L$4,0)) -> 4648 | M44: 0.147997198
B45: kWh | C45: Residential_School-Based Education_* | D45: Residential | E45: School-Based Education | F45: * | J45: School-Based Education | K45: 476400 | L45: =INDEX('Program Inputs'!$G$8:$L$16,MATCH($C45,'Program Inputs'!$B$8:$B$16,0),MATCH(L$17&"_"&$B45,'Program Inputs'!$G$4:$L$4,0)) -> 468460 | M45: 0.9833333333
B46: kWh | C46: C&I_C&I Prescriptive_* | D46: C&I | E46: C&I Prescriptive | F46: * | J46: C&I Prescriptive | K46: 1369713 | L46: =INDEX('Program Inputs'!$G$8:$L$16,MATCH($C46,'Program Inputs'!$B$8:$B$16,0),MATCH(L$17&"_"&$B46,'Program Inputs'!$G$4:$L$4,0)) -> 407275.166 | M46: 0.2973434333
B47: kWh | C47: C&I_C&I Custom_* | D47: C&I | E47: C&I Custom | F47: * | J47: C&I Custom | K47: 2883917 | L47: =INDEX('Program Inputs'!$G$8:$L$16,MATCH($C47,'Program Inputs'!$B$8:$B$16,0),MATCH(L$17&"_"&$B47,'Program Inputs'!$G$4:$L$4,0)) -> 3578902 | M47: 1.240986478
D48: All | E48: All | F48: All | J48: Total | K48: 5116239.75 | L48: =SUM(L41:L47) -> 4830032.56 | M48: 0.9440590739
I50: Demand Impacts by Sector
J52: Sector | K52: Goal | L52: Actual | M52: % Goal Achieved
J53: Residential | K53: =SUM(K60:K64) -> 103.5410741 | L53: =SUM(L60:L64) -> 74.1545 | M53: =IFERROR(L53/K53,0) -> 0.7161843807
J54: C&I | K54: =SUM(K65:K66) -> 1046.450957 | L54: =SUM(L65:L66) -> 709.693848 | M54: =IFERROR(L54/K54,0) -> 0.6781912167
J55: Total | K55: =SUM(K53:K54) -> 1149.992032 | L55: =SUM(L53:L54) -> 783.848348 | M55: =IFERROR(L55/K55,0) -> 0.6816119821
I57: Demand Impacts by Program
J59: Program | K59: Goal | L59: Actual | M59: % Goal Achieved
B60: kW | C60: =D60&"_"&E60&"_"&F60 -> Residential_Residential Lighting_* | D60: Residential | E60: Residential Lighting | F60: * | J60: =E60 -> Residential Lighting | K60: 12.28318632 | L60: =INDEX('Program Inputs'!$G$8:$L$16,MATCH($C60,'Program Inputs'!$B$8:$B$16,0),MATCH(L$17&"_"&$B60,'Program Inputs'!$G$4:$L$4,0)) -> 6.0725 | M60: =IFERROR(L60/K60,0) -> 0.4943749808
B61: kW | C61: Residential_Appliance Recycling_* | D61: Residential | E61: Appliance Recycling | F61: * | J61: Appliance Recycling | K61: 12.04509132 | L61: =INDEX('Program Inputs'!$G$8:$L$16,MATCH($C61,'Program Inputs'!$B$8:$B$16,0),MATCH(L$17&"_"&$B61,'Program Inputs'!$G$4:$L$4,0)) -> 14.07 | M61: 1.168110695
B62: kW | C62: Residential_High Efficiency HVAC_* | D62: Residential | E62: High Efficiency HVAC | F62: * | J62: High Efficiency HVAC | K62: 27.43166718 | L62: =INDEX('Program Inputs'!$G$8:$L$16,MATCH($C62,'Program Inputs'!$B$8:$B$16,0),MATCH(L$17&"_"&$B62,'Program Inputs'!$G$4:$L$4,0)) -> 6.385 | M62: 0.2327601876
B63: kW | C63: Residential_Whole House Efficiency_* | D63: Residential | E63: Whole House Efficiency | F63: * | J63: Whole House Efficiency | K63: 3.781129239 | L63: =INDEX('Program Inputs'!$G$8:$L$16,MATCH($C63,'Program Inputs'!$B$8:$B$16,0),MATCH(L$17&"_"&$B63,'Program Inputs'!$G$4:$L$4,0)) -> 0.427 | M63: 0.1129292264
B64: kW | C64: Residential_School-Based Education_* | D64: Residential | E64: School-Based Education | F64: * | J64: School-Based Education | K64: 48 | L64: =INDEX('Program Inputs'!$G$8:$L$16,MATCH($C64,'Program Inputs'!$B$8:$B$16,0),MATCH(L$17&"_"&$B64,'Program Inputs'!$G$4:$L$4,0)) -> 47.2 | M64: 0.9833333333
B65: kW | C65: C&I_C&I Prescriptive_* | D65: C&I | E65: C&I Prescriptive | F65: * | J65: C&I Prescriptive | K65: 347.789 | L65: =INDEX('Program Inputs'!$G$8:$L$16,MATCH($C65,'Program Inputs'!$B$8:$B$16,0),MATCH(L$17&"_"&$B65,'Program Inputs'!$G$4:$L$4,0)) -> 100.453848 | M65: 0.2888356101
B66: kW | C66: C&I_C&I Custom_* | D66: C&I | E66: C&I Custom | F66: * | J66: C&I Custom | K66: 698.6619574 | L66: =INDEX('Program Inputs'!$G$8:$L$16,MATCH($C66,'Program Inputs'!$B$8:$B$16,0),MATCH(L$17&"_"&$B66,'Program Inputs'!$G$4:$L$4,0)) -> 609.24 | M66: 0.8720096944
J67: Total | K67: 1149.992032 | L67: =SUM(L60:L66) -> 783.848348 | M67: 0.6816119821
I69: Cost-effectiveness Results
J71: Sector | K71: TRC | L71: UCT | M71: SCT | N71: PCT | O71: RIM
C72: =D72&"_"&E72&"_"&F72 -> Total_Residential_* | D72: Total | E72: Residential | F72: * | J72: Residential | K72: =INDEX('Program Inputs'!$M$17:$AA$19,MATCH($C72,'Program Inputs'!$B$17:$B$19,0),MATCH(K$71,'Program Inputs'!$M$4:$AA$4,0)) -> 0.8830633929 | L72: =INDEX('Program Inputs'!$M$17:$AA$19,MATCH($C72,'Program Inputs'!$B$17:$B$19,0),MATCH(L$71,'Program Inputs'!$M$4:$AA$4,0)) -> 1.295457775 | M72: =INDEX('Program Inputs'!$M$17:$AA$19,MATCH($C72,'Program Inputs'!$B$17:$B$19,0),MATCH(M$71,'Program Inputs'!$M$4:$AA$4,0)) -> 1.205536823 | N72: =INDEX('Program Inputs'!$M$17:$AA$19,MATCH($C72,'Program Inputs'!$B$17:$B$19,0),MATCH(N$71,'Program Inputs'!$M$4:$AA$4,0)) -> 8.450783594 | O72: =INDEX('Program Inputs'!$M$17:$AA$19,MATCH($C72,'Program Inputs'!$B$17:$B$19,0),MATCH(O$71,'Program Inputs'!$M$4:$AA$4,0)) -> 0.1859686505
C73: Total_C&I_* | D73: Total | E73: C&I | F73: * | J73: C&I | K73: =INDEX('Program Inputs'!$M$17:$AA$19,MATCH($C73,'Program Inputs'!$B$17:$B$19,0),MATCH(K$71,'Program Inputs'!$M$4:$AA$4,0)) -> 1.580578317 | L73: =INDEX('Program Inputs'!$M$17:$AA$19,MATCH($C73,'Program Inputs'!$B$17:$B$19,0),MATCH(L$71,'Program Inputs'!$M$4:$AA$4,0)) -> 1.726427387 | M73: =INDEX('Program Inputs'!$M$17:$AA$19,MATCH($C73,'Program Inputs'!$B$17:$B$19,0),MATCH(M$71,'Program Inputs'!$M$4:$AA$4,0)) -> 2.109129391 | N73: =INDEX('Program Inputs'!$M$17:$AA$19,MATCH($C73,'Program Inputs'!$B$17:$B$19,0),MATCH(N$71,'Program Inputs'!$M$4:$AA$4,0)) -> 8.142216594 | O73: =INDEX('Program Inputs'!$M$17:$AA$19,MATCH($C73,'Program Inputs'!$B$17:$B$19,0),MATCH(O$71,'Program Inputs'!$M$4:$AA$4,0)) -> 0.2537542661
C74: Total_Total_ | D74: Total | E74: Total | J74: Total | K74: =INDEX('Program Inputs'!$M$17:$AA$19,MATCH($C74,'Program Inputs'!$B$17:$B$19,0),MATCH(K$71,'Program Inputs'!$M$4:$AA$4,0)) -> 1.269850036 | L74: =INDEX('Program Inputs'!$M$17:$AA$19,MATCH($C74,'Program Inputs'!$B$17:$B$19,0),MATCH(L$71,'Program Inputs'!$M$4:$AA$4,0)) -> 1.432329443 | M74: =INDEX('Program Inputs'!$M$17:$AA$19,MATCH($C74,'Program Inputs'!$B$17:$B$19,0),MATCH(M$71,'Program Inputs'!$M$4:$AA$4,0)) -> 1.699059016 | N74: =INDEX('Program Inputs'!$M$17:$AA$19,MATCH($C74,'Program Inputs'!$B$17:$B$19,0),MATCH(N$71,'Program Inputs'!$M$4:$AA$4,0)) -> 8.185409736 | O74: =INDEX('Program Inputs'!$M$17:$AA$19,MATCH($C74,'Program Inputs'!$B$17:$B$19,0),MATCH(O$71,'Program Inputs'!$M$4:$AA$4,0)) -> 0.2378065024
H76: Residential Lighting
I78: Summary
K80: Goal | L80: Actual | M80: % Goal Achieved
D81: Sector | E81: Program | F81: Measure | J81: Participation
C82: =D82&"_"&E82&"_"&F82 -> Residential_Residential Lighting_LED | D82: Residential | E82: Residential Lighting | F82: LED | J82: =F82 -> LED | K82: 4060 | L82: =INDEX('Measure Inputs'!I$6:I$64,MATCH($C82,'Measure Inputs'!$B$6:$B$64,0)) -> 1293 | M82: =IFERROR(L82/K82,0) -> 0.3184729064
C83: =D83&"_"&E83&"_"&F83 -> Residential_Residential Lighting_ENERGY STAR Fixture | D83: Residential | E83: Residential Lighting | F83: ENERGY STAR Fixture | J83: =F83 -> ENERGY STAR Fixture | K83: 125 | L83: =INDEX('Measure Inputs'!I$6:I$64,MATCH($C83,'Measure Inputs'!$B$6:$B$64,0)) -> 317 | M83: =IFERROR(L83/K83,0) -> 2.536
J84: Expenditures | K84: =K19 -> 30212.05 | L84: =L19 -> 6865.53 | M84: =IFERROR(L84/K84,0) -> 0.2272447583
J85: Energy Impacts (kWh) | K85: =K41 -> 139932.75 | L85: =L41 -> 69371.89 | M85: =IFERROR(L85/K85,0) -> 0.4957516378
J86: Demand Impacts (kW) | K86: =K60 -> 12.28318632 | L86: =L60 -> 6.0725 | M86: =IFERROR(L86/K86,0) -> 0.4943749808
I88: Cost-Effectiveness
K90: Test | L90: Actual
C91: =D91&"_"&E91&"_"&F91 -> Residential_Residential Lighting_* | D91: Residential | E91: Residential Lighting | F91: * | K91: TRC | L91: =INDEX('Program Inputs'!$M$8:$AA$19,MATCH($C91,'Program Inputs'!$B$8:$B$19,0),MATCH(K91,'Program Inputs'!$M$4:$AA$4,0)) -> 1.007998635
C92: =D92&"_"&E92&"_"&F92 -> Residential_Residential Lighting_* | D92: Residential | E92: Residential Lighting | F92: * | K92: UCT | L92: =INDEX('Program Inputs'!$M$8:$AA$19,MATCH($C92,'Program Inputs'!$B$8:$B$19,0),MATCH(K92,'Program Inputs'!$M$4:$AA$4,0)) -> 2.344117249
C93: Residential_Residential Lighting_* | D93: Residential | E93: Residential Lighting | F93: * | K93: SCT | L93: =INDEX('Program Inputs'!$M$8:$AA$19,MATCH($C93,'Program Inputs'!$B$8:$B$19,0),MATCH(K93,'Program Inputs'!$M$4:$AA$4,0)) -> 1.373620061
C94: Residential_Residential Lighting_* | D94: Residential | E94: Residential Lighting | F94: * | K94: PCT | L94: =INDEX('Program Inputs'!$M$8:$AA$19,MATCH($C94,'Program Inputs'!$B$8:$B$19,0),MATCH(K94,'Program Inputs'!$M$4:$AA$4,0)) -> 5.466001668
C95: Residential_Residential Lighting_* | D95: Residential | E95: Residential Lighting | F95: * | K95: RIM | L95: =INDEX('Program Inputs'!$M$8:$AA$19,MATCH($C95,'Program Inputs'!$B$8:$B$19,0),MATCH(K95,'Program Inputs'!$M$4:$AA$4,0)) -> 0.1998937919
H97: Appliance Recycling
I99: Summary
K101: Goal | L101: Actual | M101: % Goal Achieved
J102: Participation
C103: =D103&"_"&E103&"_"&F103 -> Residential_Appliance Recycling_Refrigerator Recycle | D103: Residential | E103: Appliance Recycling | F103: Refrigerator Recycle | J103: =F103 -> Refrigerator Recycle | K103: 75 | L103: =INDEX('Measure Inputs'!I$6:I$64,MATCH($C103,'Measure Inputs'!$B$6:$B$64,0)) -> 76 | M103: =IFERROR(L103/K103,0) -> 1.013333333
C104: =D104&"_"&E104&"_"&F104 -> Residential_Appliance Recycling_Freezer Recycle | D104: Residential | E104: Appliance Recycling | F104: Freezer Recycle | J104: =F104 -> Freezer Recycle | K104: 8 | L104: =INDEX('Measure Inputs'!I$6:I$64,MATCH($C104,'Measure Inputs'!$B$6:$B$64,0)) -> 23 | M104: =IFERROR(L104/K104,0) -> 2.875
J105: Expenditures | K105: =K20 -> 13103.63 | L105: =L20 -> 22625.5 | M105: =IFERROR(L105/K105,0) -> 1.726658949
J106: Energy Impacts (kWh) | K106: =K42 -> 105515 | L106: =L42 -> 123379 | M106: =IFERROR(L106/K106,0) -> 1.169302943
J107: Demand Impacts (kW) | K107: =K61 -> 12.04509132 | L107: =L61 -> 14.07 | M107: =IFERROR(L107/K107,0) -> 1.168110695
I109: Cost-Effectiveness
K111: Test | L111: Actual
C112: =D112&"_"&E112&"_"&F112 -> Residential_Appliance Recycling_* | D112: Residential | E112: Appliance Recycling | F112: * | K112: TRC | L112: =INDEX('Program Inputs'!$M$8:$AA$19,MATCH($C112,'Program Inputs'!$B$8:$B$19,0),MATCH(K112,'Program Inputs'!$M$4:$AA$4,0)) -> 0.923036434
C113: Residential_Appliance Recycling_* | D113: =D112 -> Residential | E113: Appliance Recycling | F113: * | K113: UCT | L113: =INDEX('Program Inputs'!$M$8:$AA$19,MATCH($C113,'Program Inputs'!$B$8:$B$19,0),MATCH(K113,'Program Inputs'!$M$4:$AA$4,0)) -> 1.096706236
C114: Residential_Appliance Recycling_* | D114: Residential | E114: Appliance Recycling | F114: * | K114: SCT | L114: =INDEX('Program Inputs'!$M$8:$AA$19,MATCH($C114,'Program Inputs'!$B$8:$B$19,0),MATCH(K114,'Program Inputs'!$M$4:$AA$4,0)) -> 1.255743796
C115: Residential_Appliance Recycling_* | D115: Residential | E115: Appliance Recycling | F115: * | K115: PCT | L115: =INDEX('Program Inputs'!$M$8:$AA$19,MATCH($C115,'Program Inputs'!$B$8:$B$19,0),MATCH(K115,'Program Inputs'!$M$4:$AA$4,0)) -> 12.65315652
C116: Residential_Appliance Recycling_* | D116: Residential | E116: Appliance Recycling | F116: * | K116: RIM | L116: =INDEX('Program Inputs'!$M$8:$AA$19,MATCH($C116,'Program Inputs'!$B$8:$B$19,0),MATCH(K116,'Program Inputs'!$M$4:$AA$4,0)) -> 0.184936658
H118: High Efficiency HVAC
I120: Participation
K122: Goal | L122: Actual | M122: % Goal Achieved
J123: Participation
C124: =D124&"_"&E124&"_"&F124 -> Residential_High Efficiency HVAC_Heat Pump SEER ≥15, EER ≥12.5, HSPF ≥8.5 Replace Electric Furnace | D124: Residential | E124: High Efficiency HVAC | F124: Heat Pump SEER ≥15, EER ≥12.5, HSPF ≥8.5 Replace Electric Furnace | J124: Heat Pump SEER ≥15 Replace Electric Furnace | K124: 6 | L124: =INDEX('Measure Inputs'!I$6:I$64,MATCH($C124,'Measure Inputs'!$B$6:$B$64,0)) -> 15 | M124: =IFERROR(L124/K124,0) -> 2.5
C125: =D125&"_"&E125&"_"&F125 -> Residential_High Efficiency HVAC_CAC SEER ≥15, EER ≥12.5 | D125: Residential | E125: High Efficiency HVAC | F125: CAC SEER ≥15, EER ≥12.5 | J125: CAC SEER ≥15 | K125: 75 | L125: =INDEX('Measure Inputs'!I$6:I$64,MATCH($C125,'Measure Inputs'!$B$6:$B$64,0)) -> 8 | M125: 0.1066666667
J126: Expenditures | K126: =K21 -> 23858.51 | L126: =L21 -> 42559.84 | M126: 1.783843165
J127: Energy Impacts (kWh) | K127: =K43 -> 109356 | L127: =L43 -> 177996.5042 | M127: 1.627679361
J128: Demand Impacts (kW) | K128: =K62 -> 27.43166718 | L128: =L62 -> 6.385 | M128: 0.2327601876
I130: Cost-Effectiveness
K132: Test | L132: Actual
C133: =D133&"_"&E133&"_"&F133 -> Residential_High Efficiency HVAC_* | D133: Residential | E133: High Efficiency HVAC | F133: * | K133: TRC | L133: =INDEX('Program Inputs'!$M$8:$AA$19,MATCH($C133,'Program Inputs'!$B$8:$B$19,0),MATCH(K133,'Program Inputs'!$M$4:$AA$4,0)) -> 0.6442694528
C134: Residential_High Efficiency HVAC_* | D134: =D133 -> Residential | E134: High Efficiency HVAC | F134: * | K134: UCT | L134: =INDEX('Program Inputs'!$M$8:$AA$19,MATCH($C134,'Program Inputs'!$B$8:$B$19,0),MATCH(K134,'Program Inputs'!$M$4:$AA$4,0)) -> 1.331290946
C135: Residential_High Efficiency HVAC_* | D135: Residential | E135: High Efficiency HVAC | F135: * | K135: SCT | L135: =INDEX('Program Inputs'!$M$8:$AA$19,MATCH($C135,'Program Inputs'!$B$8:$B$19,0),MATCH(K135,'Program Inputs'!$M$4:$AA$4,0)) -> 0.8774767167
C136: Residential_High Efficiency HVAC_* | D136: Residential | E136: High Efficiency HVAC | F136: * | K136: PCT | L136: =INDEX('Program Inputs'!$M$8:$AA$19,MATCH($C136,'Program Inputs'!$B$8:$B$19,0),MATCH(K136,'Program Inputs'!$M$4:$AA$4,0)) -> 4.227885503
C137: Residential_High Efficiency HVAC_* | D137: Residential | E137: High Efficiency HVAC | F137: * | K137: RIM | L137: =INDEX('Program Inputs'!$M$8:$AA$19,MATCH($C137,'Program Inputs'!$B$8:$B$19,0),MATCH(K137,'Program Inputs'!$M$4:$AA$4,0)) -> 0.1820505863
H139: Whole House Efficiency
I141: Summary
K143: Goal | L143: Actual | M143: % Goal Achieved
C144: =D144&"_"&E144&"_"&F144 -> Residential_Whole House Efficiency_Recommended Audit Measures | D144: Residential | E144: Whole House Efficiency | F144: Recommended Audit Measures | J144: Participation | K144: 30 | L144: =INDEX('Measure Inputs'!I$6:I$64,MATCH($C144,'Measure Inputs'!$B$6:$B$64,0)) -> 7 | M144: =IFERROR(L144/K144,0) -> 0.2333333333
J145: Expenditures | K145: =K22 -> 10349.63 | L145: =L22 -> 1692.45 | M145: =IFERROR(L145/K145,0) -> 0.163527585
J146: Energy Impacts (kWh) | K146: =K44 -> 31406 | L146: =L44 -> 4648 | M146: =IFERROR(L146/K146,0) -> 0.147997198
J147: Demand Impacts (kW) | K147: =K63 -> 3.781129239 | L147: =L63 -> 0.427 | M147: =IFERROR(L147/K147,0) -> 0.1129292264
I149: Cost-Effectiveness
K151: Test | L151: Actual
C152: =D152&"_"&E152&"_"&F152 -> Residential_Whole House Efficiency_* | D152: Residential | E152: Whole House Efficiency | F152: * | K152: TRC | L152: =INDEX('Program Inputs'!$M$8:$AA$19,MATCH($C152,'Program Inputs'!$B$8:$B$19,0),MATCH(K152,'Program Inputs'!$M$4:$AA$4,0)) -> 0.6389860051
C153: Residential_Whole House Efficiency_* | D153: =D152 -> Residential | E153: Whole House Efficiency | F153: =F152 -> * | K153: UCT | L153: =INDEX('Program Inputs'!$M$8:$AA$19,MATCH($C153,'Program Inputs'!$B$8:$B$19,0),MATCH(K153,'Program Inputs'!$M$4:$AA$4,0)) -> 0.6389860051
C154: Residential_Whole House Efficiency_* | D154: Residential | E154: Whole House Efficiency | F154: * | K154: SCT | L154: =INDEX('Program Inputs'!$M$8:$AA$19,MATCH($C154,'Program Inputs'!$B$8:$B$19,0),MATCH(K154,'Program Inputs'!$M$4:$AA$4,0)) -> 0.8700816915
C155: Residential_Whole House Efficiency_* | D155: Residential | E155: Whole House Efficiency | F155: * | K155: PCT | L155: =INDEX('Program Inputs'!$M$8:$AA$19,MATCH($C155,'Program Inputs'!$B$8:$B$19,0),MATCH(K155,'Program Inputs'!$M$4:$AA$4,0)) -> 0
C156: Residential_Whole House Efficiency_* | D156: Residential | E156: Whole House Efficiency | F156: * | K156: RIM | L156: =INDEX('Program Inputs'!$M$8:$AA$19,MATCH($C156,'Program Inputs'!$B$8:$B$19,0),MATCH(K156,'Program Inputs'!$M$4:$AA$4,0)) -> 0.1631943922
H158: School-Based Education
I160: Summary
K162: Goal | L162: Actual | M162: % Goal Achieved
C163: =D163&"_"&E163&"_"&F163 -> Residential_School-Based Education_School-Based Education | D163: Residential | E163: School-Based Education | F163: School-Based Education | J163: Participation | K163: 1200 | L163: =INDEX('Measure Inputs'!I$6:I$64,MATCH($C163,'Measure Inputs'!$B$6:$B$64,0)) -> 1180 | M163: =IFERROR(L163/K163,0) -> 0.9833333333
J164: Expenditures | K164: =K23 -> 63150 | L164: =L23 -> 52040.05 | M164: =IFERROR(L164/K164,0) -> 0.8240704671
J165: Energy Impacts (kWh) | K165: =K45 -> 476400 | L165: =L45 -> 468460 | M165: =IFERROR(L165/K165,0) -> 0.9833333333
J166: Demand Impacts (kW) | K166: =K64 -> 48 | L166: =L64 -> 47.2 | M166: =IFERROR(L166/K166,0) -> 0.9833333333
I168: Cost-Effectiveness
K170: Test | L170: Actual
C171: =D171&"_"&E171&"_"&F171 -> Residential_School-Based Education_* | D171: Residential | E171: School-Based Education | F171: * | K171: TRC | L171: =INDEX('Program Inputs'!$M$8:$AA$19,MATCH($C171,'Program Inputs'!$B$8:$B$19,0),MATCH(K171,'Program Inputs'!$M$4:$AA$4,0)) -> 1.235566239
C172: Residential_School-Based Education_* | D172: =D171 -> Residential | E172: School-Based Education | F172: * | K172: UCT | L172: =INDEX('Program Inputs'!$M$8:$AA$19,MATCH($C172,'Program Inputs'!$B$8:$B$19,0),MATCH(K172,'Program Inputs'!$M$4:$AA$4,0)) -> 1.235566239
C173: Residential_School-Based Education_* | D173: Residential | E173: School-Based Education | F173: * | K173: SCT | L173: =INDEX('Program Inputs'!$M$8:$AA$19,MATCH($C173,'Program Inputs'!$B$8:$B$19,0),MATCH(K173,'Program Inputs'!$M$4:$AA$4,0)) -> 1.693340296
C174: Residential_School-Based Education_* | D174: Residential | E174: School-Based Education | F174: * | K174: PCT | L174: =INDEX('Program Inputs'!$M$8:$AA$19,MATCH($C174,'Program Inputs'!$B$8:$B$19,0),MATCH(K174,'Program Inputs'!$M$4:$AA$4,0)) -> 0
C175: Residential_School-Based Education_* | D175: Residential | E175: School-Based Education | F175: * | K175: RIM | L175: =INDEX('Program Inputs'!$M$8:$AA$19,MATCH($C175,'Program Inputs'!$B$8:$B$19,0),MATCH(K175,'Program Inputs'!$M$4:$AA$4,0)) -> 0.1870967164
H177: C&I Prescriptive
I179: Summary
K181: Goal | L181: Actual | M181: % Goal Achieved
J182: Participation
J183: Lighting | K183: 3030 | L183: =SUM('Measure Inputs'!I22:I58) -> 1665 | M183: =IFERROR(L183/K183,0) -> 0.5495049505
J184: HVAC | K184: 8 | L184: =SUM('Measure Inputs'!I59:I61) -> 1 | M184: 0.125
J185: Expenditures | K185: =K25 -> 97117.5 | L185: =L25 -> 48956.21 | M185: 0.5040925683
J186: Energy Impacts (kWh) | K186: =K46 -> 1369713 | L186: =L46 -> 407275.166 | M186: 0.2973434333
J187: Demand Impacts (kW) | K187: =K65 -> 347.789 | L187: =L65 -> 100.453848 | M187: 0.2888356101
I189: Cost-Effectiveness
K191: Test | L191: Actual
C192: =D192&"_"&E192&"_"&F192 -> C&I_C&I Prescriptive_* | D192: C&I | E192: C&I Prescriptive | F192: * | K192: TRC | L192: =INDEX('Program Inputs'!$M$8:$AA$19,MATCH($C192,'Program Inputs'!$B$8:$B$19,0),MATCH(K192,'Program Inputs'!$M$4:$AA$4,0)) -> 1.016582382
C193: C&I_C&I Prescriptive_* | D193: =D192 -> C&I | E193: C&I Prescriptive | F193: * | K193: UCT | L193: =INDEX('Program Inputs'!$M$8:$AA$19,MATCH($C193,'Program Inputs'!$B$8:$B$19,0),MATCH(K193,'Program Inputs'!$M$4:$AA$4,0)) -> 2.020224611
C194: C&I_C&I Prescriptive_* | D194: C&I | E194: C&I Prescriptive | F194: * | K194: SCT | L194: =INDEX('Program Inputs'!$M$8:$AA$19,MATCH($C194,'Program Inputs'!$B$8:$B$19,0),MATCH(K194,'Program Inputs'!$M$4:$AA$4,0)) -> 1.351781582
C195: C&I_C&I Prescriptive_* | D195: C&I | E195: C&I Prescriptive | F195: * | K195: PCT | L195: =INDEX('Program Inputs'!$M$8:$AA$19,MATCH($C195,'Program Inputs'!$B$8:$B$19,0),MATCH(K195,'Program Inputs'!$M$4:$AA$4,0)) -> 4.875433509
C196: C&I_C&I Prescriptive_* | D196: C&I | E196: C&I Prescriptive | F196: * | K196: RIM | L196: =INDEX('Program Inputs'!$M$8:$AA$19,MATCH($C196,'Program Inputs'!$B$8:$B$19,0),MATCH(K196,'Program Inputs'!$M$4:$AA$4,0)) -> 0.2681103898
H198: C&I Custom
I200: Summary
K202: Goal | L202: Actual | M202: % Goal Achieved
C203: =D203&"_"&E203&"_"&F203 -> C&I_C&I Custom_C&I Custom | D203: C&I | E203: C&I Custom | F203: C&I Custom | J203: Participation | K203: 88 | L203: =INDEX('Measure Inputs'!I$6:I$64,MATCH($C203,'Measure Inputs'!$B$6:$B$64,0)) -> 63 | M203: =IFERROR(L203/K203,0) -> 0.7159090909
J204: Expenditures | K204: =K26 -> 444909.96 | L204: =L26 -> 664305.33 | M204: =IFERROR(L204/K204,0) -> 1.49312308
J205: Energy Impacts (kWh) | K205: =K47 -> 2883917 | L205: =L47 -> 3578902 | M205: =IFERROR(L205/K205,0) -> 1.240986478
J206: Demand Impacts (kW) | K206: =K66 -> 698.6619574 | L206: =L66 -> 609.24 | M206: =IFERROR(L206/K206,0) -> 0.8720096944
I208: Cost-Effectiveness
K210: Test | L210: Actual
C211: =D211&"_"&E211&"_"&F211 -> C&I_C&I Custom_* | D211: C&I | E211: C&I Custom | F211: * | K211: TRC | L211: =INDEX('Program Inputs'!$M$8:$AA$19,MATCH($C211,'Program Inputs'!$B$8:$B$19,0),MATCH(K211,'Program Inputs'!$M$4:$AA$4,0)) -> 1.661058847
C212: C&I_C&I Custom_* | D212: =D211 -> C&I | E212: C&I Custom | F212: * | K212: UCT | L212: =INDEX('Program Inputs'!$M$8:$AA$19,MATCH($C212,'Program Inputs'!$B$8:$B$19,0),MATCH(K212,'Program Inputs'!$M$4:$AA$4,0)) -> 1.7047759
C213: C&I_C&I Custom_* | D213: C&I | E213: C&I Custom | F213: * | K213: SCT | L213: =INDEX('Program Inputs'!$M$8:$AA$19,MATCH($C213,'Program Inputs'!$B$8:$B$19,0),MATCH(K213,'Program Inputs'!$M$4:$AA$4,0)) -> 2.217200654
C214: C&I_C&I Custom_* | D214: C&I | E214: C&I Custom | F214: * | K214: PCT | L214: =INDEX('Program Inputs'!$M$8:$AA$19,MATCH($C214,'Program Inputs'!$B$8:$B$19,0),MATCH(K214,'Program Inputs'!$M$4:$AA$4,0)) -> 8.599848725
C215: C&I_C&I Custom_* | D215: C&I | E215: C&I Custom | F215: * | K215: RIM | L215: =INDEX('Program Inputs'!$M$8:$AA$19,MATCH($C215,'Program Inputs'!$B$8:$B$19,0),MATCH(K215,'Program Inputs'!$M$4:$AA$4,0)) -> 0.2525731756

Sheet Xcel v COE (hidden)
C1: 2019 | E1: 2020
C2: Xcel | D2: COE | E2: Xcel | F2: COE
A3: Portfolio | B3: goal | C3: 506000000 | D3: =#REF! ->  | E3: 507000000 | F3: =#REF! ->  | H3: =C7+C11+C15 -> 506135204
B4: $ | C4: 79134969 | D4: =#REF! ->  | E4: 81200000 | F4: =#REF! -> 
B5: mTRC | C5: 1.39 | D5: =#REF! ->  | E5: 1.45 | F5: =#REF! -> 
B6: $/kWh | C6: =C4/C3 -> 0.1563932194 | D6: =D4/D3 ->  | E6: =E4/E3 -> 0.1601577909 | F6: =F4/F3 ->  | K6: Program
A7: Business | B7: goal | C7: 316713344 | D7: =#REF! ->  | E7: 354734242 | F7: =#REF! ->  | K7: Energy Savings Kit $273,489 241 2,214,873 3.10
B8: $ | C8: 48064711 | D8: =#REF! ->  | E8: 51123020 | F8: =#REF!+#REF! ->  | K8: Multifamily Weatherization $1,081,511 407 1,889,123 0.89
B9: mTRC | C9: 1.31 | D9: =#REF! ->  | E9: 1.43 | F9: =#REF! ->  | K9: Non-Profit $1,119,608 383 1,701,178 0.99
B10: $/kWh | C10: =C8/C7 -> 0.151760928 | D10: =D8/D7 ->  | E10: =E8/E7 -> 0.1441163946 | F10: =F8/F7 ->  | K10: Single-Family Weatherization $1,439,268 226 1,775,444 0.70
A11: Residential | B11: goal | C11: 181841242 | D11: =#REF!+#REF! ->  | E11: 144899644 | F11: =#REF!+#REF! ->  | K11: Low-Income Program Total $3,913,875 1,257 7,580,618 0.98
B12: $ | C12: 20268875 | D12: =#REF!+#REF! ->  | E12: 19547514 | F12: =#REF! -> 
B13: mTRC | C13: 2.13 | D13: =#REF! ->  | E13: 2.02 | F13: =#REF! -> 
B14: $/kWh | C14: =C12/C11 -> 0.1114646753 | D14: =D12/D11 ->  | E14: =E12/E11 -> 0.1349038097 | F14: =F12/F11 -> 
A15: Low Income | B15: goal | C15: 7580618 | D15: =#REF!-#REF! ->  | E15: 7432960 | F15: =#REF!-#REF! -> 
B16: $ | C16: 3913875 | D16: =#REF!-#REF! ->  | E16: 3895220 | F16: =#REF!-#REF! -> 
B17: mTRC | C17: 0.98 | D17: =#REF! ->  | E17: 0.99 | F17: =#REF! -> 
B18: $/kWh | C18: =C16/C15 -> 0.5163002541 | D18: =D16/D15 ->  | E18: =E16/E15 -> 0.5240469476 | F18: =F16/F15 -> 
A19: Portfolio Costs | C19: =C4-SUM(C8,C12,C16) -> 6887508 | D19: =D4-SUM(D8,D12,D16) ->  | E19: =E4-SUM(E8,E12,E16) -> 6634246 | F19: =F4-SUM(F8,F12,F16) -> 
C20: =C19/C4 -> 0.08703494911 | D20: =D19/D4 ->  | E20: =E19/E4 -> 0.08170253695 | F20: =F19/F4 -> 
A21: Notes & points of Inclusion
B22: Have a 3rd party soliciation program
B23: Piloting Geo-targeting and Residential Battery DR
B24: 72% of Res savings and 25% of Portoflio savings in 2019 from Res Lighting
A25: 499 | B25: Did not assume baseline shift for savings for LED lighting, which greatly increases their savings
A26: 490 | B26: For Evaps, assumes a 3 Ton cooling load and replacement, which explains the high savings they are utilizing

Sheet Program Inputs
A1: =IFERROR(VALUE(MID(CELL("filename",$A$1),FIND("]",CELL("filename",$A$1))+1,255)),MID(CELL("filename",$A$1),FIND("]",CELL("filename",$A$1))+1,255)) -> Program Inputs
A2: =HYPERLINK("#'Contents'!a1","Return to Contents") -> Return to Contents
G4: Participants | H4: Total Incentives | J4: Actual_Budget | K4: Actual_kWh | L4: Actual_kW | M4: SCT | N4: SCT_Total Benefits ($NPV) | O4: SCT_Total Costs ($NPV) | P4: TRC | Q4: TRC_Total Benefits ($NPV) | R4: TRC_Total Costs ($NPV) | S4: PCT | T4: PCT_Total Benefits ($NPV) | U4: PCT_Total Costs ($NPV) | V4: UCT | W4: UCT_Total Benefits ($NPV) | X4: UCT_Total Costs ($NPV) | Y4: RIM | Z4: RIM_Total Benefits ($NPV) | AA4: RIM_Total Costs ($NPV)
M5: SCT Test | P5: TRC Test | S5: Participant Cost Test | V5: Utility Cost Test | Y5: Ratepayer Impact Cost Test
G6: Participants | H6: Incentives | I6: Non-Incentives | J6: Total Expenditures | K6: Total Net kWh | L6: Total Net kW | M6: B/C Ratio | N6: Total Benefits ($NPV) | O6: Total Costs ($NPV) | P6: B/C Ratio | Q6: Total Benefits ($NPV) | R6: Total Costs ($NPV) | S6: B/C Ratio | T6: Total Benefits ($NPV) | U6: Total Costs ($NPV) | V6: B/C Ratio | W6: Total Benefits ($NPV) | X6: Total Costs ($NPV) | Y6: B/C Ratio | Z6: Total Benefits ($NPV) | AA6: Total Costs ($NPV)
B7: Key | C7: UniqueKey | D7: Sector | E7: Program | F7: Measure | K7: 2018 | L7: 2018 | M7: 2018 | N7: 2018 | O7: 2018 | P7: 2018 | Q7: 2018 | R7: 2018 | S7: 2018 | T7: 2018 | U7: 2018 | V7: 2018 | W7: 2018 | X7: 2018 | Y7: 2018 | Z7: 2018 | AA7: 2018
B8: =D8&"_"&E8&"_"&F8 -> Residential_Residential Lighting_* | C8: =COUNTIF($B:$B,B8)=1 -> TRUE | D8: Residential | E8: Residential Lighting | F8: * | G8: =SUMIF(Analysis!$E$14:$E$72,$E8,INDEX(Analysis!$I$14:$DU$72,0,MATCH(G$4,Analysis!$I$5:$DU$5,0))) -> 1610 | H8: =SUMIF(Analysis!$E$14:$E$72,$E8,INDEX(Analysis!$I$14:$DU$72,0,MATCH(H$4,Analysis!$I$5:$DU$5,0))) -> 5352.128132 | I8: =J8-H8 -> 1513.401868 | J8: 6865.53 | K8: =SUMIF(Analysis!$E$14:$E$72,$E8,INDEX(Analysis!$I$14:$DU$72,0,MATCH(K$4,Analysis!$I$5:$DU$5,0))) -> 69371.89 | L8: =SUMIF(Analysis!$E$14:$E$72,$E8,INDEX(Analysis!$I$14:$DU$72,0,MATCH(L$4,Analysis!$I$5:$DU$5,0))) -> 6.0725 | M8: =IFERROR(N8/O8,0) -> 1.373620061 | N8: =SUMIF(Analysis!$E$14:$E$72,$E8,INDEX(Analysis!$I$14:$DU$72,0,MATCH(N$4,Analysis!$I$5:$DU$5,0))) -> 21931.0831 | O8: =SUMIF(Analysis!$E$14:$E$72,$E8,INDEX(Analysis!$I$14:$DU$72,0,MATCH(O$4,Analysis!$I$5:$DU$5,0)))+$I8 -> 15965.90187 | P8: =IFERROR(Q8/R8,0) -> 1.007998635 | Q8: =SUMIF(Analysis!$E$14:$E$72,$E8,INDEX(Analysis!$I$14:$DU$72,0,MATCH(Q$4,Analysis!$I$5:$DU$5,0))) -> 16093.60729 | R8: =SUMIF(Analysis!$E$14:$E$72,$E8,INDEX(Analysis!$I$14:$DU$72,0,MATCH(R$4,Analysis!$I$5:$DU$5,0)))+$I8 -> 15965.90187 | S8: =IFERROR(T8/U8,0) -> 5.466001668 | T8: =SUMIF(Analysis!$E$14:$E$72,$E8,INDEX(Analysis!$I$14:$DU$72,0,MATCH(T$4,Analysis!$I$5:$DU$5,0))) -> 78997.38911 | U8: =SUMIF(Analysis!$E$14:$E$72,$E8,INDEX(Analysis!$I$14:$DU$72,0,MATCH(U$4,Analysis!$I$5:$DU$5,0))) -> 14452.5 | V8: =IFERROR(W8/X8,0) -> 2.344117249 | W8: =SUMIF(Analysis!$E$14:$E$72,$E8,INDEX(Analysis!$I$14:$DU$72,0,MATCH(W$4,Analysis!$I$5:$DU$5,0))) -> 16093.60729 | X8: =SUMIF(Analysis!$E$14:$E$72,$E8,INDEX(Analysis!$I$14:$DU$72,0,MATCH(X$4,Analysis!$I$5:$DU$5,0)))+$I8 -> 6865.53 | Y8: =IFERROR(Z8/AA8,0) -> 0.1998937919 | Z8: =SUMIF(Analysis!$E$14:$E$72,$E8,INDEX(Analysis!$I$14:$DU$72,0,MATCH(Z$4,Analysis!$I$5:$DU$5,0))) -> 16093.60729 | AA8: =SUMIF(Analysis!$E$14:$E$72,$E8,INDEX(Analysis!$I$14:$DU$72,0,MATCH(AA$4,Analysis!$I$5:$DU$5,0)))+$I8 -> 80510.79098
B9: =D9&"_"&E9&"_"&F9 -> Residential_Appliance Recycling_* | C9: TRUE | D9: Residential | E9: Appliance Recycling | F9: * | G9: =SUMIF(Analysis!$E$14:$E$72,$E9,INDEX(Analysis!$I$14:$DU$72,0,MATCH(G$4,Analysis!$I$5:$DU$5,0))) -> 99 | H9: =SUMIF(Analysis!$E$14:$E$72,$E9,INDEX(Analysis!$I$14:$DU$72,0,MATCH(H$4,Analysis!$I$5:$DU$5,0))) -> 4950 | I9: =J9-H9 -> 17675.5 | J9: 22625.5 | K9: =SUMIF(Analysis!$E$14:$E$72,$E9,INDEX(Analysis!$I$14:$DU$72,0,MATCH(K$4,Analysis!$I$5:$DU$5,0))) -> 123379 | L9: =SUMIF(Analysis!$E$14:$E$72,$E9,INDEX(Analysis!$I$14:$DU$72,0,MATCH(L$4,Analysis!$I$5:$DU$5,0))) -> 14.07 | M9: 1.255743796 | N9: =SUMIF(Analysis!$E$14:$E$72,$E9,INDEX(Analysis!$I$14:$DU$72,0,MATCH(N$4,Analysis!$I$5:$DU$5,0))) -> 33757.53261 | O9: =SUMIF(Analysis!$E$14:$E$72,$E9,INDEX(Analysis!$I$14:$DU$72,0,MATCH(O$4,Analysis!$I$5:$DU$5,0)))+$I9 -> 26882.5 | P9: 0.923036434 | Q9: =SUMIF(Analysis!$E$14:$E$72,$E9,INDEX(Analysis!$I$14:$DU$72,0,MATCH(Q$4,Analysis!$I$5:$DU$5,0))) -> 24813.52694 | R9: =SUMIF(Analysis!$E$14:$E$72,$E9,INDEX(Analysis!$I$14:$DU$72,0,MATCH(R$4,Analysis!$I$5:$DU$5,0)))+$I9 -> 26882.5 | S9: 12.65315652 | T9: =SUMIF(Analysis!$E$14:$E$72,$E9,INDEX(Analysis!$I$14:$DU$72,0,MATCH(T$4,Analysis!$I$5:$DU$5,0))) -> 116497.6121 | U9: =SUMIF(Analysis!$E$14:$E$72,$E9,INDEX(Analysis!$I$14:$DU$72,0,MATCH(U$4,Analysis!$I$5:$DU$5,0))) -> 9207 | V9: 1.096706236 | W9: =SUMIF(Analysis!$E$14:$E$72,$E9,INDEX(Analysis!$I$14:$DU$72,0,MATCH(W$4,Analysis!$I$5:$DU$5,0))) -> 24813.52694 | X9: =SUMIF(Analysis!$E$14:$E$72,$E9,INDEX(Analysis!$I$14:$DU$72,0,MATCH(X$4,Analysis!$I$5:$DU$5,0)))+$I9 -> 22625.5 | Y9: 0.184936658 | Z9: =SUMIF(Analysis!$E$14:$E$72,$E9,INDEX(Analysis!$I$14:$DU$72,0,MATCH(Z$4,Analysis!$I$5:$DU$5,0))) -> 24813.52694 | AA9: =SUMIF(Analysis!$E$14:$E$72,$E9,INDEX(Analysis!$I$14:$DU$72,0,MATCH(AA$4,Analysis!$I$5:$DU$5,0)))+$I9 -> 134173.1121
B10: Residential_High Efficiency HVAC_* | C10: TRUE | D10: Residential | E10: High Efficiency HVAC | F10: * | G10: =SUMIF(Analysis!$E$14:$E$72,$E10,INDEX(Analysis!$I$14:$DU$72,0,MATCH(G$4,Analysis!$I$5:$DU$5,0))) -> 23 | H10: =SUMIF(Analysis!$E$14:$E$72,$E10,INDEX(Analysis!$I$14:$DU$72,0,MATCH(H$4,Analysis!$I$5:$DU$5,0))) -> 23790 | I10: 18769.84 | J10: 42559.84 | K10: =SUMIF(Analysis!$E$14:$E$72,$E10,INDEX(Analysis!$I$14:$DU$72,0,MATCH(K$4,Analysis!$I$5:$DU$5,0))) -> 177996.5042 | L10: =SUMIF(Analysis!$E$14:$E$72,$E10,INDEX(Analysis!$I$14:$DU$72,0,MATCH(L$4,Analysis!$I$5:$DU$5,0))) -> 6.385 | M10: 0.8774767167 | N10: =SUMIF(Analysis!$E$14:$E$72,$E10,INDEX(Analysis!$I$14:$DU$72,0,MATCH(N$4,Analysis!$I$5:$DU$5,0))) -> 77168.67197 | O10: =SUMIF(Analysis!$E$14:$E$72,$E10,INDEX(Analysis!$I$14:$DU$72,0,MATCH(O$4,Analysis!$I$5:$DU$5,0)))+$I10 -> 87943.84 | P10: 0.6442694528 | Q10: =SUMIF(Analysis!$E$14:$E$72,$E10,INDEX(Analysis!$I$14:$DU$72,0,MATCH(Q$4,Analysis!$I$5:$DU$5,0))) -> 56659.52967 | R10: =SUMIF(Analysis!$E$14:$E$72,$E10,INDEX(Analysis!$I$14:$DU$72,0,MATCH(R$4,Analysis!$I$5:$DU$5,0)))+$I10 -> 87943.84 | S10: 4.227885503 | T10: =SUMIF(Analysis!$E$14:$E$72,$E10,INDEX(Analysis!$I$14:$DU$72,0,MATCH(T$4,Analysis!$I$5:$DU$5,0))) -> 292459.7518 | U10: =SUMIF(Analysis!$E$14:$E$72,$E10,INDEX(Analysis!$I$14:$DU$72,0,MATCH(U$4,Analysis!$I$5:$DU$5,0))) -> 69174 | V10: 1.331290946 | W10: =SUMIF(Analysis!$E$14:$E$72,$E10,INDEX(Analysis!$I$14:$DU$72,0,MATCH(W$4,Analysis!$I$5:$DU$5,0))) -> 56659.52967 | X10: =SUMIF(Analysis!$E$14:$E$72,$E10,INDEX(Analysis!$I$14:$DU$72,0,MATCH(X$4,Analysis!$I$5:$DU$5,0)))+$I10 -> 42559.84 | Y10: 0.1820505863 | Z10: =SUMIF(Analysis!$E$14:$E$72,$E10,INDEX(Analysis!$I$14:$DU$72,0,MATCH(Z$4,Analysis!$I$5:$DU$5,0))) -> 56659.52967 | AA10: =SUMIF(Analysis!$E$14:$E$72,$E10,INDEX(Analysis!$I$14:$DU$72,0,MATCH(AA$4,Analysis!$I$5:$DU$5,0)))+$I10 -> 311229.5918
B11: Residential_Whole House Efficiency_* | C11: TRUE | D11: Residential | E11: Whole House Efficiency | F11: * | G11: =SUMIF(Analysis!$E$14:$E$72,$E11,INDEX(Analysis!$I$14:$DU$72,0,MATCH(G$4,Analysis!$I$5:$DU$5,0))) -> 7 | H11: =SUMIF(Analysis!$E$14:$E$72,$E11,INDEX(Analysis!$I$14:$DU$72,0,MATCH(H$4,Analysis!$I$5:$DU$5,0))) -> 0 | I11: 1692.45 | J11: 1692.45 | K11: =SUMIF(Analysis!$E$14:$E$72,$E11,INDEX(Analysis!$I$14:$DU$72,0,MATCH(K$4,Analysis!$I$5:$DU$5,0))) -> 4648 | L11: =SUMIF(Analysis!$E$14:$E$72,$E11,INDEX(Analysis!$I$14:$DU$72,0,MATCH(L$4,Analysis!$I$5:$DU$5,0))) -> 0.427 | M11: 0.8700816915 | N11: =SUMIF(Analysis!$E$14:$E$72,$E11,INDEX(Analysis!$I$14:$DU$72,0,MATCH(N$4,Analysis!$I$5:$DU$5,0))) -> 1472.569759 | O11: =SUMIF(Analysis!$E$14:$E$72,$E11,INDEX(Analysis!$I$14:$DU$72,0,MATCH(O$4,Analysis!$I$5:$DU$5,0)))+$I11 -> 1692.45 | P11: 0.6389860051 | Q11: =SUMIF(Analysis!$E$14:$E$72,$E11,INDEX(Analysis!$I$14:$DU$72,0,MATCH(Q$4,Analysis!$I$5:$DU$5,0))) -> 1081.451864 | R11: =SUMIF(Analysis!$E$14:$E$72,$E11,INDEX(Analysis!$I$14:$DU$72,0,MATCH(R$4,Analysis!$I$5:$DU$5,0)))+$I11 -> 1692.45 | S11: 0 | T11: =SUMIF(Analysis!$E$14:$E$72,$E11,INDEX(Analysis!$I$14:$DU$72,0,MATCH(T$4,Analysis!$I$5:$DU$5,0))) -> 4934.320991 | U11: =SUMIF(Analysis!$E$14:$E$72,$E11,INDEX(Analysis!$I$14:$DU$72,0,MATCH(U$4,Analysis!$I$5:$DU$5,0))) -> 0 | V11: 0.6389860051 | W11: =SUMIF(Analysis!$E$14:$E$72,$E11,INDEX(Analysis!$I$14:$DU$72,0,MATCH(W$4,Analysis!$I$5:$DU$5,0))) -> 1081.451864 | X11: =SUMIF(Analysis!$E$14:$E$72,$E11,INDEX(Analysis!$I$14:$DU$72,0,MATCH(X$4,Analysis!$I$5:$DU$5,0)))+$I11 -> 1692.45 | Y11: 0.1631943922 | Z11: =SUMIF(Analysis!$E$14:$E$72,$E11,INDEX(Analysis!$I$14:$DU$72,0,MATCH(Z$4,Analysis!$I$5:$DU$5,0))) -> 1081.451864 | AA11: =SUMIF(Analysis!$E$14:$E$72,$E11,INDEX(Analysis!$I$14:$DU$72,0,MATCH(AA$4,Analysis!$I$5:$DU$5,0)))+$I11 -> 6626.770991
B12: Residential_School-Based Education_* | C12: TRUE | D12: Residential | E12: School-Based Education | F12: * | G12: =SUMIF(Analysis!$E$14:$E$72,$E12,INDEX(Analysis!$I$14:$DU$72,0,MATCH(G$4,Analysis!$I$5:$DU$5,0))) -> 1180 | H12: =SUMIF(Analysis!$E$14:$E$72,$E12,INDEX(Analysis!$I$14:$DU$72,0,MATCH(H$4,Analysis!$I$5:$DU$5,0))) -> 0 | I12: 52040.05 | J12: 52040.05 | K12: =SUMIF(Analysis!$E$14:$E$72,$E12,INDEX(Analysis!$I$14:$DU$72,0,MATCH(K$4,Analysis!$I$5:$DU$5,0))) -> 468460 | L12: =SUMIF(Analysis!$E$14:$E$72,$E12,INDEX(Analysis!$I$14:$DU$72,0,MATCH(L$4,Analysis!$I$5:$DU$5,0))) -> 47.2 | M12: 1.693340296 | N12: =SUMIF(Analysis!$E$14:$E$72,$E12,INDEX(Analysis!$I$14:$DU$72,0,MATCH(N$4,Analysis!$I$5:$DU$5,0))) -> 88121.51366 | O12: =SUMIF(Analysis!$E$14:$E$72,$E12,INDEX(Analysis!$I$14:$DU$72,0,MATCH(O$4,Analysis!$I$5:$DU$5,0)))+$I12 -> 52040.05 | P12: 1.235566239 | Q12: =SUMIF(Analysis!$E$14:$E$72,$E12,INDEX(Analysis!$I$14:$DU$72,0,MATCH(Q$4,Analysis!$I$5:$DU$5,0))) -> 64298.92886 | R12: =SUMIF(Analysis!$E$14:$E$72,$E12,INDEX(Analysis!$I$14:$DU$72,0,MATCH(R$4,Analysis!$I$5:$DU$5,0)))+$I12 -> 52040.05 | S12: 0 | T12: =SUMIF(Analysis!$E$14:$E$72,$E12,INDEX(Analysis!$I$14:$DU$72,0,MATCH(T$4,Analysis!$I$5:$DU$5,0))) -> 291626.7449 | U12: =SUMIF(Analysis!$E$14:$E$72,$E12,INDEX(Analysis!$I$14:$DU$72,0,MATCH(U$4,Analysis!$I$5:$DU$5,0))) -> 0 | V12: 1.235566239 | W12: =SUMIF(Analysis!$E$14:$E$72,$E12,INDEX(Analysis!$I$14:$DU$72,0,MATCH(W$4,Analysis!$I$5:$DU$5,0))) -> 64298.92886 | X12: =SUMIF(Analysis!$E$14:$E$72,$E12,INDEX(Analysis!$I$14:$DU$72,0,MATCH(X$4,Analysis!$I$5:$DU$5,0)))+$I12 -> 52040.05 | Y12: 0.1870967164 | Z12: =SUMIF(Analysis!$E$14:$E$72,$E12,INDEX(Analysis!$I$14:$DU$72,0,MATCH(Z$4,Analysis!$I$5:$DU$5,0))) -> 64298.92886 | AA12: =SUMIF(Analysis!$E$14:$E$72,$E12,INDEX(Analysis!$I$14:$DU$72,0,MATCH(AA$4,Analysis!$I$5:$DU$5,0)))+$I12 -> 343666.7949
B13: C&I_C&I Custom_* | C13: TRUE | D13: C&I | E13: C&I Custom | F13: * | G13: =SUMIF(Analysis!$E$14:$E$72,$E13,INDEX(Analysis!$I$14:$DU$72,0,MATCH(G$4,Analysis!$I$5:$DU$5,0))) -> 63 | H13: =SUMIF(Analysis!$E$14:$E$72,$E13,INDEX(Analysis!$I$14:$DU$72,0,MATCH(H$4,Analysis!$I$5:$DU$5,0))) -> 482792.99 | I13: 181512.34 | J13: 664305.33 | K13: =SUMIF(Analysis!$E$14:$E$72,$E13,INDEX(Analysis!$I$14:$DU$72,0,MATCH(K$4,Analysis!$I$5:$DU$5,0))) -> 3578902 | L13: =SUMIF(Analysis!$E$14:$E$72,$E13,INDEX(Analysis!$I$14:$DU$72,0,MATCH(L$4,Analysis!$I$5:$DU$5,0))) -> 609.24 | M13: 2.217200654 | N13: =SUMIF(Analysis!$E$14:$E$72,$E13,INDEX(Analysis!$I$14:$DU$72,0,MATCH(N$4,Analysis!$I$5:$DU$5,0))) -> 1511663.105 | O13: =SUMIF(Analysis!$E$14:$E$72,$E13,INDEX(Analysis!$I$14:$DU$72,0,MATCH(O$4,Analysis!$I$5:$DU$5,0)))+$I13 -> 681789.04 | P13: 1.661058847 | Q13: =SUMIF(Analysis!$E$14:$E$72,$E13,INDEX(Analysis!$I$14:$DU$72,0,MATCH(Q$4,Analysis!$I$5:$DU$5,0))) -> 1132491.717 | R13: =SUMIF(Analysis!$E$14:$E$72,$E13,INDEX(Analysis!$I$14:$DU$72,0,MATCH(R$4,Analysis!$I$5:$DU$5,0)))+$I13 -> 681789.04 | S13: 8.599848725 | T13: =SUMIF(Analysis!$E$14:$E$72,$E13,INDEX(Analysis!$I$14:$DU$72,0,MATCH(T$4,Analysis!$I$5:$DU$5,0))) -> 4302303.941 | U13: =SUMIF(Analysis!$E$14:$E$72,$E13,INDEX(Analysis!$I$14:$DU$72,0,MATCH(U$4,Analysis!$I$5:$DU$5,0))) -> 500276.7 | V13: 1.7047759 | W13: =SUMIF(Analysis!$E$14:$E$72,$E13,INDEX(Analysis!$I$14:$DU$72,0,MATCH(W$4,Analysis!$I$5:$DU$5,0))) -> 1132491.717 | X13: =SUMIF(Analysis!$E$14:$E$72,$E13,INDEX(Analysis!$I$14:$DU$72,0,MATCH(X$4,Analysis!$I$5:$DU$5,0)))+$I13 -> 664305.33 | Y13: 0.2525731756 | Z13: =SUMIF(Analysis!$E$14:$E$72,$E13,INDEX(Analysis!$I$14:$DU$72,0,MATCH(Z$4,Analysis!$I$5:$DU$5,0))) -> 1132491.717 | AA13: =SUMIF(Analysis!$E$14:$E$72,$E13,INDEX(Analysis!$I$14:$DU$72,0,MATCH(AA$4,Analysis!$I$5:$DU$5,0)))+$I13 -> 4483816.281
B14: C&I_C&I Prescriptive_* | C14: TRUE | D14: C&I | E14: C&I Prescriptive | F14: * | G14: =SUMIF(Analysis!$E$14:$E$72,$E14,INDEX(Analysis!$I$14:$DU$72,0,MATCH(G$4,Analysis!$I$5:$DU$5,0))) -> 1666 | H14: =SUMIF(Analysis!$E$14:$E$72,$E14,INDEX(Analysis!$I$14:$DU$72,0,MATCH(H$4,Analysis!$I$5:$DU$5,0))) -> 21748.9573 | I14: 27207.2527 | J14: 48956.21 | K14: =SUMIF(Analysis!$E$14:$E$72,$E14,INDEX(Analysis!$I$14:$DU$72,0,MATCH(K$4,Analysis!$I$5:$DU$5,0))) -> 407275.166 | L14: =SUMIF(Analysis!$E$14:$E$72,$E14,INDEX(Analysis!$I$14:$DU$72,0,MATCH(L$4,Analysis!$I$5:$DU$5,0))) -> 100.453848 | M14: 1.351781582 | N14: =SUMIF(Analysis!$E$14:$E$72,$E14,INDEX(Analysis!$I$14:$DU$72,0,MATCH(N$4,Analysis!$I$5:$DU$5,0))) -> 131513.82 | O14: =SUMIF(Analysis!$E$14:$E$72,$E14,INDEX(Analysis!$I$14:$DU$72,0,MATCH(O$4,Analysis!$I$5:$DU$5,0)))+$I14 -> 97289.2527 | P14: 1.016582382 | Q14: =SUMIF(Analysis!$E$14:$E$72,$E14,INDEX(Analysis!$I$14:$DU$72,0,MATCH(Q$4,Analysis!$I$5:$DU$5,0))) -> 98902.54028 | R14: =SUMIF(Analysis!$E$14:$E$72,$E14,INDEX(Analysis!$I$14:$DU$72,0,MATCH(R$4,Analysis!$I$5:$DU$5,0)))+$I14 -> 97289.2527 | S14: 4.875433509 | T14: =SUMIF(Analysis!$E$14:$E$72,$E14,INDEX(Analysis!$I$14:$DU$72,0,MATCH(T$4,Analysis!$I$5:$DU$5,0))) -> 341680.1311 | U14: =SUMIF(Analysis!$E$14:$E$72,$E14,INDEX(Analysis!$I$14:$DU$72,0,MATCH(U$4,Analysis!$I$5:$DU$5,0))) -> 70082 | V14: 2.020224611 | W14: =SUMIF(Analysis!$E$14:$E$72,$E14,INDEX(Analysis!$I$14:$DU$72,0,MATCH(W$4,Analysis!$I$5:$DU$5,0))) -> 98902.54028 | X14: =SUMIF(Analysis!$E$14:$E$72,$E14,INDEX(Analysis!$I$14:$DU$72,0,MATCH(X$4,Analysis!$I$5:$DU$5,0)))+$I14 -> 48956.21 | Y14: 0.2681103898 | Z14: =SUMIF(Analysis!$E$14:$E$72,$E14,INDEX(Analysis!$I$14:$DU$72,0,MATCH(Z$4,Analysis!$I$5:$DU$5,0))) -> 98902.54028 | AA14: =SUMIF(Analysis!$E$14:$E$72,$E14,INDEX(Analysis!$I$14:$DU$72,0,MATCH(AA$4,Analysis!$I$5:$DU$5,0)))+$I14 -> 368887.3838
B15: Total_Cross Marketing and Training_* | C15: TRUE | D15: Total | E15: Cross Marketing and Training | F15: * | G15: =SUMIF(Analysis!$E$14:$E$72,$E15,INDEX(Analysis!$I$14:$DU$72,0,MATCH(G$4,Analysis!$I$5:$DU$5,0))) -> 0 | H15: =SUMIF(Analysis!$E$14:$E$72,$E15,INDEX(Analysis!$I$14:$DU$72,0,MATCH(H$4,Analysis!$I$5:$DU$5,0))) -> 0 | I15: 104730.38 | J15: 104730.38 | K15: =SUMIF(Analysis!$E$14:$E$72,$E15,INDEX(Analysis!$I$14:$DU$72,0,MATCH(K$4,Analysis!$I$5:$DU$5,0))) -> 0 | L15: =SUMIF(Analysis!$E$14:$E$72,$E15,INDEX(Analysis!$I$14:$DU$72,0,MATCH(L$4,Analysis!$I$5:$DU$5,0))) -> 0 | M15: 0 | N15: =SUMIF(Analysis!$E$14:$E$72,$E15,INDEX(Analysis!$I$14:$DU$72,0,MATCH(N$4,Analysis!$I$5:$DU$5,0))) -> 0 | O15: =SUMIF(Analysis!$E$14:$E$72,$E15,INDEX(Analysis!$I$14:$DU$72,0,MATCH(O$4,Analysis!$I$5:$DU$5,0)))+$I15 -> 104730.38 | P15: 0 | Q15: =SUMIF(Analysis!$E$14:$E$72,$E15,INDEX(Analysis!$I$14:$DU$72,0,MATCH(Q$4,Analysis!$I$5:$DU$5,0))) -> 0 | R15: =SUMIF(Analysis!$E$14:$E$72,$E15,INDEX(Analysis!$I$14:$DU$72,0,MATCH(R$4,Analysis!$I$5:$DU$5,0)))+$I15 -> 104730.38 | S15: 0 | T15: =SUMIF(Analysis!$E$14:$E$72,$E15,INDEX(Analysis!$I$14:$DU$72,0,MATCH(T$4,Analysis!$I$5:$DU$5,0))) -> 0 | U15: =SUMIF(Analysis!$E$14:$E$72,$E15,INDEX(Analysis!$I$14:$DU$72,0,MATCH(U$4,Analysis!$I$5:$DU$5,0))) -> 0 | V15: 0 | W15: =SUMIF(Analysis!$E$14:$E$72,$E15,INDEX(Analysis!$I$14:$DU$72,0,MATCH(W$4,Analysis!$I$5:$DU$5,0))) -> 0 | X15: =SUMIF(Analysis!$E$14:$E$72,$E15,INDEX(Analysis!$I$14:$DU$72,0,MATCH(X$4,Analysis!$I$5:$DU$5,0)))+$I15 -> 104730.38 | Y15: 0 | Z15: =SUMIF(Analysis!$E$14:$E$72,$E15,INDEX(Analysis!$I$14:$DU$72,0,MATCH(Z$4,Analysis!$I$5:$DU$5,0))) -> 0 | AA15: =SUMIF(Analysis!$E$14:$E$72,$E15,INDEX(Analysis!$I$14:$DU$72,0,MATCH(AA$4,Analysis!$I$5:$DU$5,0)))+$I15 -> 104730.38
B16: Total_General Administration_* | C16: TRUE | D16: Total | E16: General Administration | F16: * | G16: =SUMIF(Analysis!$E$14:$E$72,$E16,INDEX(Analysis!$I$14:$DU$72,0,MATCH(G$4,Analysis!$I$5:$DU$5,0))) -> 0 | H16: =SUMIF(Analysis!$E$14:$E$72,$E16,INDEX(Analysis!$I$14:$DU$72,0,MATCH(H$4,Analysis!$I$5:$DU$5,0))) -> 0 | I16: 29702.78 | J16: 29702.78 | K16: =SUMIF(Analysis!$E$14:$E$72,$E16,INDEX(Analysis!$I$14:$DU$72,0,MATCH(K$4,Analysis!$I$5:$DU$5,0))) -> 0 | L16: =SUMIF(Analysis!$E$14:$E$72,$E16,INDEX(Analysis!$I$14:$DU$72,0,MATCH(L$4,Analysis!$I$5:$DU$5,0))) -> 0 | M16: 0 | N16: =SUMIF(Analysis!$E$14:$E$72,$E16,INDEX(Analysis!$I$14:$DU$72,0,MATCH(N$4,Analysis!$I$5:$DU$5,0))) -> 0 | O16: =SUMIF(Analysis!$E$14:$E$72,$E16,INDEX(Analysis!$I$14:$DU$72,0,MATCH(O$4,Analysis!$I$5:$DU$5,0)))+$I16 -> 29702.78 | P16: 0 | Q16: =SUMIF(Analysis!$E$14:$E$72,$E16,INDEX(Analysis!$I$14:$DU$72,0,MATCH(Q$4,Analysis!$I$5:$DU$5,0))) -> 0 | R16: =SUMIF(Analysis!$E$14:$E$72,$E16,INDEX(Analysis!$I$14:$DU$72,0,MATCH(R$4,Analysis!$I$5:$DU$5,0)))+$I16 -> 29702.78 | S16: 0 | T16: =SUMIF(Analysis!$E$14:$E$72,$E16,INDEX(Analysis!$I$14:$DU$72,0,MATCH(T$4,Analysis!$I$5:$DU$5,0))) -> 0 | U16: =SUMIF(Analysis!$E$14:$E$72,$E16,INDEX(Analysis!$I$14:$DU$72,0,MATCH(U$4,Analysis!$I$5:$DU$5,0))) -> 0 | V16: 0 | W16: =SUMIF(Analysis!$E$14:$E$72,$E16,INDEX(Analysis!$I$14:$DU$72,0,MATCH(W$4,Analysis!$I$5:$DU$5,0))) -> 0 | X16: =SUMIF(Analysis!$E$14:$E$72,$E16,INDEX(Analysis!$I$14:$DU$72,0,MATCH(X$4,Analysis!$I$5:$DU$5,0)))+$I16 -> 29702.78 | Y16: 0 | Z16: =SUMIF(Analysis!$E$14:$E$72,$E16,INDEX(Analysis!$I$14:$DU$72,0,MATCH(Z$4,Analysis!$I$5:$DU$5,0))) -> 0 | AA16: =SUMIF(Analysis!$E$14:$E$72,$E16,INDEX(Analysis!$I$14:$DU$72,0,MATCH(AA$4,Analysis!$I$5:$DU$5,0)))+$I16 -> 29702.78
B17: Total_Residential_* | D17: Total | E17: Residential | F17: * | G17: =SUMIF($D$8:$D$16,$E17,G$8:G$16) -> 2919 | H17: 34092.12813 | I17: 91691.24187 | J17: 125783.37 | K17: 843855.3942 | L17: 74.1545 | M17: =IFERROR(N17/O17,0) -> 1.205536823 | N17: =SUMIF($D$8:$D$16,$E17,N$8:N$16) -> 222451.3711 | O17: =SUMIF($D$8:$D$16,$E17,O$8:O$16) -> 184524.7419 | P17: =IFERROR(Q17/R17,0) -> 0.8830633929 | Q17: =SUMIF($D$8:$D$16,$E17,Q$8:Q$16) -> 162947.0446 | R17: =SUMIF($D$8:$D$16,$E17,R$8:R$16) -> 184524.7419 | S17: =IFERROR(T17/U17,0) -> 8.450783594 | T17: =SUMIF($D$8:$D$16,$E17,T$8:T$16) -> 784515.8188 | U17: =SUMIF($D$8:$D$16,$E17,U$8:U$16) -> 92833.5 | V17: =IFERROR(W17/X17,0) -> 1.295457775 | W17: =SUMIF($D$8:$D$16,$E17,W$8:W$16) -> 162947.0446 | X17: =SUMIF($D$8:$D$16,$E17,X$8:X$16) -> 125783.37 | Y17: =IFERROR(Z17/AA17,0) -> 0.1859686505 | Z17: =SUMIF($D$8:$D$16,$E17,Z$8:Z$16) -> 162947.0446 | AA17: =SUMIF($D$8:$D$16,$E17,AA$8:AA$16) -> 876207.0607
B18: Total_C&I_* | D18: Total | E18: C&I | F18: * | G18: 1729 | H18: 504541.9473 | I18: 208719.5927 | J18: 713261.54 | K18: 3986177.166 | L18: 709.693848 | M18: =IFERROR(N18/O18,0) -> 2.109129391 | N18: =SUMIF($D$8:$D$16,$E18,N$8:N$16) -> 1643176.925 | O18: =SUMIF($D$8:$D$16,$E18,O$8:O$16) -> 779078.2927 | P18: =IFERROR(Q18/R18,0) -> 1.580578317 | Q18: =SUMIF($D$8:$D$16,$E18,Q$8:Q$16) -> 1231394.257 | R18: =SUMIF($D$8:$D$16,$E18,R$8:R$16) -> 779078.2927 | S18: =IFERROR(T18/U18,0) -> 8.142216594 | T18: =SUMIF($D$8:$D$16,$E18,T$8:T$16) -> 4643984.072 | U18: =SUMIF($D$8:$D$16,$E18,U$8:U$16) -> 570358.7 | V18: =IFERROR(W18/X18,0) -> 1.726427387 | W18: =SUMIF($D$8:$D$16,$E18,W$8:W$16) -> 1231394.257 | X18: =SUMIF($D$8:$D$16,$E18,X$8:X$16) -> 713261.54 | Y18: =IFERROR(Z18/AA18,0) -> 0.2537542661 | Z18: =SUMIF($D$8:$D$16,$E18,Z$8:Z$16) -> 1231394.257 | AA18: =SUMIF($D$8:$D$16,$E18,AA$8:AA$16) -> 4852703.664
B19: Total_Total_ | D19: Total | E19: Total | G19: =SUM(G8:G16) -> 4648 | H19: =SUM(H8:H16) -> 538634.0754 | I19: =SUM(I8:I16) -> 434843.9946 | J19: =SUM(J8:J16) -> 973478.07 | K19: 4830032.56 | L19: 783.848348 | M19: 1.699059016 | N19: =SUM(N8:N16) -> 1865628.296 | O19: 1098036.195 | P19: 1.269850036 | Q19: =SUM(Q8:Q16) -> 1394341.302 | R19: 1098036.195 | S19: 8.185409736 | T19: =SUM(T8:T16) -> 5428499.891 | U19: 663192.2 | V19: 1.432329443 | W19: =SUM(W8:W16) -> 1394341.302 | X19: 973478.07 | Y19: 0.2378065024 | Z19: =SUM(Z8:Z16) -> 1394341.302 | AA19: 5863343.885

Sheet Measure Inputs
A1: =IFERROR(VALUE(MID(CELL("filename",$A$1),FIND("]",CELL("filename",$A$1))+1,255)),MID(CELL("filename",$A$1),FIND("]",CELL("filename",$A$1))+1,255)) -> Measure Inputs
A2: =HYPERLINK("#'Contents'!a1","Return to Contents") -> Return to Contents
H4: Actual 2018-19 | M4: 2018 Plan
B5: key | C5: Unique | D5: ID | E5: Sector | F5: Program | G5: Measure | H5: TRC Ratio | I5: Participation (Units) | J5: Gross First Year kWh per Unit | K5: Gross First Year kW per Unit | L5: Incentive ($/Unit) | M5: First Year Cost ($/Unit) | N5: Measure Life (yrs) | O5: NTG
B6: =E6&"_"&F6&"_"&G6 -> Residential_Residential Lighting_LED | C6: =COUNTIF($B:$B,B6)=1 -> TRUE | D6: 1 | E6: Residential | F6: Residential Lighting | G6: LED | H6: =INDEX(Analysis!$S$14:$S$72,MATCH($B6,Analysis!$B$14:$B$72,0)) -> 1.477409506 | I6: 1293 | J6: 47.76301083 | K6: 0.004181051817 | L6: 1.985918896 | M6: 7.5 | N6: 10 | O6: 1
B7: =E7&"_"&F7&"_"&G7 -> Residential_Residential Lighting_ENERGY STAR Fixture | C7: TRUE | D7: =D6+1 -> 2 | E7: Residential | F7: Residential Lighting | G7: ENERGY STAR Fixture | H7: =INDEX(Analysis!$S$14:$S$72,MATCH($B7,Analysis!$B$14:$B$72,0)) -> 0.3714886669 | I7: 317 | J7: 24.01992744 | K7: 0.002102208202 | L7: 8.783391167 | M7: 15 | N7: 10 | O7: 1
B8: Residential_Appliance Recycling_Refrigerator Recycle | C8: TRUE | D8: =D7+1 -> 3 | E8: Residential | F8: Appliance Recycling | G8: Refrigerator Recycle | H8: =INDEX(Analysis!$S$14:$S$72,MATCH($B8,Analysis!$B$14:$B$72,0)) -> 2.787520679 | I8: 76 | J8: 1289 | K8: 0.147 | L8: 50 | M8: 93 | N8: 8 | O8: 1
B9: Residential_Appliance Recycling_Freezer Recycle | C9: TRUE | D9: 4 | E9: Residential | F9: Appliance Recycling | G9: Freezer Recycle | H9: =INDEX(Analysis!$S$14:$S$72,MATCH($B9,Analysis!$B$14:$B$72,0)) -> 2.389588955 | I9: 23 | J9: 1105 | K9: 0.126 | L9: 50 | M9: 93 | N9: 8 | O9: 1
B10: Residential_High Efficiency HVAC_Heat Pump SEER ≥15, EER ≥12.5, HSPF ≥8.5 Replace Electric Furnace | C10: TRUE | D10: 5 | E10: Residential | F10: High Efficiency HVAC | G10: Heat Pump SEER ≥15, EER ≥12.5, HSPF ≥8.5 Replace Electric Furnace | H10: =INDEX(Analysis!$S$14:$S$72,MATCH($B10,Analysis!$B$14:$B$72,0)) -> 0.8036193882 | I10: 15 | J10: 11683.99894 | K10: 0.1523333333 | L10: 1500 | M10: 4554 | N10: 18 | O10: 1
B11: Residential_High Efficiency HVAC_CAC SEER ≥15, EER ≥12.5 | C11: TRUE | D11: 6 | E11: Residential | F11: High Efficiency HVAC | G11: CAC SEER ≥15, EER ≥12.5 | H11: =INDEX(Analysis!$S$14:$S$72,MATCH($B11,Analysis!$B$14:$B$72,0)) -> 2.042001464 | I11: 8 | J11: 342.065 | K11: 0.5125 | L11: 161.25 | M11: 108 | N11: 18 | O11: 1
B12: Residential_Whole House Efficiency_Recommended Audit Measures | D12: 7 | E12: Residential | F12: Whole House Efficiency | G12: Recommended Audit Measures | H12: =INDEX(Analysis!$S$14:$S$72,MATCH($B12,Analysis!$B$14:$B$72,0)) -> n/a | I12: 7 | J12: 664 | K12: 0.061 | L12: 0 | M12: 0 | N12: 10 | O12: 1
B13: Residential_Whole House Efficiency_Air Sealing (Electric Heat) | C13: =COUNTIF($B:$B,B13)=1 -> TRUE | D13: 8 | E13: Residential | F13: Whole House Efficiency | G13: Air Sealing (Electric Heat) | H13: =INDEX(Analysis!$S$14:$S$72,MATCH($B13,Analysis!$B$14:$B$72,0)) -> n/a | I13: 0 | J13: 0 | K13: 0 | L13: 0 | M13: 0 | N13: 15 | O13: 1
B14: Residential_Whole House Efficiency_Air Sealing (Gas Heat) | C14: TRUE | D14: 9 | E14: Residential | F14: Whole House Efficiency | G14: Air Sealing (Gas Heat) | H14: =INDEX(Analysis!$S$14:$S$72,MATCH($B14,Analysis!$B$14:$B$72,0)) -> n/a | I14: 0 | J14: 0 | K14: 0 | L14: 0 | M14: 0 | N14: 15 | O14: 1
B15: Residential_Whole House Efficiency_Hot Water Pipe Insulation | C15: TRUE | D15: 10 | E15: Residential | F15: Whole House Efficiency | G15: Hot Water Pipe Insulation | H15: =INDEX(Analysis!$S$14:$S$72,MATCH($B15,Analysis!$B$14:$B$72,0)) -> n/a | I15: 0 | J15: 0 | K15: 0 | L15: 0 | M15: 0 | N15: 15 | O15: 1
B16: Residential_Whole House Efficiency_Water Heater Tank Wrap | C16: TRUE | D16: 11 | E16: Residential | F16: Whole House Efficiency | G16: Water Heater Tank Wrap | H16: =INDEX(Analysis!$S$14:$S$72,MATCH($B16,Analysis!$B$14:$B$72,0)) -> n/a | I16: 0 | J16: 0 | K16: 0 | L16: 0 | M16: 0 | N16: 5 | O16: 1
B17: Residential_Whole House Efficiency_LED | C17: TRUE | D17: 12 | E17: Residential | F17: Whole House Efficiency | G17: LED | H17: =INDEX(Analysis!$S$14:$S$72,MATCH($B17,Analysis!$B$14:$B$72,0)) -> n/a | I17: 0 | J17: 0 | K17: 0 | L17: 0 | M17: 0 | N17: 10 | O17: 1
B18: Residential_Whole House Efficiency_Faucet Aerator | C18: TRUE | D18: 13 | E18: Residential | F18: Whole House Efficiency | G18: Faucet Aerator | H18: =INDEX(Analysis!$S$14:$S$72,MATCH($B18,Analysis!$B$14:$B$72,0)) -> n/a | I18: 0 | J18: 0 | K18: 0 | L18: 0 | M18: 0 | N18: 9 | O18: 1
B19: Residential_Whole House Efficiency_Low Flow Showerhead | C19: TRUE | D19: 14 | E19: Residential | F19: Whole House Efficiency | G19: Low Flow Showerhead | H19: =INDEX(Analysis!$S$14:$S$72,MATCH($B19,Analysis!$B$14:$B$72,0)) -> n/a | I19: 0 | J19: 0 | K19: 0 | L19: 0 | M19: 0 | N19: 10 | O19: 1
B20: Residential_School-Based Education_School-Based Education | C20: TRUE | D20: 15 | E20: Residential | F20: School-Based Education | G20: School-Based Education | H20: =INDEX(Analysis!$S$14:$S$72,MATCH($B20,Analysis!$B$14:$B$72,0)) -> n/a | I20: 1180 | J20: 397 | K20: 0.04 | L20: 0 | M20: 0 | N20: 5 | O20: 1
B21: C&I_C&I Custom_C&I Custom | C21: TRUE | D21: 16 | E21: C&I | F21: C&I Custom | G21: C&I Custom | H21: =INDEX(Analysis!$S$14:$S$72,MATCH($B21,Analysis!$B$14:$B$72,0)) -> 2.263730685 | I21: 63 | J21: 56807.96825 | K21: 9.67047619 | L21: 7663.380794 | M21: 7940.9 | N21: 15 | O21: 1
B22: C&I_C&I Prescriptive_High Bay Fluorescent Fixture w/ HE Electronic Ballast (T5 2-3 lamp) | C22: TRUE | D22: 17 | E22: C&I | F22: C&I Prescriptive | G22: High Bay Fluorescent Fixture w/ HE Electronic Ballast (T5 2-3 lamp) | H22: =INDEX(Analysis!$S$14:$S$72,MATCH($B22,Analysis!$B$14:$B$72,0)) -> n/a | I22: 0 | J22: 0 | K22: 0 | L22: 0 | M22: 100 | N22: 15 | O22: 1
B23: C&I_C&I Prescriptive_High Bay Fluorescent Fixture w/ HE Electronic Ballast (T5 4-6 lamp) | C23: TRUE | D23: 18 | E23: C&I | F23: C&I Prescriptive | G23: High Bay Fluorescent Fixture w/ HE Electronic Ballast (T5 4-6 lamp) | H23: =INDEX(Analysis!$S$14:$S$72,MATCH($B23,Analysis!$B$14:$B$72,0)) -> n/a | I23: 0 | J23: 0 | K23: 0 | L23: 0 | M23: 125 | N23: 15 | O23: 1
B24: C&I_C&I Prescriptive_High Bay Fluorescent Fixture w/ HE Electronic Ballast (T5 8-lamp) | C24: TRUE | D24: 19 | E24: C&I | F24: C&I Prescriptive | G24: High Bay Fluorescent Fixture w/ HE Electronic Ballast (T5 8-lamp) | H24: =INDEX(Analysis!$S$14:$S$72,MATCH($B24,Analysis!$B$14:$B$72,0)) -> n/a | I24: 0 | J24: 0 | K24: 0 | L24: 0 | M24: 125 | N24: 15 | O24: 1
B25: C&I_C&I Prescriptive_High Bay Fluorescent Fixture w/ HE Electronic Ballast (T5 10-lamp) | C25: TRUE | D25: 20 | E25: C&I | F25: C&I Prescriptive | G25: High Bay Fluorescent Fixture w/ HE Electronic Ballast (T5 10-lamp) | H25: =INDEX(Analysis!$S$14:$S$72,MATCH($B25,Analysis!$B$14:$B$72,0)) -> n/a | I25: 0 | J25: 0 | K25: 0 | L25: 0 | M25: 150 | N25: 15 | O25: 1
B26: C&I_C&I Prescriptive_High Bay Fluorescent Fixture w/ HE Electronic Ballast (T8 4 lamp) | C26: TRUE | D26: 21 | E26: C&I | F26: C&I Prescriptive | G26: High Bay Fluorescent Fixture w/ HE Electronic Ballast (T8 4 lamp) | H26: =INDEX(Analysis!$S$14:$S$72,MATCH($B26,Analysis!$B$14:$B$72,0)) -> n/a | I26: 0 | J26: 0 | K26: 0 | L26: 0 | M26: 200 | N26: 15 | O26: 1
B27: C&I_C&I Prescriptive_High Bay Fluorescent Fixture w/ HE Electronic Ballast (T8 6-8 lamp) | C27: TRUE | D27: 22 | E27: C&I | F27: C&I Prescriptive | G27: High Bay Fluorescent Fixture w/ HE Electronic Ballast (T8 6-8 lamp) | H27: =INDEX(Analysis!$S$14:$S$72,MATCH($B27,Analysis!$B$14:$B$72,0)) -> n/a | I27: 0 | J27: 0 | K27: 0 | L27: 0 | M27: 225 | N27: 15 | O27: 1
B28: C&I_C&I Prescriptive_High Bay Fluorescent Fixture w/ HE Electronic Ballast (T8 12-16 lamp) | C28: TRUE | D28: 23 | E28: C&I | F28: C&I Prescriptive | G28: High Bay Fluorescent Fixture w/ HE Electronic Ballast (T8 12-16 lamp) | H28: =INDEX(Analysis!$S$14:$S$72,MATCH($B28,Analysis!$B$14:$B$72,0)) -> n/a | I28: 0 | J28: 0 | K28: 0 | L28: 0 | M28: 250 | N28: 15 | O28: 1
B29: C&I_C&I Prescriptive_High Bay Fluorescent Fixture w/ HE Electronic Ballast (T8 18-20 lamp) | C29: TRUE | D29: 24 | E29: C&I | F29: C&I Prescriptive | G29: High Bay Fluorescent Fixture w/ HE Electronic Ballast (T8 18-20 lamp) | H29: =INDEX(Analysis!$S$14:$S$72,MATCH($B29,Analysis!$B$14:$B$72,0)) -> n/a | I29: 0 | J29: 0 | K29: 0 | L29: 0 | M29: 250 | N29: 15 | O29: 1
B30: C&I_C&I Prescriptive_Low-Wattage T8 | C30: TRUE | D30: 25 | E30: C&I | F30: C&I Prescriptive | G30: Low-Wattage T8 | H30: =INDEX(Analysis!$S$14:$S$72,MATCH($B30,Analysis!$B$14:$B$72,0)) -> n/a | I30: 0 | J30: 0 | K30: 0 | L30: 0 | M30: 2 | N30: 8 | O30: 1
B31: C&I_C&I Prescriptive_Energy Star LED Lamp (≤5W) | C31: TRUE | D31: 26 | E31: C&I | F31: C&I Prescriptive | G31: Energy Star LED Lamp (≤5W) | H31: =INDEX(Analysis!$S$14:$S$72,MATCH($B31,Analysis!$B$14:$B$72,0)) -> 0.5581506337 | I31: 8 | J31: 23.622 | K31: 0.00473275 | L31: 5 | M31: 9 | N31: 8 | O31: 1
B32: C&I_C&I Prescriptive_Energy Star LED Lamp (6-10W) | C32: TRUE | D32: 27 | E32: C&I | F32: C&I Prescriptive | G32: Energy Star LED Lamp (6-10W) | H32: =INDEX(Analysis!$S$14:$S$72,MATCH($B32,Analysis!$B$14:$B$72,0)) -> 5.205828664 | I32: 747 | J32: 219.8547015 | K32: 0.04478974163 | L32: 2.296300937 | M32: 9 | N32: 8 | O32: 1
B33: C&I_C&I Prescriptive_Energy Star LED Lamp (11 to 20W) | C33: TRUE | D33: 28 | E33: C&I | F33: C&I Prescriptive | G33: Energy Star LED Lamp (11 to 20W) | H33: =INDEX(Analysis!$S$14:$S$72,MATCH($B33,Analysis!$B$14:$B$72,0)) -> 2.493653775 | I33: 379 | J33: 188.3837493 | K33: 0.03652830607 | L33: 7.233455145 | M33: 16 | N33: 8 | O33: 1
B34: C&I_C&I Prescriptive_Energy Star LED Lamp (>20W) | C34: TRUE | D34: 29 | E34: C&I | F34: C&I Prescriptive | G34: Energy Star LED Lamp (>20W) | H34: =INDEX(Analysis!$S$14:$S$72,MATCH($B34,Analysis!$B$14:$B$72,0)) -> 2.024933791 | I34: 2 | J34: 213.782 | K34: 0.0359995 | L34: 15 | M34: 22 | N34: 8 | O34: 1
B35: C&I_C&I Prescriptive_High Performance T8 (1-2 Lamp) | C35: TRUE | D35: 30 | E35: C&I | F35: C&I Prescriptive | G35: High Performance T8 (1-2 Lamp) | H35: =INDEX(Analysis!$S$14:$S$72,MATCH($B35,Analysis!$B$14:$B$72,0)) -> n/a | I35: 0 | J35: 0 | K35: 0 | L35: 0 | M35: 18 | N35: 15 | O35: 1
B36: C&I_C&I Prescriptive_High Performance T8 (3-4 Lamp) | C36: TRUE | D36: 31 | E36: C&I | F36: C&I Prescriptive | G36: High Performance T8 (3-4 Lamp) | H36: =INDEX(Analysis!$S$14:$S$72,MATCH($B36,Analysis!$B$14:$B$72,0)) -> n/a | I36: 0 | J36: 0 | K36: 0 | L36: 0 | M36: 23 | N36: 15 | O36: 1
B37: C&I_C&I Prescriptive_LED Parking Garage/Canopy (<30W) | C37: TRUE | D37: 32 | E37: C&I | F37: C&I Prescriptive | G37: LED Parking Garage/Canopy (<30W) | H37: =INDEX(Analysis!$S$14:$S$72,MATCH($B37,Analysis!$B$14:$B$72,0)) -> n/a | I37: 0 | J37: 0 | K37: 0 | L37: 0 | M37: 190 | N37: 8 | O37: 1
B38: C&I_C&I Prescriptive_LED Parking Garage/Canopy (30-75W) | C38: TRUE | D38: 33 | E38: C&I | F38: C&I Prescriptive | G38: LED Parking Garage/Canopy (30-75W) | H38: =INDEX(Analysis!$S$14:$S$72,MATCH($B38,Analysis!$B$14:$B$72,0)) -> n/a | I38: 0 | J38: 0 | K38: 0 | L38: 0 | M38: 287 | N38: 8 | O38: 1
B39: C&I_C&I Prescriptive_LED Parking Garage/Canopy (≥75W) | C39: TRUE | D39: 34 | E39: C&I | F39: C&I Prescriptive | G39: LED Parking Garage/Canopy (≥75W) | H39: =INDEX(Analysis!$S$14:$S$72,MATCH($B39,Analysis!$B$14:$B$72,0)) -> n/a | I39: 0 | J39: 0 | K39: 0 | L39: 0 | M39: 391 | N39: 8 | O39: 1
B40: C&I_C&I Prescriptive_LED Linear Replacement Lamp (≤4ft) | C40: TRUE | D40: 35 | E40: C&I | F40: C&I Prescriptive | G40: LED Linear Replacement Lamp (≤4ft) | H40: =INDEX(Analysis!$S$14:$S$72,MATCH($B40,Analysis!$B$14:$B$72,0)) -> n/a | I40: 0 | J40: 0 | K40: 0 | L40: 0 | M40: 24 | N40: 10 | O40: 1
B41: C&I_C&I Prescriptive_LED Linear Replacement Lamp (5-8ft) | C41: TRUE | D41: 36 | E41: C&I | F41: C&I Prescriptive | G41: LED Linear Replacement Lamp (5-8ft) | H41: =INDEX(Analysis!$S$14:$S$72,MATCH($B41,Analysis!$B$14:$B$72,0)) -> 0.5402003795 | I41: 200 | J41: 76.95228 | K41: 0.016896735 | L41: 15 | M41: 36 | N41: 10 | O41: 1
B42: C&I_C&I Prescriptive_Ceiling Mount Occupancy | C42: TRUE | D42: 37 | E42: C&I | F42: C&I Prescriptive | G42: Ceiling Mount Occupancy | H42: =INDEX(Analysis!$S$14:$S$72,MATCH($B42,Analysis!$B$14:$B$72,0)) -> 1.91583914 | I42: 52 | J42: 680.21 | K42: 0.516 | L42: 30 | M42: 102 | N42: 8 | O42: 1
B43: C&I_C&I Prescriptive_Wall Mount Occupancy | C43: TRUE | D43: 38 | E43: C&I | F43: C&I Prescriptive | G43: Wall Mount Occupancy | H43: =INDEX(Analysis!$S$14:$S$72,MATCH($B43,Analysis!$B$14:$B$72,0)) -> 2.232174786 | I43: 35 | J43: 396.7960286 | K43: 0.2998571429 | L43: 12 | M43: 51 | N43: 8 | O43: 1
B44: C&I_C&I Prescriptive_Fixture Mount Occupancy | C44: TRUE | D44: 39 | E44: C&I | F44: C&I Prescriptive | G44: Fixture Mount Occupancy | H44: =INDEX(Analysis!$S$14:$S$72,MATCH($B44,Analysis!$B$14:$B$72,0)) -> n/a | I44: 0 | J44: 0 | K44: 0 | L44: 0 | M44: 92 | N44: 8 | O44: 1
B45: C&I_C&I Prescriptive_Exit Sign | C45: =COUNTIF($B:$B,B45)=1 -> TRUE | D45: 40 | E45: C&I | F45: C&I Prescriptive | G45: Exit Sign | H45: =INDEX(Analysis!$S$14:$S$72,MATCH($B45,Analysis!$B$14:$B$72,0)) -> 4.561046661 | I45: 45 | J45: 326.2860222 | K45: 0.08891666667 | L45: 6 | M45: 25 | N45: 16 | O45: 1
B46: C&I_C&I Prescriptive_LED wall mounted area lights (wallpacks) (<30W) | C46: TRUE | D46: 41 | E46: C&I | F46: C&I Prescriptive | G46: LED wall mounted area lights (wallpacks) (<30W) | H46: =INDEX(Analysis!$S$14:$S$72,MATCH($B46,Analysis!$B$14:$B$72,0)) -> n/a | I46: 0 | J46: 0 | K46: 0 | L46: 0 | M46: 190 | N46: 10 | O46: 1
B47: C&I_C&I Prescriptive_LED wall mounted area lights (wallpacks) (30 to 75W) | C47: TRUE | D47: 42 | E47: C&I | F47: C&I Prescriptive | G47: LED wall mounted area lights (wallpacks) (30 to 75W) | H47: =INDEX(Analysis!$S$14:$S$72,MATCH($B47,Analysis!$B$14:$B$72,0)) -> 0.1582985129 | I47: 134 | J47: 208.1644403 | K47: 0 | L47: 72.27873134 | M47: 287 | N47: 10 | O47: 1
B48: C&I_C&I Prescriptive_LED wall mounted area lights (wallpacks) (≥75W) | C48: TRUE | D48: 43 | E48: C&I | F48: C&I Prescriptive | G48: LED wall mounted area lights (wallpacks) (≥75W) | H48: =INDEX(Analysis!$S$14:$S$72,MATCH($B48,Analysis!$B$14:$B$72,0)) -> n/a | I48: 0 | J48: 0 | K48: 0 | L48: 0 | M48: 391 | N48: 10 | O48: 1
B49: C&I_C&I Prescriptive_Energy Star LED downlights (new or retrofit) (50W or less) | C49: TRUE | D49: 44 | E49: C&I | F49: C&I Prescriptive | G49: Energy Star LED downlights (new or retrofit) (50W or less) | H49: =INDEX(Analysis!$S$14:$S$72,MATCH($B49,Analysis!$B$14:$B$72,0)) -> 11.49648236 | I49: 39 | J49: 955.1087179 | K49: 0.2029032051 | L49: 28.08038462 | M49: 27 | N49: 15 | O49: 1
B50: C&I_C&I Prescriptive_Refrigerated LED Case Lighting 5- and 6-foot Doors | C50: TRUE | D50: 45 | E50: C&I | F50: C&I Prescriptive | G50: Refrigerated LED Case Lighting 5- and 6-foot Doors | H50: =INDEX(Analysis!$S$14:$S$72,MATCH($B50,Analysis!$B$14:$B$72,0)) -> n/a | I50: 0 | J50: 0 | K50: 0 | L50: 0 | M50: 66 | N50: 10 | O50: 1
B51: C&I_C&I Prescriptive_Integral Occupancy Control Stairwell fixtures (2-3 lamp T8) | C51: TRUE | D51: 46 | E51: C&I | F51: C&I Prescriptive | G51: Integral Occupancy Control Stairwell fixtures (2-3 lamp T8) | H51: =INDEX(Analysis!$S$14:$S$72,MATCH($B51,Analysis!$B$14:$B$72,0)) -> n/a | I51: 0 | J51: 0 | K51: 0 | L51: 0 | M51: 161.3 | N51: 14 | O51: 1
B52: C&I_C&I Prescriptive_Integral Occupancy Control Stairwell fixtures (20W-30W LED) | C52: TRUE | D52: 47 | E52: C&I | F52: C&I Prescriptive | G52: Integral Occupancy Control Stairwell fixtures (20W-30W LED) | H52: =INDEX(Analysis!$S$14:$S$72,MATCH($B52,Analysis!$B$14:$B$72,0)) -> n/a | I52: 0 | J52: 0 | K52: 0 | L52: 0 | M52: 161.3 | N52: 14 | O52: 1
B53: C&I_C&I Prescriptive_LED Exterior Flood Lights (15W or less) | C53: TRUE | D53: 48 | E53: C&I | F53: C&I Prescriptive | G53: LED Exterior Flood Lights (15W or less) | H53: =INDEX(Analysis!$S$14:$S$72,MATCH($B53,Analysis!$B$14:$B$72,0)) -> n/a | I53: 0 | J53: 0 | K53: 0 | L53: 0 | M53: 35 | N53: 14 | O53: 1
B54: C&I_C&I Prescriptive_LED Exterior Flood Lights (16W to 35W) | C54: TRUE | D54: 49 | E54: C&I | F54: C&I Prescriptive | G54: LED Exterior Flood Lights (16W to 35W) | H54: =INDEX(Analysis!$S$14:$S$72,MATCH($B54,Analysis!$B$14:$B$72,0)) -> 14.34252323 | I54: 6 | J54: 3123.733 | K54: 0 | L54: 25 | M54: 59 | N54: 14 | O54: 1
B55: C&I_C&I Prescriptive_LED Exterior Flood Lights (36W to 75W) | C55: TRUE | D55: 50 | E55: C&I | F55: C&I Prescriptive | G55: LED Exterior Flood Lights (36W to 75W) | H55: =INDEX(Analysis!$S$14:$S$72,MATCH($B55,Analysis!$B$14:$B$72,0)) -> 1.1614392 | I55: 18 | J55: 364.428 | K55: 0 | L55: 46.75866667 | M55: 85 | N55: 14 | O55: 1
B56: =E56&"_"&F56&"_"&G56 -> C&I_C&I Prescriptive_LED Outdoor Pole/Arm Mounted Parking Roadway (<30W) | C56: TRUE | D56: 51 | E56: C&I | F56: C&I Prescriptive | G56: LED Outdoor Pole/Arm Mounted Parking Roadway (<30W) | H56: =INDEX(Analysis!$S$14:$S$72,MATCH($B56,Analysis!$B$14:$B$72,0)) -> n/a | I56: 0 | J56: 0 | K56: 0 | L56: 0 | M56: 190 | N56: 14 | O56: 1
B57: C&I_C&I Prescriptive_LED Outdoor Pole/Arm Mounted Parking Roadway (30W to 75W) | C57: TRUE | D57: 52 | E57: C&I | F57: C&I Prescriptive | G57: LED Outdoor Pole/Arm Mounted Parking Roadway (30W to 75W) | H57: =INDEX(Analysis!$S$14:$S$72,MATCH($B57,Analysis!$B$14:$B$72,0)) -> n/a | I57: 0 | J57: 0 | K57: 0 | L57: 0 | M57: 287 | N57: 14 | O57: 1
B58: C&I_C&I Prescriptive_LED Outdoor Pole/Arm Mounted Parking Roadway (>75W to 150W) | C58: TRUE | D58: 53 | E58: C&I | F58: C&I Prescriptive | G58: LED Outdoor Pole/Arm Mounted Parking Roadway (>75W to 150W) | H58: =INDEX(Analysis!$S$14:$S$72,MATCH($B58,Analysis!$B$14:$B$72,0)) -> n/a | I58: 0 | J58: 0 | K58: 0 | L58: 0 | M58: 391 | N58: 14 | O58: 1
B59: C&I_C&I Prescriptive_Split Package Heat Pump | C59: TRUE | D59: 54 | E59: C&I | F59: C&I Prescriptive | G59: Split Package Heat Pump | H59: =INDEX(Analysis!$S$14:$S$72,MATCH($B59,Analysis!$B$14:$B$72,0)) -> 1.184852436 | I59: 1 | J59: 1252.238 | K59: 0.421 | L59: 200 | M59: 370 | N59: 15 | O59: 1
B60: C&I_C&I Prescriptive_Single System Heat Pump | C60: TRUE | D60: 55 | E60: C&I | F60: C&I Prescriptive | G60: Single System Heat Pump | H60: =INDEX(Analysis!$S$14:$S$72,MATCH($B60,Analysis!$B$14:$B$72,0)) -> n/a | I60: 0 | J60: 0 | K60: 0 | L60: 0 | M60: 370 | N60: 15 | O60: 1
B61: C&I_C&I Prescriptive_Geothermal Heat Pump | C61: TRUE | D61: 56 | E61: C&I | F61: C&I Prescriptive | G61: Geothermal Heat Pump | H61: =INDEX(Analysis!$S$14:$S$72,MATCH($B61,Analysis!$B$14:$B$72,0)) -> n/a | I61: 0 | J61: 0 | K61: 0 | L61: 0 | M61: 4100 | N61: 15 | O61: 1
B62: C&I_C&I Prescriptive_Heat Pump Water Heater | C62: TRUE | D62: 57 | E62: C&I | F62: C&I Prescriptive | G62: Heat Pump Water Heater | H62: =INDEX(Analysis!$S$14:$S$72,MATCH($B62,Analysis!$B$14:$B$72,0)) -> n/a | I62: 0 | J62: 0 | K62: 0 | L62: 0 | M62: 784 | N62: 13 | O62: 1
B63: C&I_C&I Prescriptive_ODC Motor | C63: TRUE | D63: 58 | E63: C&I | F63: C&I Prescriptive | G63: ODC Motor | H63: =INDEX(Analysis!$S$14:$S$72,MATCH($B63,Analysis!$B$14:$B$72,0)) -> n/a | I63: 0 | J63: 0 | K63: 0 | L63: 0 | M63: 115 | N63: 15 | O63: 1
B64: C&I_C&I Prescriptive_TEFC Motor | C64: TRUE | D64: 59 | E64: C&I | F64: C&I Prescriptive | G64: TEFC Motor | H64: =INDEX(Analysis!$S$14:$S$72,MATCH($B64,Analysis!$B$14:$B$72,0)) -> n/a | I64: 0 | J64: 0 | K64: 0 | L64: 0 | M64: 115 | N64: 15 | O64: 1

Sheet General Inputs
A1: General Inputs
A2: =HYPERLINK("#'Contents'!a1","Return to Contents") -> Return to Contents
G4: Variable | I4: Input | J4: Source
G5: Program Cycle | H5: Cycle Start Year | I5: 2018 | J5: All dollars valued to this year.
H6: Cycle End Year | I6: 2019
G8: Discount Rate & Cash Flows | H8: Discount Rate (TRC) | I8: 0.0884
H9: Discount Rate (UCT) | I9: 0.0884
H10: Discount Rate (SCT) | I10: 0.0884
H11: Discount Rate (PCT) | I11: 0.0884
H12: Discount Rate (RIM) | I12: 0.0884
H13: Base year | I13: 2018
H14: Inflator | I14: 2019
H15: Annual Inflation Rate | I15: 0.015
G17: Losses [x / (1-LL)] | H17: Electric Line Losses | I17: 0.047
H18: Electric Peak Line Losses | I18: 0.047
P20: Avoided Costs
B22: Key | C22: Table | D22: Label | K22: Key | L22: Reference | M22: Sector | N22: Fuel | O22: Units | P22: Label | Q22: =CycleStartYear -> 2018 | R22: =Q22+1 -> 2019 | S22: 2020 | T22: 2021 | U22: 2022 | V22: 2023 | W22: 2024 | X22: 2025 | Y22: 2026 | Z22: 2027 | AA22: 2028 | AB22: 2029 | AC22: 2030 | AD22: 2031 | AE22: 2032 | AF22: 2033 | AG22: 2034 | AH22: =AG22+1 -> 2035 | AI22: 2036 | AJ22: 2037 | AK22: 2038 | AL22: 2039 | AM22: 2040
B23: =C23&"_"&D23 -> Avoided Costs_Avoided Energy Cost ($/kWh) | C23: =P20 -> Avoided Costs | D23: =P23 -> Avoided Energy Cost ($/kWh) | K23: =M23&"_"&N23&"_"&O23 -> All_Electric_$/MWh | L23: \\ameresco.com\d\aeg\Clients\Black Hills\Black Hills So Dakota\2015-16 DSM Planning\Draft\[Black Hills South Dakota PY2-3 (8.19.15).xlsx] | M23: All | N23: Electric | O23: $/MWh | P23: Avoided Energy Cost ($/kWh) | Q23: 0.0279125 | R23: 0.0283311875 | S23: 0.02875615531 | T23: 0.02918749764 | U23: 0.02962531011 | V23: 0.03006968976 | W23: 0.0305207351 | X23: 0.03097854613 | Y23: 0.03144322432 | Z23: 0.03191487269 | AA23: 0.03239359578 | AB23: 0.03287949972 | AC23: 0.03337269221 | AD23: 0.03387328259 | AE23: 0.03438138183 | AF23: 0.03489710256 | AG23: 0.03489710256 | AH23: 0.03489710256 | AI23: 0.03489710256 | AJ23: 0.03489710256 | AK23: 0.03489710256 | AL23: 0.03489710256 | AM23: 0.03489710256
B24: Avoided Costs_Avoided Demand Forecast ($/kW-year) | C24: =C23 -> Avoided Costs | D24: =P24 -> Avoided Demand Forecast ($/kW-year) | K24: =M24&"_"&N24&"_"&O24 -> All_Electric_$/kW-year | L24: \\ameresco.com\d\aeg\Clients\Black Hills\Black Hills So Dakota\2015-16 DSM Planning\Draft\[Black Hills South Dakota PY2-3 (8.19.15).xlsx] | M24: All | N24: Electric | O24: $/kW-year | P24: Avoided Demand Forecast ($/kW-year) | Q24: 20.0767 | R24: 20.3778505 | S24: 20.68351826 | T24: 20.99377103 | U24: 21.3086776 | V24: 21.62830776 | W24: 21.95273238 | X24: 22.28202336 | Y24: 22.61625371 | Z24: 22.95549752 | AA24: 23.29982998 | AB24: 23.64932743 | AC24: 24.00406734 | AD24: 24.36412835 | AE24: 24.72959028 | AF24: 25.10053413 | AG24: 25.10053413 | AH24: 25.10053413 | AI24: 25.10053413 | AJ24: 25.10053413 | AK24: 25.10053413 | AL24: 25.10053413 | AM24: 25.10053413
B25: Avoided Costs_Environmental Costs ($/kWh) | C25: =C24 -> Avoided Costs | D25: Environmental Costs ($/kWh) | K25: All_Electric_$/kWh | L25: \\ameresco.com\d\aeg\Clients\Black Hills\Black Hills So Dakota\2015-16 DSM Planning\Draft\[Black Hills South Dakota PY2-3 (8.19.15).xlsx] | M25: All | N25: Electric | O25: $/kWh | P25: Environmental Costs ($/kWh) | Q25: 0.0114 | R25: 0.0114 | S25: 0.0114 | T25: 0.0114 | U25: 0.0114 | V25: 0.0114 | W25: 0.0114 | X25: 0.0114 | Y25: 0.0114 | Z25: 0.0114 | AA25: 0.0114 | AB25: 0.0114 | AC25: 0.0114 | AD25: 0.0114 | AE25: 0.0114 | AF25: 0.0114 | AG25: 0.0114 | AH25: 0.0114 | AI25: 0.0114 | AJ25: 0.0114 | AK25: 0.0114 | AL25: 0.0114 | AM25: 0.0114
P27: Retail Costs
K29: Key | L29: Reference | M29: Sector | N29: Fuel | O29: Units | P29: Label | Q29: =Q22 -> 2018 | R29: 2019 | S29: 2020 | T29: 2021 | U29: 2022 | V29: 2023 | W29: 2024 | X29: 2025 | Y29: 2026 | Z29: 2027 | AA29: 2028 | AB29: 2029 | AC29: 2030 | AD29: 2031 | AE29: 2032 | AF29: 2033 | AG29: 2034 | AH29: 2035 | AI29: 2036 | AJ29: 2037 | AK29: 2038 | AL29: 2039 | AM29: 2040
B30: =C30&"_"&D30 -> Retail Costs_Residential | C30: =P27 -> Retail Costs | D30: =P30 -> Residential | K30: =M30&"_"&N30&"_"&O30 -> Residential_Electric_$/kWh | L30: \\ameresco.com\d\aeg\Clients\Black Hills\Black Hills So Dakota\2015-16 DSM Planning\Draft\[Black Hills South Dakota PY2-3 (8.19.15).xlsx] | M30: Residential | N30: Electric | O30: $/kWh | P30: Residential | Q30: 0.142467212 | R30: 0.1446042202 | S30: 0.1467732835 | T30: 0.1489748828 | U30: 0.151209506 | V30: 0.1534776486 | W30: 0.1557798133 | X30: 0.1581165105 | Y30: 0.1604882582 | Z30: 0.1628955821 | AA30: 0.1653390158 | AB30: 0.167819101 | AC30: 0.1703363875 | AD30: 0.1728914334 | AE30: 0.1754848049 | AF30: 0.1781170769 | AG30: 0.1781170769 | AH30: 0.1781170769 | AI30: 0.1781170769 | AJ30: 0.1781170769 | AK30: 0.1781170769 | AL30: 0.1781170769 | AM30: 0.1781170769
B31: Retail Costs_C&I | C31: =C30 -> Retail Costs | D31: =P31 -> C&I | K31: =M31&"_"&N31&"_"&O31 -> C&I_Electric_$/kWh | L31: \\ameresco.com\d\aeg\Clients\Black Hills\Black Hills So Dakota\2015-16 DSM Planning\Draft\[Black Hills South Dakota PY2-3 (8.19.15).xlsx] | M31: C&I | N31: Electric | O31: $/kWh | P31: C&I | Q31: 0.1108773057 | R31: 0.1125404653 | S31: 0.1142285723 | T31: 0.1159420008 | U31: 0.1176811308 | V31: 0.1194463478 | W31: 0.121238043 | X31: 0.1230566137 | Y31: 0.1249024629 | Z31: 0.1267759998 | AA31: 0.1286776398 | AB31: 0.1306078044 | AC31: 0.1325669215 | AD31: 0.1345554253 | AE31: 0.1365737567 | AF31: 0.138622363 | AG31: 0.138622363 | AH31: 0.138622363 | AI31: 0.138622363 | AJ31: 0.138622363 | AK31: 0.138622363 | AL31: 0.138622363 | AM31: 0.138622363
P33: Discount Factor
P35: Test | Q35: =Q29 -> 2018 | R35: 2019 | S35: 2020 | T35: 2021 | U35: 2022 | V35: 2023 | W35: 2024 | X35: 2025 | Y35: 2026 | Z35: 2027 | AA35: 2028 | AB35: 2029 | AC35: 2030 | AD35: 2031 | AE35: 2032 | AF35: 2033 | AG35: 2034 | AH35: 2035 | AI35: 2036 | AJ35: 2037 | AK35: 2038 | AL35: 2039 | AM35: 2040
B36: =C36&"_"&D36 -> Discount Factor_TRC | C36: =P33 -> Discount Factor | D36: =P36 -> TRC | P36: TRC | Q36: =IF(Q$35=CycleStartYear,1,P36/(1+DiscountRateTRC)) -> 1 | R36: 0.9187798603 | S36: 0.8441564318 | T36: 0.7755939285 | U36: 0.7126000813 | V36: 0.6547226032 | W36: 0.6015459419 | X36: 0.5526882965 | Y36: 0.5077988759 | Z36: 0.4665553803 | AA36: 0.4286616871 | AB36: 0.393845725 | AC36: 0.3618575202 | AD36: 0.3324674019 | AE36: 0.3054643531 | AF36: 0.2806544957 | AG36: 0.2578596983 | AH36: 0.2369162976 | AI36: 0.2176739229 | AJ36: 0.1999944164 | AK36: 0.183750842 | AL36: 0.168826573 | AM36: 0.1551144551
B37: =C37&"_"&D37 -> Discount Factor_UCT | C37: =C36 -> Discount Factor | D37: =P37 -> UCT | P37: UCT | Q37: =IF(Q$35=CycleStartYear,1,P37/(1+DiscountRateUCT)) -> 1 | R37: 0.9187798603 | S37: 0.8441564318 | T37: 0.7755939285 | U37: 0.7126000813 | V37: 0.6547226032 | W37: 0.6015459419 | X37: 0.5526882965 | Y37: 0.5077988759 | Z37: 0.4665553803 | AA37: 0.4286616871 | AB37: 0.393845725 | AC37: 0.3618575202 | AD37: 0.3324674019 | AE37: 0.3054643531 | AF37: 0.2806544957 | AG37: 0.2578596983 | AH37: 0.2369162976 | AI37: 0.2176739229 | AJ37: 0.1999944164 | AK37: 0.183750842 | AL37: 0.168826573 | AM37: 0.1551144551
B38: =C38&"_"&D38 -> Discount Factor_SCT | C38: =C37 -> Discount Factor | D38: SCT | P38: SCT | Q38: =IF(Q$35=CycleStartYear,1,P38/(1+DiscountRateSCT)) -> 1 | R38: 0.9187798603 | S38: 0.8441564318 | T38: 0.7755939285 | U38: 0.7126000813 | V38: 0.6547226032 | W38: 0.6015459419 | X38: 0.5526882965 | Y38: 0.5077988759 | Z38: 0.4665553803 | AA38: 0.4286616871 | AB38: 0.393845725 | AC38: 0.3618575202 | AD38: 0.3324674019 | AE38: 0.3054643531 | AF38: 0.2806544957 | AG38: 0.2578596983 | AH38: 0.2369162976 | AI38: 0.2176739229 | AJ38: 0.1999944164 | AK38: 0.183750842 | AL38: 0.168826573 | AM38: 0.1551144551
B39: =C39&"_"&D39 -> Discount Factor_PCT | C39: Discount Factor | D39: PCT | P39: PCT | Q39: =IF(Q$35=CycleStartYear,1,P39/(1+DiscountRatePCT)) -> 1 | R39: 0.9187798603 | S39: 0.8441564318 | T39: 0.7755939285 | U39: 0.7126000813 | V39: 0.6547226032 | W39: 0.6015459419 | X39: 0.5526882965 | Y39: 0.5077988759 | Z39: 0.4665553803 | AA39: 0.4286616871 | AB39: 0.393845725 | AC39: 0.3618575202 | AD39: 0.3324674019 | AE39: 0.3054643531 | AF39: 0.2806544957 | AG39: 0.2578596983 | AH39: 0.2369162976 | AI39: 0.2176739229 | AJ39: 0.1999944164 | AK39: 0.183750842 | AL39: 0.168826573 | AM39: 0.1551144551
B40: =C40&"_"&D40 -> Discount Factor_RIM | C40: Discount Factor | D40: RIM | P40: RIM | Q40: =IF(Q$35=CycleStartYear,1,P40/(1+DiscountRateRIM)) -> 1 | R40: 0.9187798603 | S40: 0.8441564318 | T40: 0.7755939285 | U40: 0.7126000813 | V40: 0.6547226032 | W40: 0.6015459419 | X40: 0.5526882965 | Y40: 0.5077988759 | Z40: 0.4665553803 | AA40: 0.4286616871 | AB40: 0.393845725 | AC40: 0.3618575202 | AD40: 0.3324674019 | AE40: 0.3054643531 | AF40: 0.2806544957 | AG40: 0.2578596983 | AH40: 0.2369162976 | AI40: 0.2176739229 | AJ40: 0.1999944164 | AK40: 0.183750842 | AL40: 0.168826573 | AM40: 0.1551144551
P42: Benefit-Cost Accounting
P44: Variable | Q44: TRC | R44: SCT | S44: PCT | T44: UCT | U44: RIM
P45: Avoided Energy Cost | Q45: BENEFIT | R45: BENEFIT | S45: n/a | T45: BENEFIT | U45: BENEFIT
P46: Avoided Demand Cost | Q46: BENEFIT | R46: BENEFIT | S46: n/a | T46: BENEFIT | U46: BENEFIT
P47: Avoided Enviromental Cost | Q47: n/a | R47: BENEFIT | S47: n/a | T47: n/a | U47: n/a
P48: Bill Savings / Lost Revenue | Q48: n/a | R48: n/a | S48: BENEFIT | T48: n/a | U48: COST
P49: Incentives | Q49: n/a | R49: n/a | S49: BENEFIT | T49: COST | U49: COST
P50: Net Incremental Measure Cost | Q50: COST | R50: COST | S50: COST | T50: n/a | U50: n/a
P51: Non-Incentive Expenditures | Q51: COST | R51: COST | S51: n/a | T51: COST | U51: COST

Sheet Analysis
H1: =H12=$N$12 -> FALSE | I1: FALSE | J1: FALSE | K1: FALSE | L1: FALSE | M1: FALSE | N1: TRUE | O1: FALSE | P1: TRUE | Q1: FALSE | R1: FALSE | S1: FALSE | T1: FALSE | U1: FALSE | V1: FALSE | W1: TRUE | X1: FALSE | Y1: TRUE | Z1: FALSE | AA1: TRUE | AB1: FALSE | AC1: FALSE | AD1: FALSE | AE1: FALSE | AF1: FALSE | AG1: TRUE | AH1: TRUE | AI1: TRUE | AJ1: FALSE | AK1: FALSE | AL1: FALSE | AM1: TRUE | AN1: =AN12=$N$12 -> FALSE | AO1: FALSE | AP1: FALSE | AQ1: FALSE | AR1: FALSE | AS1: TRUE | AT1: FALSE | AU1: TRUE | AV1: TRUE | AW1: FALSE | AX1: FALSE | AY1: FALSE | AZ1: FALSE | BA1: FALSE | BB1: FALSE | BC1: FALSE | BD1: TRUE | BE1: FALSE | BF1: =BF12=$N$12 -> FALSE | BG1: TRUE | BH1: FALSE | BI1: FALSE
A2: 2018
A3: =HYPERLINK("#'Contents'!a1","Return to Contents") -> Return to Contents
H4: =COLUMN() -> 8 | I4: =COLUMN() -> 9 | J4: =COLUMN() -> 10 | K4: =COLUMN() -> 11 | L4: =COLUMN() -> 12 | M4: =COLUMN() -> 13 | N4: =COLUMN() -> 14 | O4: =COLUMN() -> 15 | P4: =COLUMN() -> 16 | Q4: =COLUMN() -> 17 | S4: =COLUMN() -> 19 | T4: =COLUMN() -> 20 | U4: =COLUMN() -> 21 | V4: =COLUMN() -> 22 | W4: =COLUMN() -> 23 | X4: =COLUMN() -> 24 | Y4: =COLUMN() -> 25 | Z4: =COLUMN() -> 26 | AA4: =COLUMN() -> 27 | AB4: =COLUMN() -> 28 | AD4: =COLUMN() -> 30 | AE4: =COLUMN() -> 31 | AF4: =COLUMN() -> 32 | AG4: =COLUMN() -> 33 | AH4: =COLUMN() -> 34 | AI4: =COLUMN() -> 35 | AJ4: =COLUMN() -> 36 | AK4: =COLUMN() -> 37 | AL4: =COLUMN() -> 38 | AM4: =COLUMN() -> 39 | AO4: =COLUMN() -> 41 | AP4: =COLUMN() -> 42 | AQ4: =COLUMN() -> 43 | AR4: =COLUMN() -> 44 | AS4: =COLUMN() -> 45 | AT4: =COLUMN() -> 46 | AU4: =COLUMN() -> 47 | AV4: =COLUMN() -> 48 | AW4: =COLUMN() -> 49 | AX4: =COLUMN() -> 50 | AZ4: =COLUMN() -> 52 | BA4: =COLUMN() -> 53 | BB4: =COLUMN() -> 54 | BC4: =COLUMN() -> 55 | BD4: =COLUMN() -> 56 | BE4: =COLUMN() -> 57 | BF4: =COLUMN() -> 58 | BG4: =COLUMN() -> 59 | BH4: =COLUMN() -> 60 | BI4: =COLUMN() -> 61 | BJ4: =COLUMN() -> 62 | BK4: =COLUMN() -> 63 | BL4: =COLUMN() -> 64 | BM4: =COLUMN() -> 65 | BN4: =COLUMN() -> 66 | BO4: =COLUMN() -> 67 | BP4: =COLUMN() -> 68 | BQ4: =COLUMN() -> 69 | BR4: =COLUMN() -> 70 | BS4: =COLUMN() -> 71 | BT4: =COLUMN() -> 72 | BU4: =COLUMN() -> 73 | BV4: =COLUMN() -> 74 | BW4: =COLUMN() -> 75 | BX4: =COLUMN() -> 76 | BY4: =COLUMN() -> 77 | BZ4: =COLUMN() -> 78 | CA4: =COLUMN() -> 79 | CB4: =COLUMN() -> 80 | CC4: =COLUMN() -> 81 | CD4: =COLUMN() -> 82 | CE4: =COLUMN() -> 83 | CF4: =COLUMN() -> 84 | CG4: =COLUMN() -> 85 | CH4: =COLUMN() -> 86 | CI4: =COLUMN() -> 87 | CJ4: =COLUMN() -> 88 | CK4: =COLUMN() -> 89 | CL4: =COLUMN() -> 90 | CM4: =COLUMN() -> 91 | CN4: =COLUMN() -> 92 | CO4: =COLUMN() -> 93 | CP4: =COLUMN() -> 94 | CQ4: =COLUMN() -> 95 | CR4: =COLUMN() -> 96 | CS4: =COLUMN() -> 97 | CT4: =COLUMN() -> 98 | CU4: =COLUMN() -> 99 | CV4: =COLUMN() -> 100 | CW4: =COLUMN() -> 101 | CX4: =COLUMN() -> 102 | CY4: =COLUMN() -> 103 | CZ4: =COLUMN() -> 104 | DA4: =COLUMN() -> 105 | DB4: =COLUMN() -> 106 | DC4: =COLUMN() -> 107 | DD4: =COLUMN() -> 108 | DE4: =COLUMN() -> 109 | DF4: =COLUMN() -> 110 | DG4: =COLUMN() -> 111 | DH4: =COLUMN() -> 112 | DI4: =COLUMN() -> 113 | DJ4: =COLUMN() -> 114 | DK4: =COLUMN() -> 115 | DL4: =COLUMN() -> 116 | DM4: =COLUMN() -> 117 | DN4: =COLUMN() -> 118 | DO4: =COLUMN() -> 119 | DP4: =COLUMN() -> 120 | DQ4: =COLUMN() -> 121 | DR4: =COLUMN() -> 122 | DS4: =COLUMN() -> 123 | DT4: =COLUMN() -> 124 | DU4: =COLUMN() -> 125
H5: =H6&"_"&H13 -> SCT_Benefit Cost Ratio | I5: SCT_Total Benefits ($NPV) | J5: SCT_Total Costs ($NPV) | K5: SCT_Avoided Energy Cost | L5: SCT_Avoided Enviromental Cost | M5: SCT_Avoided Demand Cost | N5: SCT_Bill Savings / Lost Revenue | O5: SCT_Net Incremental Measure Cost | P5: SCT_Incentives | Q5: SCT_Non-Incentive Expenditures | R5: _ | S5: =S6&"_"&S13 -> TRC_Benefit Cost Ratio | T5: TRC_Total Benefits ($NPV) | U5: TRC_Total Costs ($NPV) | V5: TRC_Avoided Energy Cost | W5: TRC_Avoided Enviromental Cost | X5: TRC_Avoided Demand Cost | Y5: TRC_Bill Savings / Lost Revenue | Z5: TRC_Net Incremental Measure Cost | AA5: TRC_Incentives | AB5: TRC_Non-Incentive Expenditures | AC5: _ | AD5: PCT_Benefit Cost Ratio | AE5: PCT_Total Benefits ($NPV) | AF5: PCT_Total Costs ($NPV) | AG5: PCT_Avoided Energy Cost | AH5: PCT_Avoided Enviromental Cost | AI5: PCT_Avoided Demand Cost | AJ5: PCT_Bill Savings / Lost Revenue | AK5: PCT_Net Incremental Measure Cost | AL5: PCT_Incentives | AM5: PCT_Non-Incentive Expenditures | AN5: _ | AO5: UCT_Benefit Cost Ratio | AP5: UCT_Total Benefits ($NPV) | AQ5: UCT_Total Costs ($NPV) | AR5: UCT_Avoided Energy Cost | AS5: UCT_Avoided Enviromental Cost | AT5: UCT_Avoided Demand Cost | AU5: UCT_Bill Savings / Lost Revenue | AV5: UCT_Net Incremental Measure Cost | AW5: UCT_Incentives | AX5: UCT_Non-Incentive Expenditures | AY5: _ | AZ5: RIM_Benefit Cost Ratio | BA5: RIM_Total Benefits ($NPV) | BB5: RIM_Total Costs ($NPV) | BC5: RIM_Avoided Energy Cost | BD5: RIM_Avoided Enviromental Cost | BE5: RIM_Avoided Demand Cost | BF5: RIM_Bill Savings / Lost Revenue | BG5: RIM_Net Incremental Measure Cost | BH5: RIM_Incentives | BI5: RIM_Non-Incentive Expenditures | BK5: Actual_kWh | CI5: Actual_kW | DG5: Participants | DJ5: Total Incentives
H6: SCT | I6: =H6 -> SCT | J6: =I6 -> SCT | K6: SCT | L6: SCT | M6: SCT | N6: =M6 -> SCT | O6: =N6 -> SCT | P6: =O6 -> SCT | Q6: =P6 -> SCT | S6: TRC | T6: =S6 -> TRC | U6: =T6 -> TRC | V6: TRC | W6: TRC | X6: TRC | Y6: =X6 -> TRC | Z6: =Y6 -> TRC | AA6: =Z6 -> TRC | AB6: =AA6 -> TRC | AD6: PCT | AE6: =AD6 -> PCT | AF6: =AE6 -> PCT | AG6: PCT | AH6: PCT | AI6: PCT | AJ6: =AI6 -> PCT | AK6: =AJ6 -> PCT | AL6: =AK6 -> PCT | AM6: =AL6 -> PCT | AO6: UCT | AP6: =AO6 -> UCT | AQ6: =AP6 -> UCT | AR6: UCT | AS6: UCT | AT6: UCT | AU6: =AT6 -> UCT | AV6: UCT | AW6: UCT | AX6: UCT | AZ6: RIM | BA6: =AZ6 -> RIM | BB6: =BA6 -> RIM | BC6: RIM | BD6: RIM | BE6: =BD6 -> RIM | BF6: =BE6 -> RIM | BG6: RIM | BH6: RIM | BI6: RIM
G11: 0 | H11: =H6&" Cost Test" -> SCT Cost Test | S11: =S6&" Cost Test" -> TRC Cost Test | AD11: =AD6&" Cost Test" -> PCT Cost Test | AO11: =AO6&" Cost Test" -> UCT Cost Test | AZ11: =AZ6&" Cost Test" -> RIM Cost Test | BK11: Net kWh Impacts at meter | CI11: Net Coincident Peak kW Impacts at meter | DG11: Participation | DH11: Measure Life | DI11: Total Measure Costs | DL11: Total Net Lifetime Impacts at meter | DN11: 0 | DO11: Total Net First Year Impacts at meter | DQ11: 0 | DR11: Total Gross First Year Impacts | DT11: 0 | DU11: NTG
K12: =INDEX('General Inputs'!$Q$45:$U$56,MATCH(K13,'General Inputs'!$P$45:$P$56,0),MATCH(K6,'General Inputs'!$Q$44:$U$44,0)) -> BENEFIT | L12: =INDEX('General Inputs'!$Q$45:$U$56,MATCH(L13,'General Inputs'!$P$45:$P$56,0),MATCH(L6,'General Inputs'!$Q$44:$U$44,0)) -> BENEFIT | M12: =INDEX('General Inputs'!$Q$45:$U$56,MATCH(M13,'General Inputs'!$P$45:$P$56,0),MATCH(M6,'General Inputs'!$Q$44:$U$44,0)) -> BENEFIT | N12: =INDEX('General Inputs'!$Q$45:$U$56,MATCH(N13,'General Inputs'!$P$45:$P$56,0),MATCH(N6,'General Inputs'!$Q$44:$U$44,0)) -> n/a | O12: =INDEX('General Inputs'!$Q$45:$U$56,MATCH(O13,'General Inputs'!$P$45:$P$56,0),MATCH(O6,'General Inputs'!$Q$44:$U$44,0)) -> COST | P12: =INDEX('General Inputs'!$Q$45:$U$56,MATCH(P13,'General Inputs'!$P$45:$P$56,0),MATCH(P6,'General Inputs'!$Q$44:$U$44,0)) -> n/a | Q12: =INDEX('General Inputs'!$Q$45:$U$56,MATCH(Q13,'General Inputs'!$P$45:$P$56,0),MATCH(Q6,'General Inputs'!$Q$44:$U$44,0)) -> COST | V12: =INDEX('General Inputs'!$Q$45:$U$56,MATCH(V13,'General Inputs'!$P$45:$P$56,0),MATCH(V6,'General Inputs'!$Q$44:$U$44,0)) -> BENEFIT | W12: =INDEX('General Inputs'!$Q$45:$U$56,MATCH(W13,'General Inputs'!$P$45:$P$56,0),MATCH(W6,'General Inputs'!$Q$44:$U$44,0)) -> n/a | X12: =INDEX('General Inputs'!$Q$45:$U$56,MATCH(X13,'General Inputs'!$P$45:$P$56,0),MATCH(X6,'General Inputs'!$Q$44:$U$44,0)) -> BENEFIT | Y12: =INDEX('General Inputs'!$Q$45:$U$56,MATCH(Y13,'General Inputs'!$P$45:$P$56,0),MATCH(Y6,'General Inputs'!$Q$44:$U$44,0)) -> n/a | Z12: =INDEX('General Inputs'!$Q$45:$U$56,MATCH(Z13,'General Inputs'!$P$45:$P$56,0),MATCH(Z6,'General Inputs'!$Q$44:$U$44,0)) -> COST | AA12: =INDEX('General Inputs'!$Q$45:$U$56,MATCH(AA13,'General Inputs'!$P$45:$P$56,0),MATCH(AA6,'General Inputs'!$Q$44:$U$44,0)) -> n/a | AB12: =INDEX('General Inputs'!$Q$45:$U$56,MATCH(AB13,'General Inputs'!$P$45:$P$56,0),MATCH(AB6,'General Inputs'!$Q$44:$U$44,0)) -> COST | AG12: =INDEX('General Inputs'!$Q$45:$U$56,MATCH(AG13,'General Inputs'!$P$45:$P$56,0),MATCH(AG6,'General Inputs'!$Q$44:$U$44,0)) -> n/a | AH12: =INDEX('General Inputs'!$Q$45:$U$56,MATCH(AH13,'General Inputs'!$P$45:$P$56,0),MATCH(AH6,'General Inputs'!$Q$44:$U$44,0)) -> n/a | AI12: =INDEX('General Inputs'!$Q$45:$U$56,MATCH(AI13,'General Inputs'!$P$45:$P$56,0),MATCH(AI6,'General Inputs'!$Q$44:$U$44,0)) -> n/a | AJ12: =INDEX('General Inputs'!$Q$45:$U$56,MATCH(AJ13,'General Inputs'!$P$45:$P$56,0),MATCH(AJ6,'General Inputs'!$Q$44:$U$44,0)) -> BENEFIT | AK12: =INDEX('General Inputs'!$Q$45:$U$56,MATCH(AK13,'General Inputs'!$P$45:$P$56,0),MATCH(AK6,'General Inputs'!$Q$44:$U$44,0)) -> COST | AL12: =INDEX('General Inputs'!$Q$45:$U$56,MATCH(AL13,'General Inputs'!$P$45:$P$56,0),MATCH(AL6,'General Inputs'!$Q$44:$U$44,0)) -> BENEFIT | AM12: =INDEX('General Inputs'!$Q$45:$U$56,MATCH(AM13,'General Inputs'!$P$45:$P$56,0),MATCH(AM6,'General Inputs'!$Q$44:$U$44,0)) -> n/a | AR12: =INDEX('General Inputs'!$Q$45:$U$56,MATCH(AR13,'General Inputs'!$P$45:$P$56,0),MATCH(AR6,'General Inputs'!$Q$44:$U$44,0)) -> BENEFIT | AS12: =INDEX('General Inputs'!$Q$45:$U$56,MATCH(AS13,'General Inputs'!$P$45:$P$56,0),MATCH(AS6,'General Inputs'!$Q$44:$U$44,0)) -> n/a | AT12: =INDEX('General Inputs'!$Q$45:$U$56,MATCH(AT13,'General Inputs'!$P$45:$P$56,0),MATCH(AT6,'General Inputs'!$Q$44:$U$44,0)) -> BENEFIT | AU12: =INDEX('General Inputs'!$Q$45:$U$56,MATCH(AU13,'General Inputs'!$P$45:$P$56,0),MATCH(AU6,'General Inputs'!$Q$44:$U$44,0)) -> n/a | AV12: =INDEX('General Inputs'!$Q$45:$U$56,MATCH(AV13,'General Inputs'!$P$45:$P$56,0),MATCH(AV6,'General Inputs'!$Q$44:$U$44,0)) -> n/a | AW12: =INDEX('General Inputs'!$Q$45:$U$56,MATCH(AW13,'General Inputs'!$P$45:$P$56,0),MATCH(AW6,'General Inputs'!$Q$44:$U$44,0)) -> COST | AX12: =INDEX('General Inputs'!$Q$45:$U$56,MATCH(AX13,'General Inputs'!$P$45:$P$56,0),MATCH(AX6,'General Inputs'!$Q$44:$U$44,0)) -> COST | BC12: =INDEX('General Inputs'!$Q$45:$U$56,MATCH(BC13,'General Inputs'!$P$45:$P$56,0),MATCH(BC6,'General Inputs'!$Q$44:$U$44,0)) -> BENEFIT | BD12: =INDEX('General Inputs'!$Q$45:$U$56,MATCH(BD13,'General Inputs'!$P$45:$P$56,0),MATCH(BD6,'General Inputs'!$Q$44:$U$44,0)) -> n/a | BE12: =INDEX('General Inputs'!$Q$45:$U$56,MATCH(BE13,'General Inputs'!$P$45:$P$56,0),MATCH(BE6,'General Inputs'!$Q$44:$U$44,0)) -> BENEFIT | BF12: =INDEX('General Inputs'!$Q$45:$U$56,MATCH(BF13,'General Inputs'!$P$45:$P$56,0),MATCH(BF6,'General Inputs'!$Q$44:$U$44,0)) -> COST | BG12: =INDEX('General Inputs'!$Q$45:$U$56,MATCH(BG13,'General Inputs'!$P$45:$P$56,0),MATCH(BG6,'General Inputs'!$Q$44:$U$44,0)) -> n/a | BH12: =INDEX('General Inputs'!$Q$45:$U$56,MATCH(BH13,'General Inputs'!$P$45:$P$56,0),MATCH(BH6,'General Inputs'!$Q$44:$U$44,0)) -> COST | BI12: =INDEX('General Inputs'!$Q$45:$U$56,MATCH(BI13,'General Inputs'!$P$45:$P$56,0),MATCH(BI6,'General Inputs'!$Q$44:$U$44,0)) -> COST | DL12: Electricity | DM12: Electricity | DO12: Electricity | DP12: Electricity | DR12: Electricity | DS12: Electricity
B13: key | C13: ID | D13: Sector | E13: Program | F13: Measure | G13: space | H13: Benefit Cost Ratio | I13: Total Benefits ($NPV) | J13: Total Costs ($NPV) | K13: Avoided Energy Cost | L13: Avoided Enviromental Cost | M13: Avoided Demand Cost | N13: Bill Savings / Lost Revenue | O13: Net Incremental Measure Cost | P13: Incentives | Q13: Non-Incentive Expenditures | S13: Benefit Cost Ratio | T13: Total Benefits ($NPV) | U13: Total Costs ($NPV) | V13: Avoided Energy Cost | W13: Avoided Enviromental Cost | X13: Avoided Demand Cost | Y13: Bill Savings / Lost Revenue | Z13: Net Incremental Measure Cost | AA13: Incentives | AB13: Non-Incentive Expenditures | AD13: Benefit Cost Ratio | AE13: Total Benefits ($NPV) | AF13: Total Costs ($NPV) | AG13: Avoided Energy Cost | AH13: Avoided Enviromental Cost | AI13: Avoided Demand Cost | AJ13: Bill Savings / Lost Revenue | AK13: Net Incremental Measure Cost | AL13: Incentives | AM13: Non-Incentive Expenditures | AO13: Benefit Cost Ratio | AP13: Total Benefits ($NPV) | AQ13: Total Costs ($NPV) | AR13: Avoided Energy Cost | AS13: Avoided Enviromental Cost | AT13: Avoided Demand Cost | AU13: Bill Savings / Lost Revenue | AV13: Net Incremental Measure Cost | AW13: Incentives | AX13: Non-Incentive Expenditures | AZ13: Benefit Cost Ratio | BA13: Total Benefits ($NPV) | BB13: Total Costs ($NPV) | BC13: Avoided Energy Cost | BD13: Avoided Enviromental Cost | BE13: Avoided Demand Cost | BF13: Bill Savings / Lost Revenue | BG13: Net Incremental Measure Cost | BH13: Incentives | BI13: Non-Incentive Expenditures | BK13: =CycleStartYear -> 2018 | BL13: =BK13+1 -> 2019 | BM13: 2020 | BN13: 2021 | BO13: 2022 | BP13: 2023 | BQ13: 2024 | BR13: 2025 | BS13: 2026 | BT13: 2027 | BU13: 2028 | BV13: 2029 | BW13: 2030 | BX13: 2031 | BY13: 2032 | BZ13: 2033 | CA13: 2034 | CB13: 2035 | CC13: 2036 | CD13: 2037 | CE13: 2038 | CF13: 2039 | CG13: 2040 | CI13: =CycleStartYear -> 2018 | CJ13: =CI13+1 -> 2019 | CK13: 2020 | CL13: 2021 | CM13: 2022 | CN13: 2023 | CO13: 2024 | CP13: 2025 | CQ13: 2026 | CR13: 2027 | CS13: 2028 | CT13: 2029 | CU13: 2030 | CV13: 2031 | CW13: 2032 | CX13: 2033 | CY13: 2034 | CZ13: 2035 | DA13: 2036 | DB13: 2037 | DC13: 2038 | DD13: 2039 | DE13: 2040 | DG13: Units | DH13: Measure Life | DI13: First Year Cost | DJ13: Total Incentives ($) | DK13: space | DL13: Total Net Lifetime kWh | DM13: Total Net Lifetime kW | DN13: space | DO13: Total Net kWh | DP13: Total Net kW | DQ13: space | DR13: Total Gross kWh | DS13: Total Gross kW | DT13: space | DU13: NTG
B14: =D14&"_"&E14&"_"&F14 -> Residential_Residential Lighting_LED | C14: ='Measure Inputs'!D6 -> 1 | D14: =INDEX('Measure Inputs'!E:E,MATCH($C14,'Measure Inputs'!$D:$D,0)) -> Residential | E14: =INDEX('Measure Inputs'!F:F,MATCH($C14,'Measure Inputs'!$D:$D,0)) -> Residential Lighting | F14: =INDEX('Measure Inputs'!G:G,MATCH($C14,'Measure Inputs'!$D:$D,0)) -> LED | H14: =IFERROR(I14/J14,"n/a") -> 2.013294997 | I14: =SUMIFS(K14:Q14,K$12:Q$12,"BENEFIT") -> 19523.92823 | J14: =SUMIFS(K14:Q14,K$12:Q$12,"COST") -> 9697.5 | K14: =IF(K$12="n/a",0,SUMPRODUCT($BK14:$CG14,'General Inputs'!$Q$23:$AM$23,'General Inputs'!$Q$38:$AM$38)/(1-Loss_ElectricEnergy)) -> 13478.52626 | L14: =IF(L$12="n/a",0,SUMPRODUCT($BK14:$CG14,'General Inputs'!$Q$25:$AM$25,'General Inputs'!$Q$38:$AM$38)/(1-Loss_ElectricEnergy)) -> 5196.749551 | M14: =IF(M$12="n/a",0,SUMPRODUCT($CI14:$DE14,'General Inputs'!$Q$24:$AM$24,'General Inputs'!$Q$38:$AM$38))/(1-Loss_ElectricDemand) -> 848.6524257 | N14: =IF(N$12="n/a",0,SUMPRODUCT($BK14:$CG14,OFFSET('General Inputs'!$Q$29:$AM$29,MATCH($D14&"_Electric_$/kWh",'General Inputs'!$K$30:$K$31,0),),'General Inputs'!$Q$38:$AM$38) ) -> 0 | O14: =IF(O$12="n/a",0, INDEX('General Inputs'!$Q$38:$AM$38,MATCH($A$2,'General Inputs'!$Q$35:$AM$35,0))*$DI14*$DU14) -> 9697.5 | P14: =IF(P$12="n/a",0,INDEX('General Inputs'!$Q$38:$AM$38,MATCH($A$2,'General Inputs'!$Q$35:$AM$35,0))*$DJ14) -> 0 | S14: =IFERROR(T14/U14,"n/a") -> 1.477409506 | T14: =SUMIFS(V14:AB14,V$12:AB$12,"BENEFIT") -> 14327.17868 | U14: =SUMIFS(V14:AB14,V$12:AB$12,"COST") -> 9697.5 | V14: =IF(V$12="n/a",0,SUMPRODUCT($BK14:$CG14,'General Inputs'!$Q$23:$AM$23,'General Inputs'!$Q$36:$AM$36)/(1-Loss_ElectricEnergy)) -> 13478.52626 | W14: =IF(W$12="n/a",0,SUMPRODUCT($BK14:$CG14,'General Inputs'!$Q$25:$AM$25,'General Inputs'!$Q$36:$AM$36)/(1-Loss_ElectricEnergy)) -> 0 | X14: =IF(X$12="n/a",0,SUMPRODUCT($CI14:$DE14,'General Inputs'!$Q$24:$AM$24,'General Inputs'!$Q$36:$AM$36))/(1-Loss_ElectricDemand) -> 848.6524257 | Y14: =IF(Y$12="n/a",0,SUMPRODUCT($BK14:$CG14,OFFSET('General Inputs'!$Q$29:$AM$29,MATCH($D14&"_Electric_$/kWh",'General Inputs'!$K$30:$K$31,0),),'General Inputs'!$Q$36:$AM$36) ) -> 0 | Z14: =IF(Z$12="n/a",0, (INDEX('General Inputs'!$Q$36:$AM$36,MATCH($A$2,'General Inputs'!$Q$35:$AM$35,0))*$DI14+ IFERROR((INDEX('General Inputs'!$Q$36:$AM$36,MATCH($A$2+#REF!,'General Inputs'!$Q$35:$AM$35,0))*-#REF!),0)) *$DU14) -> 9697.5 | AA14: =IF(AA$12="n/a",0,INDEX('General Inputs'!$Q$36:$AM$36,MATCH($A$2,'General Inputs'!$Q$35:$AM$35,0))*$DJ14) -> 0 | AD14: =IFERROR(AE14/AF14,"n/a") -> 7.025489901 | AE14: =SUMIFS(AG14:AM14,AG$12:AM$12,"BENEFIT") -> 68129.68832 | AF14: =SUMIFS(AG14:AM14,AG$12:AM$12,"COST") -> 9697.5 | AG14: =IF(AG$12="n/a",0,SUMPRODUCT($BK14:$CG14,'General Inputs'!$Q$23:$AM$23,'General Inputs'!$Q$39:$AM$39)/(1-Loss_ElectricEnergy)) -> 0 | AH14: =IF(AH$12="n/a",0,SUMPRODUCT($BK14:$CG14,'General Inputs'!$Q$25:$AM$25,'General Inputs'!$Q$39:$AM$39)/(1-Loss_ElectricEnergy)) -> 0 | AI14: =IF(AI$12="n/a",0,SUMPRODUCT($CI14:$DE14,'General Inputs'!$Q$24:$AM$24,'General Inputs'!$Q$39:$AM$39))/(1-Loss_ElectricDemand) -> 0 | AJ14: =IF(AJ$12="n/a",0,SUMPRODUCT($BK14:$CG14,OFFSET('General Inputs'!$Q$29:$AM$29,MATCH($D14&"_Electric_$/kWh",'General Inputs'!$K$30:$K$31,0),),'General Inputs'!$Q$39:$AM$39) ) -> 65561.89519 | AK14: =IF(AK$12="n/a",0, INDEX('General Inputs'!$Q$39:$AM$39,MATCH($A$2,'General Inputs'!$Q$35:$AM$35,0))*$DI14*$DU14) -> 9697.5 | AL14: =IF(AL$12="n/a",0,INDEX('General Inputs'!$Q$39:$AM$39,MATCH($A$2,'General Inputs'!$Q$35:$AM$35,0))*$DJ14) -> 2567.793132 | AO14: =IFERROR(AP14/AQ14,"n/a") -> 5.579568893 | AP14: =SUMIFS(AR14:AX14,AR$12:AX$12,"BENEFIT") -> 14327.17868 | AQ14: =SUMIFS(AR14:AX14,AR$12:AX$12,"COST") -> 2567.793132 | AR14: =IF(AR$12="n/a",0,SUMPRODUCT($BK14:$CG14,'General Inputs'!$Q$23:$AM$23,'General Inputs'!$Q$37:$AM$37)/(1-Loss_ElectricEnergy)) -> 13478.52626 | AS14: =IF(AS$12="n/a",0,SUMPRODUCT($BK14:$CG14,'General Inputs'!$Q$25:$AM$25,'General Inputs'!$Q$37:$AM$37)/(1-Loss_ElectricEnergy)) -> 0 | AT14: =IF(AT$12="n/a",0,SUMPRODUCT($CI14:$DE14,'General Inputs'!$Q$24:$AM$24,'General Inputs'!$Q$37:$AM$37))/(1-Loss_ElectricDemand) -> 848.6524257 | AU14: =IF(AU$12="n/a",0,SUMPRODUCT($BK14:$CG14,OFFSET('General Inputs'!$Q$29:$AM$29,MATCH($D14&"_Electric_$/kWh",'General Inputs'!$K$30:$K$31,0),),'General Inputs'!$Q$37:$AM$37) ) -> 0 | AV14: =IF(AV$12="n/a",0, INDEX('General Inputs'!$Q$37:$AM$37,MATCH($A$2,'General Inputs'!$Q$35:$AM$35,0))*$DI14*$DU14) -> 0 | AW14: =IF(AW$12="n/a",0,INDEX('General Inputs'!$Q$37:$AM$37,MATCH($A$2,'General Inputs'!$Q$35:$AM$35,0))*$DJ14) -> 2567.793132 | AZ14: =IFERROR(BA14/BB14,"n/a") -> 0.2102927378 | BA14: =SUMIFS(BC14:BI14,BC$12:BI$12,"BENEFIT") -> 14327.17868 | BB14: =SUMIFS(BC14:BI14,BC$12:BI$12,"COST") -> 68129.68832 | BC14: =IF(BC$12="n/a",0,SUMPRODUCT($BK14:$CG14,'General Inputs'!$Q$23:$AM$23,'General Inputs'!$Q$40:$AM$40)/(1-Loss_ElectricEnergy)) -> 13478.52626 | BD14: =IF(BD$12="n/a",0,SUMPRODUCT($BK14:$CG14,'General Inputs'!$Q$25:$AM$25,'General Inputs'!$Q$40:$AM$40)/(1-Loss_ElectricEnergy)) -> 0 | BE14: =IF(BE$12="n/a",0,SUMPRODUCT($CI14:$DE14,'General Inputs'!$Q$24:$AM$24,'General Inputs'!$Q$40:$AM$40))/(1-Loss_ElectricDemand) -> 848.6524257 | BF14: =IF(BF$12="n/a",0,SUMPRODUCT($BK14:$CG14,OFFSET('General Inputs'!$Q$29:$AM$29,MATCH($D14&"_Electric_$/kWh",'General Inputs'!$K$30:$K$31,0),),'General Inputs'!$Q$40:$AM$40) ) -> 65561.89519 | BG14: =IF(BG$12="n/a",0, INDEX('General Inputs'!$Q$40:$AM$40,MATCH($A$2,'General Inputs'!$Q$35:$AM$35,0))*$DI14*$DU14) -> 0 | BH14: =IF(BH$12="n/a",0,INDEX('General Inputs'!$Q$40:$AM$40,MATCH($A$2,'General Inputs'!$Q$35:$AM$35,0))*$DJ14) -> 2567.793132 | BK14: =IF(AND($A$2<=BK$13,$A$2+$DH14>BK$13),$DR14,0)*$DU14 -> 61757.573 | BL14: 61757.573 | BM14: 61757.573 | BN14: 61757.573 | BO14: 61757.573 | BP14: 61757.573 | BQ14: 61757.573 | BR14: 61757.573 | BS14: 61757.573 | BT14: 61757.573 | BU14: =IF(AND($A$2<=BU$13,$A$2+$DH14>BU$13),$DR14,0)*$DU14 -> 0 | BV14: 0 | BW14: 0 | BX14: 0 | BY14: 0 | BZ14: 0 | CA14: 0 | CB14: 0 | CC14: 0 | CD14: 0 | CE14: 0 | CF14: 0 | CG14: 0 | CI14: =IF(AND($A$2<=CI$13,$A$2+$DH14>CI$13),$DS14,0)*$DU14 -> 5.4061 | CJ14: 5.4061 | CK14: 5.4061 | CL14: 5.4061 | CM14: 5.4061 | CN14: 5.4061 | CO14: 5.4061 | CP14: 5.4061 | CQ14: 5.4061 | CR14: 5.4061 | CS14: =IF(AND($A$2<=CS$13,$A$2+$DH14>CS$13),$DS14,0)*$DU14 -> 0 | CT14: 0 | CU14: 0 | CV14: 0 | CW14: 0 | CX14: 0 | CY14: 0 | CZ14: 0 | DA14: 0 | DB14: 0 | DC14: 0 | DD14: 0 | DE14: 0 | DG14: =INDEX('Measure Inputs'!$I:$I,MATCH($B14,'Measure Inputs'!$B:$B,0)) -> 1293 | DH14: =INDEX('Measure Inputs'!N:N,MATCH($B14,'Measure Inputs'!$B:$B,0)) -> 10 | DI14: =INDEX('Measure Inputs'!M:M,MATCH($B14,'Measure Inputs'!$B:$B,0))*$DG14 -> 9697.5 | DJ14: =INDEX('Measure Inputs'!$L:$L,MATCH($B14,'Measure Inputs'!$B:$B,0))*$DG14 -> 2567.793132 | DL14: =SUM($BK14:$CG14) -> 617575.73 | DM14: =SUM($CI14:$DE14) -> 54.061 | DO14: =INDEX($BK14:$CG14,MATCH($A$2,$BK$13:$CG$13,0)) -> 61757.573 | DP14: =INDEX($CI14:$DE14,MATCH($A$2,$CI$13:$DE$13,0)) -> 5.4061 | DR14: =INDEX('Measure Inputs'!$J:$J,MATCH($B14,'Measure Inputs'!$B:$B,0))*$DG14 -> 61757.573 | DS14: =INDEX('Measure Inputs'!$K:$K,MATCH($B14,'Measure Inputs'!$B:$B,0))*$DG14 -> 5.4061 | DU14: =INDEX('Measure Inputs'!O:O,MATCH($B14,'Measure Inputs'!$B:$B,0)) -> 1
B15: =D15&"_"&E15&"_"&F15 -> Residential_Residential Lighting_ENERGY STAR Fixture | C15: ='Measure Inputs'!D7 -> 2 | D15: =INDEX('Measure Inputs'!E:E,MATCH($C15,'Measure Inputs'!$D:$D,0)) -> Residential | E15: =INDEX('Measure Inputs'!F:F,MATCH($C15,'Measure Inputs'!$D:$D,0)) -> Residential Lighting | F15: =INDEX('Measure Inputs'!G:G,MATCH($C15,'Measure Inputs'!$D:$D,0)) -> ENERGY STAR Fixture | H15: =IFERROR(I15/J15,"n/a") -> 0.5062365649 | I15: 2407.154866 | J15: 4755 | K15: =IF(K$12="n/a",0,SUMPRODUCT($BK15:$CG15,'General Inputs'!$Q$23:$AM$23,'General Inputs'!$Q$38:$AM$38)/(1-Loss_ElectricEnergy)) -> 1661.816788 | L15: =IF(L$12="n/a",0,SUMPRODUCT($BK15:$CG15,'General Inputs'!$Q$25:$AM$25,'General Inputs'!$Q$38:$AM$38)/(1-Loss_ElectricEnergy)) -> 640.7262548 | M15: =IF(M$12="n/a",0,SUMPRODUCT($CI15:$DE15,'General Inputs'!$Q$24:$AM$24,'General Inputs'!$Q$38:$AM$38))/(1-Loss_ElectricDemand) -> 104.611823 | N15: =IF(N$12="n/a",0,SUMPRODUCT($BK15:$CG15,OFFSET('General Inputs'!$Q$29:$AM$29,MATCH($D15&"_Electric_$/kWh",'General Inputs'!$K$30:$K$31,0),),'General Inputs'!$Q$38:$AM$38) ) -> 0 | O15: =IF(O$12="n/a",0, INDEX('General Inputs'!$Q$38:$AM$38,MATCH($A$2,'General Inputs'!$Q$35:$AM$35,0))*$DI15*$DU15) -> 4755 | P15: =IF(P$12="n/a",0,INDEX('General Inputs'!$Q$38:$AM$38,MATCH($A$2,'General Inputs'!$Q$35:$AM$35,0))*$DJ15) -> 0 | S15: =IFERROR(T15/U15,"n/a") -> 0.3714886669 | T15: 1766.428611 | U15: 4755 | V15: =IF(V$12="n/a",0,SUMPRODUCT($BK15:$CG15,'General Inputs'!$Q$23:$AM$23,'General Inputs'!$Q$36:$AM$36)/(1-Loss_ElectricEnergy)) -> 1661.816788 | W15: =IF(W$12="n/a",0,SUMPRODUCT($BK15:$CG15,'General Inputs'!$Q$25:$AM$25,'General Inputs'!$Q$36:$AM$36)/(1-Loss_ElectricEnergy)) -> 0 | X15: =IF(X$12="n/a",0,SUMPRODUCT($CI15:$DE15,'General Inputs'!$Q$24:$AM$24,'General Inputs'!$Q$36:$AM$36))/(1-Loss_ElectricDemand) -> 104.611823 | Y15: =IF(Y$12="n/a",0,SUMPRODUCT($BK15:$CG15,OFFSET('General Inputs'!$Q$29:$AM$29,MATCH($D15&"_Electric_$/kWh",'General Inputs'!$K$30:$K$31,0),),'General Inputs'!$Q$36:$AM$36) ) -> 0 | Z15: =IF(Z$12="n/a",0, (INDEX('General Inputs'!$Q$36:$AM$36,MATCH($A$2,'General Inputs'!$Q$35:$AM$35,0))*$DI15+ IFERROR((INDEX('General Inputs'!$Q$36:$AM$36,MATCH($A$2+#REF!,'General Inputs'!$Q$35:$AM$35,0))*-#REF!),0)) *$DU15) -> 4755 | AA15: =IF(AA$12="n/a",0,INDEX('General Inputs'!$Q$36:$AM$36,MATCH($A$2,'General Inputs'!$Q$35:$AM$35,0))*$DJ15) -> 0 | AD15: =IFERROR(AE15/AF15,"n/a") -> 2.285531187 | AE15: 10867.70079 | AF15: 4755 | AG15: =IF(AG$12="n/a",0,SUMPRODUCT($BK15:$CG15,'General Inputs'!$Q$23:$AM$23,'General Inputs'!$Q$39:$AM$39)/(1-Loss_ElectricEnergy)) -> 0 | AH15: =IF(AH$12="n/a",0,SUMPRODUCT($BK15:$CG15,'General Inputs'!$Q$25:$AM$25,'General Inputs'!$Q$39:$AM$39)/(1-Loss_ElectricEnergy)) -> 0 | AI15: =IF(AI$12="n/a",0,SUMPRODUCT($CI15:$DE15,'General Inputs'!$Q$24:$AM$24,'General Inputs'!$Q$39:$AM$39))/(1-Loss_ElectricDemand) -> 0 | AJ15: =IF(AJ$12="n/a",0,SUMPRODUCT($BK15:$CG15,OFFSET('General Inputs'!$Q$29:$AM$29,MATCH($D15&"_Electric_$/kWh",'General Inputs'!$K$30:$K$31,0),),'General Inputs'!$Q$39:$AM$39) ) -> 8083.365793 | AK15: =IF(AK$12="n/a",0, INDEX('General Inputs'!$Q$39:$AM$39,MATCH($A$2,'General Inputs'!$Q$35:$AM$35,0))*$DI15*$DU15) -> 4755 | AL15: =IF(AL$12="n/a",0,INDEX('General Inputs'!$Q$39:$AM$39,MATCH($A$2,'General Inputs'!$Q$35:$AM$35,0))*$DJ15) -> 2784.335 | AO15: =IFERROR(AP15/AQ15,"n/a") -> 0.634416696 | AP15: 1766.428611 | AQ15: 2784.335 | AR15: =IF(AR$12="n/a",0,SUMPRODUCT($BK15:$CG15,'General Inputs'!$Q$23:$AM$23,'General Inputs'!$Q$37:$AM$37)/(1-Loss_ElectricEnergy)) -> 1661.816788 | AS15: =IF(AS$12="n/a",0,SUMPRODUCT($BK15:$CG15,'General Inputs'!$Q$25:$AM$25,'General Inputs'!$Q$37:$AM$37)/(1-Loss_ElectricEnergy)) -> 0 | AT15: =IF(AT$12="n/a",0,SUMPRODUCT($CI15:$DE15,'General Inputs'!$Q$24:$AM$24,'General Inputs'!$Q$37:$AM$37))/(1-Loss_ElectricDemand) -> 104.611823 | AU15: =IF(AU$12="n/a",0,SUMPRODUCT($BK15:$CG15,OFFSET('General Inputs'!$Q$29:$AM$29,MATCH($D15&"_Electric_$/kWh",'General Inputs'!$K$30:$K$31,0),),'General Inputs'!$Q$37:$AM$37) ) -> 0 | AV15: =IF(AV$12="n/a",0, INDEX('General Inputs'!$Q$37:$AM$37,MATCH($A$2,'General Inputs'!$Q$35:$AM$35,0))*$DI15*$DU15) -> 0 | AW15: =IF(AW$12="n/a",0,INDEX('General Inputs'!$Q$37:$AM$37,MATCH($A$2,'General Inputs'!$Q$35:$AM$35,0))*$DJ15) -> 2784.335 | AZ15: =IFERROR(BA15/BB15,"n/a") -> 0.1625393121 | BA15: 1766.428611 | BB15: 10867.70079 | BC15: =IF(BC$12="n/a",0,SUMPRODUCT($BK15:$CG15,'General Inputs'!$Q$23:$AM$23,'General Inputs'!$Q$40:$AM$40)/(1-Loss_ElectricEnergy)) -> 1661.816788 | BD15: =IF(BD$12="n/a",0,SUMPRODUCT($BK15:$CG15,'General Inputs'!$Q$25:$AM$25,'General Inputs'!$Q$40:$AM$40)/(1-Loss_ElectricEnergy)) -> 0 | BE15: =IF(BE$12="n/a",0,SUMPRODUCT($CI15:$DE15,'General Inputs'!$Q$24:$AM$24,'General Inputs'!$Q$40:$AM$40))/(1-Loss_ElectricDemand) -> 104.611823 | BF15: =IF(BF$12="n/a",0,SUMPRODUCT($BK15:$CG15,OFFSET('General Inputs'!$Q$29:$AM$29,MATCH($D15&"_Electric_$/kWh",'General Inputs'!$K$30:$K$31,0),),'General Inputs'!$Q$40:$AM$40) ) -> 8083.365793 | BG15: =IF(BG$12="n/a",0, INDEX('General Inputs'!$Q$40:$AM$40,MATCH($A$2,'General Inputs'!$Q$35:$AM$35,0))*$DI15*$DU15) -> 0 | BH15: =IF(BH$12="n/a",0,INDEX('General Inputs'!$Q$40:$AM$40,MATCH($A$2,'General Inputs'!$Q$35:$AM$35,0))*$DJ15) -> 2784.335 | BK15: 7614.317 | BL15: 7614.317 | BM15: 7614.317 | BN15: 7614.317 | BO15: 7614.317 | BP15: 7614.317 | BQ15: 7614.317 | BR15: 7614.317 | BS15: 7614.317 | BT15: 7614.317 | BU15: 0 | BV15: 0 | BW15: 0 | BX15: 0 | BY15: 0 | BZ15: 0 | CA15: 0 | CB15: 0 | CC15: 0 | CD15: 0 | CE15: 0 | CF15: 0 | CG15: 0 | CI15: 0.6664 | CJ15: 0.6664 | CK15: 0.6664 | CL15: 0.6664 | CM15: 0.6664 | CN15: 0.6664 | CO15: 0.6664 | CP15: 0.6664 | CQ15: 0.6664 | CR15: 0.6664 | CS15: 0 | CT15: 0 | CU15: 0 | CV15: 0 | CW15: 0 | CX15: 0 | CY15: 0 | CZ15: 0 | DA15: 0 | DB15: 0 | DC15: 0 | DD15: 0 | DE15: 0 | DG15: =INDEX('Measure Inputs'!$I:$I,MATCH($B15,'Measure Inputs'!$B:$B,0)) -> 317 | DH15: =INDEX('Measure Inputs'!N:N,MATCH($B15,'Measure Inputs'!$B:$B,0)) -> 10 | DI15: =INDEX('Measure Inputs'!M:M,MATCH($B15,'Measure Inputs'!$B:$B,0))*$DG15 -> 4755 | DJ15: =INDEX('Measure Inputs'!$L:$L,MATCH($B15,'Measure Inputs'!$B:$B,0))*$DG15 -> 2784.335 | DL15: 76143.17 | DM15: 6.664 | DO15: 7614.317 | DP15: 0.6664 | DR15: =INDEX('Measure Inputs'!$J:$J,MATCH($B15,'Measure Inputs'!$B:$B,0))*$DG15 -> 7614.317 | DS15: =INDEX('Measure Inputs'!$K:$K,MATCH($B15,'Measure Inputs'!$B:$B,0))*$DG15 -> 0.6664 | DU15: =INDEX('Measure Inputs'!O:O,MATCH($B15,'Measure Inputs'!$B:$B,0)) -> 1
B16: Residential_Appliance Recycling_Refrigerator Recycle | C16: ='Measure Inputs'!D8 -> 3 | D16: =INDEX('Measure Inputs'!E:E,MATCH($C16,'Measure Inputs'!$D:$D,0)) -> Residential | E16: =INDEX('Measure Inputs'!F:F,MATCH($C16,'Measure Inputs'!$D:$D,0)) -> Appliance Recycling | F16: =INDEX('Measure Inputs'!G:G,MATCH($C16,'Measure Inputs'!$D:$D,0)) -> Refrigerator Recycle | H16: 3.792277097 | I16: 26803.81452 | J16: 7068 | K16: =IF(K$12="n/a",0,SUMPRODUCT($BK16:$CG16,'General Inputs'!$Q$23:$AM$23,'General Inputs'!$Q$38:$AM$38)/(1-Loss_ElectricEnergy)) -> 18208.59562 | L16: =IF(L$12="n/a",0,SUMPRODUCT($BK16:$CG16,'General Inputs'!$Q$25:$AM$25,'General Inputs'!$Q$38:$AM$38)/(1-Loss_ElectricEnergy)) -> 7101.61836 | M16: =IF(M$12="n/a",0,SUMPRODUCT($CI16:$DE16,'General Inputs'!$Q$24:$AM$24,'General Inputs'!$Q$38:$AM$38))/(1-Loss_ElectricDemand) -> 1493.60054 | N16: =IF(N$12="n/a",0,SUMPRODUCT($BK16:$CG16,OFFSET('General Inputs'!$Q$29:$AM$29,MATCH($D16&"_Electric_$/kWh",'General Inputs'!$K$30:$K$31,0),),'General Inputs'!$Q$38:$AM$38) ) -> 0 | O16: =IF(O$12="n/a",0, INDEX('General Inputs'!$Q$38:$AM$38,MATCH($A$2,'General Inputs'!$Q$35:$AM$35,0))*$DI16*$DU16) -> 7068 | P16: =IF(P$12="n/a",0,INDEX('General Inputs'!$Q$38:$AM$38,MATCH($A$2,'General Inputs'!$Q$35:$AM$35,0))*$DJ16) -> 0 | S16: 2.787520679 | T16: 19702.19616 | U16: 7068 | V16: =IF(V$12="n/a",0,SUMPRODUCT($BK16:$CG16,'General Inputs'!$Q$23:$AM$23,'General Inputs'!$Q$36:$AM$36)/(1-Loss_ElectricEnergy)) -> 18208.59562 | W16: =IF(W$12="n/a",0,SUMPRODUCT($BK16:$CG16,'General Inputs'!$Q$25:$AM$25,'General Inputs'!$Q$36:$AM$36)/(1-Loss_ElectricEnergy)) -> 0 | X16: =IF(X$12="n/a",0,SUMPRODUCT($CI16:$DE16,'General Inputs'!$Q$24:$AM$24,'General Inputs'!$Q$36:$AM$36))/(1-Loss_ElectricDemand) -> 1493.60054 | Y16: =IF(Y$12="n/a",0,SUMPRODUCT($BK16:$CG16,OFFSET('General Inputs'!$Q$29:$AM$29,MATCH($D16&"_Electric_$/kWh",'General Inputs'!$K$30:$K$31,0),),'General Inputs'!$Q$36:$AM$36) ) -> 0 | Z16: =IF(Z$12="n/a",0, (INDEX('General Inputs'!$Q$36:$AM$36,MATCH($A$2,'General Inputs'!$Q$35:$AM$35,0))*$DI16+ IFERROR((INDEX('General Inputs'!$Q$36:$AM$36,MATCH($A$2+#REF!,'General Inputs'!$Q$35:$AM$35,0))*-#REF!),0)) *$DU16) -> 7068 | AA16: =IF(AA$12="n/a",0,INDEX('General Inputs'!$Q$36:$AM$36,MATCH($A$2,'General Inputs'!$Q$35:$AM$35,0))*$DJ16) -> 0 | AD16: 13.06872877 | AE16: 92369.77498 | AF16: 7068 | AG16: =IF(AG$12="n/a",0,SUMPRODUCT($BK16:$CG16,'General Inputs'!$Q$23:$AM$23,'General Inputs'!$Q$39:$AM$39)/(1-Loss_ElectricEnergy)) -> 0 | AH16: =IF(AH$12="n/a",0,SUMPRODUCT($BK16:$CG16,'General Inputs'!$Q$25:$AM$25,'General Inputs'!$Q$39:$AM$39)/(1-Loss_ElectricEnergy)) -> 0 | AI16: =IF(AI$12="n/a",0,SUMPRODUCT($CI16:$DE16,'General Inputs'!$Q$24:$AM$24,'General Inputs'!$Q$39:$AM$39))/(1-Loss_ElectricDemand) -> 0 | AJ16: =IF(AJ$12="n/a",0,SUMPRODUCT($BK16:$CG16,OFFSET('General Inputs'!$Q$29:$AM$29,MATCH($D16&"_Electric_$/kWh",'General Inputs'!$K$30:$K$31,0),),'General Inputs'!$Q$39:$AM$39) ) -> 88569.77498 | AK16: =IF(AK$12="n/a",0, INDEX('General Inputs'!$Q$39:$AM$39,MATCH($A$2,'General Inputs'!$Q$35:$AM$35,0))*$DI16*$DU16) -> 7068 | AL16: =IF(AL$12="n/a",0,INDEX('General Inputs'!$Q$39:$AM$39,MATCH($A$2,'General Inputs'!$Q$35:$AM$35,0))*$DJ16) -> 3800 | AO16: 5.184788464 | AP16: 19702.19616 | AQ16: 3800 | AR16: =IF(AR$12="n/a",0,SUMPRODUCT($BK16:$CG16,'General Inputs'!$Q$23:$AM$23,'General Inputs'!$Q$37:$AM$37)/(1-Loss_ElectricEnergy)) -> 18208.59562 | AS16: =IF(AS$12="n/a",0,SUMPRODUCT($BK16:$CG16,'General Inputs'!$Q$25:$AM$25,'General Inputs'!$Q$37:$AM$37)/(1-Loss_ElectricEnergy)) -> 0 | AT16: =IF(AT$12="n/a",0,SUMPRODUCT($CI16:$DE16,'General Inputs'!$Q$24:$AM$24,'General Inputs'!$Q$37:$AM$37))/(1-Loss_ElectricDemand) -> 1493.60054 | AU16: =IF(AU$12="n/a",0,SUMPRODUCT($BK16:$CG16,OFFSET('General Inputs'!$Q$29:$AM$29,MATCH($D16&"_Electric_$/kWh",'General Inputs'!$K$30:$K$31,0),),'General Inputs'!$Q$37:$AM$37) ) -> 0 | AV16: =IF(AV$12="n/a",0, INDEX('General Inputs'!$Q$37:$AM$37,MATCH($A$2,'General Inputs'!$Q$35:$AM$35,0))*$DI16*$DU16) -> 0 | AW16: =IF(AW$12="n/a",0,INDEX('General Inputs'!$Q$37:$AM$37,MATCH($A$2,'General Inputs'!$Q$35:$AM$35,0))*$DJ16) -> 3800 | AZ16: 0.2132970029 | BA16: 19702.19616 | BB16: 92369.77498 | BC16: =IF(BC$12="n/a",0,SUMPRODUCT($BK16:$CG16,'General Inputs'!$Q$23:$AM$23,'General Inputs'!$Q$40:$AM$40)/(1-Loss_ElectricEnergy)) -> 18208.59562 | BD16: =IF(BD$12="n/a",0,SUMPRODUCT($BK16:$CG16,'General Inputs'!$Q$25:$AM$25,'General Inputs'!$Q$40:$AM$40)/(1-Loss_ElectricEnergy)) -> 0 | BE16: =IF(BE$12="n/a",0,SUMPRODUCT($CI16:$DE16,'General Inputs'!$Q$24:$AM$24,'General Inputs'!$Q$40:$AM$40))/(1-Loss_ElectricDemand) -> 1493.60054 | BF16: =IF(BF$12="n/a",0,SUMPRODUCT($BK16:$CG16,OFFSET('General Inputs'!$Q$29:$AM$29,MATCH($D16&"_Electric_$/kWh",'General Inputs'!$K$30:$K$31,0),),'General Inputs'!$Q$40:$AM$40) ) -> 88569.77498 | BG16: =IF(BG$12="n/a",0, INDEX('General Inputs'!$Q$40:$AM$40,MATCH($A$2,'General Inputs'!$Q$35:$AM$35,0))*$DI16*$DU16) -> 0 | BH16: =IF(BH$12="n/a",0,INDEX('General Inputs'!$Q$40:$AM$40,MATCH($A$2,'General Inputs'!$Q$35:$AM$35,0))*$DJ16) -> 3800 | BK16: 97964 | BL16: 97964 | BM16: 97964 | BN16: 97964 | BO16: 97964 | BP16: 97964 | BQ16: 97964 | BR16: 97964 | BS16: 0 | BT16: 0 | BU16: 0 | BV16: 0 | BW16: 0 | BX16: 0 | BY16: 0 | BZ16: 0 | CA16: 0 | CB16: 0 | CC16: 0 | CD16: 0 | CE16: 0 | CF16: 0 | CG16: 0 | CI16: 11.172 | CJ16: 11.172 | CK16: 11.172 | CL16: 11.172 | CM16: 11.172 | CN16: 11.172 | CO16: 11.172 | CP16: 11.172 | CQ16: 0 | CR16: 0 | CS16: 0 | CT16: 0 | CU16: 0 | CV16: 0 | CW16: 0 | CX16: 0 | CY16: 0 | CZ16: 0 | DA16: 0 | DB16: 0 | DC16: 0 | DD16: 0 | DE16: 0 | DG16: =INDEX('Measure Inputs'!$I:$I,MATCH($B16,'Measure Inputs'!$B:$B,0)) -> 76 | DH16: =INDEX('Measure Inputs'!N:N,MATCH($B16,'Measure Inputs'!$B:$B,0)) -> 8 | DI16: =INDEX('Measure Inputs'!M:M,MATCH($B16,'Measure Inputs'!$B:$B,0))*$DG16 -> 7068 | DJ16: =INDEX('Measure Inputs'!$L:$L,MATCH($B16,'Measure Inputs'!$B:$B,0))*$DG16 -> 3800 | DL16: 783712 | DM16: 89.376 | DO16: 97964 | DP16: 11.172 | DR16: =INDEX('Measure Inputs'!$J:$J,MATCH($B16,'Measure Inputs'!$B:$B,0))*$DG16 -> 97964 | DS16: =INDEX('Measure Inputs'!$K:$K,MATCH($B16,'Measure Inputs'!$B:$B,0))*$DG16 -> 11.172 | DU16: =INDEX('Measure Inputs'!O:O,MATCH($B16,'Measure Inputs'!$B:$B,0)) -> 1
B17: Residential_Appliance Recycling_Freezer Recycle | C17: ='Measure Inputs'!D9 -> 4 | D17: =INDEX('Measure Inputs'!E:E,MATCH($C17,'Measure Inputs'!$D:$D,0)) -> Residential | E17: =INDEX('Measure Inputs'!F:F,MATCH($C17,'Measure Inputs'!$D:$D,0)) -> Appliance Recycling | F17: =INDEX('Measure Inputs'!G:G,MATCH($C17,'Measure Inputs'!$D:$D,0)) -> Freezer Recycle | H17: 3.250920096 | I17: 6953.718086 | J17: 2139 | K17: =IF(K$12="n/a",0,SUMPRODUCT($BK17:$CG17,'General Inputs'!$Q$23:$AM$23,'General Inputs'!$Q$38:$AM$38)/(1-Loss_ElectricEnergy)) -> 4723.89304 | L17: =IF(L$12="n/a",0,SUMPRODUCT($BK17:$CG17,'General Inputs'!$Q$25:$AM$25,'General Inputs'!$Q$38:$AM$38)/(1-Loss_ElectricEnergy)) -> 1842.387312 | M17: =IF(M$12="n/a",0,SUMPRODUCT($CI17:$DE17,'General Inputs'!$Q$24:$AM$24,'General Inputs'!$Q$38:$AM$38))/(1-Loss_ElectricDemand) -> 387.4377341 | N17: =IF(N$12="n/a",0,SUMPRODUCT($BK17:$CG17,OFFSET('General Inputs'!$Q$29:$AM$29,MATCH($D17&"_Electric_$/kWh",'General Inputs'!$K$30:$K$31,0),),'General Inputs'!$Q$38:$AM$38) ) -> 0 | O17: =IF(O$12="n/a",0, INDEX('General Inputs'!$Q$38:$AM$38,MATCH($A$2,'General Inputs'!$Q$35:$AM$35,0))*$DI17*$DU17) -> 2139 | P17: =IF(P$12="n/a",0,INDEX('General Inputs'!$Q$38:$AM$38,MATCH($A$2,'General Inputs'!$Q$35:$AM$35,0))*$DJ17) -> 0 | S17: 2.389588955 | T17: 5111.330774 | U17: 2139 | V17: =IF(V$12="n/a",0,SUMPRODUCT($BK17:$CG17,'General Inputs'!$Q$23:$AM$23,'General Inputs'!$Q$36:$AM$36)/(1-Loss_ElectricEnergy)) -> 4723.89304 | W17: =IF(W$12="n/a",0,SUMPRODUCT($BK17:$CG17,'General Inputs'!$Q$25:$AM$25,'General Inputs'!$Q$36:$AM$36)/(1-Loss_ElectricEnergy)) -> 0 | X17: =IF(X$12="n/a",0,SUMPRODUCT($CI17:$DE17,'General Inputs'!$Q$24:$AM$24,'General Inputs'!$Q$36:$AM$36))/(1-Loss_ElectricDemand) -> 387.4377341 | Y17: =IF(Y$12="n/a",0,SUMPRODUCT($BK17:$CG17,OFFSET('General Inputs'!$Q$29:$AM$29,MATCH($D17&"_Electric_$/kWh",'General Inputs'!$K$30:$K$31,0),),'General Inputs'!$Q$36:$AM$36) ) -> 0 | Z17: =IF(Z$12="n/a",0, (INDEX('General Inputs'!$Q$36:$AM$36,MATCH($A$2,'General Inputs'!$Q$35:$AM$35,0))*$DI17+ IFERROR((INDEX('General Inputs'!$Q$36:$AM$36,MATCH($A$2+#REF!,'General Inputs'!$Q$35:$AM$35,0))*-#REF!),0)) *$DU17) -> 2139 | AA17: =IF(AA$12="n/a",0,INDEX('General Inputs'!$Q$36:$AM$36,MATCH($A$2,'General Inputs'!$Q$35:$AM$35,0))*$DJ17) -> 0 | AD17: 11.27996123 | AE17: 24127.83707 | AF17: 2139 | AG17: =IF(AG$12="n/a",0,SUMPRODUCT($BK17:$CG17,'General Inputs'!$Q$23:$AM$23,'General Inputs'!$Q$39:$AM$39)/(1-Loss_ElectricEnergy)) -> 0 | AH17: =IF(AH$12="n/a",0,SUMPRODUCT($BK17:$CG17,'General Inputs'!$Q$25:$AM$25,'General Inputs'!$Q$39:$AM$39)/(1-Loss_ElectricEnergy)) -> 0 | AI17: =IF(AI$12="n/a",0,SUMPRODUCT($CI17:$DE17,'General Inputs'!$Q$24:$AM$24,'General Inputs'!$Q$39:$AM$39))/(1-Loss_ElectricDemand) -> 0 | AJ17: =IF(AJ$12="n/a",0,SUMPRODUCT($BK17:$CG17,OFFSET('General Inputs'!$Q$29:$AM$29,MATCH($D17&"_Electric_$/kWh",'General Inputs'!$K$30:$K$31,0),),'General Inputs'!$Q$39:$AM$39) ) -> 22977.83707 | AK17: =IF(AK$12="n/a",0, INDEX('General Inputs'!$Q$39:$AM$39,MATCH($A$2,'General Inputs'!$Q$35:$AM$35,0))*$DI17*$DU17) -> 2139 | AL17: =IF(AL$12="n/a",0,INDEX('General Inputs'!$Q$39:$AM$39,MATCH($A$2,'General Inputs'!$Q$35:$AM$35,0))*$DJ17) -> 1150 | AO17: 4.444635455 | AP17: 5111.330774 | AQ17: 1150 | AR17: =IF(AR$12="n/a",0,SUMPRODUCT($BK17:$CG17,'General Inputs'!$Q$23:$AM$23,'General Inputs'!$Q$37:$AM$37)/(1-Loss_ElectricEnergy)) -> 4723.89304 | AS17: =IF(AS$12="n/a",0,SUMPRODUCT($BK17:$CG17,'General Inputs'!$Q$25:$AM$25,'General Inputs'!$Q$37:$AM$37)/(1-Loss_ElectricEnergy)) -> 0 | AT17: =IF(AT$12="n/a",0,SUMPRODUCT($CI17:$DE17,'General Inputs'!$Q$24:$AM$24,'General Inputs'!$Q$37:$AM$37))/(1-Loss_ElectricDemand) -> 387.4377341 | AU17: =IF(AU$12="n/a",0,SUMPRODUCT($BK17:$CG17,OFFSET('General Inputs'!$Q$29:$AM$29,MATCH($D17&"_Electric_$/kWh",'General Inputs'!$K$30:$K$31,0),),'General Inputs'!$Q$37:$AM$37) ) -> 0 | AV17: =IF(AV$12="n/a",0, INDEX('General Inputs'!$Q$37:$AM$37,MATCH($A$2,'General Inputs'!$Q$35:$AM$35,0))*$DI17*$DU17) -> 0 | AW17: =IF(AW$12="n/a",0,INDEX('General Inputs'!$Q$37:$AM$37,MATCH($A$2,'General Inputs'!$Q$35:$AM$35,0))*$DJ17) -> 1150 | AZ17: 0.2118437205 | BA17: 5111.330774 | BB17: 24127.83707 | BC17: =IF(BC$12="n/a",0,SUMPRODUCT($BK17:$CG17,'General Inputs'!$Q$23:$AM$23,'General Inputs'!$Q$40:$AM$40)/(1-Loss_ElectricEnergy)) -> 4723.89304 | BD17: =IF(BD$12="n/a",0,SUMPRODUCT($BK17:$CG17,'General Inputs'!$Q$25:$AM$25,'General Inputs'!$Q$40:$AM$40)/(1-Loss_ElectricEnergy)) -> 0 | BE17: =IF(BE$12="n/a",0,SUMPRODUCT($CI17:$DE17,'General Inputs'!$Q$24:$AM$24,'General Inputs'!$Q$40:$AM$40))/(1-Loss_ElectricDemand) -> 387.4377341 | BF17: =IF(BF$12="n/a",0,SUMPRODUCT($BK17:$CG17,OFFSET('General Inputs'!$Q$29:$AM$29,MATCH($D17&"_Electric_$/kWh",'General Inputs'!$K$30:$K$31,0),),'General Inputs'!$Q$40:$AM$40) ) -> 22977.83707 | BG17: =IF(BG$12="n/a",0, INDEX('General Inputs'!$Q$40:$AM$40,MATCH($A$2,'General Inputs'!$Q$35:$AM$35,0))*$DI17*$DU17) -> 0 | BH17: =IF(BH$12="n/a",0,INDEX('General Inputs'!$Q$40:$AM$40,MATCH($A$2,'General Inputs'!$Q$35:$AM$35,0))*$DJ17) -> 1150 | BK17: 25415 | BL17: 25415 | BM17: 25415 | BN17: 25415 | BO17: 25415 | BP17: 25415 | BQ17: 25415 | BR17: 25415 | BS17: 0 | BT17: 0 | BU17: 0 | BV17: 0 | BW17: 0 | BX17: 0 | BY17: 0 | BZ17: 0 | CA17: 0 | CB17: 0 | CC17: 0 | CD17: 0 | CE17: 0 | CF17: 0 | CG17: 0 | CI17: 2.898 | CJ17: 2.898 | CK17: 2.898 | CL17: 2.898 | CM17: 2.898 | CN17: 2.898 | CO17: 2.898 | CP17: 2.898 | CQ17: 0 | CR17: 0 | CS17: 0 | CT17: 0 | CU17: 0 | CV17: 0 | CW17: 0 | CX17: 0 | CY17: 0 | CZ17: 0 | DA17: 0 | DB17: 0 | DC17: 0 | DD17: 0 | DE17: 0 | DG17: =INDEX('Measure Inputs'!$I:$I,MATCH($B17,'Measure Inputs'!$B:$B,0)) -> 23 | DH17: =INDEX('Measure Inputs'!N:N,MATCH($B17,'Measure Inputs'!$B:$B,0)) -> 8 | DI17: =INDEX('Measure Inputs'!M:M,MATCH($B17,'Measure Inputs'!$B:$B,0))*$DG17 -> 2139 | DJ17: =INDEX('Measure Inputs'!$L:$L,MATCH($B17,'Measure Inputs'!$B:$B,0))*$DG17 -> 1150 | DL17: 203320 | DM17: 23.184 | DO17: 25415 | DP17: 2.898 | DR17: =INDEX('Measure Inputs'!$J:$J,MATCH($B17,'Measure Inputs'!$B:$B,0))*$DG17 -> 25415 | DS17: =INDEX('Measure Inputs'!$K:$K,MATCH($B17,'Measure Inputs'!$B:$B,0))*$DG17 -> 2.898 | DU17: =INDEX('Measure Inputs'!O:O,MATCH($B17,'Measure Inputs'!$B:$B,0)) -> 1
B18: Residential_High Efficiency HVAC_Heat Pump SEER ≥15, EER ≥12.5, HSPF ≥8.5 Replace Electric Furnace | C18: ='Measure Inputs'!D10 -> 5 | D18: =INDEX('Measure Inputs'!E:E,MATCH($C18,'Measure Inputs'!$D:$D,0)) -> Residential | E18: =INDEX('Measure Inputs'!F:F,MATCH($C18,'Measure Inputs'!$D:$D,0)) -> High Efficiency HVAC | F18: =INDEX('Measure Inputs'!G:G,MATCH($C18,'Measure Inputs'!$D:$D,0)) -> Heat Pump SEER ≥15, EER ≥12.5, HSPF ≥8.5 Replace Electric Furnace | H18: 1.099239862 | I18: 75089.07495 | J18: 68310 | K18: =IF(K$12="n/a",0,SUMPRODUCT($BK18:$CG18,'General Inputs'!$Q$23:$AM$23,'General Inputs'!$Q$38:$AM$38)/(1-Loss_ElectricEnergy)) -> 54385.23121 | L18: =IF(L$12="n/a",0,SUMPRODUCT($BK18:$CG18,'General Inputs'!$Q$25:$AM$25,'General Inputs'!$Q$38:$AM$38)/(1-Loss_ElectricEnergy)) -> 20193.83455 | M18: =IF(M$12="n/a",0,SUMPRODUCT($CI18:$DE18,'General Inputs'!$Q$24:$AM$24,'General Inputs'!$Q$38:$AM$38))/(1-Loss_ElectricDemand) -> 510.0091983 | N18: =IF(N$12="n/a",0,SUMPRODUCT($BK18:$CG18,OFFSET('General Inputs'!$Q$29:$AM$29,MATCH($D18&"_Electric_$/kWh",'General Inputs'!$K$30:$K$31,0),),'General Inputs'!$Q$38:$AM$38) ) -> 0 | O18: =IF(O$12="n/a",0, INDEX('General Inputs'!$Q$38:$AM$38,MATCH($A$2,'General Inputs'!$Q$35:$AM$35,0))*$DI18*$DU18) -> 68310 | P18: =IF(P$12="n/a",0,INDEX('General Inputs'!$Q$38:$AM$38,MATCH($A$2,'General Inputs'!$Q$35:$AM$35,0))*$DJ18) -> 0 | S18: 0.8036193882 | T18: 54895.24041 | U18: 68310 | V18: =IF(V$12="n/a",0,SUMPRODUCT($BK18:$CG18,'General Inputs'!$Q$23:$AM$23,'General Inputs'!$Q$36:$AM$36)/(1-Loss_ElectricEnergy)) -> 54385.23121 | W18: =IF(W$12="n/a",0,SUMPRODUCT($BK18:$CG18,'General Inputs'!$Q$25:$AM$25,'General Inputs'!$Q$36:$AM$36)/(1-Loss_ElectricEnergy)) -> 0 | X18: =IF(X$12="n/a",0,SUMPRODUCT($CI18:$DE18,'General Inputs'!$Q$24:$AM$24,'General Inputs'!$Q$36:$AM$36))/(1-Loss_ElectricDemand) -> 510.0091983 | Y18: =IF(Y$12="n/a",0,SUMPRODUCT($BK18:$CG18,OFFSET('General Inputs'!$Q$29:$AM$29,MATCH($D18&"_Electric_$/kWh",'General Inputs'!$K$30:$K$31,0),),'General Inputs'!$Q$36:$AM$36) ) -> 0 | Z18: =IF(Z$12="n/a",0, (INDEX('General Inputs'!$Q$36:$AM$36,MATCH($A$2,'General Inputs'!$Q$35:$AM$35,0))*$DI18+ IFERROR((INDEX('General Inputs'!$Q$36:$AM$36,MATCH($A$2+#REF!,'General Inputs'!$Q$35:$AM$35,0))*-#REF!),0)) *$DU18) -> 68310 | AA18: =IF(AA$12="n/a",0,INDEX('General Inputs'!$Q$36:$AM$36,MATCH($A$2,'General Inputs'!$Q$35:$AM$35,0))*$DJ18) -> 0 | AD18: 4.202008789 | AE18: 287039.2204 | AF18: 68310 | AG18: =IF(AG$12="n/a",0,SUMPRODUCT($BK18:$CG18,'General Inputs'!$Q$23:$AM$23,'General Inputs'!$Q$39:$AM$39)/(1-Loss_ElectricEnergy)) -> 0 | AH18: =IF(AH$12="n/a",0,SUMPRODUCT($BK18:$CG18,'General Inputs'!$Q$25:$AM$25,'General Inputs'!$Q$39:$AM$39)/(1-Loss_ElectricEnergy)) -> 0 | AI18: =IF(AI$12="n/a",0,SUMPRODUCT($CI18:$DE18,'General Inputs'!$Q$24:$AM$24,'General Inputs'!$Q$39:$AM$39))/(1-Loss_ElectricDemand) -> 0 | AJ18: =IF(AJ$12="n/a",0,SUMPRODUCT($BK18:$CG18,OFFSET('General Inputs'!$Q$29:$AM$29,MATCH($D18&"_Electric_$/kWh",'General Inputs'!$K$30:$K$31,0),),'General Inputs'!$Q$39:$AM$39) ) -> 264539.2204 | AK18: =IF(AK$12="n/a",0, INDEX('General Inputs'!$Q$39:$AM$39,MATCH($A$2,'General Inputs'!$Q$35:$AM$35,0))*$DI18*$DU18) -> 68310 | AL18: =IF(AL$12="n/a",0,INDEX('General Inputs'!$Q$39:$AM$39,MATCH($A$2,'General Inputs'!$Q$35:$AM$35,0))*$DJ18) -> 22500 | AO18: 2.439788463 | AP18: 54895.24041 | AQ18: 22500 | AR18: =IF(AR$12="n/a",0,SUMPRODUCT($BK18:$CG18,'General Inputs'!$Q$23:$AM$23,'General Inputs'!$Q$37:$AM$37)/(1-Loss_ElectricEnergy)) -> 54385.23121 | AS18: =IF(AS$12="n/a",0,SUMPRODUCT($BK18:$CG18,'General Inputs'!$Q$25:$AM$25,'General Inputs'!$Q$37:$AM$37)/(1-Loss_ElectricEnergy)) -> 0 | AT18: =IF(AT$12="n/a",0,SUMPRODUCT($CI18:$DE18,'General Inputs'!$Q$24:$AM$24,'General Inputs'!$Q$37:$AM$37))/(1-Loss_ElectricDemand) -> 510.0091983 | AU18: =IF(AU$12="n/a",0,SUMPRODUCT($BK18:$CG18,OFFSET('General Inputs'!$Q$29:$AM$29,MATCH($D18&"_Electric_$/kWh",'General Inputs'!$K$30:$K$31,0),),'General Inputs'!$Q$37:$AM$37) ) -> 0 | AV18: =IF(AV$12="n/a",0, INDEX('General Inputs'!$Q$37:$AM$37,MATCH($A$2,'General Inputs'!$Q$35:$AM$35,0))*$DI18*$DU18) -> 0 | AW18: =IF(AW$12="n/a",0,INDEX('General Inputs'!$Q$37:$AM$37,MATCH($A$2,'General Inputs'!$Q$35:$AM$35,0))*$DJ18) -> 22500 | AZ18: 0.1912464796 | BA18: 54895.24041 | BB18: 287039.2204 | BC18: =IF(BC$12="n/a",0,SUMPRODUCT($BK18:$CG18,'General Inputs'!$Q$23:$AM$23,'General Inputs'!$Q$40:$AM$40)/(1-Loss_ElectricEnergy)) -> 54385.23121 | BD18: =IF(BD$12="n/a",0,SUMPRODUCT($BK18:$CG18,'General Inputs'!$Q$25:$AM$25,'General Inputs'!$Q$40:$AM$40)/(1-Loss_ElectricEnergy)) -> 0 | BE18: =IF(BE$12="n/a",0,SUMPRODUCT($CI18:$DE18,'General Inputs'!$Q$24:$AM$24,'General Inputs'!$Q$40:$AM$40))/(1-Loss_ElectricDemand) -> 510.0091983 | BF18: =IF(BF$12="n/a",0,SUMPRODUCT($BK18:$CG18,OFFSET('General Inputs'!$Q$29:$AM$29,MATCH($D18&"_Electric_$/kWh",'General Inputs'!$K$30:$K$31,0),),'General Inputs'!$Q$40:$AM$40) ) -> 264539.2204 | BG18: =IF(BG$12="n/a",0, INDEX('General Inputs'!$Q$40:$AM$40,MATCH($A$2,'General Inputs'!$Q$35:$AM$35,0))*$DI18*$DU18) -> 0 | BH18: =IF(BH$12="n/a",0,INDEX('General Inputs'!$Q$40:$AM$40,MATCH($A$2,'General Inputs'!$Q$35:$AM$35,0))*$DJ18) -> 22500 | BK18: 175259.9842 | BL18: 175259.9842 | BM18: 175259.9842 | BN18: 175259.9842 | BO18: 175259.9842 | BP18: 175259.9842 | BQ18: 175259.9842 | BR18: 175259.9842 | BS18: 175259.9842 | BT18: 175259.9842 | BU18: 175259.9842 | BV18: 175259.9842 | BW18: 175259.9842 | BX18: 175259.9842 | BY18: 175259.9842 | BZ18: 175259.9842 | CA18: 175259.9842 | CB18: 175259.9842 | CC18: 0 | CD18: 0 | CE18: 0 | CF18: 0 | CG18: 0 | CI18: 2.285 | CJ18: 2.285 | CK18: 2.285 | CL18: 2.285 | CM18: 2.285 | CN18: 2.285 | CO18: 2.285 | CP18: 2.285 | CQ18: 2.285 | CR18: 2.285 | CS18: 2.285 | CT18: 2.285 | CU18: 2.285 | CV18: 2.285 | CW18: 2.285 | CX18: 2.285 | CY18: 2.285 | CZ18: 2.285 | DA18: 0 | DB18: 0 | DC18: 0 | DD18: 0 | DE18: 0 | DG18: =INDEX('Measure Inputs'!$I:$I,MATCH($B18,'Measure Inputs'!$B:$B,0)) -> 15 | DH18: =INDEX('Measure Inputs'!N:N,MATCH($B18,'Measure Inputs'!$B:$B,0)) -> 18 | DI18: =INDEX('Measure Inputs'!M:M,MATCH($B18,'Measure Inputs'!$B:$B,0))*$DG18 -> 68310 | DJ18: =INDEX('Measure Inputs'!$L:$L,MATCH($B18,'Measure Inputs'!$B:$B,0))*$DG18 -> 22500 | DL18: 3154679.715 | DM18: 41.13 | DO18: 175259.9842 | DP18: 2.285 | DR18: =INDEX('Measure Inputs'!$J:$J,MATCH($B18,'Measure Inputs'!$B:$B,0))*$DG18 -> 175259.9842 | DS18: =INDEX('Measure Inputs'!$K:$K,MATCH($B18,'Measure Inputs'!$B:$B,0))*$DG18 -> 2.285 | DU18: =INDEX('Measure Inputs'!O:O,MATCH($B18,'Measure Inputs'!$B:$B,0)) -> 1
B19: Residential_High Efficiency HVAC_CAC SEER ≥15, EER ≥12.5 | C19: ='Measure Inputs'!D11 -> 6 | D19: =INDEX('Measure Inputs'!E:E,MATCH($C19,'Measure Inputs'!$D:$D,0)) -> Residential | E19: =INDEX('Measure Inputs'!F:F,MATCH($C19,'Measure Inputs'!$D:$D,0)) -> High Efficiency HVAC | F19: =INDEX('Measure Inputs'!G:G,MATCH($C19,'Measure Inputs'!$D:$D,0)) -> CAC SEER ≥15, EER ≥12.5 | H19: 2.406940995 | I19: 2079.597019 | J19: 864 | K19: =IF(K$12="n/a",0,SUMPRODUCT($BK19:$CG19,'General Inputs'!$Q$23:$AM$23,'General Inputs'!$Q$38:$AM$38)/(1-Loss_ElectricEnergy)) -> 849.1742916 | L19: =IF(L$12="n/a",0,SUMPRODUCT($BK19:$CG19,'General Inputs'!$Q$25:$AM$25,'General Inputs'!$Q$38:$AM$38)/(1-Loss_ElectricEnergy)) -> 315.3077548 | M19: =IF(M$12="n/a",0,SUMPRODUCT($CI19:$DE19,'General Inputs'!$Q$24:$AM$24,'General Inputs'!$Q$38:$AM$38))/(1-Loss_ElectricDemand) -> 915.1149729 | N19: =IF(N$12="n/a",0,SUMPRODUCT($BK19:$CG19,OFFSET('General Inputs'!$Q$29:$AM$29,MATCH($D19&"_Electric_$/kWh",'General Inputs'!$K$30:$K$31,0),),'General Inputs'!$Q$38:$AM$38) ) -> 0 | O19: =IF(O$12="n/a",0, INDEX('General Inputs'!$Q$38:$AM$38,MATCH($A$2,'General Inputs'!$Q$35:$AM$35,0))*$DI19*$DU19) -> 864 | P19: =IF(P$12="n/a",0,INDEX('General Inputs'!$Q$38:$AM$38,MATCH($A$2,'General Inputs'!$Q$35:$AM$35,0))*$DJ19) -> 0 | S19: 2.042001464 | T19: 1764.289264 | U19: 864 | V19: =IF(V$12="n/a",0,SUMPRODUCT($BK19:$CG19,'General Inputs'!$Q$23:$AM$23,'General Inputs'!$Q$36:$AM$36)/(1-Loss_ElectricEnergy)) -> 849.1742916 | W19: =IF(W$12="n/a",0,SUMPRODUCT($BK19:$CG19,'General Inputs'!$Q$25:$AM$25,'General Inputs'!$Q$36:$AM$36)/(1-Loss_ElectricEnergy)) -> 0 | X19: =IF(X$12="n/a",0,SUMPRODUCT($CI19:$DE19,'General Inputs'!$Q$24:$AM$24,'General Inputs'!$Q$36:$AM$36))/(1-Loss_ElectricDemand) -> 915.1149729 | Y19: =IF(Y$12="n/a",0,SUMPRODUCT($BK19:$CG19,OFFSET('General Inputs'!$Q$29:$AM$29,MATCH($D19&"_Electric_$/kWh",'General Inputs'!$K$30:$K$31,0),),'General Inputs'!$Q$36:$AM$36) ) -> 0 | Z19: =IF(Z$12="n/a",0, (INDEX('General Inputs'!$Q$36:$AM$36,MATCH($A$2,'General Inputs'!$Q$35:$AM$35,0))*$DI19+ IFERROR((INDEX('General Inputs'!$Q$36:$AM$36,MATCH($A$2+#REF!,'General Inputs'!$Q$35:$AM$35,0))*-#REF!),0)) *$DU19) -> 864 | AA19: =IF(AA$12="n/a",0,INDEX('General Inputs'!$Q$36:$AM$36,MATCH($A$2,'General Inputs'!$Q$35:$AM$35,0))*$DJ19) -> 0 | AD19: 6.273763192 | AE19: 5420.531398 | AF19: 864 | AG19: =IF(AG$12="n/a",0,SUMPRODUCT($BK19:$CG19,'General Inputs'!$Q$23:$AM$23,'General Inputs'!$Q$39:$AM$39)/(1-Loss_ElectricEnergy)) -> 0 | AH19: =IF(AH$12="n/a",0,SUMPRODUCT($BK19:$CG19,'General Inputs'!$Q$25:$AM$25,'General Inputs'!$Q$39:$AM$39)/(1-Loss_ElectricEnergy)) -> 0 | AI19: =IF(AI$12="n/a",0,SUMPRODUCT($CI19:$DE19,'General Inputs'!$Q$24:$AM$24,'General Inputs'!$Q$39:$AM$39))/(1-Loss_ElectricDemand) -> 0 | AJ19: =IF(AJ$12="n/a",0,SUMPRODUCT($BK19:$CG19,OFFSET('General Inputs'!$Q$29:$AM$29,MATCH($D19&"_Electric_$/kWh",'General Inputs'!$K$30:$K$31,0),),'General Inputs'!$Q$39:$AM$39) ) -> 4130.531398 | AK19: =IF(AK$12="n/a",0, INDEX('General Inputs'!$Q$39:$AM$39,MATCH($A$2,'General Inputs'!$Q$35:$AM$35,0))*$DI19*$DU19) -> 864 | AL19: =IF(AL$12="n/a",0,INDEX('General Inputs'!$Q$39:$AM$39,MATCH($A$2,'General Inputs'!$Q$35:$AM$35,0))*$DJ19) -> 1290 | AO19: 1.367666096 | AP19: 1764.289264 | AQ19: 1290 | AR19: =IF(AR$12="n/a",0,SUMPRODUCT($BK19:$CG19,'General Inputs'!$Q$23:$AM$23,'General Inputs'!$Q$37:$AM$37)/(1-Loss_ElectricEnergy)) -> 849.1742916 | AS19: =IF(AS$12="n/a",0,SUMPRODUCT($BK19:$CG19,'General Inputs'!$Q$25:$AM$25,'General Inputs'!$Q$37:$AM$37)/(1-Loss_ElectricEnergy)) -> 0 | AT19: =IF(AT$12="n/a",0,SUMPRODUCT($CI19:$DE19,'General Inputs'!$Q$24:$AM$24,'General Inputs'!$Q$37:$AM$37))/(1-Loss_ElectricDemand) -> 915.1149729 | AU19: =IF(AU$12="n/a",0,SUMPRODUCT($BK19:$CG19,OFFSET('General Inputs'!$Q$29:$AM$29,MATCH($D19&"_Electric_$/kWh",'General Inputs'!$K$30:$K$31,0),),'General Inputs'!$Q$37:$AM$37) ) -> 0 | AV19: =IF(AV$12="n/a",0, INDEX('General Inputs'!$Q$37:$AM$37,MATCH($A$2,'General Inputs'!$Q$35:$AM$35,0))*$DI19*$DU19) -> 0 | AW19: =IF(AW$12="n/a",0,INDEX('General Inputs'!$Q$37:$AM$37,MATCH($A$2,'General Inputs'!$Q$35:$AM$35,0))*$DJ19) -> 1290 | AZ19: 0.3254827129 | BA19: 1764.289264 | BB19: 5420.531398 | BC19: =IF(BC$12="n/a",0,SUMPRODUCT($BK19:$CG19,'General Inputs'!$Q$23:$AM$23,'General Inputs'!$Q$40:$AM$40)/(1-Loss_ElectricEnergy)) -> 849.1742916 | BD19: =IF(BD$12="n/a",0,SUMPRODUCT($BK19:$CG19,'General Inputs'!$Q$25:$AM$25,'General Inputs'!$Q$40:$AM$40)/(1-Loss_ElectricEnergy)) -> 0 | BE19: =IF(BE$12="n/a",0,SUMPRODUCT($CI19:$DE19,'General Inputs'!$Q$24:$AM$24,'General Inputs'!$Q$40:$AM$40))/(1-Loss_ElectricDemand) -> 915.1149729 | BF19: =IF(BF$12="n/a",0,SUMPRODUCT($BK19:$CG19,OFFSET('General Inputs'!$Q$29:$AM$29,MATCH($D19&"_Electric_$/kWh",'General Inputs'!$K$30:$K$31,0),),'General Inputs'!$Q$40:$AM$40) ) -> 4130.531398 | BG19: =IF(BG$12="n/a",0, INDEX('General Inputs'!$Q$40:$AM$40,MATCH($A$2,'General Inputs'!$Q$35:$AM$35,0))*$DI19*$DU19) -> 0 | BH19: =IF(BH$12="n/a",0,INDEX('General Inputs'!$Q$40:$AM$40,MATCH($A$2,'General Inputs'!$Q$35:$AM$35,0))*$DJ19) -> 1290 | BK19: 2736.52 | BL19: 2736.52 | BM19: 2736.52 | BN19: 2736.52 | BO19: 2736.52 | BP19: 2736.52 | BQ19: 2736.52 | BR19: 2736.52 | BS19: 2736.52 | BT19: 2736.52 | BU19: 2736.52 | BV19: 2736.52 | BW19: 2736.52 | BX19: 2736.52 | BY19: 2736.52 | BZ19: 2736.52 | CA19: 2736.52 | CB19: 2736.52 | CC19: 0 | CD19: 0 | CE19: 0 | CF19: 0 | CG19: 0 | CI19: 4.1 | CJ19: 4.1 | CK19: 4.1 | CL19: 4.1 | CM19: 4.1 | CN19: 4.1 | CO19: 4.1 | CP19: 4.1 | CQ19: 4.1 | CR19: 4.1 | CS19: 4.1 | CT19: 4.1 | CU19: 4.1 | CV19: 4.1 | CW19: 4.1 | CX19: 4.1 | CY19: 4.1 | CZ19: 4.1 | DA19: 0 | DB19: 0 | DC19: 0 | DD19: 0 | DE19: 0 | DG19: =INDEX('Measure Inputs'!$I:$I,MATCH($B19,'Measure Inputs'!$B:$B,0)) -> 8 | DH19: =INDEX('Measure Inputs'!N:N,MATCH($B19,'Measure Inputs'!$B:$B,0)) -> 18 | DI19: =INDEX('Measure Inputs'!M:M,MATCH($B19,'Measure Inputs'!$B:$B,0))*$DG19 -> 864 | DJ19: =INDEX('Measure Inputs'!$L:$L,MATCH($B19,'Measure Inputs'!$B:$B,0))*$DG19 -> 1290 | DL19: 49257.36 | DM19: 73.8 | DO19: 2736.52 | DP19: 4.1 | DR19: =INDEX('Measure Inputs'!$J:$J,MATCH($B19,'Measure Inputs'!$B:$B,0))*$DG19 -> 2736.52 | DS19: =INDEX('Measure Inputs'!$K:$K,MATCH($B19,'Measure Inputs'!$B:$B,0))*$DG19 -> 4.1 | DU19: =INDEX('Measure Inputs'!O:O,MATCH($B19,'Measure Inputs'!$B:$B,0)) -> 1
B20: =D20&"_"&E20&"_"&F20 -> Residential_Whole House Efficiency_Recommended Audit Measures | C20: ='Measure Inputs'!D12 -> 7 | D20: =INDEX('Measure Inputs'!E:E,MATCH($C20,'Measure Inputs'!$D:$D,0)) -> Residential | E20: =INDEX('Measure Inputs'!F:F,MATCH($C20,'Measure Inputs'!$D:$D,0)) -> Whole House Efficiency | F20: =INDEX('Measure Inputs'!G:G,MATCH($C20,'Measure Inputs'!$D:$D,0)) -> Recommended Audit Measures | H20: =IFERROR(I20/J20,"n/a") -> n/a | I20: =SUMIFS(K20:Q20,K$12:Q$12,"BENEFIT") -> 1472.569759 | J20: =SUMIFS(K20:Q20,K$12:Q$12,"COST") -> 0 | K20: =IF(K$12="n/a",0,SUMPRODUCT($BK20:$CG20,'General Inputs'!$Q$23:$AM$23,'General Inputs'!$Q$38:$AM$38)/(1-Loss_ElectricEnergy)) -> 1014.421179 | L20: =IF(L$12="n/a",0,SUMPRODUCT($BK20:$CG20,'General Inputs'!$Q$25:$AM$25,'General Inputs'!$Q$38:$AM$38)/(1-Loss_ElectricEnergy)) -> 391.1178944 | M20: =IF(M$12="n/a",0,SUMPRODUCT($CI20:$DE20,'General Inputs'!$Q$24:$AM$24,'General Inputs'!$Q$38:$AM$38))/(1-Loss_ElectricDemand) -> 67.03068492 | N20: =IF(N$12="n/a",0,SUMPRODUCT($BK20:$CG20,OFFSET('General Inputs'!$Q$29:$AM$29,MATCH($D20&"_Electric_$/kWh",'General Inputs'!$K$30:$K$31,0),),'General Inputs'!$Q$38:$AM$38) ) -> 0 | O20: =IF(O$12="n/a",0, INDEX('General Inputs'!$Q$38:$AM$38,MATCH($A$2,'General Inputs'!$Q$35:$AM$35,0))*$DI20*$DU20) -> 0 | P20: =IF(P$12="n/a",0,INDEX('General Inputs'!$Q$38:$AM$38,MATCH($A$2,'General Inputs'!$Q$35:$AM$35,0))*$DJ20) -> 0 | S20: =IFERROR(T20/U20,"n/a") -> n/a | T20: =SUMIFS(V20:AB20,V$12:AB$12,"BENEFIT") -> 1081.451864 | U20: =SUMIFS(V20:AB20,V$12:AB$12,"COST") -> 0 | V20: =IF(V$12="n/a",0,SUMPRODUCT($BK20:$CG20,'General Inputs'!$Q$23:$AM$23,'General Inputs'!$Q$36:$AM$36)/(1-Loss_ElectricEnergy)) -> 1014.421179 | W20: =IF(W$12="n/a",0,SUMPRODUCT($BK20:$CG20,'General Inputs'!$Q$25:$AM$25,'General Inputs'!$Q$36:$AM$36)/(1-Loss_ElectricEnergy)) -> 0 | X20: =IF(X$12="n/a",0,SUMPRODUCT($CI20:$DE20,'General Inputs'!$Q$24:$AM$24,'General Inputs'!$Q$36:$AM$36))/(1-Loss_ElectricDemand) -> 67.03068492 | Y20: =IF(Y$12="n/a",0,SUMPRODUCT($BK20:$CG20,OFFSET('General Inputs'!$Q$29:$AM$29,MATCH($D20&"_Electric_$/kWh",'General Inputs'!$K$30:$K$31,0),),'General Inputs'!$Q$36:$AM$36) ) -> 0 | Z20: =IF(Z$12="n/a",0, (INDEX('General Inputs'!$Q$36:$AM$36,MATCH($A$2,'General Inputs'!$Q$35:$AM$35,0))*$DI20+ IFERROR((INDEX('General Inputs'!$Q$36:$AM$36,MATCH($A$2+#REF!,'General Inputs'!$Q$35:$AM$35,0))*-#REF!),0)) *$DU20) -> 0 | AA20: =IF(AA$12="n/a",0,INDEX('General Inputs'!$Q$36:$AM$36,MATCH($A$2,'General Inputs'!$Q$35:$AM$35,0))*$DJ20) -> 0 | AD20: =IFERROR(AE20/AF20,"n/a") -> n/a | AE20: =SUMIFS(AG20:AM20,AG$12:AM$12,"BENEFIT") -> 4934.320991 | AF20: =SUMIFS(AG20:AM20,AG$12:AM$12,"COST") -> 0 | AG20: =IF(AG$12="n/a",0,SUMPRODUCT($BK20:$CG20,'General Inputs'!$Q$23:$AM$23,'General Inputs'!$Q$39:$AM$39)/(1-Loss_ElectricEnergy)) -> 0 | AH20: =IF(AH$12="n/a",0,SUMPRODUCT($BK20:$CG20,'General Inputs'!$Q$25:$AM$25,'General Inputs'!$Q$39:$AM$39)/(1-Loss_ElectricEnergy)) -> 0 | AI20: =IF(AI$12="n/a",0,SUMPRODUCT($CI20:$DE20,'General Inputs'!$Q$24:$AM$24,'General Inputs'!$Q$39:$AM$39))/(1-Loss_ElectricDemand) -> 0 | AJ20: =IF(AJ$12="n/a",0,SUMPRODUCT($BK20:$CG20,OFFSET('General Inputs'!$Q$29:$AM$29,MATCH($D20&"_Electric_$/kWh",'General Inputs'!$K$30:$K$31,0),),'General Inputs'!$Q$39:$AM$39) ) -> 4934.320991 | AK20: =IF(AK$12="n/a",0, INDEX('General Inputs'!$Q$39:$AM$39,MATCH($A$2,'General Inputs'!$Q$35:$AM$35,0))*$DI20*$DU20) -> 0 | AL20: =IF(AL$12="n/a",0,INDEX('General Inputs'!$Q$39:$AM$39,MATCH($A$2,'General Inputs'!$Q$35:$AM$35,0))*$DJ20) -> 0 | AO20: =IFERROR(AP20/AQ20,"n/a") -> n/a | AP20: =SUMIFS(AR20:AX20,AR$12:AX$12,"BENEFIT") -> 1081.451864 | AQ20: =SUMIFS(AR20:AX20,AR$12:AX$12,"COST") -> 0 | AR20: =IF(AR$12="n/a",0,SUMPRODUCT($BK20:$CG20,'General Inputs'!$Q$23:$AM$23,'General Inputs'!$Q$37:$AM$37)/(1-Loss_ElectricEnergy)) -> 1014.421179 | AS20: =IF(AS$12="n/a",0,SUMPRODUCT($BK20:$CG20,'General Inputs'!$Q$25:$AM$25,'General Inputs'!$Q$37:$AM$37)/(1-Loss_ElectricEnergy)) -> 0 | AT20: =IF(AT$12="n/a",0,SUMPRODUCT($CI20:$DE20,'General Inputs'!$Q$24:$AM$24,'General Inputs'!$Q$37:$AM$37))/(1-Loss_ElectricDemand) -> 67.03068492 | AU20: =IF(AU$12="n/a",0,SUMPRODUCT($BK20:$CG20,OFFSET('General Inputs'!$Q$29:$AM$29,MATCH($D20&"_Electric_$/kWh",'General Inputs'!$K$30:$K$31,0),),'General Inputs'!$Q$37:$AM$37) ) -> 0 | AV20: =IF(AV$12="n/a",0, INDEX('General Inputs'!$Q$37:$AM$37,MATCH($A$2,'General Inputs'!$Q$35:$AM$35,0))*$DI20*$DU20) -> 0 | AW20: =IF(AW$12="n/a",0,INDEX('General Inputs'!$Q$37:$AM$37,MATCH($A$2,'General Inputs'!$Q$35:$AM$35,0))*$DJ20) -> 0 | AZ20: =IFERROR(BA20/BB20,"n/a") -> 0.2191693378 | BA20: =SUMIFS(BC20:BI20,BC$12:BI$12,"BENEFIT") -> 1081.451864 | BB20: =SUMIFS(BC20:BI20,BC$12:BI$12,"COST") -> 4934.320991 | BC20: =IF(BC$12="n/a",0,SUMPRODUCT($BK20:$CG20,'General Inputs'!$Q$23:$AM$23,'General Inputs'!$Q$40:$AM$40)/(1-Loss_ElectricEnergy)) -> 1014.421179 | BD20: =IF(BD$12="n/a",0,SUMPRODUCT($BK20:$CG20,'General Inputs'!$Q$25:$AM$25,'General Inputs'!$Q$40:$AM$40)/(1-Loss_ElectricEnergy)) -> 0 | BE20: =IF(BE$12="n/a",0,SUMPRODUCT($CI20:$DE20,'General Inputs'!$Q$24:$AM$24,'General Inputs'!$Q$40:$AM$40))/(1-Loss_ElectricDemand) -> 67.03068492 | BF20: =IF(BF$12="n/a",0,SUMPRODUCT($BK20:$CG20,OFFSET('General Inputs'!$Q$29:$AM$29,MATCH($D20&"_Electric_$/kWh",'General Inputs'!$K$30:$K$31,0),),'General Inputs'!$Q$40:$AM$40) ) -> 4934.320991 | BG20: =IF(BG$12="n/a",0, INDEX('General Inputs'!$Q$40:$AM$40,MATCH($A$2,'General Inputs'!$Q$35:$AM$35,0))*$DI20*$DU20) -> 0 | BH20: =IF(BH$12="n/a",0,INDEX('General Inputs'!$Q$40:$AM$40,MATCH($A$2,'General Inputs'!$Q$35:$AM$35,0))*$DJ20) -> 0 | BK20: 4648 | BL20: 4648 | BM20: 4648 | BN20: 4648 | BO20: 4648 | BP20: 4648 | BQ20: 4648 | BR20: 4648 | BS20: 4648 | BT20: 4648 | BU20: 0 | BV20: 0 | BW20: 0 | BX20: 0 | BY20: 0 | BZ20: 0 | CA20: 0 | CB20: 0 | CC20: 0 | CD20: 0 | CE20: 0 | CF20: 0 | CG20: 0 | CI20: 0.427 | CJ20: 0.427 | CK20: 0.427 | CL20: 0.427 | CM20: 0.427 | CN20: 0.427 | CO20: 0.427 | CP20: 0.427 | CQ20: 0.427 | CR20: 0.427 | CS20: 0 | CT20: 0 | CU20: 0 | CV20: 0 | CW20: 0 | CX20: 0 | CY20: 0 | CZ20: 0 | DA20: 0 | DB20: 0 | DC20: 0 | DD20: 0 | DE20: 0 | DG20: =INDEX('Measure Inputs'!$I:$I,MATCH($B20,'Measure Inputs'!$B:$B,0)) -> 7 | DH20: =INDEX('Measure Inputs'!N:N,MATCH($B20,'Measure Inputs'!$B:$B,0)) -> 10 | DI20: =INDEX('Measure Inputs'!M:M,MATCH($B20,'Measure Inputs'!$B:$B,0))*$DG20 -> 0 | DJ20: =INDEX('Measure Inputs'!$L:$L,MATCH($B20,'Measure Inputs'!$B:$B,0))*$DG20 -> 0 | DL20: 46480 | DM20: 4.27 | DO20: 4648 | DP20: 0.427 | DR20: =INDEX('Measure Inputs'!$J:$J,MATCH($B20,'Measure Inputs'!$B:$B,0))*$DG20 -> 4648 | DS20: =INDEX('Measure Inputs'!$K:$K,MATCH($B20,'Measure Inputs'!$B:$B,0))*$DG20 -> 0.427 | DU20: =INDEX('Measure Inputs'!O:O,MATCH($B20,'Measure Inputs'!$B:$B,0)) -> 1
B21: Residential_Whole House Efficiency_Air Sealing (Electric Heat) | C21: ='Measure Inputs'!D13 -> 8 | D21: =INDEX('Measure Inputs'!E:E,MATCH($C21,'Measure Inputs'!$D:$D,0)) -> Residential | E21: =INDEX('Measure Inputs'!F:F,MATCH($C21,'Measure Inputs'!$D:$D,0)) -> Whole House Efficiency | F21: =INDEX('Measure Inputs'!G:G,MATCH($C21,'Measure Inputs'!$D:$D,0)) -> Air Sealing (Electric Heat) | H21: n/a | I21: 0 | J21: 0 | K21: =IF(K$12="n/a",0,SUMPRODUCT($BK21:$CG21,'General Inputs'!$Q$23:$AM$23,'General Inputs'!$Q$38:$AM$38)/(1-Loss_ElectricEnergy)) -> 0 | L21: =IF(L$12="n/a",0,SUMPRODUCT($BK21:$CG21,'General Inputs'!$Q$25:$AM$25,'General Inputs'!$Q$38:$AM$38)/(1-Loss_ElectricEnergy)) -> 0 | M21: =IF(M$12="n/a",0,SUMPRODUCT($CI21:$DE21,'General Inputs'!$Q$24:$AM$24,'General Inputs'!$Q$38:$AM$38))/(1-Loss_ElectricDemand) -> 0 | N21: =IF(N$12="n/a",0,SUMPRODUCT($BK21:$CG21,OFFSET('General Inputs'!$Q$29:$AM$29,MATCH($D21&"_Electric_$/kWh",'General Inputs'!$K$30:$K$31,0),),'General Inputs'!$Q$38:$AM$38) ) -> 0 | O21: =IF(O$12="n/a",0, INDEX('General Inputs'!$Q$38:$AM$38,MATCH($A$2,'General Inputs'!$Q$35:$AM$35,0))*$DI21*$DU21) -> 0 | P21: =IF(P$12="n/a",0,INDEX('General Inputs'!$Q$38:$AM$38,MATCH($A$2,'General Inputs'!$Q$35:$AM$35,0))*$DJ21) -> 0 | S21: n/a | T21: 0 | U21: 0 | V21: =IF(V$12="n/a",0,SUMPRODUCT($BK21:$CG21,'General Inputs'!$Q$23:$AM$23,'General Inputs'!$Q$36:$AM$36)/(1-Loss_ElectricEnergy)) -> 0 | W21: =IF(W$12="n/a",0,SUMPRODUCT($BK21:$CG21,'General Inputs'!$Q$25:$AM$25,'General Inputs'!$Q$36:$AM$36)/(1-Loss_ElectricEnergy)) -> 0 | X21: =IF(X$12="n/a",0,SUMPRODUCT($CI21:$DE21,'General Inputs'!$Q$24:$AM$24,'General Inputs'!$Q$36:$AM$36))/(1-Loss_ElectricDemand) -> 0 | Y21: =IF(Y$12="n/a",0,SUMPRODUCT($BK21:$CG21,OFFSET('General Inputs'!$Q$29:$AM$29,MATCH($D21&"_Electric_$/kWh",'General Inputs'!$K$30:$K$31,0),),'General Inputs'!$Q$36:$AM$36) ) -> 0 | Z21: =IF(Z$12="n/a",0, (INDEX('General Inputs'!$Q$36:$AM$36,MATCH($A$2,'General Inputs'!$Q$35:$AM$35,0))*$DI21+ IFERROR((INDEX('General Inputs'!$Q$36:$AM$36,MATCH($A$2+#REF!,'General Inputs'!$Q$35:$AM$35,0))*-#REF!),0)) *$DU21) -> 0 | AA21: =IF(AA$12="n/a",0,INDEX('General Inputs'!$Q$36:$AM$36,MATCH($A$2,'General Inputs'!$Q$35:$AM$35,0))*$DJ21) -> 0 | AD21: n/a | AE21: 0 | AF21: 0 | AG21: =IF(AG$12="n/a",0,SUMPRODUCT($BK21:$CG21,'General Inputs'!$Q$23:$AM$23,'General Inputs'!$Q$39:$AM$39)/(1-Loss_ElectricEnergy)) -> 0 | AH21: =IF(AH$12="n/a",0,SUMPRODUCT($BK21:$CG21,'General Inputs'!$Q$25:$AM$25,'General Inputs'!$Q$39:$AM$39)/(1-Loss_ElectricEnergy)) -> 0 | AI21: =IF(AI$12="n/a",0,SUMPRODUCT($CI21:$DE21,'General Inputs'!$Q$24:$AM$24,'General Inputs'!$Q$39:$AM$39))/(1-Loss_ElectricDemand) -> 0 | AJ21: =IF(AJ$12="n/a",0,SUMPRODUCT($BK21:$CG21,OFFSET('General Inputs'!$Q$29:$AM$29,MATCH($D21&"_Electric_$/kWh",'General Inputs'!$K$30:$K$31,0),),'General Inputs'!$Q$39:$AM$39) ) -> 0 | AK21: =IF(AK$12="n/a",0, INDEX('General Inputs'!$Q$39:$AM$39,MATCH($A$2,'General Inputs'!$Q$35:$AM$35,0))*$DI21*$DU21) -> 0 | AL21: =IF(AL$12="n/a",0,INDEX('General Inputs'!$Q$39:$AM$39,MATCH($A$2,'General Inputs'!$Q$35:$AM$35,0))*$DJ21) -> 0 | AO21: n/a | AP21: 0 | AQ21: 0 | AR21: =IF(AR$12="n/a",0,SUMPRODUCT($BK21:$CG21,'General Inputs'!$Q$23:$AM$23,'General Inputs'!$Q$37:$AM$37)/(1-Loss_ElectricEnergy)) -> 0 | AS21: =IF(AS$12="n/a",0,SUMPRODUCT($BK21:$CG21,'General Inputs'!$Q$25:$AM$25,'General Inputs'!$Q$37:$AM$37)/(1-Loss_ElectricEnergy)) -> 0 | AT21: =IF(AT$12="n/a",0,SUMPRODUCT($CI21:$DE21,'General Inputs'!$Q$24:$AM$24,'General Inputs'!$Q$37:$AM$37))/(1-Loss_ElectricDemand) -> 0 | AU21: =IF(AU$12="n/a",0,SUMPRODUCT($BK21:$CG21,OFFSET('General Inputs'!$Q$29:$AM$29,MATCH($D21&"_Electric_$/kWh",'General Inputs'!$K$30:$K$31,0),),'General Inputs'!$Q$37:$AM$37) ) -> 0 | AV21: =IF(AV$12="n/a",0, INDEX('General Inputs'!$Q$37:$AM$37,MATCH($A$2,'General Inputs'!$Q$35:$AM$35,0))*$DI21*$DU21) -> 0 | AW21: =IF(AW$12="n/a",0,INDEX('General Inputs'!$Q$37:$AM$37,MATCH($A$2,'General Inputs'!$Q$35:$AM$35,0))*$DJ21) -> 0 | AZ21: n/a | BA21: 0 | BB21: 0 | BC21: =IF(BC$12="n/a",0,SUMPRODUCT($BK21:$CG21,'General Inputs'!$Q$23:$AM$23,'General Inputs'!$Q$40:$AM$40)/(1-Loss_ElectricEnergy)) -> 0 | BD21: =IF(BD$12="n/a",0,SUMPRODUCT($BK21:$CG21,'General Inputs'!$Q$25:$AM$25,'General Inputs'!$Q$40:$AM$40)/(1-Loss_ElectricEnergy)) -> 0 | BE21: =IF(BE$12="n/a",0,SUMPRODUCT($CI21:$DE21,'General Inputs'!$Q$24:$AM$24,'General Inputs'!$Q$40:$AM$40))/(1-Loss_ElectricDemand) -> 0 | BF21: =IF(BF$12="n/a",0,SUMPRODUCT($BK21:$CG21,OFFSET('General Inputs'!$Q$29:$AM$29,MATCH($D21&"_Electric_$/kWh",'General Inputs'!$K$30:$K$31,0),),'General Inputs'!$Q$40:$AM$40) ) -> 0 | BG21: =IF(BG$12="n/a",0, INDEX('General Inputs'!$Q$40:$AM$40,MATCH($A$2,'General Inputs'!$Q$35:$AM$35,0))*$DI21*$DU21) -> 0 | BH21: =IF(BH$12="n/a",0,INDEX('General Inputs'!$Q$40:$AM$40,MATCH($A$2,'General Inputs'!$Q$35:$AM$35,0))*$DJ21) -> 0 | BK21: 0 | BL21: 0 | BM21: 0 | BN21: 0 | BO21: 0 | BP21: 0 | BQ21: 0 | BR21: 0 | BS21: 0 | BT21: 0 | BU21: 0 | BV21: 0 | BW21: 0 | BX21: 0 | BY21: 0 | BZ21: 0 | CA21: 0 | CB21: 0 | CC21: 0 | CD21: 0 | CE21: 0 | CF21: 0 | CG21: 0 | CI21: 0 | CJ21: 0 | CK21: 0 | CL21: 0 | CM21: 0 | CN21: 0 | CO21: 0 | CP21: 0 | CQ21: 0 | CR21: 0 | CS21: 0 | CT21: 0 | CU21: 0 | CV21: 0 | CW21: 0 | CX21: 0 | CY21: 0 | CZ21: 0 | DA21: 0 | DB21: 0 | DC21: 0 | DD21: 0 | DE21: 0 | DG21: =INDEX('Measure Inputs'!$I:$I,MATCH($B21,'Measure Inputs'!$B:$B,0)) -> 0 | DH21: =INDEX('Measure Inputs'!N:N,MATCH($B21,'Measure Inputs'!$B:$B,0)) -> 15 | DI21: =INDEX('Measure Inputs'!M:M,MATCH($B21,'Measure Inputs'!$B:$B,0))*$DG21 -> 0 | DJ21: =INDEX('Measure Inputs'!$L:$L,MATCH($B21,'Measure Inputs'!$B:$B,0))*$DG21 -> 0 | DL21: 0 | DM21: 0 | DO21: 0 | DP21: 0 | DR21: =INDEX('Measure Inputs'!$J:$J,MATCH($B21,'Measure Inputs'!$B:$B,0))*$DG21 -> 0 | DS21: =INDEX('Measure Inputs'!$K:$K,MATCH($B21,'Measure Inputs'!$B:$B,0))*$DG21 -> 0 | DU21: =INDEX('Measure Inputs'!O:O,MATCH($B21,'Measure Inputs'!$B:$B,0)) -> 1
B22: Residential_Whole House Efficiency_Air Sealing (Gas Heat) | C22: ='Measure Inputs'!D14 -> 9 | D22: =INDEX('Measure Inputs'!E:E,MATCH($C22,'Measure Inputs'!$D:$D,0)) -> Residential | E22: =INDEX('Measure Inputs'!F:F,MATCH($C22,'Measure Inputs'!$D:$D,0)) -> Whole House Efficiency | F22: =INDEX('Measure Inputs'!G:G,MATCH($C22,'Measure Inputs'!$D:$D,0)) -> Air Sealing (Gas Heat) | H22: n/a | I22: 0 | J22: 0 | K22: =IF(K$12="n/a",0,SUMPRODUCT($BK22:$CG22,'General Inputs'!$Q$23:$AM$23,'General Inputs'!$Q$38:$AM$38)/(1-Loss_ElectricEnergy)) -> 0 | L22: =IF(L$12="n/a",0,SUMPRODUCT($BK22:$CG22,'General Inputs'!$Q$25:$AM$25,'General Inputs'!$Q$38:$AM$38)/(1-Loss_ElectricEnergy)) -> 0 | M22: =IF(M$12="n/a",0,SUMPRODUCT($CI22:$DE22,'General Inputs'!$Q$24:$AM$24,'General Inputs'!$Q$38:$AM$38))/(1-Loss_ElectricDemand) -> 0 | N22: =IF(N$12="n/a",0,SUMPRODUCT($BK22:$CG22,OFFSET('General Inputs'!$Q$29:$AM$29,MATCH($D22&"_Electric_$/kWh",'General Inputs'!$K$30:$K$31,0),),'General Inputs'!$Q$38:$AM$38) ) -> 0 | O22: =IF(O$12="n/a",0, INDEX('General Inputs'!$Q$38:$AM$38,MATCH($A$2,'General Inputs'!$Q$35:$AM$35,0))*$DI22*$DU22) -> 0 | P22: =IF(P$12="n/a",0,INDEX('General Inputs'!$Q$38:$AM$38,MATCH($A$2,'General Inputs'!$Q$35:$AM$35,0))*$DJ22) -> 0 | S22: n/a | T22: 0 | U22: 0 | V22: =IF(V$12="n/a",0,SUMPRODUCT($BK22:$CG22,'General Inputs'!$Q$23:$AM$23,'General Inputs'!$Q$36:$AM$36)/(1-Loss_ElectricEnergy)) -> 0 | W22: =IF(W$12="n/a",0,SUMPRODUCT($BK22:$CG22,'General Inputs'!$Q$25:$AM$25,'General Inputs'!$Q$36:$AM$36)/(1-Loss_ElectricEnergy)) -> 0 | X22: =IF(X$12="n/a",0,SUMPRODUCT($CI22:$DE22,'General Inputs'!$Q$24:$AM$24,'General Inputs'!$Q$36:$AM$36))/(1-Loss_ElectricDemand) -> 0 | Y22: =IF(Y$12="n/a",0,SUMPRODUCT($BK22:$CG22,OFFSET('General Inputs'!$Q$29:$AM$29,MATCH($D22&"_Electric_$/kWh",'General Inputs'!$K$30:$K$31,0),),'General Inputs'!$Q$36:$AM$36) ) -> 0 | Z22: =IF(Z$12="n/a",0, (INDEX('General Inputs'!$Q$36:$AM$36,MATCH($A$2,'General Inputs'!$Q$35:$AM$35,0))*$DI22+ IFERROR((INDEX('General Inputs'!$Q$36:$AM$36,MATCH($A$2+#REF!,'General Inputs'!$Q$35:$AM$35,0))*-#REF!),0)) *$DU22) -> 0 | AA22: =IF(AA$12="n/a",0,INDEX('General Inputs'!$Q$36:$AM$36,MATCH($A$2,'General Inputs'!$Q$35:$AM$35,0))*$DJ22) -> 0 | AD22: n/a | AE22: 0 | AF22: 0 | AG22: =IF(AG$12="n/a",0,SUMPRODUCT($BK22:$CG22,'General Inputs'!$Q$23:$AM$23,'General Inputs'!$Q$39:$AM$39)/(1-Loss_ElectricEnergy)) -> 0 | AH22: =IF(AH$12="n/a",0,SUMPRODUCT($BK22:$CG22,'General Inputs'!$Q$25:$AM$25,'General Inputs'!$Q$39:$AM$39)/(1-Loss_ElectricEnergy)) -> 0 | AI22: =IF(AI$12="n/a",0,SUMPRODUCT($CI22:$DE22,'General Inputs'!$Q$24:$AM$24,'General Inputs'!$Q$39:$AM$39))/(1-Loss_ElectricDemand) -> 0 | AJ22: =IF(AJ$12="n/a",0,SUMPRODUCT($BK22:$CG22,OFFSET('General Inputs'!$Q$29:$AM$29,MATCH($D22&"_Electric_$/kWh",'General Inputs'!$K$30:$K$31,0),),'General Inputs'!$Q$39:$AM$39) ) -> 0 | AK22: =IF(AK$12="n/a",0, INDEX('General Inputs'!$Q$39:$AM$39,MATCH($A$2,'General Inputs'!$Q$35:$AM$35,0))*$DI22*$DU22) -> 0 | AL22: =IF(AL$12="n/a",0,INDEX('General Inputs'!$Q$39:$AM$39,MATCH($A$2,'General Inputs'!$Q$35:$AM$35,0))*$DJ22) -> 0 | AO22: n/a | AP22: 0 | AQ22: 0 | AR22: =IF(AR$12="n/a",0,SUMPRODUCT($BK22:$CG22,'General Inputs'!$Q$23:$AM$23,'General Inputs'!$Q$37:$AM$37)/(1-Loss_ElectricEnergy)) -> 0 | AS22: =IF(AS$12="n/a",0,SUMPRODUCT($BK22:$CG22,'General Inputs'!$Q$25:$AM$25,'General Inputs'!$Q$37:$AM$37)/(1-Loss_ElectricEnergy)) -> 0 | AT22: =IF(AT$12="n/a",0,SUMPRODUCT($CI22:$DE22,'General Inputs'!$Q$24:$AM$24,'General Inputs'!$Q$37:$AM$37))/(1-Loss_ElectricDemand) -> 0 | AU22: =IF(AU$12="n/a",0,SUMPRODUCT($BK22:$CG22,OFFSET('General Inputs'!$Q$29:$AM$29,MATCH($D22&"_Electric_$/kWh",'General Inputs'!$K$30:$K$31,0),),'General Inputs'!$Q$37:$AM$37) ) -> 0 | AV22: =IF(AV$12="n/a",0, INDEX('General Inputs'!$Q$37:$AM$37,MATCH($A$2,'General Inputs'!$Q$35:$AM$35,0))*$DI22*$DU22) -> 0 | AW22: =IF(AW$12="n/a",0,INDEX('General Inputs'!$Q$37:$AM$37,MATCH($A$2,'General Inputs'!$Q$35:$AM$35,0))*$DJ22) -> 0 | AZ22: n/a | BA22: 0 | BB22: 0 | BC22: =IF(BC$12="n/a",0,SUMPRODUCT($BK22:$CG22,'General Inputs'!$Q$23:$AM$23,'General Inputs'!$Q$40:$AM$40)/(1-Loss_ElectricEnergy)) -> 0 | BD22: =IF(BD$12="n/a",0,SUMPRODUCT($BK22:$CG22,'General Inputs'!$Q$25:$AM$25,'General Inputs'!$Q$40:$AM$40)/(1-Loss_ElectricEnergy)) -> 0 | BE22: =IF(BE$12="n/a",0,SUMPRODUCT($CI22:$DE22,'General Inputs'!$Q$24:$AM$24,'General Inputs'!$Q$40:$AM$40))/(1-Loss_ElectricDemand) -> 0 | BF22: =IF(BF$12="n/a",0,SUMPRODUCT($BK22:$CG22,OFFSET('General Inputs'!$Q$29:$AM$29,MATCH($D22&"_Electric_$/kWh",'General Inputs'!$K$30:$K$31,0),),'General Inputs'!$Q$40:$AM$40) ) -> 0 | BG22: =IF(BG$12="n/a",0, INDEX('General Inputs'!$Q$40:$AM$40,MATCH($A$2,'General Inputs'!$Q$35:$AM$35,0))*$DI22*$DU22) -> 0 | BH22: =IF(BH$12="n/a",0,INDEX('General Inputs'!$Q$40:$AM$40,MATCH($A$2,'General Inputs'!$Q$35:$AM$35,0))*$DJ22) -> 0 | BK22: 0 | BL22: 0 | BM22: 0 | BN22: 0 | BO22: 0 | BP22: 0 | BQ22: 0 | BR22: 0 | BS22: 0 | BT22: 0 | BU22: 0 | BV22: 0 | BW22: 0 | BX22: 0 | BY22: 0 | BZ22: 0 | CA22: 0 | CB22: 0 | CC22: 0 | CD22: 0 | CE22: 0 | CF22: 0 | CG22: 0 | CI22: 0 | CJ22: 0 | CK22: 0 | CL22: 0 | CM22: 0 | CN22: 0 | CO22: 0 | CP22: 0 | CQ22: 0 | CR22: 0 | CS22: 0 | CT22: 0 | CU22: 0 | CV22: 0 | CW22: 0 | CX22: 0 | CY22: 0 | CZ22: 0 | DA22: 0 | DB22: 0 | DC22: 0 | DD22: 0 | DE22: 0 | DG22: =INDEX('Measure Inputs'!$I:$I,MATCH($B22,'Measure Inputs'!$B:$B,0)) -> 0 | DH22: =INDEX('Measure Inputs'!N:N,MATCH($B22,'Measure Inputs'!$B:$B,0)) -> 15 | DI22: =INDEX('Measure Inputs'!M:M,MATCH($B22,'Measure Inputs'!$B:$B,0))*$DG22 -> 0 | DJ22: =INDEX('Measure Inputs'!$L:$L,MATCH($B22,'Measure Inputs'!$B:$B,0))*$DG22 -> 0 | DL22: 0 | DM22: 0 | DO22: 0 | DP22: 0 | DR22: =INDEX('Measure Inputs'!$J:$J,MATCH($B22,'Measure Inputs'!$B:$B,0))*$DG22 -> 0 | DS22: =INDEX('Measure Inputs'!$K:$K,MATCH($B22,'Measure Inputs'!$B:$B,0))*$DG22 -> 0 | DU22: =INDEX('Measure Inputs'!O:O,MATCH($B22,'Measure Inputs'!$B:$B,0)) -> 1
B23: Residential_Whole House Efficiency_Hot Water Pipe Insulation | C23: ='Measure Inputs'!D15 -> 10 | D23: =INDEX('Measure Inputs'!E:E,MATCH($C23,'Measure Inputs'!$D:$D,0)) -> Residential | E23: =INDEX('Measure Inputs'!F:F,MATCH($C23,'Measure Inputs'!$D:$D,0)) -> Whole House Efficiency | F23: =INDEX('Measure Inputs'!G:G,MATCH($C23,'Measure Inputs'!$D:$D,0)) -> Hot Water Pipe Insulation | H23: n/a | I23: 0 | J23: 0 | K23: =IF(K$12="n/a",0,SUMPRODUCT($BK23:$CG23,'General Inputs'!$Q$23:$AM$23,'General Inputs'!$Q$38:$AM$38)/(1-Loss_ElectricEnergy)) -> 0 | L23: =IF(L$12="n/a",0,SUMPRODUCT($BK23:$CG23,'General Inputs'!$Q$25:$AM$25,'General Inputs'!$Q$38:$AM$38)/(1-Loss_ElectricEnergy)) -> 0 | M23: =IF(M$12="n/a",0,SUMPRODUCT($CI23:$DE23,'General Inputs'!$Q$24:$AM$24,'General Inputs'!$Q$38:$AM$38))/(1-Loss_ElectricDemand) -> 0 | N23: =IF(N$12="n/a",0,SUMPRODUCT($BK23:$CG23,OFFSET('General Inputs'!$Q$29:$AM$29,MATCH($D23&"_Electric_$/kWh",'General Inputs'!$K$30:$K$31,0),),'General Inputs'!$Q$38:$AM$38) ) -> 0 | O23: =IF(O$12="n/a",0, INDEX('General Inputs'!$Q$38:$AM$38,MATCH($A$2,'General Inputs'!$Q$35:$AM$35,0))*$DI23*$DU23) -> 0 | P23: =IF(P$12="n/a",0,INDEX('General Inputs'!$Q$38:$AM$38,MATCH($A$2,'General Inputs'!$Q$35:$AM$35,0))*$DJ23) -> 0 | S23: n/a | T23: 0 | U23: 0 | V23: =IF(V$12="n/a",0,SUMPRODUCT($BK23:$CG23,'General Inputs'!$Q$23:$AM$23,'General Inputs'!$Q$36:$AM$36)/(1-Loss_ElectricEnergy)) -> 0 | W23: =IF(W$12="n/a",0,SUMPRODUCT($BK23:$CG23,'General Inputs'!$Q$25:$AM$25,'General Inputs'!$Q$36:$AM$36)/(1-Loss_ElectricEnergy)) -> 0 | X23: =IF(X$12="n/a",0,SUMPRODUCT($CI23:$DE23,'General Inputs'!$Q$24:$AM$24,'General Inputs'!$Q$36:$AM$36))/(1-Loss_ElectricDemand) -> 0 | Y23: =IF(Y$12="n/a",0,SUMPRODUCT($BK23:$CG23,OFFSET('General Inputs'!$Q$29:$AM$29,MATCH($D23&"_Electric_$/kWh",'General Inputs'!$K$30:$K$31,0),),'General Inputs'!$Q$36:$AM$36) ) -> 0 | Z23: =IF(Z$12="n/a",0, (INDEX('General Inputs'!$Q$36:$AM$36,MATCH($A$2,'General Inputs'!$Q$35:$AM$35,0))*$DI23+ IFERROR((INDEX('General Inputs'!$Q$36:$AM$36,MATCH($A$2+#REF!,'General Inputs'!$Q$35:$AM$35,0))*-#REF!),0)) *$DU23) -> 0 | AA23: =IF(AA$12="n/a",0,INDEX('General Inputs'!$Q$36:$AM$36,MATCH($A$2,'General Inputs'!$Q$35:$AM$35,0))*$DJ23) -> 0 | AD23: n/a | AE23: 0 | AF23: 0 | AG23: =IF(AG$12="n/a",0,SUMPRODUCT($BK23:$CG23,'General Inputs'!$Q$23:$AM$23,'General Inputs'!$Q$39:$AM$39)/(1-Loss_ElectricEnergy)) -> 0 | AH23: =IF(AH$12="n/a",0,SUMPRODUCT($BK23:$CG23,'General Inputs'!$Q$25:$AM$25,'General Inputs'!$Q$39:$AM$39)/(1-Loss_ElectricEnergy)) -> 0 | AI23: =IF(AI$12="n/a",0,SUMPRODUCT($CI23:$DE23,'General Inputs'!$Q$24:$AM$24,'General Inputs'!$Q$39:$AM$39))/(1-Loss_ElectricDemand) -> 0 | AJ23: =IF(AJ$12="n/a",0,SUMPRODUCT($BK23:$CG23,OFFSET('General Inputs'!$Q$29:$AM$29,MATCH($D23&"_Electric_$/kWh",'General Inputs'!$K$30:$K$31,0),),'General Inputs'!$Q$39:$AM$39) ) -> 0 | AK23: =IF(AK$12="n/a",0, INDEX('General Inputs'!$Q$39:$AM$39,MATCH($A$2,'General Inputs'!$Q$35:$AM$35,0))*$DI23*$DU23) -> 0 | AL23: =IF(AL$12="n/a",0,INDEX('General Inputs'!$Q$39:$AM$39,MATCH($A$2,'General Inputs'!$Q$35:$AM$35,0))*$DJ23) -> 0 | AO23: n/a | AP23: 0 | AQ23: 0 | AR23: =IF(AR$12="n/a",0,SUMPRODUCT($BK23:$CG23,'General Inputs'!$Q$23:$AM$23,'General Inputs'!$Q$37:$AM$37)/(1-Loss_ElectricEnergy)) -> 0 | AS23: =IF(AS$12="n/a",0,SUMPRODUCT($BK23:$CG23,'General Inputs'!$Q$25:$AM$25,'General Inputs'!$Q$37:$AM$37)/(1-Loss_ElectricEnergy)) -> 0 | AT23: =IF(AT$12="n/a",0,SUMPRODUCT($CI23:$DE23,'General Inputs'!$Q$24:$AM$24,'General Inputs'!$Q$37:$AM$37))/(1-Loss_ElectricDemand) -> 0 | AU23: =IF(AU$12="n/a",0,SUMPRODUCT($BK23:$CG23,OFFSET('General Inputs'!$Q$29:$AM$29,MATCH($D23&"_Electric_$/kWh",'General Inputs'!$K$30:$K$31,0),),'General Inputs'!$Q$37:$AM$37) ) -> 0 | AV23: =IF(AV$12="n/a",0, INDEX('General Inputs'!$Q$37:$AM$37,MATCH($A$2,'General Inputs'!$Q$35:$AM$35,0))*$DI23*$DU23) -> 0 | AW23: =IF(AW$12="n/a",0,INDEX('General Inputs'!$Q$37:$AM$37,MATCH($A$2,'General Inputs'!$Q$35:$AM$35,0))*$DJ23) -> 0 | AZ23: n/a | BA23: 0 | BB23: 0 | BC23: =IF(BC$12="n/a",0,SUMPRODUCT($BK23:$CG23,'General Inputs'!$Q$23:$AM$23,'General Inputs'!$Q$40:$AM$40)/(1-Loss_ElectricEnergy)) -> 0 | BD23: =IF(BD$12="n/a",0,SUMPRODUCT($BK23:$CG23,'General Inputs'!$Q$25:$AM$25,'General Inputs'!$Q$40:$AM$40)/(1-Loss_ElectricEnergy)) -> 0 | BE23: =IF(BE$12="n/a",0,SUMPRODUCT($CI23:$DE23,'General Inputs'!$Q$24:$AM$24,'General Inputs'!$Q$40:$AM$40))/(1-Loss_ElectricDemand) -> 0 | BF23: =IF(BF$12="n/a",0,SUMPRODUCT($BK23:$CG23,OFFSET('General Inputs'!$Q$29:$AM$29,MATCH($D23&"_Electric_$/kWh",'General Inputs'!$K$30:$K$31,0),),'General Inputs'!$Q$40:$AM$40) ) -> 0 | BG23: =IF(BG$12="n/a",0, INDEX('General Inputs'!$Q$40:$AM$40,MATCH($A$2,'General Inputs'!$Q$35:$AM$35,0))*$DI23*$DU23) -> 0 | BH23: =IF(BH$12="n/a",0,INDEX('General Inputs'!$Q$40:$AM$40,MATCH($A$2,'General Inputs'!$Q$35:$AM$35,0))*$DJ23) -> 0 | BK23: 0 | BL23: 0 | BM23: 0 | BN23: 0 | BO23: 0 | BP23: 0 | BQ23: 0 | BR23: 0 | BS23: 0 | BT23: 0 | BU23: 0 | BV23: 0 | BW23: 0 | BX23: 0 | BY23: 0 | BZ23: 0 | CA23: 0 | CB23: 0 | CC23: 0 | CD23: 0 | CE23: 0 | CF23: 0 | CG23: 0 | CI23: 0 | CJ23: 0 | CK23: 0 | CL23: 0 | CM23: 0 | CN23: 0 | CO23: 0 | CP23: 0 | CQ23: 0 | CR23: 0 | CS23: 0 | CT23: 0 | CU23: 0 | CV23: 0 | CW23: 0 | CX23: 0 | CY23: 0 | CZ23: 0 | DA23: 0 | DB23: 0 | DC23: 0 | DD23: 0 | DE23: 0 | DG23: =INDEX('Measure Inputs'!$I:$I,MATCH($B23,'Measure Inputs'!$B:$B,0)) -> 0 | DH23: =INDEX('Measure Inputs'!N:N,MATCH($B23,'Measure Inputs'!$B:$B,0)) -> 15 | DI23: =INDEX('Measure Inputs'!M:M,MATCH($B23,'Measure Inputs'!$B:$B,0))*$DG23 -> 0 | DJ23: =INDEX('Measure Inputs'!$L:$L,MATCH($B23,'Measure Inputs'!$B:$B,0))*$DG23 -> 0 | DL23: 0 | DM23: 0 | DO23: 0 | DP23: 0 | DR23: =INDEX('Measure Inputs'!$J:$J,MATCH($B23,'Measure Inputs'!$B:$B,0))*$DG23 -> 0 | DS23: =INDEX('Measure Inputs'!$K:$K,MATCH($B23,'Measure Inputs'!$B:$B,0))*$DG23 -> 0 | DU23: =INDEX('Measure Inputs'!O:O,MATCH($B23,'Measure Inputs'!$B:$B,0)) -> 1
B24: Residential_Whole House Efficiency_Water Heater Tank Wrap | C24: ='Measure Inputs'!D16 -> 11 | D24: =INDEX('Measure Inputs'!E:E,MATCH($C24,'Measure Inputs'!$D:$D,0)) -> Residential | E24: =INDEX('Measure Inputs'!F:F,MATCH($C24,'Measure Inputs'!$D:$D,0)) -> Whole House Efficiency | F24: =INDEX('Measure Inputs'!G:G,MATCH($C24,'Measure Inputs'!$D:$D,0)) -> Water Heater Tank Wrap | H24: n/a | I24: 0 | J24: 0 | K24: =IF(K$12="n/a",0,SUMPRODUCT($BK24:$CG24,'General Inputs'!$Q$23:$AM$23,'General Inputs'!$Q$38:$AM$38)/(1-Loss_ElectricEnergy)) -> 0 | L24: =IF(L$12="n/a",0,SUMPRODUCT($BK24:$CG24,'General Inputs'!$Q$25:$AM$25,'General Inputs'!$Q$38:$AM$38)/(1-Loss_ElectricEnergy)) -> 0 | M24: =IF(M$12="n/a",0,SUMPRODUCT($CI24:$DE24,'General Inputs'!$Q$24:$AM$24,'General Inputs'!$Q$38:$AM$38))/(1-Loss_ElectricDemand) -> 0 | N24: =IF(N$12="n/a",0,SUMPRODUCT($BK24:$CG24,OFFSET('General Inputs'!$Q$29:$AM$29,MATCH($D24&"_Electric_$/kWh",'General Inputs'!$K$30:$K$31,0),),'General Inputs'!$Q$38:$AM$38) ) -> 0 | O24: =IF(O$12="n/a",0, INDEX('General Inputs'!$Q$38:$AM$38,MATCH($A$2,'General Inputs'!$Q$35:$AM$35,0))*$DI24*$DU24) -> 0 | P24: =IF(P$12="n/a",0,INDEX('General Inputs'!$Q$38:$AM$38,MATCH($A$2,'General Inputs'!$Q$35:$AM$35,0))*$DJ24) -> 0 | S24: n/a | T24: 0 | U24: 0 | V24: =IF(V$12="n/a",0,SUMPRODUCT($BK24:$CG24,'General Inputs'!$Q$23:$AM$23,'General Inputs'!$Q$36:$AM$36)/(1-Loss_ElectricEnergy)) -> 0 | W24: =IF(W$12="n/a",0,SUMPRODUCT($BK24:$CG24,'General Inputs'!$Q$25:$AM$25,'General Inputs'!$Q$36:$AM$36)/(1-Loss_ElectricEnergy)) -> 0 | X24: =IF(X$12="n/a",0,SUMPRODUCT($CI24:$DE24,'General Inputs'!$Q$24:$AM$24,'General Inputs'!$Q$36:$AM$36))/(1-Loss_ElectricDemand) -> 0 | Y24: =IF(Y$12="n/a",0,SUMPRODUCT($BK24:$CG24,OFFSET('General Inputs'!$Q$29:$AM$29,MATCH($D24&"_Electric_$/kWh",'General Inputs'!$K$30:$K$31,0),),'General Inputs'!$Q$36:$AM$36) ) -> 0 | Z24: =IF(Z$12="n/a",0, (INDEX('General Inputs'!$Q$36:$AM$36,MATCH($A$2,'General Inputs'!$Q$35:$AM$35,0))*$DI24+ IFERROR((INDEX('General Inputs'!$Q$36:$AM$36,MATCH($A$2+#REF!,'General Inputs'!$Q$35:$AM$35,0))*-#REF!),0)) *$DU24) -> 0 | AA24: =IF(AA$12="n/a",0,INDEX('General Inputs'!$Q$36:$AM$36,MATCH($A$2,'General Inputs'!$Q$35:$AM$35,0))*$DJ24) -> 0 | AD24: n/a | AE24: 0 | AF24: 0 | AG24: =IF(AG$12="n/a",0,SUMPRODUCT($BK24:$CG24,'General Inputs'!$Q$23:$AM$23,'General Inputs'!$Q$39:$AM$39)/(1-Loss_ElectricEnergy)) -> 0 | AH24: =IF(AH$12="n/a",0,SUMPRODUCT($BK24:$CG24,'General Inputs'!$Q$25:$AM$25,'General Inputs'!$Q$39:$AM$39)/(1-Loss_ElectricEnergy)) -> 0 | AI24: =IF(AI$12="n/a",0,SUMPRODUCT($CI24:$DE24,'General Inputs'!$Q$24:$AM$24,'General Inputs'!$Q$39:$AM$39))/(1-Loss_ElectricDemand) -> 0 | AJ24: =IF(AJ$12="n/a",0,SUMPRODUCT($BK24:$CG24,OFFSET('General Inputs'!$Q$29:$AM$29,MATCH($D24&"_Electric_$/kWh",'General Inputs'!$K$30:$K$31,0),),'General Inputs'!$Q$39:$AM$39) ) -> 0 | AK24: =IF(AK$12="n/a",0, INDEX('General Inputs'!$Q$39:$AM$39,MATCH($A$2,'General Inputs'!$Q$35:$AM$35,0))*$DI24*$DU24) -> 0 | AL24: =IF(AL$12="n/a",0,INDEX('General Inputs'!$Q$39:$AM$39,MATCH($A$2,'General Inputs'!$Q$35:$AM$35,0))*$DJ24) -> 0 | AO24: n/a | AP24: 0 | AQ24: 0 | AR24: =IF(AR$12="n/a",0,SUMPRODUCT($BK24:$CG24,'General Inputs'!$Q$23:$AM$23,'General Inputs'!$Q$37:$AM$37)/(1-Loss_ElectricEnergy)) -> 0 | AS24: =IF(AS$12="n/a",0,SUMPRODUCT($BK24:$CG24,'General Inputs'!$Q$25:$AM$25,'General Inputs'!$Q$37:$AM$37)/(1-Loss_ElectricEnergy)) -> 0 | AT24: =IF(AT$12="n/a",0,SUMPRODUCT($CI24:$DE24,'General Inputs'!$Q$24:$AM$24,'General Inputs'!$Q$37:$AM$37))/(1-Loss_ElectricDemand) -> 0 | AU24: =IF(AU$12="n/a",0,SUMPRODUCT($BK24:$CG24,OFFSET('General Inputs'!$Q$29:$AM$29,MATCH($D24&"_Electric_$/kWh",'General Inputs'!$K$30:$K$31,0),),'General Inputs'!$Q$37:$AM$37) ) -> 0 | AV24: =IF(AV$12="n/a",0, INDEX('General Inputs'!$Q$37:$AM$37,MATCH($A$2,'General Inputs'!$Q$35:$AM$35,0))*$DI24*$DU24) -> 0 | AW24: =IF(AW$12="n/a",0,INDEX('General Inputs'!$Q$37:$AM$37,MATCH($A$2,'General Inputs'!$Q$35:$AM$35,0))*$DJ24) -> 0 | AZ24: n/a | BA24: 0 | BB24: 0 | BC24: =IF(BC$12="n/a",0,SUMPRODUCT($BK24:$CG24,'General Inputs'!$Q$23:$AM$23,'General Inputs'!$Q$40:$AM$40)/(1-Loss_ElectricEnergy)) -> 0 | BD24: =IF(BD$12="n/a",0,SUMPRODUCT($BK24:$CG24,'General Inputs'!$Q$25:$AM$25,'General Inputs'!$Q$40:$AM$40)/(1-Loss_ElectricEnergy)) -> 0 | BE24: =IF(BE$12="n/a",0,SUMPRODUCT($CI24:$DE24,'General Inputs'!$Q$24:$AM$24,'General Inputs'!$Q$40:$AM$40))/(1-Loss_ElectricDemand) -> 0 | BF24: =IF(BF$12="n/a",0,SUMPRODUCT($BK24:$CG24,OFFSET('General Inputs'!$Q$29:$AM$29,MATCH($D24&"_Electric_$/kWh",'General Inputs'!$K$30:$K$31,0),),'General Inputs'!$Q$40:$AM$40) ) -> 0 | BG24: =IF(BG$12="n/a",0, INDEX('General Inputs'!$Q$40:$AM$40,MATCH($A$2,'General Inputs'!$Q$35:$AM$35,0))*$DI24*$DU24) -> 0 | BH24: =IF(BH$12="n/a",0,INDEX('General Inputs'!$Q$40:$AM$40,MATCH($A$2,'General Inputs'!$Q$35:$AM$35,0))*$DJ24) -> 0 | BK24: 0 | BL24: 0 | BM24: 0 | BN24: 0 | BO24: 0 | BP24: 0 | BQ24: 0 | BR24: 0 | BS24: 0 | BT24: 0 | BU24: 0 | BV24: 0 | BW24: 0 | BX24: 0 | BY24: 0 | BZ24: 0 | CA24: 0 | CB24: 0 | CC24: 0 | CD24: 0 | CE24: 0 | CF24: 0 | CG24: 0 | CI24: 0 | CJ24: 0 | CK24: 0 | CL24: 0 | CM24: 0 | CN24: 0 | CO24: 0 | CP24: 0 | CQ24: 0 | CR24: 0 | CS24: 0 | CT24: 0 | CU24: 0 | CV24: 0 | CW24: 0 | CX24: 0 | CY24: 0 | CZ24: 0 | DA24: 0 | DB24: 0 | DC24: 0 | DD24: 0 | DE24: 0 | DG24: =INDEX('Measure Inputs'!$I:$I,MATCH($B24,'Measure Inputs'!$B:$B,0)) -> 0 | DH24: =INDEX('Measure Inputs'!N:N,MATCH($B24,'Measure Inputs'!$B:$B,0)) -> 5 | DI24: =INDEX('Measure Inputs'!M:M,MATCH($B24,'Measure Inputs'!$B:$B,0))*$DG24 -> 0 | DJ24: =INDEX('Measure Inputs'!$L:$L,MATCH($B24,'Measure Inputs'!$B:$B,0))*$DG24 -> 0 | DL24: 0 | DM24: 0 | DO24: 0 | DP24: 0 | DR24: =INDEX('Measure Inputs'!$J:$J,MATCH($B24,'Measure Inputs'!$B:$B,0))*$DG24 -> 0 | DS24: =INDEX('Measure Inputs'!$K:$K,MATCH($B24,'Measure Inputs'!$B:$B,0))*$DG24 -> 0 | DU24: =INDEX('Measure Inputs'!O:O,MATCH($B24,'Measure Inputs'!$B:$B,0)) -> 1
B25: Residential_Whole House Efficiency_LED | C25: ='Measure Inputs'!D17 -> 12 | D25: =INDEX('Measure Inputs'!E:E,MATCH($C25,'Measure Inputs'!$D:$D,0)) -> Residential | E25: =INDEX('Measure Inputs'!F:F,MATCH($C25,'Measure Inputs'!$D:$D,0)) -> Whole House Efficiency | F25: =INDEX('Measure Inputs'!G:G,MATCH($C25,'Measure Inputs'!$D:$D,0)) -> LED | H25: n/a | I25: 0 | J25: 0 | K25: =IF(K$12="n/a",0,SUMPRODUCT($BK25:$CG25,'General Inputs'!$Q$23:$AM$23,'General Inputs'!$Q$38:$AM$38)/(1-Loss_ElectricEnergy)) -> 0 | L25: =IF(L$12="n/a",0,SUMPRODUCT($BK25:$CG25,'General Inputs'!$Q$25:$AM$25,'General Inputs'!$Q$38:$AM$38)/(1-Loss_ElectricEnergy)) -> 0 | M25: =IF(M$12="n/a",0,SUMPRODUCT($CI25:$DE25,'General Inputs'!$Q$24:$AM$24,'General Inputs'!$Q$38:$AM$38))/(1-Loss_ElectricDemand) -> 0 | N25: =IF(N$12="n/a",0,SUMPRODUCT($BK25:$CG25,OFFSET('General Inputs'!$Q$29:$AM$29,MATCH($D25&"_Electric_$/kWh",'General Inputs'!$K$30:$K$31,0),),'General Inputs'!$Q$38:$AM$38) ) -> 0 | O25: =IF(O$12="n/a",0, INDEX('General Inputs'!$Q$38:$AM$38,MATCH($A$2,'General Inputs'!$Q$35:$AM$35,0))*$DI25*$DU25) -> 0 | P25: =IF(P$12="n/a",0,INDEX('General Inputs'!$Q$38:$AM$38,MATCH($A$2,'General Inputs'!$Q$35:$AM$35,0))*$DJ25) -> 0 | S25: n/a | T25: 0 | U25: 0 | V25: =IF(V$12="n/a",0,SUMPRODUCT($BK25:$CG25,'General Inputs'!$Q$23:$AM$23,'General Inputs'!$Q$36:$AM$36)/(1-Loss_ElectricEnergy)) -> 0 | W25: =IF(W$12="n/a",0,SUMPRODUCT($BK25:$CG25,'General Inputs'!$Q$25:$AM$25,'General Inputs'!$Q$36:$AM$36)/(1-Loss_ElectricEnergy)) -> 0 | X25: =IF(X$12="n/a",0,SUMPRODUCT($CI25:$DE25,'General Inputs'!$Q$24:$AM$24,'General Inputs'!$Q$36:$AM$36))/(1-Loss_ElectricDemand) -> 0 | Y25: =IF(Y$12="n/a",0,SUMPRODUCT($BK25:$CG25,OFFSET('General Inputs'!$Q$29:$AM$29,MATCH($D25&"_Electric_$/kWh",'General Inputs'!$K$30:$K$31,0),),'General Inputs'!$Q$36:$AM$36) ) -> 0 | Z25: =IF(Z$12="n/a",0, (INDEX('General Inputs'!$Q$36:$AM$36,MATCH($A$2,'General Inputs'!$Q$35:$AM$35,0))*$DI25+ IFERROR((INDEX('General Inputs'!$Q$36:$AM$36,MATCH($A$2+#REF!,'General Inputs'!$Q$35:$AM$35,0))*-#REF!),0)) *$DU25) -> 0 | AA25: =IF(AA$12="n/a",0,INDEX('General Inputs'!$Q$36:$AM$36,MATCH($A$2,'General Inputs'!$Q$35:$AM$35,0))*$DJ25) -> 0 | AD25: n/a | AE25: 0 | AF25: 0 | AG25: =IF(AG$12="n/a",0,SUMPRODUCT($BK25:$CG25,'General Inputs'!$Q$23:$AM$23,'General Inputs'!$Q$39:$AM$39)/(1-Loss_ElectricEnergy)) -> 0 | AH25: =IF(AH$12="n/a",0,SUMPRODUCT($BK25:$CG25,'General Inputs'!$Q$25:$AM$25,'General Inputs'!$Q$39:$AM$39)/(1-Loss_ElectricEnergy)) -> 0 | AI25: =IF(AI$12="n/a",0,SUMPRODUCT($CI25:$DE25,'General Inputs'!$Q$24:$AM$24,'General Inputs'!$Q$39:$AM$39))/(1-Loss_ElectricDemand) -> 0 | AJ25: =IF(AJ$12="n/a",0,SUMPRODUCT($BK25:$CG25,OFFSET('General Inputs'!$Q$29:$AM$29,MATCH($D25&"_Electric_$/kWh",'General Inputs'!$K$30:$K$31,0),),'General Inputs'!$Q$39:$AM$39) ) -> 0 | AK25: =IF(AK$12="n/a",0, INDEX('General Inputs'!$Q$39:$AM$39,MATCH($A$2,'General Inputs'!$Q$35:$AM$35,0))*$DI25*$DU25) -> 0 | AL25: =IF(AL$12="n/a",0,INDEX('General Inputs'!$Q$39:$AM$39,MATCH($A$2,'General Inputs'!$Q$35:$AM$35,0))*$DJ25) -> 0 | AO25: n/a | AP25: 0 | AQ25: 0 | AR25: =IF(AR$12="n/a",0,SUMPRODUCT($BK25:$CG25,'General Inputs'!$Q$23:$AM$23,'General Inputs'!$Q$37:$AM$37)/(1-Loss_ElectricEnergy)) -> 0 | AS25: =IF(AS$12="n/a",0,SUMPRODUCT($BK25:$CG25,'General Inputs'!$Q$25:$AM$25,'General Inputs'!$Q$37:$AM$37)/(1-Loss_ElectricEnergy)) -> 0 | AT25: =IF(AT$12="n/a",0,SUMPRODUCT($CI25:$DE25,'General Inputs'!$Q$24:$AM$24,'General Inputs'!$Q$37:$AM$37))/(1-Loss_ElectricDemand) -> 0 | AU25: =IF(AU$12="n/a",0,SUMPRODUCT($BK25:$CG25,OFFSET('General Inputs'!$Q$29:$AM$29,MATCH($D25&"_Electric_$/kWh",'General Inputs'!$K$30:$K$31,0),),'General Inputs'!$Q$37:$AM$37) ) -> 0 | AV25: =IF(AV$12="n/a",0, INDEX('General Inputs'!$Q$37:$AM$37,MATCH($A$2,'General Inputs'!$Q$35:$AM$35,0))*$DI25*$DU25) -> 0 | AW25: =IF(AW$12="n/a",0,INDEX('General Inputs'!$Q$37:$AM$37,MATCH($A$2,'General Inputs'!$Q$35:$AM$35,0))*$DJ25) -> 0 | AZ25: n/a | BA25: 0 | BB25: 0 | BC25: =IF(BC$12="n/a",0,SUMPRODUCT($BK25:$CG25,'General Inputs'!$Q$23:$AM$23,'General Inputs'!$Q$40:$AM$40)/(1-Loss_ElectricEnergy)) -> 0 | BD25: =IF(BD$12="n/a",0,SUMPRODUCT($BK25:$CG25,'General Inputs'!$Q$25:$AM$25,'General Inputs'!$Q$40:$AM$40)/(1-Loss_ElectricEnergy)) -> 0 | BE25: =IF(BE$12="n/a",0,SUMPRODUCT($CI25:$DE25,'General Inputs'!$Q$24:$AM$24,'General Inputs'!$Q$40:$AM$40))/(1-Loss_ElectricDemand) -> 0 | BF25: =IF(BF$12="n/a",0,SUMPRODUCT($BK25:$CG25,OFFSET('General Inputs'!$Q$29:$AM$29,MATCH($D25&"_Electric_$/kWh",'General Inputs'!$K$30:$K$31,0),),'General Inputs'!$Q$40:$AM$40) ) -> 0 | BG25: =IF(BG$12="n/a",0, INDEX('General Inputs'!$Q$40:$AM$40,MATCH($A$2,'General Inputs'!$Q$35:$AM$35,0))*$DI25*$DU25) -> 0 | BH25: =IF(BH$12="n/a",0,INDEX('General Inputs'!$Q$40:$AM$40,MATCH($A$2,'General Inputs'!$Q$35:$AM$35,0))*$DJ25) -> 0 | BK25: =IF(AND($A$2<=BK$13,$A$2+$DH25>BK$13),$DR25,0)*$DU25 -> 0 | BL25: 0 | BM25: 0 | BN25: 0 | BO25: 0 | BP25: 0 | BQ25: 0 | BR25: 0 | BS25: 0 | BT25: 0 | BU25: =IF(AND($A$2<=BU$13,$A$2+$DH25>BU$13),$DR25,0)*$DU25 -> 0 | BV25: 0 | BW25: 0 | BX25: 0 | BY25: 0 | BZ25: 0 | CA25: 0 | CB25: 0 | CC25: 0 | CD25: 0 | CE25: 0 | CF25: 0 | CG25: 0 | CI25: =IF(AND($A$2<=CI$13,$A$2+$DH25>CI$13),$DS25,0)*$DU25 -> 0 | CJ25: 0 | CK25: 0 | CL25: 0 | CM25: 0 | CN25: 0 | CO25: 0 | CP25: 0 | CQ25: 0 | CR25: 0 | CS25: =IF(AND($A$2<=CS$13,$A$2+$DH25>CS$13),$DS25,0)*$DU25 -> 0 | CT25: 0 | CU25: 0 | CV25: 0 | CW25: 0 | CX25: 0 | CY25: 0 | CZ25: 0 | DA25: 0 | DB25: 0 | DC25: 0 | DD25: 0 | DE25: 0 | DG25: =INDEX('Measure Inputs'!$I:$I,MATCH($B25,'Measure Inputs'!$B:$B,0)) -> 0 | DH25: =INDEX('Measure Inputs'!N:N,MATCH($B25,'Measure Inputs'!$B:$B,0)) -> 10 | DI25: =INDEX('Measure Inputs'!M:M,MATCH($B25,'Measure Inputs'!$B:$B,0))*$DG25 -> 0 | DJ25: =INDEX('Measure Inputs'!$L:$L,MATCH($B25,'Measure Inputs'!$B:$B,0))*$DG25 -> 0 | DL25: 0 | DM25: 0 | DO25: 0 | DP25: 0 | DR25: =INDEX('Measure Inputs'!$J:$J,MATCH($B25,'Measure Inputs'!$B:$B,0))*$DG25 -> 0 | DS25: =INDEX('Measure Inputs'!$K:$K,MATCH($B25,'Measure Inputs'!$B:$B,0))*$DG25 -> 0 | DU25: =INDEX('Measure Inputs'!O:O,MATCH($B25,'Measure Inputs'!$B:$B,0)) -> 1
B26: Residential_Whole House Efficiency_Faucet Aerator | C26: ='Measure Inputs'!D18 -> 13 | D26: =INDEX('Measure Inputs'!E:E,MATCH($C26,'Measure Inputs'!$D:$D,0)) -> Residential | E26: =INDEX('Measure Inputs'!F:F,MATCH($C26,'Measure Inputs'!$D:$D,0)) -> Whole House Efficiency | F26: =INDEX('Measure Inputs'!G:G,MATCH($C26,'Measure Inputs'!$D:$D,0)) -> Faucet Aerator | H26: n/a | I26: 0 | J26: 0 | K26: =IF(K$12="n/a",0,SUMPRODUCT($BK26:$CG26,'General Inputs'!$Q$23:$AM$23,'General Inputs'!$Q$38:$AM$38)/(1-Loss_ElectricEnergy)) -> 0 | L26: =IF(L$12="n/a",0,SUMPRODUCT($BK26:$CG26,'General Inputs'!$Q$25:$AM$25,'General Inputs'!$Q$38:$AM$38)/(1-Loss_ElectricEnergy)) -> 0 | M26: =IF(M$12="n/a",0,SUMPRODUCT($CI26:$DE26,'General Inputs'!$Q$24:$AM$24,'General Inputs'!$Q$38:$AM$38))/(1-Loss_ElectricDemand) -> 0 | N26: =IF(N$12="n/a",0,SUMPRODUCT($BK26:$CG26,OFFSET('General Inputs'!$Q$29:$AM$29,MATCH($D26&"_Electric_$/kWh",'General Inputs'!$K$30:$K$31,0),),'General Inputs'!$Q$38:$AM$38) ) -> 0 | O26: =IF(O$12="n/a",0, INDEX('General Inputs'!$Q$38:$AM$38,MATCH($A$2,'General Inputs'!$Q$35:$AM$35,0))*$DI26*$DU26) -> 0 | P26: =IF(P$12="n/a",0,INDEX('General Inputs'!$Q$38:$AM$38,MATCH($A$2,'General Inputs'!$Q$35:$AM$35,0))*$DJ26) -> 0 | S26: n/a | T26: 0 | U26: 0 | V26: =IF(V$12="n/a",0,SUMPRODUCT($BK26:$CG26,'General Inputs'!$Q$23:$AM$23,'General Inputs'!$Q$36:$AM$36)/(1-Loss_ElectricEnergy)) -> 0 | W26: =IF(W$12="n/a",0,SUMPRODUCT($BK26:$CG26,'General Inputs'!$Q$25:$AM$25,'General Inputs'!$Q$36:$AM$36)/(1-Loss_ElectricEnergy)) -> 0 | X26: =IF(X$12="n/a",0,SUMPRODUCT($CI26:$DE26,'General Inputs'!$Q$24:$AM$24,'General Inputs'!$Q$36:$AM$36))/(1-Loss_ElectricDemand) -> 0 | Y26: =IF(Y$12="n/a",0,SUMPRODUCT($BK26:$CG26,OFFSET('General Inputs'!$Q$29:$AM$29,MATCH($D26&"_Electric_$/kWh",'General Inputs'!$K$30:$K$31,0),),'General Inputs'!$Q$36:$AM$36) ) -> 0 | Z26: =IF(Z$12="n/a",0, (INDEX('General Inputs'!$Q$36:$AM$36,MATCH($A$2,'General Inputs'!$Q$35:$AM$35,0))*$DI26+ IFERROR((INDEX('General Inputs'!$Q$36:$AM$36,MATCH($A$2+#REF!,'General Inputs'!$Q$35:$AM$35,0))*-#REF!),0)) *$DU26) -> 0 | AA26: =IF(AA$12="n/a",0,INDEX('General Inputs'!$Q$36:$AM$36,MATCH($A$2,'General Inputs'!$Q$35:$AM$35,0))*$DJ26) -> 0 | AD26: n/a | AE26: 0 | AF26: 0 | AG26: =IF(AG$12="n/a",0,SUMPRODUCT($BK26:$CG26,'General Inputs'!$Q$23:$AM$23,'General Inputs'!$Q$39:$AM$39)/(1-Loss_ElectricEnergy)) -> 0 | AH26: =IF(AH$12="n/a",0,SUMPRODUCT($BK26:$CG26,'General Inputs'!$Q$25:$AM$25,'General Inputs'!$Q$39:$AM$39)/(1-Loss_ElectricEnergy)) -> 0 | AI26: =IF(AI$12="n/a",0,SUMPRODUCT($CI26:$DE26,'General Inputs'!$Q$24:$AM$24,'General Inputs'!$Q$39:$AM$39))/(1-Loss_ElectricDemand) -> 0 | AJ26: =IF(AJ$12="n/a",0,SUMPRODUCT($BK26:$CG26,OFFSET('General Inputs'!$Q$29:$AM$29,MATCH($D26&"_Electric_$/kWh",'General Inputs'!$K$30:$K$31,0),),'General Inputs'!$Q$39:$AM$39) ) -> 0 | AK26: =IF(AK$12="n/a",0, INDEX('General Inputs'!$Q$39:$AM$39,MATCH($A$2,'General Inputs'!$Q$35:$AM$35,0))*$DI26*$DU26) -> 0 | AL26: =IF(AL$12="n/a",0,INDEX('General Inputs'!$Q$39:$AM$39,MATCH($A$2,'General Inputs'!$Q$35:$AM$35,0))*$DJ26) -> 0 | AO26: n/a | AP26: 0 | AQ26: 0 | AR26: =IF(AR$12="n/a",0,SUMPRODUCT($BK26:$CG26,'General Inputs'!$Q$23:$AM$23,'General Inputs'!$Q$37:$AM$37)/(1-Loss_ElectricEnergy)) -> 0 | AS26: =IF(AS$12="n/a",0,SUMPRODUCT($BK26:$CG26,'General Inputs'!$Q$25:$AM$25,'General Inputs'!$Q$37:$AM$37)/(1-Loss_ElectricEnergy)) -> 0 | AT26: =IF(AT$12="n/a",0,SUMPRODUCT($CI26:$DE26,'General Inputs'!$Q$24:$AM$24,'General Inputs'!$Q$37:$AM$37))/(1-Loss_ElectricDemand) -> 0 | AU26: =IF(AU$12="n/a",0,SUMPRODUCT($BK26:$CG26,OFFSET('General Inputs'!$Q$29:$AM$29,MATCH($D26&"_Electric_$/kWh",'General Inputs'!$K$30:$K$31,0),),'General Inputs'!$Q$37:$AM$37) ) -> 0 | AV26: =IF(AV$12="n/a",0, INDEX('General Inputs'!$Q$37:$AM$37,MATCH($A$2,'General Inputs'!$Q$35:$AM$35,0))*$DI26*$DU26) -> 0 | AW26: =IF(AW$12="n/a",0,INDEX('General Inputs'!$Q$37:$AM$37,MATCH($A$2,'General Inputs'!$Q$35:$AM$35,0))*$DJ26) -> 0 | AZ26: n/a | BA26: 0 | BB26: 0 | BC26: =IF(BC$12="n/a",0,SUMPRODUCT($BK26:$CG26,'General Inputs'!$Q$23:$AM$23,'General Inputs'!$Q$40:$AM$40)/(1-Loss_ElectricEnergy)) -> 0 | BD26: =IF(BD$12="n/a",0,SUMPRODUCT($BK26:$CG26,'General Inputs'!$Q$25:$AM$25,'General Inputs'!$Q$40:$AM$40)/(1-Loss_ElectricEnergy)) -> 0 | BE26: =IF(BE$12="n/a",0,SUMPRODUCT($CI26:$DE26,'General Inputs'!$Q$24:$AM$24,'General Inputs'!$Q$40:$AM$40))/(1-Loss_ElectricDemand) -> 0 | BF26: =IF(BF$12="n/a",0,SUMPRODUCT($BK26:$CG26,OFFSET('General Inputs'!$Q$29:$AM$29,MATCH($D26&"_Electric_$/kWh",'General Inputs'!$K$30:$K$31,0),),'General Inputs'!$Q$40:$AM$40) ) -> 0 | BG26: =IF(BG$12="n/a",0, INDEX('General Inputs'!$Q$40:$AM$40,MATCH($A$2,'General Inputs'!$Q$35:$AM$35,0))*$DI26*$DU26) -> 0 | BH26: =IF(BH$12="n/a",0,INDEX('General Inputs'!$Q$40:$AM$40,MATCH($A$2,'General Inputs'!$Q$35:$AM$35,0))*$DJ26) -> 0 | BK26: 0 | BL26: 0 | BM26: 0 | BN26: 0 | BO26: 0 | BP26: 0 | BQ26: 0 | BR26: 0 | BS26: 0 | BT26: 0 | BU26: 0 | BV26: 0 | BW26: 0 | BX26: 0 | BY26: 0 | BZ26: 0 | CA26: 0 | CB26: 0 | CC26: 0 | CD26: 0 | CE26: 0 | CF26: 0 | CG26: 0 | CI26: 0 | CJ26: 0 | CK26: 0 | CL26: 0 | CM26: 0 | CN26: 0 | CO26: 0 | CP26: 0 | CQ26: 0 | CR26: 0 | CS26: 0 | CT26: 0 | CU26: 0 | CV26: 0 | CW26: 0 | CX26: 0 | CY26: 0 | CZ26: 0 | DA26: 0 | DB26: 0 | DC26: 0 | DD26: 0 | DE26: 0 | DG26: =INDEX('Measure Inputs'!$I:$I,MATCH($B26,'Measure Inputs'!$B:$B,0)) -> 0 | DH26: =INDEX('Measure Inputs'!N:N,MATCH($B26,'Measure Inputs'!$B:$B,0)) -> 9 | DI26: =INDEX('Measure Inputs'!M:M,MATCH($B26,'Measure Inputs'!$B:$B,0))*$DG26 -> 0 | DJ26: =INDEX('Measure Inputs'!$L:$L,MATCH($B26,'Measure Inputs'!$B:$B,0))*$DG26 -> 0 | DL26: 0 | DM26: 0 | DO26: 0 | DP26: 0 | DR26: =INDEX('Measure Inputs'!$J:$J,MATCH($B26,'Measure Inputs'!$B:$B,0))*$DG26 -> 0 | DS26: =INDEX('Measure Inputs'!$K:$K,MATCH($B26,'Measure Inputs'!$B:$B,0))*$DG26 -> 0 | DU26: =INDEX('Measure Inputs'!O:O,MATCH($B26,'Measure Inputs'!$B:$B,0)) -> 1
B27: Residential_Whole House Efficiency_Low Flow Showerhead | C27: ='Measure Inputs'!D19 -> 14 | D27: =INDEX('Measure Inputs'!E:E,MATCH($C27,'Measure Inputs'!$D:$D,0)) -> Residential | E27: =INDEX('Measure Inputs'!F:F,MATCH($C27,'Measure Inputs'!$D:$D,0)) -> Whole House Efficiency | F27: =INDEX('Measure Inputs'!G:G,MATCH($C27,'Measure Inputs'!$D:$D,0)) -> Low Flow Showerhead | H27: n/a | I27: 0 | J27: 0 | K27: =IF(K$12="n/a",0,SUMPRODUCT($BK27:$CG27,'General Inputs'!$Q$23:$AM$23,'General Inputs'!$Q$38:$AM$38)/(1-Loss_ElectricEnergy)) -> 0 | L27: =IF(L$12="n/a",0,SUMPRODUCT($BK27:$CG27,'General Inputs'!$Q$25:$AM$25,'General Inputs'!$Q$38:$AM$38)/(1-Loss_ElectricEnergy)) -> 0 | M27: =IF(M$12="n/a",0,SUMPRODUCT($CI27:$DE27,'General Inputs'!$Q$24:$AM$24,'General Inputs'!$Q$38:$AM$38))/(1-Loss_ElectricDemand) -> 0 | N27: =IF(N$12="n/a",0,SUMPRODUCT($BK27:$CG27,OFFSET('General Inputs'!$Q$29:$AM$29,MATCH($D27&"_Electric_$/kWh",'General Inputs'!$K$30:$K$31,0),),'General Inputs'!$Q$38:$AM$38) ) -> 0 | O27: =IF(O$12="n/a",0, INDEX('General Inputs'!$Q$38:$AM$38,MATCH($A$2,'General Inputs'!$Q$35:$AM$35,0))*$DI27*$DU27) -> 0 | P27: =IF(P$12="n/a",0,INDEX('General Inputs'!$Q$38:$AM$38,MATCH($A$2,'General Inputs'!$Q$35:$AM$35,0))*$DJ27) -> 0 | S27: n/a | T27: 0 | U27: 0 | V27: =IF(V$12="n/a",0,SUMPRODUCT($BK27:$CG27,'General Inputs'!$Q$23:$AM$23,'General Inputs'!$Q$36:$AM$36)/(1-Loss_ElectricEnergy)) -> 0 | W27: =IF(W$12="n/a",0,SUMPRODUCT($BK27:$CG27,'General Inputs'!$Q$25:$AM$25,'General Inputs'!$Q$36:$AM$36)/(1-Loss_ElectricEnergy)) -> 0 | X27: =IF(X$12="n/a",0,SUMPRODUCT($CI27:$DE27,'General Inputs'!$Q$24:$AM$24,'General Inputs'!$Q$36:$AM$36))/(1-Loss_ElectricDemand) -> 0 | Y27: =IF(Y$12="n/a",0,SUMPRODUCT($BK27:$CG27,OFFSET('General Inputs'!$Q$29:$AM$29,MATCH($D27&"_Electric_$/kWh",'General Inputs'!$K$30:$K$31,0),),'General Inputs'!$Q$36:$AM$36) ) -> 0 | Z27: =IF(Z$12="n/a",0, (INDEX('General Inputs'!$Q$36:$AM$36,MATCH($A$2,'General Inputs'!$Q$35:$AM$35,0))*$DI27+ IFERROR((INDEX('General Inputs'!$Q$36:$AM$36,MATCH($A$2+#REF!,'General Inputs'!$Q$35:$AM$35,0))*-#REF!),0)) *$DU27) -> 0 | AA27: =IF(AA$12="n/a",0,INDEX('General Inputs'!$Q$36:$AM$36,MATCH($A$2,'General Inputs'!$Q$35:$AM$35,0))*$DJ27) -> 0 | AD27: n/a | AE27: 0 | AF27: 0 | AG27: =IF(AG$12="n/a",0,SUMPRODUCT($BK27:$CG27,'General Inputs'!$Q$23:$AM$23,'General Inputs'!$Q$39:$AM$39)/(1-Loss_ElectricEnergy)) -> 0 | AH27: =IF(AH$12="n/a",0,SUMPRODUCT($BK27:$CG27,'General Inputs'!$Q$25:$AM$25,'General Inputs'!$Q$39:$AM$39)/(1-Loss_ElectricEnergy)) -> 0 | AI27: =IF(AI$12="n/a",0,SUMPRODUCT($CI27:$DE27,'General Inputs'!$Q$24:$AM$24,'General Inputs'!$Q$39:$AM$39))/(1-Loss_ElectricDemand) -> 0 | AJ27: =IF(AJ$12="n/a",0,SUMPRODUCT($BK27:$CG27,OFFSET('General Inputs'!$Q$29:$AM$29,MATCH($D27&"_Electric_$/kWh",'General Inputs'!$K$30:$K$31,0),),'General Inputs'!$Q$39:$AM$39) ) -> 0 | AK27: =IF(AK$12="n/a",0, INDEX('General Inputs'!$Q$39:$AM$39,MATCH($A$2,'General Inputs'!$Q$35:$AM$35,0))*$DI27*$DU27) -> 0 | AL27: =IF(AL$12="n/a",0,INDEX('General Inputs'!$Q$39:$AM$39,MATCH($A$2,'General Inputs'!$Q$35:$AM$35,0))*$DJ27) -> 0 | AO27: n/a | AP27: 0 | AQ27: 0 | AR27: =IF(AR$12="n/a",0,SUMPRODUCT($BK27:$CG27,'General Inputs'!$Q$23:$AM$23,'General Inputs'!$Q$37:$AM$37)/(1-Loss_ElectricEnergy)) -> 0 | AS27: =IF(AS$12="n/a",0,SUMPRODUCT($BK27:$CG27,'General Inputs'!$Q$25:$AM$25,'General Inputs'!$Q$37:$AM$37)/(1-Loss_ElectricEnergy)) -> 0 | AT27: =IF(AT$12="n/a",0,SUMPRODUCT($CI27:$DE27,'General Inputs'!$Q$24:$AM$24,'General Inputs'!$Q$37:$AM$37))/(1-Loss_ElectricDemand) -> 0 | AU27: =IF(AU$12="n/a",0,SUMPRODUCT($BK27:$CG27,OFFSET('General Inputs'!$Q$29:$AM$29,MATCH($D27&"_Electric_$/kWh",'General Inputs'!$K$30:$K$31,0),),'General Inputs'!$Q$37:$AM$37) ) -> 0 | AV27: =IF(AV$12="n/a",0, INDEX('General Inputs'!$Q$37:$AM$37,MATCH($A$2,'General Inputs'!$Q$35:$AM$35,0))*$DI27*$DU27) -> 0 | AW27: =IF(AW$12="n/a",0,INDEX('General Inputs'!$Q$37:$AM$37,MATCH($A$2,'General Inputs'!$Q$35:$AM$35,0))*$DJ27) -> 0 | AZ27: n/a | BA27: 0 | BB27: 0 | BC27: =IF(BC$12="n/a",0,SUMPRODUCT($BK27:$CG27,'General Inputs'!$Q$23:$AM$23,'General Inputs'!$Q$40:$AM$40)/(1-Loss_ElectricEnergy)) -> 0 | BD27: =IF(BD$12="n/a",0,SUMPRODUCT($BK27:$CG27,'General Inputs'!$Q$25:$AM$25,'General Inputs'!$Q$40:$AM$40)/(1-Loss_ElectricEnergy)) -> 0 | BE27: =IF(BE$12="n/a",0,SUMPRODUCT($CI27:$DE27,'General Inputs'!$Q$24:$AM$24,'General Inputs'!$Q$40:$AM$40))/(1-Loss_ElectricDemand) -> 0 | BF27: =IF(BF$12="n/a",0,SUMPRODUCT($BK27:$CG27,OFFSET('General Inputs'!$Q$29:$AM$29,MATCH($D27&"_Electric_$/kWh",'General Inputs'!$K$30:$K$31,0),),'General Inputs'!$Q$40:$AM$40) ) -> 0 | BG27: =IF(BG$12="n/a",0, INDEX('General Inputs'!$Q$40:$AM$40,MATCH($A$2,'General Inputs'!$Q$35:$AM$35,0))*$DI27*$DU27) -> 0 | BH27: =IF(BH$12="n/a",0,INDEX('General Inputs'!$Q$40:$AM$40,MATCH($A$2,'General Inputs'!$Q$35:$AM$35,0))*$DJ27) -> 0 | BK27: 0 | BL27: 0 | BM27: 0 | BN27: 0 | BO27: 0 | BP27: 0 | BQ27: 0 | BR27: 0 | BS27: 0 | BT27: 0 | BU27: 0 | BV27: 0 | BW27: 0 | BX27: 0 | BY27: 0 | BZ27: 0 | CA27: 0 | CB27: 0 | CC27: 0 | CD27: 0 | CE27: 0 | CF27: 0 | CG27: 0 | CI27: 0 | CJ27: 0 | CK27: 0 | CL27: 0 | CM27: 0 | CN27: 0 | CO27: 0 | CP27: 0 | CQ27: 0 | CR27: 0 | CS27: 0 | CT27: 0 | CU27: 0 | CV27: 0 | CW27: 0 | CX27: 0 | CY27: 0 | CZ27: 0 | DA27: 0 | DB27: 0 | DC27: 0 | DD27: 0 | DE27: 0 | DG27: =INDEX('Measure Inputs'!$I:$I,MATCH($B27,'Measure Inputs'!$B:$B,0)) -> 0 | DH27: =INDEX('Measure Inputs'!N:N,MATCH($B27,'Measure Inputs'!$B:$B,0)) -> 10 | DI27: =INDEX('Measure Inputs'!M:M,MATCH($B27,'Measure Inputs'!$B:$B,0))*$DG27 -> 0 | DJ27: =INDEX('Measure Inputs'!$L:$L,MATCH($B27,'Measure Inputs'!$B:$B,0))*$DG27 -> 0 | DL27: 0 | DM27: 0 | DO27: 0 | DP27: 0 | DR27: =INDEX('Measure Inputs'!$J:$J,MATCH($B27,'Measure Inputs'!$B:$B,0))*$DG27 -> 0 | DS27: =INDEX('Measure Inputs'!$K:$K,MATCH($B27,'Measure Inputs'!$B:$B,0))*$DG27 -> 0 | DU27: =INDEX('Measure Inputs'!O:O,MATCH($B27,'Measure Inputs'!$B:$B,0)) -> 1
B28: Residential_School-Based Education_School-Based Education | C28: ='Measure Inputs'!D20 -> 15 | D28: =INDEX('Measure Inputs'!E:E,MATCH($C28,'Measure Inputs'!$D:$D,0)) -> Residential | E28: =INDEX('Measure Inputs'!F:F,MATCH($C28,'Measure Inputs'!$D:$D,0)) -> School-Based Education | F28: =INDEX('Measure Inputs'!G:G,MATCH($C28,'Measure Inputs'!$D:$D,0)) -> School-Based Education | H28: n/a | I28: 88121.51366 | J28: 0 | K28: =IF(K$12="n/a",0,SUMPRODUCT($BK28:$CG28,'General Inputs'!$Q$23:$AM$23,'General Inputs'!$Q$38:$AM$38)/(1-Loss_ElectricEnergy)) -> 59954.01333 | L28: =IF(L$12="n/a",0,SUMPRODUCT($BK28:$CG28,'General Inputs'!$Q$25:$AM$25,'General Inputs'!$Q$38:$AM$38)/(1-Loss_ElectricEnergy)) -> 23822.5848 | M28: =IF(M$12="n/a",0,SUMPRODUCT($CI28:$DE28,'General Inputs'!$Q$24:$AM$24,'General Inputs'!$Q$38:$AM$38))/(1-Loss_ElectricDemand) -> 4344.915534 | N28: =IF(N$12="n/a",0,SUMPRODUCT($BK28:$CG28,OFFSET('General Inputs'!$Q$29:$AM$29,MATCH($D28&"_Electric_$/kWh",'General Inputs'!$K$30:$K$31,0),),'General Inputs'!$Q$38:$AM$38) ) -> 0 | O28: =IF(O$12="n/a",0, INDEX('General Inputs'!$Q$38:$AM$38,MATCH($A$2,'General Inputs'!$Q$35:$AM$35,0))*$DI28*$DU28) -> 0 | P28: =IF(P$12="n/a",0,INDEX('General Inputs'!$Q$38:$AM$38,MATCH($A$2,'General Inputs'!$Q$35:$AM$35,0))*$DJ28) -> 0 | S28: n/a | T28: 64298.92886 | U28: 0 | V28: =IF(V$12="n/a",0,SUMPRODUCT($BK28:$CG28,'General Inputs'!$Q$23:$AM$23,'General Inputs'!$Q$36:$AM$36)/(1-Loss_ElectricEnergy)) -> 59954.01333 | W28: =IF(W$12="n/a",0,SUMPRODUCT($BK28:$CG28,'General Inputs'!$Q$25:$AM$25,'General Inputs'!$Q$36:$AM$36)/(1-Loss_ElectricEnergy)) -> 0 | X28: =IF(X$12="n/a",0,SUMPRODUCT($CI28:$DE28,'General Inputs'!$Q$24:$AM$24,'General Inputs'!$Q$36:$AM$36))/(1-Loss_ElectricDemand) -> 4344.915534 | Y28: =IF(Y$12="n/a",0,SUMPRODUCT($BK28:$CG28,OFFSET('General Inputs'!$Q$29:$AM$29,MATCH($D28&"_Electric_$/kWh",'General Inputs'!$K$30:$K$31,0),),'General Inputs'!$Q$36:$AM$36) ) -> 0 | Z28: =IF(Z$12="n/a",0, (INDEX('General Inputs'!$Q$36:$AM$36,MATCH($A$2,'General Inputs'!$Q$35:$AM$35,0))*$DI28+ IFERROR((INDEX('General Inputs'!$Q$36:$AM$36,MATCH($A$2+#REF!,'General Inputs'!$Q$35:$AM$35,0))*-#REF!),0)) *$DU28) -> 0 | AA28: =IF(AA$12="n/a",0,INDEX('General Inputs'!$Q$36:$AM$36,MATCH($A$2,'General Inputs'!$Q$35:$AM$35,0))*$DJ28) -> 0 | AD28: n/a | AE28: 291626.7449 | AF28: 0 | AG28: =IF(AG$12="n/a",0,SUMPRODUCT($BK28:$CG28,'General Inputs'!$Q$23:$AM$23,'General Inputs'!$Q$39:$AM$39)/(1-Loss_ElectricEnergy)) -> 0 | AH28: =IF(AH$12="n/a",0,SUMPRODUCT($BK28:$CG28,'General Inputs'!$Q$25:$AM$25,'General Inputs'!$Q$39:$AM$39)/(1-Loss_ElectricEnergy)) -> 0 | AI28: =IF(AI$12="n/a",0,SUMPRODUCT($CI28:$DE28,'General Inputs'!$Q$24:$AM$24,'General Inputs'!$Q$39:$AM$39))/(1-Loss_ElectricDemand) -> 0 | AJ28: =IF(AJ$12="n/a",0,SUMPRODUCT($BK28:$CG28,OFFSET('General Inputs'!$Q$29:$AM$29,MATCH($D28&"_Electric_$/kWh",'General Inputs'!$K$30:$K$31,0),),'General Inputs'!$Q$39:$AM$39) ) -> 291626.7449 | AK28: =IF(AK$12="n/a",0, INDEX('General Inputs'!$Q$39:$AM$39,MATCH($A$2,'General Inputs'!$Q$35:$AM$35,0))*$DI28*$DU28) -> 0 | AL28: =IF(AL$12="n/a",0,INDEX('General Inputs'!$Q$39:$AM$39,MATCH($A$2,'General Inputs'!$Q$35:$AM$35,0))*$DJ28) -> 0 | AO28: n/a | AP28: 64298.92886 | AQ28: 0 | AR28: =IF(AR$12="n/a",0,SUMPRODUCT($BK28:$CG28,'General Inputs'!$Q$23:$AM$23,'General Inputs'!$Q$37:$AM$37)/(1-Loss_ElectricEnergy)) -> 59954.01333 | AS28: =IF(AS$12="n/a",0,SUMPRODUCT($BK28:$CG28,'General Inputs'!$Q$25:$AM$25,'General Inputs'!$Q$37:$AM$37)/(1-Loss_ElectricEnergy)) -> 0 | AT28: =IF(AT$12="n/a",0,SUMPRODUCT($CI28:$DE28,'General Inputs'!$Q$24:$AM$24,'General Inputs'!$Q$37:$AM$37))/(1-Loss_ElectricDemand) -> 4344.915534 | AU28: =IF(AU$12="n/a",0,SUMPRODUCT($BK28:$CG28,OFFSET('General Inputs'!$Q$29:$AM$29,MATCH($D28&"_Electric_$/kWh",'General Inputs'!$K$30:$K$31,0),),'General Inputs'!$Q$37:$AM$37) ) -> 0 | AV28: =IF(AV$12="n/a",0, INDEX('General Inputs'!$Q$37:$AM$37,MATCH($A$2,'General Inputs'!$Q$35:$AM$35,0))*$DI28*$DU28) -> 0 | AW28: =IF(AW$12="n/a",0,INDEX('General Inputs'!$Q$37:$AM$37,MATCH($A$2,'General Inputs'!$Q$35:$AM$35,0))*$DJ28) -> 0 | AZ28: 0.220483649 | BA28: 64298.92886 | BB28: 291626.7449 | BC28: =IF(BC$12="n/a",0,SUMPRODUCT($BK28:$CG28,'General Inputs'!$Q$23:$AM$23,'General Inputs'!$Q$40:$AM$40)/(1-Loss_ElectricEnergy)) -> 59954.01333 | BD28: =IF(BD$12="n/a",0,SUMPRODUCT($BK28:$CG28,'General Inputs'!$Q$25:$AM$25,'General Inputs'!$Q$40:$AM$40)/(1-Loss_ElectricEnergy)) -> 0 | BE28: =IF(BE$12="n/a",0,SUMPRODUCT($CI28:$DE28,'General Inputs'!$Q$24:$AM$24,'General Inputs'!$Q$40:$AM$40))/(1-Loss_ElectricDemand) -> 4344.915534 | BF28: =IF(BF$12="n/a",0,SUMPRODUCT($BK28:$CG28,OFFSET('General Inputs'!$Q$29:$AM$29,MATCH($D28&"_Electric_$/kWh",'General Inputs'!$K$30:$K$31,0),),'General Inputs'!$Q$40:$AM$40) ) -> 291626.7449 | BG28: =IF(BG$12="n/a",0, INDEX('General Inputs'!$Q$40:$AM$40,MATCH($A$2,'General Inputs'!$Q$35:$AM$35,0))*$DI28*$DU28) -> 0 | BH28: =IF(BH$12="n/a",0,INDEX('General Inputs'!$Q$40:$AM$40,MATCH($A$2,'General Inputs'!$Q$35:$AM$35,0))*$DJ28) -> 0 | BK28: 468460 | BL28: 468460 | BM28: 468460 | BN28: 468460 | BO28: 468460 | BP28: 0 | BQ28: 0 | BR28: 0 | BS28: 0 | BT28: 0 | BU28: 0 | BV28: 0 | BW28: 0 | BX28: 0 | BY28: 0 | BZ28: 0 | CA28: 0 | CB28: 0 | CC28: 0 | CD28: 0 | CE28: 0 | CF28: 0 | CG28: 0 | CI28: 47.2 | CJ28: 47.2 | CK28: 47.2 | CL28: 47.2 | CM28: 47.2 | CN28: 0 | CO28: 0 | CP28: 0 | CQ28: 0 | CR28: 0 | CS28: 0 | CT28: 0 | CU28: 0 | CV28: 0 | CW28: 0 | CX28: 0 | CY28: 0 | CZ28: 0 | DA28: 0 | DB28: 0 | DC28: 0 | DD28: 0 | DE28: 0 | DG28: =INDEX('Measure Inputs'!$I:$I,MATCH($B28,'Measure Inputs'!$B:$B,0)) -> 1180 | DH28: =INDEX('Measure Inputs'!N:N,MATCH($B28,'Measure Inputs'!$B:$B,0)) -> 5 | DI28: =INDEX('Measure Inputs'!M:M,MATCH($B28,'Measure Inputs'!$B:$B,0))*$DG28 -> 0 | DJ28: =INDEX('Measure Inputs'!$L:$L,MATCH($B28,'Measure Inputs'!$B:$B,0))*$DG28 -> 0 | DL28: 2342300 | DM28: 236 | DO28: 468460 | DP28: 47.2 | DR28: =INDEX('Measure Inputs'!$J:$J,MATCH($B28,'Measure Inputs'!$B:$B,0))*$DG28 -> 468460 | DS28: =INDEX('Measure Inputs'!$K:$K,MATCH($B28,'Measure Inputs'!$B:$B,0))*$DG28 -> 47.2 | DU28: =INDEX('Measure Inputs'!O:O,MATCH($B28,'Measure Inputs'!$B:$B,0)) -> 1
B29: C&I_C&I Custom_C&I Custom | C29: ='Measure Inputs'!D21 -> 16 | D29: =INDEX('Measure Inputs'!E:E,MATCH($C29,'Measure Inputs'!$D:$D,0)) -> C&I | E29: =INDEX('Measure Inputs'!F:F,MATCH($C29,'Measure Inputs'!$D:$D,0)) -> C&I Custom | F29: =INDEX('Measure Inputs'!G:G,MATCH($C29,'Measure Inputs'!$D:$D,0)) -> C&I Custom | H29: 3.021654027 | I29: 1511663.105 | J29: 500276.7 | K29: =IF(K$12="n/a",0,SUMPRODUCT($BK29:$CG29,'General Inputs'!$Q$23:$AM$23,'General Inputs'!$Q$38:$AM$38)/(1-Loss_ElectricEnergy)) -> 1008952.988 | L29: =IF(L$12="n/a",0,SUMPRODUCT($BK29:$CG29,'General Inputs'!$Q$25:$AM$25,'General Inputs'!$Q$38:$AM$38)/(1-Loss_ElectricEnergy)) -> 379171.3885 | M29: =IF(M$12="n/a",0,SUMPRODUCT($CI29:$DE29,'General Inputs'!$Q$24:$AM$24,'General Inputs'!$Q$38:$AM$38))/(1-Loss_ElectricDemand) -> 123538.7286 | N29: =IF(N$12="n/a",0,SUMPRODUCT($BK29:$CG29,OFFSET('General Inputs'!$Q$29:$AM$29,MATCH($D29&"_Electric_$/kWh",'General Inputs'!$K$30:$K$31,0),),'General Inputs'!$Q$38:$AM$38) ) -> 0 | O29: =IF(O$12="n/a",0, INDEX('General Inputs'!$Q$38:$AM$38,MATCH($A$2,'General Inputs'!$Q$35:$AM$35,0))*$DI29*$DU29) -> 500276.7 | P29: =IF(P$12="n/a",0,INDEX('General Inputs'!$Q$38:$AM$38,MATCH($A$2,'General Inputs'!$Q$35:$AM$35,0))*$DJ29) -> 0 | S29: 2.263730685 | T29: 1132491.717 | U29: 500276.7 | V29: =IF(V$12="n/a",0,SUMPRODUCT($BK29:$CG29,'General Inputs'!$Q$23:$AM$23,'General Inputs'!$Q$36:$AM$36)/(1-Loss_ElectricEnergy)) -> 1008952.988 | W29: =IF(W$12="n/a",0,SUMPRODUCT($BK29:$CG29,'General Inputs'!$Q$25:$AM$25,'General Inputs'!$Q$36:$AM$36)/(1-Loss_ElectricEnergy)) -> 0 | X29: =IF(X$12="n/a",0,SUMPRODUCT($CI29:$DE29,'General Inputs'!$Q$24:$AM$24,'General Inputs'!$Q$36:$AM$36))/(1-Loss_ElectricDemand) -> 123538.7286 | Y29: =IF(Y$12="n/a",0,SUMPRODUCT($BK29:$CG29,OFFSET('General Inputs'!$Q$29:$AM$29,MATCH($D29&"_Electric_$/kWh",'General Inputs'!$K$30:$K$31,0),),'General Inputs'!$Q$36:$AM$36) ) -> 0 | Z29: =IF(Z$12="n/a",0, (INDEX('General Inputs'!$Q$36:$AM$36,MATCH($A$2,'General Inputs'!$Q$35:$AM$35,0))*$DI29+ IFERROR((INDEX('General Inputs'!$Q$36:$AM$36,MATCH($A$2+#REF!,'General Inputs'!$Q$35:$AM$35,0))*-#REF!),0)) *$DU29) -> 500276.7 | AA29: =IF(AA$12="n/a",0,INDEX('General Inputs'!$Q$36:$AM$36,MATCH($A$2,'General Inputs'!$Q$35:$AM$35,0))*$DJ29) -> 0 | AD29: 8.599848725 | AE29: 4302303.941 | AF29: 500276.7 | AG29: =IF(AG$12="n/a",0,SUMPRODUCT($BK29:$CG29,'General Inputs'!$Q$23:$AM$23,'General Inputs'!$Q$39:$AM$39)/(1-Loss_ElectricEnergy)) -> 0 | AH29: =IF(AH$12="n/a",0,SUMPRODUCT($BK29:$CG29,'General Inputs'!$Q$25:$AM$25,'General Inputs'!$Q$39:$AM$39)/(1-Loss_ElectricEnergy)) -> 0 | AI29: =IF(AI$12="n/a",0,SUMPRODUCT($CI29:$DE29,'General Inputs'!$Q$24:$AM$24,'General Inputs'!$Q$39:$AM$39))/(1-Loss_ElectricDemand) -> 0 | AJ29: =IF(AJ$12="n/a",0,SUMPRODUCT($BK29:$CG29,OFFSET('General Inputs'!$Q$29:$AM$29,MATCH($D29&"_Electric_$/kWh",'General Inputs'!$K$30:$K$31,0),),'General Inputs'!$Q$39:$AM$39) ) -> 3819510.951 | AK29: =IF(AK$12="n/a",0, INDEX('General Inputs'!$Q$39:$AM$39,MATCH($A$2,'General Inputs'!$Q$35:$AM$35,0))*$DI29*$DU29) -> 500276.7 | AL29: =IF(AL$12="n/a",0,INDEX('General Inputs'!$Q$39:$AM$39,MATCH($A$2,'General Inputs'!$Q$35:$AM$35,0))*$DJ29) -> 482792.99 | AO29: 2.345708699 | AP29: 1132491.717 | AQ29: 482792.99 | AR29: =IF(AR$12="n/a",0,SUMPRODUCT($BK29:$CG29,'General Inputs'!$Q$23:$AM$23,'General Inputs'!$Q$37:$AM$37)/(1-Loss_ElectricEnergy)) -> 1008952.988 | AS29: =IF(AS$12="n/a",0,SUMPRODUCT($BK29:$CG29,'General Inputs'!$Q$25:$AM$25,'General Inputs'!$Q$37:$AM$37)/(1-Loss_ElectricEnergy)) -> 0 | AT29: =IF(AT$12="n/a",0,SUMPRODUCT($CI29:$DE29,'General Inputs'!$Q$24:$AM$24,'General Inputs'!$Q$37:$AM$37))/(1-Loss_ElectricDemand) -> 123538.7286 | AU29: =IF(AU$12="n/a",0,SUMPRODUCT($BK29:$CG29,OFFSET('General Inputs'!$Q$29:$AM$29,MATCH($D29&"_Electric_$/kWh",'General Inputs'!$K$30:$K$31,0),),'General Inputs'!$Q$37:$AM$37) ) -> 0 | AV29: =IF(AV$12="n/a",0, INDEX('General Inputs'!$Q$37:$AM$37,MATCH($A$2,'General Inputs'!$Q$35:$AM$35,0))*$DI29*$DU29) -> 0 | AW29: =IF(AW$12="n/a",0,INDEX('General Inputs'!$Q$37:$AM$37,MATCH($A$2,'General Inputs'!$Q$35:$AM$35,0))*$DJ29) -> 482792.99 | AZ29: 0.2632291285 | BA29: 1132491.717 | BB29: 4302303.941 | BC29: =IF(BC$12="n/a",0,SUMPRODUCT($BK29:$CG29,'General Inputs'!$Q$23:$AM$23,'General Inputs'!$Q$40:$AM$40)/(1-Loss_ElectricEnergy)) -> 1008952.988 | BD29: =IF(BD$12="n/a",0,SUMPRODUCT($BK29:$CG29,'General Inputs'!$Q$25:$AM$25,'General Inputs'!$Q$40:$AM$40)/(1-Loss_ElectricEnergy)) -> 0 | BE29: =IF(BE$12="n/a",0,SUMPRODUCT($CI29:$DE29,'General Inputs'!$Q$24:$AM$24,'General Inputs'!$Q$40:$AM$40))/(1-Loss_ElectricDemand) -> 123538.7286 | BF29: =IF(BF$12="n/a",0,SUMPRODUCT($BK29:$CG29,OFFSET('General Inputs'!$Q$29:$AM$29,MATCH($D29&"_Electric_$/kWh",'General Inputs'!$K$30:$K$31,0),),'General Inputs'!$Q$40:$AM$40) ) -> 3819510.951 | BG29: =IF(BG$12="n/a",0, INDEX('General Inputs'!$Q$40:$AM$40,MATCH($A$2,'General Inputs'!$Q$35:$AM$35,0))*$DI29*$DU29) -> 0 | BH29: =IF(BH$12="n/a",0,INDEX('General Inputs'!$Q$40:$AM$40,MATCH($A$2,'General Inputs'!$Q$35:$AM$35,0))*$DJ29) -> 482792.99 | BK29: 3578902 | BL29: 3578902 | BM29: 3578902 | BN29: 3578902 | BO29: 3578902 | BP29: 3578902 | BQ29: 3578902 | BR29: 3578902 | BS29: 3578902 | BT29: 3578902 | BU29: 3578902 | BV29: 3578902 | BW29: 3578902 | BX29: 3578902 | BY29: 3578902 | BZ29: 0 | CA29: 0 | CB29: 0 | CC29: 0 | CD29: 0 | CE29: 0 | CF29: 0 | CG29: 0 | CI29: 609.24 | CJ29: 609.24 | CK29: 609.24 | CL29: 609.24 | CM29: 609.24 | CN29: 609.24 | CO29: 609.24 | CP29: 609.24 | CQ29: 609.24 | CR29: 609.24 | CS29: 609.24 | CT29: 609.24 | CU29: 609.24 | CV29: 609.24 | CW29: 609.24 | CX29: 0 | CY29: 0 | CZ29: 0 | DA29: 0 | DB29: 0 | DC29: 0 | DD29: 0 | DE29: 0 | DG29: =INDEX('Measure Inputs'!$I:$I,MATCH($B29,'Measure Inputs'!$B:$B,0)) -> 63 | DH29: =INDEX('Measure Inputs'!N:N,MATCH($B29,'Measure Inputs'!$B:$B,0)) -> 15 | DI29: =INDEX('Measure Inputs'!M:M,MATCH($B29,'Measure Inputs'!$B:$B,0))*$DG29 -> 500276.7 | DJ29: =INDEX('Measure Inputs'!$L:$L,MATCH($B29,'Measure Inputs'!$B:$B,0))*$DG29 -> 482792.99 | DL29: 53683530 | DM29: 9138.6 | DO29: 3578902 | DP29: 609.24 | DR29: =INDEX('Measure Inputs'!$J:$J,MATCH($B29,'Measure Inputs'!$B:$B,0))*$DG29 -> 3578902 | DS29: =INDEX('Measure Inputs'!$K:$K,MATCH($B29,'Measure Inputs'!$B:$B,0))*$DG29 -> 609.24 | DU29: =INDEX('Measure Inputs'!O:O,MATCH($B29,'Measure Inputs'!$B:$B,0)) -> 1
B30: C&I_C&I Prescriptive_High Bay Fluorescent Fixture w/ HE Electronic Ballast (T5 2-3 lamp) | C30: ='Measure Inputs'!D22 -> 17 | D30: =INDEX('Measure Inputs'!E:E,MATCH($C30,'Measure Inputs'!$D:$D,0)) -> C&I | E30: =INDEX('Measure Inputs'!F:F,MATCH($C30,'Measure Inputs'!$D:$D,0)) -> C&I Prescriptive | F30: =INDEX('Measure Inputs'!G:G,MATCH($C30,'Measure Inputs'!$D:$D,0)) -> High Bay Fluorescent Fixture w/ HE Electronic Ballast (T5 2-3 lamp) | H30: n/a | I30: 0 | J30: 0 | K30: =IF(K$12="n/a",0,SUMPRODUCT($BK30:$CG30,'General Inputs'!$Q$23:$AM$23,'General Inputs'!$Q$38:$AM$38)/(1-Loss_ElectricEnergy)) -> 0 | L30: =IF(L$12="n/a",0,SUMPRODUCT($BK30:$CG30,'General Inputs'!$Q$25:$AM$25,'General Inputs'!$Q$38:$AM$38)/(1-Loss_ElectricEnergy)) -> 0 | M30: =IF(M$12="n/a",0,SUMPRODUCT($CI30:$DE30,'General Inputs'!$Q$24:$AM$24,'General Inputs'!$Q$38:$AM$38))/(1-Loss_ElectricDemand) -> 0 | N30: =IF(N$12="n/a",0,SUMPRODUCT($BK30:$CG30,OFFSET('General Inputs'!$Q$29:$AM$29,MATCH($D30&"_Electric_$/kWh",'General Inputs'!$K$30:$K$31,0),),'General Inputs'!$Q$38:$AM$38) ) -> 0 | O30: =IF(O$12="n/a",0, INDEX('General Inputs'!$Q$38:$AM$38,MATCH($A$2,'General Inputs'!$Q$35:$AM$35,0))*$DI30*$DU30) -> 0 | P30: =IF(P$12="n/a",0,INDEX('General Inputs'!$Q$38:$AM$38,MATCH($A$2,'General Inputs'!$Q$35:$AM$35,0))*$DJ30) -> 0 | S30: n/a | T30: 0 | U30: 0 | V30: =IF(V$12="n/a",0,SUMPRODUCT($BK30:$CG30,'General Inputs'!$Q$23:$AM$23,'General Inputs'!$Q$36:$AM$36)/(1-Loss_ElectricEnergy)) -> 0 | W30: =IF(W$12="n/a",0,SUMPRODUCT($BK30:$CG30,'General Inputs'!$Q$25:$AM$25,'General Inputs'!$Q$36:$AM$36)/(1-Loss_ElectricEnergy)) -> 0 | X30: =IF(X$12="n/a",0,SUMPRODUCT($CI30:$DE30,'General Inputs'!$Q$24:$AM$24,'General Inputs'!$Q$36:$AM$36))/(1-Loss_ElectricDemand) -> 0 | Y30: =IF(Y$12="n/a",0,SUMPRODUCT($BK30:$CG30,OFFSET('General Inputs'!$Q$29:$AM$29,MATCH($D30&"_Electric_$/kWh",'General Inputs'!$K$30:$K$31,0),),'General Inputs'!$Q$36:$AM$36) ) -> 0 | Z30: =IF(Z$12="n/a",0, (INDEX('General Inputs'!$Q$36:$AM$36,MATCH($A$2,'General Inputs'!$Q$35:$AM$35,0))*$DI30+ IFERROR((INDEX('General Inputs'!$Q$36:$AM$36,MATCH($A$2+#REF!,'General Inputs'!$Q$35:$AM$35,0))*-#REF!),0)) *$DU30) -> 0 | AA30: =IF(AA$12="n/a",0,INDEX('General Inputs'!$Q$36:$AM$36,MATCH($A$2,'General Inputs'!$Q$35:$AM$35,0))*$DJ30) -> 0 | AD30: n/a | AE30: 0 | AF30: 0 | AG30: =IF(AG$12="n/a",0,SUMPRODUCT($BK30:$CG30,'General Inputs'!$Q$23:$AM$23,'General Inputs'!$Q$39:$AM$39)/(1-Loss_ElectricEnergy)) -> 0 | AH30: =IF(AH$12="n/a",0,SUMPRODUCT($BK30:$CG30,'General Inputs'!$Q$25:$AM$25,'General Inputs'!$Q$39:$AM$39)/(1-Loss_ElectricEnergy)) -> 0 | AI30: =IF(AI$12="n/a",0,SUMPRODUCT($CI30:$DE30,'General Inputs'!$Q$24:$AM$24,'General Inputs'!$Q$39:$AM$39))/(1-Loss_ElectricDemand) -> 0 | AJ30: =IF(AJ$12="n/a",0,SUMPRODUCT($BK30:$CG30,OFFSET('General Inputs'!$Q$29:$AM$29,MATCH($D30&"_Electric_$/kWh",'General Inputs'!$K$30:$K$31,0),),'General Inputs'!$Q$39:$AM$39) ) -> 0 | AK30: =IF(AK$12="n/a",0, INDEX('General Inputs'!$Q$39:$AM$39,MATCH($A$2,'General Inputs'!$Q$35:$AM$35,0))*$DI30*$DU30) -> 0 | AL30: =IF(AL$12="n/a",0,INDEX('General Inputs'!$Q$39:$AM$39,MATCH($A$2,'General Inputs'!$Q$35:$AM$35,0))*$DJ30) -> 0 | AO30: n/a | AP30: 0 | AQ30: 0 | AR30: =IF(AR$12="n/a",0,SUMPRODUCT($BK30:$CG30,'General Inputs'!$Q$23:$AM$23,'General Inputs'!$Q$37:$AM$37)/(1-Loss_ElectricEnergy)) -> 0 | AS30: =IF(AS$12="n/a",0,SUMPRODUCT($BK30:$CG30,'General Inputs'!$Q$25:$AM$25,'General Inputs'!$Q$37:$AM$37)/(1-Loss_ElectricEnergy)) -> 0 | AT30: =IF(AT$12="n/a",0,SUMPRODUCT($CI30:$DE30,'General Inputs'!$Q$24:$AM$24,'General Inputs'!$Q$37:$AM$37))/(1-Loss_ElectricDemand) -> 0 | AU30: =IF(AU$12="n/a",0,SUMPRODUCT($BK30:$CG30,OFFSET('General Inputs'!$Q$29:$AM$29,MATCH($D30&"_Electric_$/kWh",'General Inputs'!$K$30:$K$31,0),),'General Inputs'!$Q$37:$AM$37) ) -> 0 | AV30: =IF(AV$12="n/a",0, INDEX('General Inputs'!$Q$37:$AM$37,MATCH($A$2,'General Inputs'!$Q$35:$AM$35,0))*$DI30*$DU30) -> 0 | AW30: =IF(AW$12="n/a",0,INDEX('General Inputs'!$Q$37:$AM$37,MATCH($A$2,'General Inputs'!$Q$35:$AM$35,0))*$DJ30) -> 0 | AZ30: n/a | BA30: 0 | BB30: 0 | BC30: =IF(BC$12="n/a",0,SUMPRODUCT($BK30:$CG30,'General Inputs'!$Q$23:$AM$23,'General Inputs'!$Q$40:$AM$40)/(1-Loss_ElectricEnergy)) -> 0 | BD30: =IF(BD$12="n/a",0,SUMPRODUCT($BK30:$CG30,'General Inputs'!$Q$25:$AM$25,'General Inputs'!$Q$40:$AM$40)/(1-Loss_ElectricEnergy)) -> 0 | BE30: =IF(BE$12="n/a",0,SUMPRODUCT($CI30:$DE30,'General Inputs'!$Q$24:$AM$24,'General Inputs'!$Q$40:$AM$40))/(1-Loss_ElectricDemand) -> 0 | BF30: =IF(BF$12="n/a",0,SUMPRODUCT($BK30:$CG30,OFFSET('General Inputs'!$Q$29:$AM$29,MATCH($D30&"_Electric_$/kWh",'General Inputs'!$K$30:$K$31,0),),'General Inputs'!$Q$40:$AM$40) ) -> 0 | BG30: =IF(BG$12="n/a",0, INDEX('General Inputs'!$Q$40:$AM$40,MATCH($A$2,'General Inputs'!$Q$35:$AM$35,0))*$DI30*$DU30) -> 0 | BH30: =IF(BH$12="n/a",0,INDEX('General Inputs'!$Q$40:$AM$40,MATCH($A$2,'General Inputs'!$Q$35:$AM$35,0))*$DJ30) -> 0 | BK30: 0 | BL30: 0 | BM30: 0 | BN30: 0 | BO30: 0 | BP30: 0 | BQ30: 0 | BR30: 0 | BS30: 0 | BT30: 0 | BU30: 0 | BV30: 0 | BW30: 0 | BX30: 0 | BY30: 0 | BZ30: 0 | CA30: 0 | CB30: 0 | CC30: 0 | CD30: 0 | CE30: 0 | CF30: 0 | CG30: 0 | CI30: 0 | CJ30: 0 | CK30: 0 | CL30: 0 | CM30: 0 | CN30: 0 | CO30: 0 | CP30: 0 | CQ30: 0 | CR30: 0 | CS30: 0 | CT30: 0 | CU30: 0 | CV30: 0 | CW30: 0 | CX30: 0 | CY30: 0 | CZ30: 0 | DA30: 0 | DB30: 0 | DC30: 0 | DD30: 0 | DE30: 0 | DG30: =INDEX('Measure Inputs'!$I:$I,MATCH($B30,'Measure Inputs'!$B:$B,0)) -> 0 | DH30: =INDEX('Measure Inputs'!N:N,MATCH($B30,'Measure Inputs'!$B:$B,0)) -> 15 | DI30: =INDEX('Measure Inputs'!M:M,MATCH($B30,'Measure Inputs'!$B:$B,0))*$DG30 -> 0 | DJ30: =INDEX('Measure Inputs'!$L:$L,MATCH($B30,'Measure Inputs'!$B:$B,0))*$DG30 -> 0 | DL30: 0 | DM30: 0 | DO30: 0 | DP30: 0 | DR30: =INDEX('Measure Inputs'!$J:$J,MATCH($B30,'Measure Inputs'!$B:$B,0))*$DG30 -> 0 | DS30: =INDEX('Measure Inputs'!$K:$K,MATCH($B30,'Measure Inputs'!$B:$B,0))*$DG30 -> 0 | DU30: =INDEX('Measure Inputs'!O:O,MATCH($B30,'Measure Inputs'!$B:$B,0)) -> 1
B31: C&I_C&I Prescriptive_High Bay Fluorescent Fixture w/ HE Electronic Ballast (T5 4-6 lamp) | C31: ='Measure Inputs'!D23 -> 18 | D31: =INDEX('Measure Inputs'!E:E,MATCH($C31,'Measure Inputs'!$D:$D,0)) -> C&I | E31: =INDEX('Measure Inputs'!F:F,MATCH($C31,'Measure Inputs'!$D:$D,0)) -> C&I Prescriptive | F31: =INDEX('Measure Inputs'!G:G,MATCH($C31,'Measure Inputs'!$D:$D,0)) -> High Bay Fluorescent Fixture w/ HE Electronic Ballast (T5 4-6 lamp) | H31: n/a | I31: =SUMIFS(K31:Q31,K$12:Q$12,"BENEFIT") -> 0 | J31: =SUMIFS(K31:Q31,K$12:Q$12,"COST") -> 0 | K31: =IF(K$12="n/a",0,SUMPRODUCT($BK31:$CG31,'General Inputs'!$Q$23:$AM$23,'General Inputs'!$Q$38:$AM$38)/(1-Loss_ElectricEnergy)) -> 0 | L31: =IF(L$12="n/a",0,SUMPRODUCT($BK31:$CG31,'General Inputs'!$Q$25:$AM$25,'General Inputs'!$Q$38:$AM$38)/(1-Loss_ElectricEnergy)) -> 0 | M31: =IF(M$12="n/a",0,SUMPRODUCT($CI31:$DE31,'General Inputs'!$Q$24:$AM$24,'General Inputs'!$Q$38:$AM$38))/(1-Loss_ElectricDemand) -> 0 | N31: =IF(N$12="n/a",0,SUMPRODUCT($BK31:$CG31,OFFSET('General Inputs'!$Q$29:$AM$29,MATCH($D31&"_Electric_$/kWh",'General Inputs'!$K$30:$K$31,0),),'General Inputs'!$Q$38:$AM$38) ) -> 0 | O31: =IF(O$12="n/a",0, INDEX('General Inputs'!$Q$38:$AM$38,MATCH($A$2,'General Inputs'!$Q$35:$AM$35,0))*$DI31*$DU31) -> 0 | P31: =IF(P$12="n/a",0,INDEX('General Inputs'!$Q$38:$AM$38,MATCH($A$2,'General Inputs'!$Q$35:$AM$35,0))*$DJ31) -> 0 | S31: n/a | T31: =SUMIFS(V31:AB31,V$12:AB$12,"BENEFIT") -> 0 | U31: =SUMIFS(V31:AB31,V$12:AB$12,"COST") -> 0 | V31: =IF(V$12="n/a",0,SUMPRODUCT($BK31:$CG31,'General Inputs'!$Q$23:$AM$23,'General Inputs'!$Q$36:$AM$36)/(1-Loss_ElectricEnergy)) -> 0 | W31: =IF(W$12="n/a",0,SUMPRODUCT($BK31:$CG31,'General Inputs'!$Q$25:$AM$25,'General Inputs'!$Q$36:$AM$36)/(1-Loss_ElectricEnergy)) -> 0 | X31: =IF(X$12="n/a",0,SUMPRODUCT($CI31:$DE31,'General Inputs'!$Q$24:$AM$24,'General Inputs'!$Q$36:$AM$36))/(1-Loss_ElectricDemand) -> 0 | Y31: =IF(Y$12="n/a",0,SUMPRODUCT($BK31:$CG31,OFFSET('General Inputs'!$Q$29:$AM$29,MATCH($D31&"_Electric_$/kWh",'General Inputs'!$K$30:$K$31,0),),'General Inputs'!$Q$36:$AM$36) ) -> 0 | Z31: =IF(Z$12="n/a",0, (INDEX('General Inputs'!$Q$36:$AM$36,MATCH($A$2,'General Inputs'!$Q$35:$AM$35,0))*$DI31+ IFERROR((INDEX('General Inputs'!$Q$36:$AM$36,MATCH($A$2+#REF!,'General Inputs'!$Q$35:$AM$35,0))*-#REF!),0)) *$DU31) -> 0 | AA31: =IF(AA$12="n/a",0,INDEX('General Inputs'!$Q$36:$AM$36,MATCH($A$2,'General Inputs'!$Q$35:$AM$35,0))*$DJ31) -> 0 | AD31: n/a | AE31: =SUMIFS(AG31:AM31,AG$12:AM$12,"BENEFIT") -> 0 | AF31: =SUMIFS(AG31:AM31,AG$12:AM$12,"COST") -> 0 | AG31: =IF(AG$12="n/a",0,SUMPRODUCT($BK31:$CG31,'General Inputs'!$Q$23:$AM$23,'General Inputs'!$Q$39:$AM$39)/(1-Loss_ElectricEnergy)) -> 0 | AH31: =IF(AH$12="n/a",0,SUMPRODUCT($BK31:$CG31,'General Inputs'!$Q$25:$AM$25,'General Inputs'!$Q$39:$AM$39)/(1-Loss_ElectricEnergy)) -> 0 | AI31: =IF(AI$12="n/a",0,SUMPRODUCT($CI31:$DE31,'General Inputs'!$Q$24:$AM$24,'General Inputs'!$Q$39:$AM$39))/(1-Loss_ElectricDemand) -> 0 | AJ31: =IF(AJ$12="n/a",0,SUMPRODUCT($BK31:$CG31,OFFSET('General Inputs'!$Q$29:$AM$29,MATCH($D31&"_Electric_$/kWh",'General Inputs'!$K$30:$K$31,0),),'General Inputs'!$Q$39:$AM$39) ) -> 0 | AK31: =IF(AK$12="n/a",0, INDEX('General Inputs'!$Q$39:$AM$39,MATCH($A$2,'General Inputs'!$Q$35:$AM$35,0))*$DI31*$DU31) -> 0 | AL31: =IF(AL$12="n/a",0,INDEX('General Inputs'!$Q$39:$AM$39,MATCH($A$2,'General Inputs'!$Q$35:$AM$35,0))*$DJ31) -> 0 | AO31: n/a | AP31: =SUMIFS(AR31:AX31,AR$12:AX$12,"BENEFIT") -> 0 | AQ31: =SUMIFS(AR31:AX31,AR$12:AX$12,"COST") -> 0 | AR31: =IF(AR$12="n/a",0,SUMPRODUCT($BK31:$CG31,'General Inputs'!$Q$23:$AM$23,'General Inputs'!$Q$37:$AM$37)/(1-Loss_ElectricEnergy)) -> 0 | AS31: =IF(AS$12="n/a",0,SUMPRODUCT($BK31:$CG31,'General Inputs'!$Q$25:$AM$25,'General Inputs'!$Q$37:$AM$37)/(1-Loss_ElectricEnergy)) -> 0 | AT31: =IF(AT$12="n/a",0,SUMPRODUCT($CI31:$DE31,'General Inputs'!$Q$24:$AM$24,'General Inputs'!$Q$37:$AM$37))/(1-Loss_ElectricDemand) -> 0 | AU31: =IF(AU$12="n/a",0,SUMPRODUCT($BK31:$CG31,OFFSET('General Inputs'!$Q$29:$AM$29,MATCH($D31&"_Electric_$/kWh",'General Inputs'!$K$30:$K$31,0),),'General Inputs'!$Q$37:$AM$37) ) -> 0 | AV31: =IF(AV$12="n/a",0, INDEX('General Inputs'!$Q$37:$AM$37,MATCH($A$2,'General Inputs'!$Q$35:$AM$35,0))*$DI31*$DU31) -> 0 | AW31: =IF(AW$12="n/a",0,INDEX('General Inputs'!$Q$37:$AM$37,MATCH($A$2,'General Inputs'!$Q$35:$AM$35,0))*$DJ31) -> 0 | AZ31: n/a | BA31: =SUMIFS(BC31:BI31,BC$12:BI$12,"BENEFIT") -> 0 | BB31: =SUMIFS(BC31:BI31,BC$12:BI$12,"COST") -> 0 | BC31: =IF(BC$12="n/a",0,SUMPRODUCT($BK31:$CG31,'General Inputs'!$Q$23:$AM$23,'General Inputs'!$Q$40:$AM$40)/(1-Loss_ElectricEnergy)) -> 0 | BD31: =IF(BD$12="n/a",0,SUMPRODUCT($BK31:$CG31,'General Inputs'!$Q$25:$AM$25,'General Inputs'!$Q$40:$AM$40)/(1-Loss_ElectricEnergy)) -> 0 | BE31: =IF(BE$12="n/a",0,SUMPRODUCT($CI31:$DE31,'General Inputs'!$Q$24:$AM$24,'General Inputs'!$Q$40:$AM$40))/(1-Loss_ElectricDemand) -> 0 | BF31: =IF(BF$12="n/a",0,SUMPRODUCT($BK31:$CG31,OFFSET('General Inputs'!$Q$29:$AM$29,MATCH($D31&"_Electric_$/kWh",'General Inputs'!$K$30:$K$31,0),),'General Inputs'!$Q$40:$AM$40) ) -> 0 | BG31: =IF(BG$12="n/a",0, INDEX('General Inputs'!$Q$40:$AM$40,MATCH($A$2,'General Inputs'!$Q$35:$AM$35,0))*$DI31*$DU31) -> 0 | BH31: =IF(BH$12="n/a",0,INDEX('General Inputs'!$Q$40:$AM$40,MATCH($A$2,'General Inputs'!$Q$35:$AM$35,0))*$DJ31) -> 0 | BK31: 0 | BL31: 0 | BM31: 0 | BN31: 0 | BO31: 0 | BP31: 0 | BQ31: 0 | BR31: 0 | BS31: 0 | BT31: 0 | BU31: 0 | BV31: 0 | BW31: 0 | BX31: 0 | BY31: 0 | BZ31: 0 | CA31: 0 | CB31: 0 | CC31: 0 | CD31: 0 | CE31: 0 | CF31: 0 | CG31: 0 | CI31: 0 | CJ31: 0 | CK31: 0 | CL31: 0 | CM31: 0 | CN31: 0 | CO31: 0 | CP31: 0 | CQ31: 0 | CR31: 0 | CS31: 0 | CT31: 0 | CU31: 0 | CV31: 0 | CW31: 0 | CX31: 0 | CY31: 0 | CZ31: 0 | DA31: 0 | DB31: 0 | DC31: 0 | DD31: 0 | DE31: 0 | DG31: =INDEX('Measure Inputs'!$I:$I,MATCH($B31,'Measure Inputs'!$B:$B,0)) -> 0 | DH31: =INDEX('Measure Inputs'!N:N,MATCH($B31,'Measure Inputs'!$B:$B,0)) -> 15 | DI31: =INDEX('Measure Inputs'!M:M,MATCH($B31,'Measure Inputs'!$B:$B,0))*$DG31 -> 0 | DJ31: =INDEX('Measure Inputs'!$L:$L,MATCH($B31,'Measure Inputs'!$B:$B,0))*$DG31 -> 0 | DL31: 0 | DM31: 0 | DO31: 0 | DP31: 0 | DR31: =INDEX('Measure Inputs'!$J:$J,MATCH($B31,'Measure Inputs'!$B:$B,0))*$DG31 -> 0 | DS31: =INDEX('Measure Inputs'!$K:$K,MATCH($B31,'Measure Inputs'!$B:$B,0))*$DG31 -> 0 | DU31: =INDEX('Measure Inputs'!O:O,MATCH($B31,'Measure Inputs'!$B:$B,0)) -> 1
B32: C&I_C&I Prescriptive_High Bay Fluorescent Fixture w/ HE Electronic Ballast (T5 8-lamp) | C32: ='Measure Inputs'!D24 -> 19 | D32: =INDEX('Measure Inputs'!E:E,MATCH($C32,'Measure Inputs'!$D:$D,0)) -> C&I | E32: =INDEX('Measure Inputs'!F:F,MATCH($C32,'Measure Inputs'!$D:$D,0)) -> C&I Prescriptive | F32: =INDEX('Measure Inputs'!G:G,MATCH($C32,'Measure Inputs'!$D:$D,0)) -> High Bay Fluorescent Fixture w/ HE Electronic Ballast (T5 8-lamp) | H32: n/a | I32: 0 | J32: 0 | K32: =IF(K$12="n/a",0,SUMPRODUCT($BK32:$CG32,'General Inputs'!$Q$23:$AM$23,'General Inputs'!$Q$38:$AM$38)/(1-Loss_ElectricEnergy)) -> 0 | L32: =IF(L$12="n/a",0,SUMPRODUCT($BK32:$CG32,'General Inputs'!$Q$25:$AM$25,'General Inputs'!$Q$38:$AM$38)/(1-Loss_ElectricEnergy)) -> 0 | M32: =IF(M$12="n/a",0,SUMPRODUCT($CI32:$DE32,'General Inputs'!$Q$24:$AM$24,'General Inputs'!$Q$38:$AM$38))/(1-Loss_ElectricDemand) -> 0 | N32: =IF(N$12="n/a",0,SUMPRODUCT($BK32:$CG32,OFFSET('General Inputs'!$Q$29:$AM$29,MATCH($D32&"_Electric_$/kWh",'General Inputs'!$K$30:$K$31,0),),'General Inputs'!$Q$38:$AM$38) ) -> 0 | O32: =IF(O$12="n/a",0, INDEX('General Inputs'!$Q$38:$AM$38,MATCH($A$2,'General Inputs'!$Q$35:$AM$35,0))*$DI32*$DU32) -> 0 | P32: =IF(P$12="n/a",0,INDEX('General Inputs'!$Q$38:$AM$38,MATCH($A$2,'General Inputs'!$Q$35:$AM$35,0))*$DJ32) -> 0 | S32: n/a | T32: 0 | U32: 0 | V32: =IF(V$12="n/a",0,SUMPRODUCT($BK32:$CG32,'General Inputs'!$Q$23:$AM$23,'General Inputs'!$Q$36:$AM$36)/(1-Loss_ElectricEnergy)) -> 0 | W32: =IF(W$12="n/a",0,SUMPRODUCT($BK32:$CG32,'General Inputs'!$Q$25:$AM$25,'General Inputs'!$Q$36:$AM$36)/(1-Loss_ElectricEnergy)) -> 0 | X32: =IF(X$12="n/a",0,SUMPRODUCT($CI32:$DE32,'General Inputs'!$Q$24:$AM$24,'General Inputs'!$Q$36:$AM$36))/(1-Loss_ElectricDemand) -> 0 | Y32: =IF(Y$12="n/a",0,SUMPRODUCT($BK32:$CG32,OFFSET('General Inputs'!$Q$29:$AM$29,MATCH($D32&"_Electric_$/kWh",'General Inputs'!$K$30:$K$31,0),),'General Inputs'!$Q$36:$AM$36) ) -> 0 | Z32: =IF(Z$12="n/a",0, (INDEX('General Inputs'!$Q$36:$AM$36,MATCH($A$2,'General Inputs'!$Q$35:$AM$35,0))*$DI32+ IFERROR((INDEX('General Inputs'!$Q$36:$AM$36,MATCH($A$2+#REF!,'General Inputs'!$Q$35:$AM$35,0))*-#REF!),0)) *$DU32) -> 0 | AA32: =IF(AA$12="n/a",0,INDEX('General Inputs'!$Q$36:$AM$36,MATCH($A$2,'General Inputs'!$Q$35:$AM$35,0))*$DJ32) -> 0 | AD32: n/a | AE32: 0 | AF32: 0 | AG32: =IF(AG$12="n/a",0,SUMPRODUCT($BK32:$CG32,'General Inputs'!$Q$23:$AM$23,'General Inputs'!$Q$39:$AM$39)/(1-Loss_ElectricEnergy)) -> 0 | AH32: =IF(AH$12="n/a",0,SUMPRODUCT($BK32:$CG32,'General Inputs'!$Q$25:$AM$25,'General Inputs'!$Q$39:$AM$39)/(1-Loss_ElectricEnergy)) -> 0 | AI32: =IF(AI$12="n/a",0,SUMPRODUCT($CI32:$DE32,'General Inputs'!$Q$24:$AM$24,'General Inputs'!$Q$39:$AM$39))/(1-Loss_ElectricDemand) -> 0 | AJ32: =IF(AJ$12="n/a",0,SUMPRODUCT($BK32:$CG32,OFFSET('General Inputs'!$Q$29:$AM$29,MATCH($D32&"_Electric_$/kWh",'General Inputs'!$K$30:$K$31,0),),'General Inputs'!$Q$39:$AM$39) ) -> 0 | AK32: =IF(AK$12="n/a",0, INDEX('General Inputs'!$Q$39:$AM$39,MATCH($A$2,'General Inputs'!$Q$35:$AM$35,0))*$DI32*$DU32) -> 0 | AL32: =IF(AL$12="n/a",0,INDEX('General Inputs'!$Q$39:$AM$39,MATCH($A$2,'General Inputs'!$Q$35:$AM$35,0))*$DJ32) -> 0 | AO32: n/a | AP32: 0 | AQ32: 0 | AR32: =IF(AR$12="n/a",0,SUMPRODUCT($BK32:$CG32,'General Inputs'!$Q$23:$AM$23,'General Inputs'!$Q$37:$AM$37)/(1-Loss_ElectricEnergy)) -> 0 | AS32: =IF(AS$12="n/a",0,SUMPRODUCT($BK32:$CG32,'General Inputs'!$Q$25:$AM$25,'General Inputs'!$Q$37:$AM$37)/(1-Loss_ElectricEnergy)) -> 0 | AT32: =IF(AT$12="n/a",0,SUMPRODUCT($CI32:$DE32,'General Inputs'!$Q$24:$AM$24,'General Inputs'!$Q$37:$AM$37))/(1-Loss_ElectricDemand) -> 0 | AU32: =IF(AU$12="n/a",0,SUMPRODUCT($BK32:$CG32,OFFSET('General Inputs'!$Q$29:$AM$29,MATCH($D32&"_Electric_$/kWh",'General Inputs'!$K$30:$K$31,0),),'General Inputs'!$Q$37:$AM$37) ) -> 0 | AV32: =IF(AV$12="n/a",0, INDEX('General Inputs'!$Q$37:$AM$37,MATCH($A$2,'General Inputs'!$Q$35:$AM$35,0))*$DI32*$DU32) -> 0 | AW32: =IF(AW$12="n/a",0,INDEX('General Inputs'!$Q$37:$AM$37,MATCH($A$2,'General Inputs'!$Q$35:$AM$35,0))*$DJ32) -> 0 | AZ32: n/a | BA32: 0 | BB32: 0 | BC32: =IF(BC$12="n/a",0,SUMPRODUCT($BK32:$CG32,'General Inputs'!$Q$23:$AM$23,'General Inputs'!$Q$40:$AM$40)/(1-Loss_ElectricEnergy)) -> 0 | BD32: =IF(BD$12="n/a",0,SUMPRODUCT($BK32:$CG32,'General Inputs'!$Q$25:$AM$25,'General Inputs'!$Q$40:$AM$40)/(1-Loss_ElectricEnergy)) -> 0 | BE32: =IF(BE$12="n/a",0,SUMPRODUCT($CI32:$DE32,'General Inputs'!$Q$24:$AM$24,'General Inputs'!$Q$40:$AM$40))/(1-Loss_ElectricDemand) -> 0 | BF32: =IF(BF$12="n/a",0,SUMPRODUCT($BK32:$CG32,OFFSET('General Inputs'!$Q$29:$AM$29,MATCH($D32&"_Electric_$/kWh",'General Inputs'!$K$30:$K$31,0),),'General Inputs'!$Q$40:$AM$40) ) -> 0 | BG32: =IF(BG$12="n/a",0, INDEX('General Inputs'!$Q$40:$AM$40,MATCH($A$2,'General Inputs'!$Q$35:$AM$35,0))*$DI32*$DU32) -> 0 | BH32: =IF(BH$12="n/a",0,INDEX('General Inputs'!$Q$40:$AM$40,MATCH($A$2,'General Inputs'!$Q$35:$AM$35,0))*$DJ32) -> 0 | BK32: 0 | BL32: 0 | BM32: 0 | BN32: 0 | BO32: 0 | BP32: 0 | BQ32: 0 | BR32: 0 | BS32: 0 | BT32: 0 | BU32: 0 | BV32: 0 | BW32: 0 | BX32: 0 | BY32: 0 | BZ32: 0 | CA32: 0 | CB32: 0 | CC32: 0 | CD32: 0 | CE32: 0 | CF32: 0 | CG32: 0 | CI32: 0 | CJ32: 0 | CK32: 0 | CL32: 0 | CM32: 0 | CN32: 0 | CO32: 0 | CP32: 0 | CQ32: 0 | CR32: 0 | CS32: 0 | CT32: 0 | CU32: 0 | CV32: 0 | CW32: 0 | CX32: 0 | CY32: 0 | CZ32: 0 | DA32: 0 | DB32: 0 | DC32: 0 | DD32: 0 | DE32: 0 | DG32: =INDEX('Measure Inputs'!$I:$I,MATCH($B32,'Measure Inputs'!$B:$B,0)) -> 0 | DH32: =INDEX('Measure Inputs'!N:N,MATCH($B32,'Measure Inputs'!$B:$B,0)) -> 15 | DI32: =INDEX('Measure Inputs'!M:M,MATCH($B32,'Measure Inputs'!$B:$B,0))*$DG32 -> 0 | DJ32: =INDEX('Measure Inputs'!$L:$L,MATCH($B32,'Measure Inputs'!$B:$B,0))*$DG32 -> 0 | DL32: 0 | DM32: 0 | DO32: 0 | DP32: 0 | DR32: =INDEX('Measure Inputs'!$J:$J,MATCH($B32,'Measure Inputs'!$B:$B,0))*$DG32 -> 0 | DS32: =INDEX('Measure Inputs'!$K:$K,MATCH($B32,'Measure Inputs'!$B:$B,0))*$DG32 -> 0 | DU32: =INDEX('Measure Inputs'!O:O,MATCH($B32,'Measure Inputs'!$B:$B,0)) -> 1
B33: C&I_C&I Prescriptive_High Bay Fluorescent Fixture w/ HE Electronic Ballast (T5 10-lamp) | C33: ='Measure Inputs'!D25 -> 20 | D33: =INDEX('Measure Inputs'!E:E,MATCH($C33,'Measure Inputs'!$D:$D,0)) -> C&I | E33: =INDEX('Measure Inputs'!F:F,MATCH($C33,'Measure Inputs'!$D:$D,0)) -> C&I Prescriptive | F33: =INDEX('Measure Inputs'!G:G,MATCH($C33,'Measure Inputs'!$D:$D,0)) -> High Bay Fluorescent Fixture w/ HE Electronic Ballast (T5 10-lamp) | H33: n/a | I33: 0 | J33: 0 | K33: =IF(K$12="n/a",0,SUMPRODUCT($BK33:$CG33,'General Inputs'!$Q$23:$AM$23,'General Inputs'!$Q$38:$AM$38)/(1-Loss_ElectricEnergy)) -> 0 | L33: =IF(L$12="n/a",0,SUMPRODUCT($BK33:$CG33,'General Inputs'!$Q$25:$AM$25,'General Inputs'!$Q$38:$AM$38)/(1-Loss_ElectricEnergy)) -> 0 | M33: =IF(M$12="n/a",0,SUMPRODUCT($CI33:$DE33,'General Inputs'!$Q$24:$AM$24,'General Inputs'!$Q$38:$AM$38))/(1-Loss_ElectricDemand) -> 0 | N33: =IF(N$12="n/a",0,SUMPRODUCT($BK33:$CG33,OFFSET('General Inputs'!$Q$29:$AM$29,MATCH($D33&"_Electric_$/kWh",'General Inputs'!$K$30:$K$31,0),),'General Inputs'!$Q$38:$AM$38) ) -> 0 | O33: =IF(O$12="n/a",0, INDEX('General Inputs'!$Q$38:$AM$38,MATCH($A$2,'General Inputs'!$Q$35:$AM$35,0))*$DI33*$DU33) -> 0 | P33: =IF(P$12="n/a",0,INDEX('General Inputs'!$Q$38:$AM$38,MATCH($A$2,'General Inputs'!$Q$35:$AM$35,0))*$DJ33) -> 0 | S33: n/a | T33: 0 | U33: 0 | V33: =IF(V$12="n/a",0,SUMPRODUCT($BK33:$CG33,'General Inputs'!$Q$23:$AM$23,'General Inputs'!$Q$36:$AM$36)/(1-Loss_ElectricEnergy)) -> 0 | W33: =IF(W$12="n/a",0,SUMPRODUCT($BK33:$CG33,'General Inputs'!$Q$25:$AM$25,'General Inputs'!$Q$36:$AM$36)/(1-Loss_ElectricEnergy)) -> 0 | X33: =IF(X$12="n/a",0,SUMPRODUCT($CI33:$DE33,'General Inputs'!$Q$24:$AM$24,'General Inputs'!$Q$36:$AM$36))/(1-Loss_ElectricDemand) -> 0 | Y33: =IF(Y$12="n/a",0,SUMPRODUCT($BK33:$CG33,OFFSET('General Inputs'!$Q$29:$AM$29,MATCH($D33&"_Electric_$/kWh",'General Inputs'!$K$30:$K$31,0),),'General Inputs'!$Q$36:$AM$36) ) -> 0 | Z33: =IF(Z$12="n/a",0, (INDEX('General Inputs'!$Q$36:$AM$36,MATCH($A$2,'General Inputs'!$Q$35:$AM$35,0))*$DI33+ IFERROR((INDEX('General Inputs'!$Q$36:$AM$36,MATCH($A$2+#REF!,'General Inputs'!$Q$35:$AM$35,0))*-#REF!),0)) *$DU33) -> 0 | AA33: =IF(AA$12="n/a",0,INDEX('General Inputs'!$Q$36:$AM$36,MATCH($A$2,'General Inputs'!$Q$35:$AM$35,0))*$DJ33) -> 0 | AD33: n/a | AE33: 0 | AF33: 0 | AG33: =IF(AG$12="n/a",0,SUMPRODUCT($BK33:$CG33,'General Inputs'!$Q$23:$AM$23,'General Inputs'!$Q$39:$AM$39)/(1-Loss_ElectricEnergy)) -> 0 | AH33: =IF(AH$12="n/a",0,SUMPRODUCT($BK33:$CG33,'General Inputs'!$Q$25:$AM$25,'General Inputs'!$Q$39:$AM$39)/(1-Loss_ElectricEnergy)) -> 0 | AI33: =IF(AI$12="n/a",0,SUMPRODUCT($CI33:$DE33,'General Inputs'!$Q$24:$AM$24,'General Inputs'!$Q$39:$AM$39))/(1-Loss_ElectricDemand) -> 0 | AJ33: =IF(AJ$12="n/a",0,SUMPRODUCT($BK33:$CG33,OFFSET('General Inputs'!$Q$29:$AM$29,MATCH($D33&"_Electric_$/kWh",'General Inputs'!$K$30:$K$31,0),),'General Inputs'!$Q$39:$AM$39) ) -> 0 | AK33: =IF(AK$12="n/a",0, INDEX('General Inputs'!$Q$39:$AM$39,MATCH($A$2,'General Inputs'!$Q$35:$AM$35,0))*$DI33*$DU33) -> 0 | AL33: =IF(AL$12="n/a",0,INDEX('General Inputs'!$Q$39:$AM$39,MATCH($A$2,'General Inputs'!$Q$35:$AM$35,0))*$DJ33) -> 0 | AO33: n/a | AP33: 0 | AQ33: 0 | AR33: =IF(AR$12="n/a",0,SUMPRODUCT($BK33:$CG33,'General Inputs'!$Q$23:$AM$23,'General Inputs'!$Q$37:$AM$37)/(1-Loss_ElectricEnergy)) -> 0 | AS33: =IF(AS$12="n/a",0,SUMPRODUCT($BK33:$CG33,'General Inputs'!$Q$25:$AM$25,'General Inputs'!$Q$37:$AM$37)/(1-Loss_ElectricEnergy)) -> 0 | AT33: =IF(AT$12="n/a",0,SUMPRODUCT($CI33:$DE33,'General Inputs'!$Q$24:$AM$24,'General Inputs'!$Q$37:$AM$37))/(1-Loss_ElectricDemand) -> 0 | AU33: =IF(AU$12="n/a",0,SUMPRODUCT($BK33:$CG33,OFFSET('General Inputs'!$Q$29:$AM$29,MATCH($D33&"_Electric_$/kWh",'General Inputs'!$K$30:$K$31,0),),'General Inputs'!$Q$37:$AM$37) ) -> 0 | AV33: =IF(AV$12="n/a",0, INDEX('General Inputs'!$Q$37:$AM$37,MATCH($A$2,'General Inputs'!$Q$35:$AM$35,0))*$DI33*$DU33) -> 0 | AW33: =IF(AW$12="n/a",0,INDEX('General Inputs'!$Q$37:$AM$37,MATCH($A$2,'General Inputs'!$Q$35:$AM$35,0))*$DJ33) -> 0 | AZ33: n/a | BA33: 0 | BB33: 0 | BC33: =IF(BC$12="n/a",0,SUMPRODUCT($BK33:$CG33,'General Inputs'!$Q$23:$AM$23,'General Inputs'!$Q$40:$AM$40)/(1-Loss_ElectricEnergy)) -> 0 | BD33: =IF(BD$12="n/a",0,SUMPRODUCT($BK33:$CG33,'General Inputs'!$Q$25:$AM$25,'General Inputs'!$Q$40:$AM$40)/(1-Loss_ElectricEnergy)) -> 0 | BE33: =IF(BE$12="n/a",0,SUMPRODUCT($CI33:$DE33,'General Inputs'!$Q$24:$AM$24,'General Inputs'!$Q$40:$AM$40))/(1-Loss_ElectricDemand) -> 0 | BF33: =IF(BF$12="n/a",0,SUMPRODUCT($BK33:$CG33,OFFSET('General Inputs'!$Q$29:$AM$29,MATCH($D33&"_Electric_$/kWh",'General Inputs'!$K$30:$K$31,0),),'General Inputs'!$Q$40:$AM$40) ) -> 0 | BG33: =IF(BG$12="n/a",0, INDEX('General Inputs'!$Q$40:$AM$40,MATCH($A$2,'General Inputs'!$Q$35:$AM$35,0))*$DI33*$DU33) -> 0 | BH33: =IF(BH$12="n/a",0,INDEX('General Inputs'!$Q$40:$AM$40,MATCH($A$2,'General Inputs'!$Q$35:$AM$35,0))*$DJ33) -> 0 | BK33: 0 | BL33: 0 | BM33: 0 | BN33: 0 | BO33: 0 | BP33: 0 | BQ33: 0 | BR33: 0 | BS33: 0 | BT33: 0 | BU33: 0 | BV33: 0 | BW33: 0 | BX33: 0 | BY33: 0 | BZ33: 0 | CA33: 0 | CB33: 0 | CC33: 0 | CD33: 0 | CE33: 0 | CF33: 0 | CG33: 0 | CI33: 0 | CJ33: 0 | CK33: 0 | CL33: 0 | CM33: 0 | CN33: 0 | CO33: 0 | CP33: 0 | CQ33: 0 | CR33: 0 | CS33: 0 | CT33: 0 | CU33: 0 | CV33: 0 | CW33: 0 | CX33: 0 | CY33: 0 | CZ33: 0 | DA33: 0 | DB33: 0 | DC33: 0 | DD33: 0 | DE33: 0 | DG33: =INDEX('Measure Inputs'!$I:$I,MATCH($B33,'Measure Inputs'!$B:$B,0)) -> 0 | DH33: =INDEX('Measure Inputs'!N:N,MATCH($B33,'Measure Inputs'!$B:$B,0)) -> 15 | DI33: =INDEX('Measure Inputs'!M:M,MATCH($B33,'Measure Inputs'!$B:$B,0))*$DG33 -> 0 | DJ33: =INDEX('Measure Inputs'!$L:$L,MATCH($B33,'Measure Inputs'!$B:$B,0))*$DG33 -> 0 | DL33: 0 | DM33: 0 | DO33: 0 | DP33: 0 | DR33: =INDEX('Measure Inputs'!$J:$J,MATCH($B33,'Measure Inputs'!$B:$B,0))*$DG33 -> 0 | DS33: =INDEX('Measure Inputs'!$K:$K,MATCH($B33,'Measure Inputs'!$B:$B,0))*$DG33 -> 0 | DU33: =INDEX('Measure Inputs'!O:O,MATCH($B33,'Measure Inputs'!$B:$B,0)) -> 1
B34: C&I_C&I Prescriptive_High Bay Fluorescent Fixture w/ HE Electronic Ballast (T8 4 lamp) | C34: ='Measure Inputs'!D26 -> 21 | D34: =INDEX('Measure Inputs'!E:E,MATCH($C34,'Measure Inputs'!$D:$D,0)) -> C&I | E34: =INDEX('Measure Inputs'!F:F,MATCH($C34,'Measure Inputs'!$D:$D,0)) -> C&I Prescriptive | F34: =INDEX('Measure Inputs'!G:G,MATCH($C34,'Measure Inputs'!$D:$D,0)) -> High Bay Fluorescent Fixture w/ HE Electronic Ballast (T8 4 lamp) | H34: n/a | I34: 0 | J34: 0 | K34: =IF(K$12="n/a",0,SUMPRODUCT($BK34:$CG34,'General Inputs'!$Q$23:$AM$23,'General Inputs'!$Q$38:$AM$38)/(1-Loss_ElectricEnergy)) -> 0 | L34: =IF(L$12="n/a",0,SUMPRODUCT($BK34:$CG34,'General Inputs'!$Q$25:$AM$25,'General Inputs'!$Q$38:$AM$38)/(1-Loss_ElectricEnergy)) -> 0 | M34: =IF(M$12="n/a",0,SUMPRODUCT($CI34:$DE34,'General Inputs'!$Q$24:$AM$24,'General Inputs'!$Q$38:$AM$38))/(1-Loss_ElectricDemand) -> 0 | N34: =IF(N$12="n/a",0,SUMPRODUCT($BK34:$CG34,OFFSET('General Inputs'!$Q$29:$AM$29,MATCH($D34&"_Electric_$/kWh",'General Inputs'!$K$30:$K$31,0),),'General Inputs'!$Q$38:$AM$38) ) -> 0 | O34: =IF(O$12="n/a",0, INDEX('General Inputs'!$Q$38:$AM$38,MATCH($A$2,'General Inputs'!$Q$35:$AM$35,0))*$DI34*$DU34) -> 0 | P34: =IF(P$12="n/a",0,INDEX('General Inputs'!$Q$38:$AM$38,MATCH($A$2,'General Inputs'!$Q$35:$AM$35,0))*$DJ34) -> 0 | S34: n/a | T34: 0 | U34: 0 | V34: =IF(V$12="n/a",0,SUMPRODUCT($BK34:$CG34,'General Inputs'!$Q$23:$AM$23,'General Inputs'!$Q$36:$AM$36)/(1-Loss_ElectricEnergy)) -> 0 | W34: =IF(W$12="n/a",0,SUMPRODUCT($BK34:$CG34,'General Inputs'!$Q$25:$AM$25,'General Inputs'!$Q$36:$AM$36)/(1-Loss_ElectricEnergy)) -> 0 | X34: =IF(X$12="n/a",0,SUMPRODUCT($CI34:$DE34,'General Inputs'!$Q$24:$AM$24,'General Inputs'!$Q$36:$AM$36))/(1-Loss_ElectricDemand) -> 0 | Y34: =IF(Y$12="n/a",0,SUMPRODUCT($BK34:$CG34,OFFSET('General Inputs'!$Q$29:$AM$29,MATCH($D34&"_Electric_$/kWh",'General Inputs'!$K$30:$K$31,0),),'General Inputs'!$Q$36:$AM$36) ) -> 0 | Z34: =IF(Z$12="n/a",0, (INDEX('General Inputs'!$Q$36:$AM$36,MATCH($A$2,'General Inputs'!$Q$35:$AM$35,0))*$DI34+ IFERROR((INDEX('General Inputs'!$Q$36:$AM$36,MATCH($A$2+#REF!,'General Inputs'!$Q$35:$AM$35,0))*-#REF!),0)) *$DU34) -> 0 | AA34: =IF(AA$12="n/a",0,INDEX('General Inputs'!$Q$36:$AM$36,MATCH($A$2,'General Inputs'!$Q$35:$AM$35,0))*$DJ34) -> 0 | AD34: n/a | AE34: 0 | AF34: 0 | AG34: =IF(AG$12="n/a",0,SUMPRODUCT($BK34:$CG34,'General Inputs'!$Q$23:$AM$23,'General Inputs'!$Q$39:$AM$39)/(1-Loss_ElectricEnergy)) -> 0 | AH34: =IF(AH$12="n/a",0,SUMPRODUCT($BK34:$CG34,'General Inputs'!$Q$25:$AM$25,'General Inputs'!$Q$39:$AM$39)/(1-Loss_ElectricEnergy)) -> 0 | AI34: =IF(AI$12="n/a",0,SUMPRODUCT($CI34:$DE34,'General Inputs'!$Q$24:$AM$24,'General Inputs'!$Q$39:$AM$39))/(1-Loss_ElectricDemand) -> 0 | AJ34: =IF(AJ$12="n/a",0,SUMPRODUCT($BK34:$CG34,OFFSET('General Inputs'!$Q$29:$AM$29,MATCH($D34&"_Electric_$/kWh",'General Inputs'!$K$30:$K$31,0),),'General Inputs'!$Q$39:$AM$39) ) -> 0 | AK34: =IF(AK$12="n/a",0, INDEX('General Inputs'!$Q$39:$AM$39,MATCH($A$2,'General Inputs'!$Q$35:$AM$35,0))*$DI34*$DU34) -> 0 | AL34: =IF(AL$12="n/a",0,INDEX('General Inputs'!$Q$39:$AM$39,MATCH($A$2,'General Inputs'!$Q$35:$AM$35,0))*$DJ34) -> 0 | AO34: n/a | AP34: 0 | AQ34: 0 | AR34: =IF(AR$12="n/a",0,SUMPRODUCT($BK34:$CG34,'General Inputs'!$Q$23:$AM$23,'General Inputs'!$Q$37:$AM$37)/(1-Loss_ElectricEnergy)) -> 0 | AS34: =IF(AS$12="n/a",0,SUMPRODUCT($BK34:$CG34,'General Inputs'!$Q$25:$AM$25,'General Inputs'!$Q$37:$AM$37)/(1-Loss_ElectricEnergy)) -> 0 | AT34: =IF(AT$12="n/a",0,SUMPRODUCT($CI34:$DE34,'General Inputs'!$Q$24:$AM$24,'General Inputs'!$Q$37:$AM$37))/(1-Loss_ElectricDemand) -> 0 | AU34: =IF(AU$12="n/a",0,SUMPRODUCT($BK34:$CG34,OFFSET('General Inputs'!$Q$29:$AM$29,MATCH($D34&"_Electric_$/kWh",'General Inputs'!$K$30:$K$31,0),),'General Inputs'!$Q$37:$AM$37) ) -> 0 | AV34: =IF(AV$12="n/a",0, INDEX('General Inputs'!$Q$37:$AM$37,MATCH($A$2,'General Inputs'!$Q$35:$AM$35,0))*$DI34*$DU34) -> 0 | AW34: =IF(AW$12="n/a",0,INDEX('General Inputs'!$Q$37:$AM$37,MATCH($A$2,'General Inputs'!$Q$35:$AM$35,0))*$DJ34) -> 0 | AZ34: n/a | BA34: 0 | BB34: 0 | BC34: =IF(BC$12="n/a",0,SUMPRODUCT($BK34:$CG34,'General Inputs'!$Q$23:$AM$23,'General Inputs'!$Q$40:$AM$40)/(1-Loss_ElectricEnergy)) -> 0 | BD34: =IF(BD$12="n/a",0,SUMPRODUCT($BK34:$CG34,'General Inputs'!$Q$25:$AM$25,'General Inputs'!$Q$40:$AM$40)/(1-Loss_ElectricEnergy)) -> 0 | BE34: =IF(BE$12="n/a",0,SUMPRODUCT($CI34:$DE34,'General Inputs'!$Q$24:$AM$24,'General Inputs'!$Q$40:$AM$40))/(1-Loss_ElectricDemand) -> 0 | BF34: =IF(BF$12="n/a",0,SUMPRODUCT($BK34:$CG34,OFFSET('General Inputs'!$Q$29:$AM$29,MATCH($D34&"_Electric_$/kWh",'General Inputs'!$K$30:$K$31,0),),'General Inputs'!$Q$40:$AM$40) ) -> 0 | BG34: =IF(BG$12="n/a",0, INDEX('General Inputs'!$Q$40:$AM$40,MATCH($A$2,'General Inputs'!$Q$35:$AM$35,0))*$DI34*$DU34) -> 0 | BH34: =IF(BH$12="n/a",0,INDEX('General Inputs'!$Q$40:$AM$40,MATCH($A$2,'General Inputs'!$Q$35:$AM$35,0))*$DJ34) -> 0 | BK34: 0 | BL34: 0 | BM34: 0 | BN34: 0 | BO34: 0 | BP34: 0 | BQ34: 0 | BR34: 0 | BS34: 0 | BT34: 0 | BU34: 0 | BV34: 0 | BW34: 0 | BX34: 0 | BY34: 0 | BZ34: 0 | CA34: 0 | CB34: 0 | CC34: 0 | CD34: 0 | CE34: 0 | CF34: 0 | CG34: 0 | CI34: 0 | CJ34: 0 | CK34: 0 | CL34: 0 | CM34: 0 | CN34: 0 | CO34: 0 | CP34: 0 | CQ34: 0 | CR34: 0 | CS34: 0 | CT34: 0 | CU34: 0 | CV34: 0 | CW34: 0 | CX34: 0 | CY34: 0 | CZ34: 0 | DA34: 0 | DB34: 0 | DC34: 0 | DD34: 0 | DE34: 0 | DG34: =INDEX('Measure Inputs'!$I:$I,MATCH($B34,'Measure Inputs'!$B:$B,0)) -> 0 | DH34: =INDEX('Measure Inputs'!N:N,MATCH($B34,'Measure Inputs'!$B:$B,0)) -> 15 | DI34: =INDEX('Measure Inputs'!M:M,MATCH($B34,'Measure Inputs'!$B:$B,0))*$DG34 -> 0 | DJ34: =INDEX('Measure Inputs'!$L:$L,MATCH($B34,'Measure Inputs'!$B:$B,0))*$DG34 -> 0 | DL34: 0 | DM34: 0 | DO34: 0 | DP34: 0 | DR34: =INDEX('Measure Inputs'!$J:$J,MATCH($B34,'Measure Inputs'!$B:$B,0))*$DG34 -> 0 | DS34: =INDEX('Measure Inputs'!$K:$K,MATCH($B34,'Measure Inputs'!$B:$B,0))*$DG34 -> 0 | DU34: =INDEX('Measure Inputs'!O:O,MATCH($B34,'Measure Inputs'!$B:$B,0)) -> 1
B35: C&I_C&I Prescriptive_High Bay Fluorescent Fixture w/ HE Electronic Ballast (T8 6-8 lamp) | C35: ='Measure Inputs'!D27 -> 22 | D35: =INDEX('Measure Inputs'!E:E,MATCH($C35,'Measure Inputs'!$D:$D,0)) -> C&I | E35: =INDEX('Measure Inputs'!F:F,MATCH($C35,'Measure Inputs'!$D:$D,0)) -> C&I Prescriptive | F35: =INDEX('Measure Inputs'!G:G,MATCH($C35,'Measure Inputs'!$D:$D,0)) -> High Bay Fluorescent Fixture w/ HE Electronic Ballast (T8 6-8 lamp) | H35: n/a | I35: 0 | J35: 0 | K35: =IF(K$12="n/a",0,SUMPRODUCT($BK35:$CG35,'General Inputs'!$Q$23:$AM$23,'General Inputs'!$Q$38:$AM$38)/(1-Loss_ElectricEnergy)) -> 0 | L35: =IF(L$12="n/a",0,SUMPRODUCT($BK35:$CG35,'General Inputs'!$Q$25:$AM$25,'General Inputs'!$Q$38:$AM$38)/(1-Loss_ElectricEnergy)) -> 0 | M35: =IF(M$12="n/a",0,SUMPRODUCT($CI35:$DE35,'General Inputs'!$Q$24:$AM$24,'General Inputs'!$Q$38:$AM$38))/(1-Loss_ElectricDemand) -> 0 | N35: =IF(N$12="n/a",0,SUMPRODUCT($BK35:$CG35,OFFSET('General Inputs'!$Q$29:$AM$29,MATCH($D35&"_Electric_$/kWh",'General Inputs'!$K$30:$K$31,0),),'General Inputs'!$Q$38:$AM$38) ) -> 0 | O35: =IF(O$12="n/a",0, INDEX('General Inputs'!$Q$38:$AM$38,MATCH($A$2,'General Inputs'!$Q$35:$AM$35,0))*$DI35*$DU35) -> 0 | P35: =IF(P$12="n/a",0,INDEX('General Inputs'!$Q$38:$AM$38,MATCH($A$2,'General Inputs'!$Q$35:$AM$35,0))*$DJ35) -> 0 | S35: n/a | T35: 0 | U35: 0 | V35: =IF(V$12="n/a",0,SUMPRODUCT($BK35:$CG35,'General Inputs'!$Q$23:$AM$23,'General Inputs'!$Q$36:$AM$36)/(1-Loss_ElectricEnergy)) -> 0 | W35: =IF(W$12="n/a",0,SUMPRODUCT($BK35:$CG35,'General Inputs'!$Q$25:$AM$25,'General Inputs'!$Q$36:$AM$36)/(1-Loss_ElectricEnergy)) -> 0 | X35: =IF(X$12="n/a",0,SUMPRODUCT($CI35:$DE35,'General Inputs'!$Q$24:$AM$24,'General Inputs'!$Q$36:$AM$36))/(1-Loss_ElectricDemand) -> 0 | Y35: =IF(Y$12="n/a",0,SUMPRODUCT($BK35:$CG35,OFFSET('General Inputs'!$Q$29:$AM$29,MATCH($D35&"_Electric_$/kWh",'General Inputs'!$K$30:$K$31,0),),'General Inputs'!$Q$36:$AM$36) ) -> 0 | Z35: =IF(Z$12="n/a",0, (INDEX('General Inputs'!$Q$36:$AM$36,MATCH($A$2,'General Inputs'!$Q$35:$AM$35,0))*$DI35+ IFERROR((INDEX('General Inputs'!$Q$36:$AM$36,MATCH($A$2+#REF!,'General Inputs'!$Q$35:$AM$35,0))*-#REF!),0)) *$DU35) -> 0 | AA35: =IF(AA$12="n/a",0,INDEX('General Inputs'!$Q$36:$AM$36,MATCH($A$2,'General Inputs'!$Q$35:$AM$35,0))*$DJ35) -> 0 | AD35: n/a | AE35: 0 | AF35: 0 | AG35: =IF(AG$12="n/a",0,SUMPRODUCT($BK35:$CG35,'General Inputs'!$Q$23:$AM$23,'General Inputs'!$Q$39:$AM$39)/(1-Loss_ElectricEnergy)) -> 0 | AH35: =IF(AH$12="n/a",0,SUMPRODUCT($BK35:$CG35,'General Inputs'!$Q$25:$AM$25,'General Inputs'!$Q$39:$AM$39)/(1-Loss_ElectricEnergy)) -> 0 | AI35: =IF(AI$12="n/a",0,SUMPRODUCT($CI35:$DE35,'General Inputs'!$Q$24:$AM$24,'General Inputs'!$Q$39:$AM$39))/(1-Loss_ElectricDemand) -> 0 | AJ35: =IF(AJ$12="n/a",0,SUMPRODUCT($BK35:$CG35,OFFSET('General Inputs'!$Q$29:$AM$29,MATCH($D35&"_Electric_$/kWh",'General Inputs'!$K$30:$K$31,0),),'General Inputs'!$Q$39:$AM$39) ) -> 0 | AK35: =IF(AK$12="n/a",0, INDEX('General Inputs'!$Q$39:$AM$39,MATCH($A$2,'General Inputs'!$Q$35:$AM$35,0))*$DI35*$DU35) -> 0 | AL35: =IF(AL$12="n/a",0,INDEX('General Inputs'!$Q$39:$AM$39,MATCH($A$2,'General Inputs'!$Q$35:$AM$35,0))*$DJ35) -> 0 | AO35: n/a | AP35: 0 | AQ35: 0 | AR35: =IF(AR$12="n/a",0,SUMPRODUCT($BK35:$CG35,'General Inputs'!$Q$23:$AM$23,'General Inputs'!$Q$37:$AM$37)/(1-Loss_ElectricEnergy)) -> 0 | AS35: =IF(AS$12="n/a",0,SUMPRODUCT($BK35:$CG35,'General Inputs'!$Q$25:$AM$25,'General Inputs'!$Q$37:$AM$37)/(1-Loss_ElectricEnergy)) -> 0 | AT35: =IF(AT$12="n/a",0,SUMPRODUCT($CI35:$DE35,'General Inputs'!$Q$24:$AM$24,'General Inputs'!$Q$37:$AM$37))/(1-Loss_ElectricDemand) -> 0 | AU35: =IF(AU$12="n/a",0,SUMPRODUCT($BK35:$CG35,OFFSET('General Inputs'!$Q$29:$AM$29,MATCH($D35&"_Electric_$/kWh",'General Inputs'!$K$30:$K$31,0),),'General Inputs'!$Q$37:$AM$37) ) -> 0 | AV35: =IF(AV$12="n/a",0, INDEX('General Inputs'!$Q$37:$AM$37,MATCH($A$2,'General Inputs'!$Q$35:$AM$35,0))*$DI35*$DU35) -> 0 | AW35: =IF(AW$12="n/a",0,INDEX('General Inputs'!$Q$37:$AM$37,MATCH($A$2,'General Inputs'!$Q$35:$AM$35,0))*$DJ35) -> 0 | AZ35: n/a | BA35: 0 | BB35: 0 | BC35: =IF(BC$12="n/a",0,SUMPRODUCT($BK35:$CG35,'General Inputs'!$Q$23:$AM$23,'General Inputs'!$Q$40:$AM$40)/(1-Loss_ElectricEnergy)) -> 0 | BD35: =IF(BD$12="n/a",0,SUMPRODUCT($BK35:$CG35,'General Inputs'!$Q$25:$AM$25,'General Inputs'!$Q$40:$AM$40)/(1-Loss_ElectricEnergy)) -> 0 | BE35: =IF(BE$12="n/a",0,SUMPRODUCT($CI35:$DE35,'General Inputs'!$Q$24:$AM$24,'General Inputs'!$Q$40:$AM$40))/(1-Loss_ElectricDemand) -> 0 | BF35: =IF(BF$12="n/a",0,SUMPRODUCT($BK35:$CG35,OFFSET('General Inputs'!$Q$29:$AM$29,MATCH($D35&"_Electric_$/kWh",'General Inputs'!$K$30:$K$31,0),),'General Inputs'!$Q$40:$AM$40) ) -> 0 | BG35: =IF(BG$12="n/a",0, INDEX('General Inputs'!$Q$40:$AM$40,MATCH($A$2,'General Inputs'!$Q$35:$AM$35,0))*$DI35*$DU35) -> 0 | BH35: =IF(BH$12="n/a",0,INDEX('General Inputs'!$Q$40:$AM$40,MATCH($A$2,'General Inputs'!$Q$35:$AM$35,0))*$DJ35) -> 0 | BK35: =IF(AND($A$2<=BK$13,$A$2+$DH35>BK$13),$DR35,0)*$DU35 -> 0 | BL35: 0 | BM35: 0 | BN35: 0 | BO35: 0 | BP35: 0 | BQ35: 0 | BR35: 0 | BS35: 0 | BT35: 0 | BU35: =IF(AND($A$2<=BU$13,$A$2+$DH35>BU$13),$DR35,0)*$DU35 -> 0 | BV35: 0 | BW35: 0 | BX35: 0 | BY35: 0 | BZ35: 0 | CA35: 0 | CB35: 0 | CC35: 0 | CD35: 0 | CE35: 0 | CF35: 0 | CG35: 0 | CI35: =IF(AND($A$2<=CI$13,$A$2+$DH35>CI$13),$DS35,0)*$DU35 -> 0 | CJ35: 0 | CK35: 0 | CL35: 0 | CM35: 0 | CN35: 0 | CO35: 0 | CP35: 0 | CQ35: 0 | CR35: 0 | CS35: =IF(AND($A$2<=CS$13,$A$2+$DH35>CS$13),$DS35,0)*$DU35 -> 0 | CT35: 0 | CU35: 0 | CV35: 0 | CW35: 0 | CX35: 0 | CY35: 0 | CZ35: 0 | DA35: 0 | DB35: 0 | DC35: 0 | DD35: 0 | DE35: 0 | DG35: =INDEX('Measure Inputs'!$I:$I,MATCH($B35,'Measure Inputs'!$B:$B,0)) -> 0 | DH35: =INDEX('Measure Inputs'!N:N,MATCH($B35,'Measure Inputs'!$B:$B,0)) -> 15 | DI35: =INDEX('Measure Inputs'!M:M,MATCH($B35,'Measure Inputs'!$B:$B,0))*$DG35 -> 0 | DJ35: =INDEX('Measure Inputs'!$L:$L,MATCH($B35,'Measure Inputs'!$B:$B,0))*$DG35 -> 0 | DL35: 0 | DM35: 0 | DO35: 0 | DP35: 0 | DR35: =INDEX('Measure Inputs'!$J:$J,MATCH($B35,'Measure Inputs'!$B:$B,0))*$DG35 -> 0 | DS35: =INDEX('Measure Inputs'!$K:$K,MATCH($B35,'Measure Inputs'!$B:$B,0))*$DG35 -> 0 | DU35: =INDEX('Measure Inputs'!O:O,MATCH($B35,'Measure Inputs'!$B:$B,0)) -> 1
B36: C&I_C&I Prescriptive_High Bay Fluorescent Fixture w/ HE Electronic Ballast (T8 12-16 lamp) | C36: ='Measure Inputs'!D28 -> 23 | D36: =INDEX('Measure Inputs'!E:E,MATCH($C36,'Measure Inputs'!$D:$D,0)) -> C&I | E36: =INDEX('Measure Inputs'!F:F,MATCH($C36,'Measure Inputs'!$D:$D,0)) -> C&I Prescriptive | F36: =INDEX('Measure Inputs'!G:G,MATCH($C36,'Measure Inputs'!$D:$D,0)) -> High Bay Fluorescent Fixture w/ HE Electronic Ballast (T8 12-16 lamp) | H36: n/a | I36: 0 | J36: 0 | K36: =IF(K$12="n/a",0,SUMPRODUCT($BK36:$CG36,'General Inputs'!$Q$23:$AM$23,'General Inputs'!$Q$38:$AM$38)/(1-Loss_ElectricEnergy)) -> 0 | L36: =IF(L$12="n/a",0,SUMPRODUCT($BK36:$CG36,'General Inputs'!$Q$25:$AM$25,'General Inputs'!$Q$38:$AM$38)/(1-Loss_ElectricEnergy)) -> 0 | M36: =IF(M$12="n/a",0,SUMPRODUCT($CI36:$DE36,'General Inputs'!$Q$24:$AM$24,'General Inputs'!$Q$38:$AM$38))/(1-Loss_ElectricDemand) -> 0 | N36: =IF(N$12="n/a",0,SUMPRODUCT($BK36:$CG36,OFFSET('General Inputs'!$Q$29:$AM$29,MATCH($D36&"_Electric_$/kWh",'General Inputs'!$K$30:$K$31,0),),'General Inputs'!$Q$38:$AM$38) ) -> 0 | O36: =IF(O$12="n/a",0, INDEX('General Inputs'!$Q$38:$AM$38,MATCH($A$2,'General Inputs'!$Q$35:$AM$35,0))*$DI36*$DU36) -> 0 | P36: =IF(P$12="n/a",0,INDEX('General Inputs'!$Q$38:$AM$38,MATCH($A$2,'General Inputs'!$Q$35:$AM$35,0))*$DJ36) -> 0 | S36: n/a | T36: 0 | U36: 0 | V36: =IF(V$12="n/a",0,SUMPRODUCT($BK36:$CG36,'General Inputs'!$Q$23:$AM$23,'General Inputs'!$Q$36:$AM$36)/(1-Loss_ElectricEnergy)) -> 0 | W36: =IF(W$12="n/a",0,SUMPRODUCT($BK36:$CG36,'General Inputs'!$Q$25:$AM$25,'General Inputs'!$Q$36:$AM$36)/(1-Loss_ElectricEnergy)) -> 0 | X36: =IF(X$12="n/a",0,SUMPRODUCT($CI36:$DE36,'General Inputs'!$Q$24:$AM$24,'General Inputs'!$Q$36:$AM$36))/(1-Loss_ElectricDemand) -> 0 | Y36: =IF(Y$12="n/a",0,SUMPRODUCT($BK36:$CG36,OFFSET('General Inputs'!$Q$29:$AM$29,MATCH($D36&"_Electric_$/kWh",'General Inputs'!$K$30:$K$31,0),),'General Inputs'!$Q$36:$AM$36) ) -> 0 | Z36: =IF(Z$12="n/a",0, (INDEX('General Inputs'!$Q$36:$AM$36,MATCH($A$2,'General Inputs'!$Q$35:$AM$35,0))*$DI36+ IFERROR((INDEX('General Inputs'!$Q$36:$AM$36,MATCH($A$2+#REF!,'General Inputs'!$Q$35:$AM$35,0))*-#REF!),0)) *$DU36) -> 0 | AA36: =IF(AA$12="n/a",0,INDEX('General Inputs'!$Q$36:$AM$36,MATCH($A$2,'General Inputs'!$Q$35:$AM$35,0))*$DJ36) -> 0 | AD36: n/a | AE36: 0 | AF36: 0 | AG36: =IF(AG$12="n/a",0,SUMPRODUCT($BK36:$CG36,'General Inputs'!$Q$23:$AM$23,'General Inputs'!$Q$39:$AM$39)/(1-Loss_ElectricEnergy)) -> 0 | AH36: =IF(AH$12="n/a",0,SUMPRODUCT($BK36:$CG36,'General Inputs'!$Q$25:$AM$25,'General Inputs'!$Q$39:$AM$39)/(1-Loss_ElectricEnergy)) -> 0 | AI36: =IF(AI$12="n/a",0,SUMPRODUCT($CI36:$DE36,'General Inputs'!$Q$24:$AM$24,'General Inputs'!$Q$39:$AM$39))/(1-Loss_ElectricDemand) -> 0 | AJ36: =IF(AJ$12="n/a",0,SUMPRODUCT($BK36:$CG36,OFFSET('General Inputs'!$Q$29:$AM$29,MATCH($D36&"_Electric_$/kWh",'General Inputs'!$K$30:$K$31,0),),'General Inputs'!$Q$39:$AM$39) ) -> 0 | AK36: =IF(AK$12="n/a",0, INDEX('General Inputs'!$Q$39:$AM$39,MATCH($A$2,'General Inputs'!$Q$35:$AM$35,0))*$DI36*$DU36) -> 0 | AL36: =IF(AL$12="n/a",0,INDEX('General Inputs'!$Q$39:$AM$39,MATCH($A$2,'General Inputs'!$Q$35:$AM$35,0))*$DJ36) -> 0 | AO36: n/a | AP36: 0 | AQ36: 0 | AR36: =IF(AR$12="n/a",0,SUMPRODUCT($BK36:$CG36,'General Inputs'!$Q$23:$AM$23,'General Inputs'!$Q$37:$AM$37)/(1-Loss_ElectricEnergy)) -> 0 | AS36: =IF(AS$12="n/a",0,SUMPRODUCT($BK36:$CG36,'General Inputs'!$Q$25:$AM$25,'General Inputs'!$Q$37:$AM$37)/(1-Loss_ElectricEnergy)) -> 0 | AT36: =IF(AT$12="n/a",0,SUMPRODUCT($CI36:$DE36,'General Inputs'!$Q$24:$AM$24,'General Inputs'!$Q$37:$AM$37))/(1-Loss_ElectricDemand) -> 0 | AU36: =IF(AU$12="n/a",0,SUMPRODUCT($BK36:$CG36,OFFSET('General Inputs'!$Q$29:$AM$29,MATCH($D36&"_Electric_$/kWh",'General Inputs'!$K$30:$K$31,0),),'General Inputs'!$Q$37:$AM$37) ) -> 0 | AV36: =IF(AV$12="n/a",0, INDEX('General Inputs'!$Q$37:$AM$37,MATCH($A$2,'General Inputs'!$Q$35:$AM$35,0))*$DI36*$DU36) -> 0 | AW36: =IF(AW$12="n/a",0,INDEX('General Inputs'!$Q$37:$AM$37,MATCH($A$2,'General Inputs'!$Q$35:$AM$35,0))*$DJ36) -> 0 | AZ36: n/a | BA36: 0 | BB36: 0 | BC36: =IF(BC$12="n/a",0,SUMPRODUCT($BK36:$CG36,'General Inputs'!$Q$23:$AM$23,'General Inputs'!$Q$40:$AM$40)/(1-Loss_ElectricEnergy)) -> 0 | BD36: =IF(BD$12="n/a",0,SUMPRODUCT($BK36:$CG36,'General Inputs'!$Q$25:$AM$25,'General Inputs'!$Q$40:$AM$40)/(1-Loss_ElectricEnergy)) -> 0 | BE36: =IF(BE$12="n/a",0,SUMPRODUCT($CI36:$DE36,'General Inputs'!$Q$24:$AM$24,'General Inputs'!$Q$40:$AM$40))/(1-Loss_ElectricDemand) -> 0 | BF36: =IF(BF$12="n/a",0,SUMPRODUCT($BK36:$CG36,OFFSET('General Inputs'!$Q$29:$AM$29,MATCH($D36&"_Electric_$/kWh",'General Inputs'!$K$30:$K$31,0),),'General Inputs'!$Q$40:$AM$40) ) -> 0 | BG36: =IF(BG$12="n/a",0, INDEX('General Inputs'!$Q$40:$AM$40,MATCH($A$2,'General Inputs'!$Q$35:$AM$35,0))*$DI36*$DU36) -> 0 | BH36: =IF(BH$12="n/a",0,INDEX('General Inputs'!$Q$40:$AM$40,MATCH($A$2,'General Inputs'!$Q$35:$AM$35,0))*$DJ36) -> 0 | BK36: 0 | BL36: 0 | BM36: 0 | BN36: 0 | BO36: 0 | BP36: 0 | BQ36: 0 | BR36: 0 | BS36: 0 | BT36: 0 | BU36: 0 | BV36: 0 | BW36: 0 | BX36: 0 | BY36: 0 | BZ36: 0 | CA36: 0 | CB36: 0 | CC36: 0 | CD36: 0 | CE36: 0 | CF36: 0 | CG36: 0 | CI36: 0 | CJ36: 0 | CK36: 0 | CL36: 0 | CM36: 0 | CN36: 0 | CO36: 0 | CP36: 0 | CQ36: 0 | CR36: 0 | CS36: 0 | CT36: 0 | CU36: 0 | CV36: 0 | CW36: 0 | CX36: 0 | CY36: 0 | CZ36: 0 | DA36: 0 | DB36: 0 | DC36: 0 | DD36: 0 | DE36: 0 | DG36: =INDEX('Measure Inputs'!$I:$I,MATCH($B36,'Measure Inputs'!$B:$B,0)) -> 0 | DH36: =INDEX('Measure Inputs'!N:N,MATCH($B36,'Measure Inputs'!$B:$B,0)) -> 15 | DI36: =INDEX('Measure Inputs'!M:M,MATCH($B36,'Measure Inputs'!$B:$B,0))*$DG36 -> 0 | DJ36: =INDEX('Measure Inputs'!$L:$L,MATCH($B36,'Measure Inputs'!$B:$B,0))*$DG36 -> 0 | DL36: 0 | DM36: 0 | DO36: 0 | DP36: 0 | DR36: =INDEX('Measure Inputs'!$J:$J,MATCH($B36,'Measure Inputs'!$B:$B,0))*$DG36 -> 0 | DS36: =INDEX('Measure Inputs'!$K:$K,MATCH($B36,'Measure Inputs'!$B:$B,0))*$DG36 -> 0 | DU36: =INDEX('Measure Inputs'!O:O,MATCH($B36,'Measure Inputs'!$B:$B,0)) -> 1
B37: C&I_C&I Prescriptive_High Bay Fluorescent Fixture w/ HE Electronic Ballast (T8 18-20 lamp) | C37: ='Measure Inputs'!D29 -> 24 | D37: =INDEX('Measure Inputs'!E:E,MATCH($C37,'Measure Inputs'!$D:$D,0)) -> C&I | E37: =INDEX('Measure Inputs'!F:F,MATCH($C37,'Measure Inputs'!$D:$D,0)) -> C&I Prescriptive | F37: =INDEX('Measure Inputs'!G:G,MATCH($C37,'Measure Inputs'!$D:$D,0)) -> High Bay Fluorescent Fixture w/ HE Electronic Ballast (T8 18-20 lamp) | H37: n/a | I37: 0 | J37: 0 | K37: =IF(K$12="n/a",0,SUMPRODUCT($BK37:$CG37,'General Inputs'!$Q$23:$AM$23,'General Inputs'!$Q$38:$AM$38)/(1-Loss_ElectricEnergy)) -> 0 | L37: =IF(L$12="n/a",0,SUMPRODUCT($BK37:$CG37,'General Inputs'!$Q$25:$AM$25,'General Inputs'!$Q$38:$AM$38)/(1-Loss_ElectricEnergy)) -> 0 | M37: =IF(M$12="n/a",0,SUMPRODUCT($CI37:$DE37,'General Inputs'!$Q$24:$AM$24,'General Inputs'!$Q$38:$AM$38))/(1-Loss_ElectricDemand) -> 0 | N37: =IF(N$12="n/a",0,SUMPRODUCT($BK37:$CG37,OFFSET('General Inputs'!$Q$29:$AM$29,MATCH($D37&"_Electric_$/kWh",'General Inputs'!$K$30:$K$31,0),),'General Inputs'!$Q$38:$AM$38) ) -> 0 | O37: =IF(O$12="n/a",0, INDEX('General Inputs'!$Q$38:$AM$38,MATCH($A$2,'General Inputs'!$Q$35:$AM$35,0))*$DI37*$DU37) -> 0 | P37: =IF(P$12="n/a",0,INDEX('General Inputs'!$Q$38:$AM$38,MATCH($A$2,'General Inputs'!$Q$35:$AM$35,0))*$DJ37) -> 0 | S37: n/a | T37: 0 | U37: 0 | V37: =IF(V$12="n/a",0,SUMPRODUCT($BK37:$CG37,'General Inputs'!$Q$23:$AM$23,'General Inputs'!$Q$36:$AM$36)/(1-Loss_ElectricEnergy)) -> 0 | W37: =IF(W$12="n/a",0,SUMPRODUCT($BK37:$CG37,'General Inputs'!$Q$25:$AM$25,'General Inputs'!$Q$36:$AM$36)/(1-Loss_ElectricEnergy)) -> 0 | X37: =IF(X$12="n/a",0,SUMPRODUCT($CI37:$DE37,'General Inputs'!$Q$24:$AM$24,'General Inputs'!$Q$36:$AM$36))/(1-Loss_ElectricDemand) -> 0 | Y37: =IF(Y$12="n/a",0,SUMPRODUCT($BK37:$CG37,OFFSET('General Inputs'!$Q$29:$AM$29,MATCH($D37&"_Electric_$/kWh",'General Inputs'!$K$30:$K$31,0),),'General Inputs'!$Q$36:$AM$36) ) -> 0 | Z37: =IF(Z$12="n/a",0, (INDEX('General Inputs'!$Q$36:$AM$36,MATCH($A$2,'General Inputs'!$Q$35:$AM$35,0))*$DI37+ IFERROR((INDEX('General Inputs'!$Q$36:$AM$36,MATCH($A$2+#REF!,'General Inputs'!$Q$35:$AM$35,0))*-#REF!),0)) *$DU37) -> 0 | AA37: =IF(AA$12="n/a",0,INDEX('General Inputs'!$Q$36:$AM$36,MATCH($A$2,'General Inputs'!$Q$35:$AM$35,0))*$DJ37) -> 0 | AD37: n/a | AE37: 0 | AF37: 0 | AG37: =IF(AG$12="n/a",0,SUMPRODUCT($BK37:$CG37,'General Inputs'!$Q$23:$AM$23,'General Inputs'!$Q$39:$AM$39)/(1-Loss_ElectricEnergy)) -> 0 | AH37: =IF(AH$12="n/a",0,SUMPRODUCT($BK37:$CG37,'General Inputs'!$Q$25:$AM$25,'General Inputs'!$Q$39:$AM$39)/(1-Loss_ElectricEnergy)) -> 0 | AI37: =IF(AI$12="n/a",0,SUMPRODUCT($CI37:$DE37,'General Inputs'!$Q$24:$AM$24,'General Inputs'!$Q$39:$AM$39))/(1-Loss_ElectricDemand) -> 0 | AJ37: =IF(AJ$12="n/a",0,SUMPRODUCT($BK37:$CG37,OFFSET('General Inputs'!$Q$29:$AM$29,MATCH($D37&"_Electric_$/kWh",'General Inputs'!$K$30:$K$31,0),),'General Inputs'!$Q$39:$AM$39) ) -> 0 | AK37: =IF(AK$12="n/a",0, INDEX('General Inputs'!$Q$39:$AM$39,MATCH($A$2,'General Inputs'!$Q$35:$AM$35,0))*$DI37*$DU37) -> 0 | AL37: =IF(AL$12="n/a",0,INDEX('General Inputs'!$Q$39:$AM$39,MATCH($A$2,'General Inputs'!$Q$35:$AM$35,0))*$DJ37) -> 0 | AO37: n/a | AP37: 0 | AQ37: 0 | AR37: =IF(AR$12="n/a",0,SUMPRODUCT($BK37:$CG37,'General Inputs'!$Q$23:$AM$23,'General Inputs'!$Q$37:$AM$37)/(1-Loss_ElectricEnergy)) -> 0 | AS37: =IF(AS$12="n/a",0,SUMPRODUCT($BK37:$CG37,'General Inputs'!$Q$25:$AM$25,'General Inputs'!$Q$37:$AM$37)/(1-Loss_ElectricEnergy)) -> 0 | AT37: =IF(AT$12="n/a",0,SUMPRODUCT($CI37:$DE37,'General Inputs'!$Q$24:$AM$24,'General Inputs'!$Q$37:$AM$37))/(1-Loss_ElectricDemand) -> 0 | AU37: =IF(AU$12="n/a",0,SUMPRODUCT($BK37:$CG37,OFFSET('General Inputs'!$Q$29:$AM$29,MATCH($D37&"_Electric_$/kWh",'General Inputs'!$K$30:$K$31,0),),'General Inputs'!$Q$37:$AM$37) ) -> 0 | AV37: =IF(AV$12="n/a",0, INDEX('General Inputs'!$Q$37:$AM$37,MATCH($A$2,'General Inputs'!$Q$35:$AM$35,0))*$DI37*$DU37) -> 0 | AW37: =IF(AW$12="n/a",0,INDEX('General Inputs'!$Q$37:$AM$37,MATCH($A$2,'General Inputs'!$Q$35:$AM$35,0))*$DJ37) -> 0 | AZ37: n/a | BA37: 0 | BB37: 0 | BC37: =IF(BC$12="n/a",0,SUMPRODUCT($BK37:$CG37,'General Inputs'!$Q$23:$AM$23,'General Inputs'!$Q$40:$AM$40)/(1-Loss_ElectricEnergy)) -> 0 | BD37: =IF(BD$12="n/a",0,SUMPRODUCT($BK37:$CG37,'General Inputs'!$Q$25:$AM$25,'General Inputs'!$Q$40:$AM$40)/(1-Loss_ElectricEnergy)) -> 0 | BE37: =IF(BE$12="n/a",0,SUMPRODUCT($CI37:$DE37,'General Inputs'!$Q$24:$AM$24,'General Inputs'!$Q$40:$AM$40))/(1-Loss_ElectricDemand) -> 0 | BF37: =IF(BF$12="n/a",0,SUMPRODUCT($BK37:$CG37,OFFSET('General Inputs'!$Q$29:$AM$29,MATCH($D37&"_Electric_$/kWh",'General Inputs'!$K$30:$K$31,0),),'General Inputs'!$Q$40:$AM$40) ) -> 0 | BG37: =IF(BG$12="n/a",0, INDEX('General Inputs'!$Q$40:$AM$40,MATCH($A$2,'General Inputs'!$Q$35:$AM$35,0))*$DI37*$DU37) -> 0 | BH37: =IF(BH$12="n/a",0,INDEX('General Inputs'!$Q$40:$AM$40,MATCH($A$2,'General Inputs'!$Q$35:$AM$35,0))*$DJ37) -> 0 | BK37: 0 | BL37: 0 | BM37: 0 | BN37: 0 | BO37: 0 | BP37: 0 | BQ37: 0 | BR37: 0 | BS37: 0 | BT37: 0 | BU37: 0 | BV37: 0 | BW37: 0 | BX37: 0 | BY37: 0 | BZ37: 0 | CA37: 0 | CB37: 0 | CC37: 0 | CD37: 0 | CE37: 0 | CF37: 0 | CG37: 0 | CI37: 0 | CJ37: 0 | CK37: 0 | CL37: 0 | CM37: 0 | CN37: 0 | CO37: 0 | CP37: 0 | CQ37: 0 | CR37: 0 | CS37: 0 | CT37: 0 | CU37: 0 | CV37: 0 | CW37: 0 | CX37: 0 | CY37: 0 | CZ37: 0 | DA37: 0 | DB37: 0 | DC37: 0 | DD37: 0 | DE37: 0 | DG37: =INDEX('Measure Inputs'!$I:$I,MATCH($B37,'Measure Inputs'!$B:$B,0)) -> 0 | DH37: =INDEX('Measure Inputs'!N:N,MATCH($B37,'Measure Inputs'!$B:$B,0)) -> 15 | DI37: =INDEX('Measure Inputs'!M:M,MATCH($B37,'Measure Inputs'!$B:$B,0))*$DG37 -> 0 | DJ37: =INDEX('Measure Inputs'!$L:$L,MATCH($B37,'Measure Inputs'!$B:$B,0))*$DG37 -> 0 | DL37: 0 | DM37: 0 | DO37: 0 | DP37: 0 | DR37: =INDEX('Measure Inputs'!$J:$J,MATCH($B37,'Measure Inputs'!$B:$B,0))*$DG37 -> 0 | DS37: =INDEX('Measure Inputs'!$K:$K,MATCH($B37,'Measure Inputs'!$B:$B,0))*$DG37 -> 0 | DU37: =INDEX('Measure Inputs'!O:O,MATCH($B37,'Measure Inputs'!$B:$B,0)) -> 1
B38: C&I_C&I Prescriptive_Low-Wattage T8 | C38: ='Measure Inputs'!D30 -> 25 | D38: =INDEX('Measure Inputs'!E:E,MATCH($C38,'Measure Inputs'!$D:$D,0)) -> C&I | E38: =INDEX('Measure Inputs'!F:F,MATCH($C38,'Measure Inputs'!$D:$D,0)) -> C&I Prescriptive | F38: =INDEX('Measure Inputs'!G:G,MATCH($C38,'Measure Inputs'!$D:$D,0)) -> Low-Wattage T8 | H38: n/a | I38: 0 | J38: 0 | K38: =IF(K$12="n/a",0,SUMPRODUCT($BK38:$CG38,'General Inputs'!$Q$23:$AM$23,'General Inputs'!$Q$38:$AM$38)/(1-Loss_ElectricEnergy)) -> 0 | L38: =IF(L$12="n/a",0,SUMPRODUCT($BK38:$CG38,'General Inputs'!$Q$25:$AM$25,'General Inputs'!$Q$38:$AM$38)/(1-Loss_ElectricEnergy)) -> 0 | M38: =IF(M$12="n/a",0,SUMPRODUCT($CI38:$DE38,'General Inputs'!$Q$24:$AM$24,'General Inputs'!$Q$38:$AM$38))/(1-Loss_ElectricDemand) -> 0 | N38: =IF(N$12="n/a",0,SUMPRODUCT($BK38:$CG38,OFFSET('General Inputs'!$Q$29:$AM$29,MATCH($D38&"_Electric_$/kWh",'General Inputs'!$K$30:$K$31,0),),'General Inputs'!$Q$38:$AM$38) ) -> 0 | O38: =IF(O$12="n/a",0, INDEX('General Inputs'!$Q$38:$AM$38,MATCH($A$2,'General Inputs'!$Q$35:$AM$35,0))*$DI38*$DU38) -> 0 | P38: =IF(P$12="n/a",0,INDEX('General Inputs'!$Q$38:$AM$38,MATCH($A$2,'General Inputs'!$Q$35:$AM$35,0))*$DJ38) -> 0 | S38: n/a | T38: 0 | U38: 0 | V38: =IF(V$12="n/a",0,SUMPRODUCT($BK38:$CG38,'General Inputs'!$Q$23:$AM$23,'General Inputs'!$Q$36:$AM$36)/(1-Loss_ElectricEnergy)) -> 0 | W38: =IF(W$12="n/a",0,SUMPRODUCT($BK38:$CG38,'General Inputs'!$Q$25:$AM$25,'General Inputs'!$Q$36:$AM$36)/(1-Loss_ElectricEnergy)) -> 0 | X38: =IF(X$12="n/a",0,SUMPRODUCT($CI38:$DE38,'General Inputs'!$Q$24:$AM$24,'General Inputs'!$Q$36:$AM$36))/(1-Loss_ElectricDemand) -> 0 | Y38: =IF(Y$12="n/a",0,SUMPRODUCT($BK38:$CG38,OFFSET('General Inputs'!$Q$29:$AM$29,MATCH($D38&"_Electric_$/kWh",'General Inputs'!$K$30:$K$31,0),),'General Inputs'!$Q$36:$AM$36) ) -> 0 | Z38: =IF(Z$12="n/a",0, (INDEX('General Inputs'!$Q$36:$AM$36,MATCH($A$2,'General Inputs'!$Q$35:$AM$35,0))*$DI38+ IFERROR((INDEX('General Inputs'!$Q$36:$AM$36,MATCH($A$2+#REF!,'General Inputs'!$Q$35:$AM$35,0))*-#REF!),0)) *$DU38) -> 0 | AA38: =IF(AA$12="n/a",0,INDEX('General Inputs'!$Q$36:$AM$36,MATCH($A$2,'General Inputs'!$Q$35:$AM$35,0))*$DJ38) -> 0 | AD38: n/a | AE38: 0 | AF38: 0 | AG38: =IF(AG$12="n/a",0,SUMPRODUCT($BK38:$CG38,'General Inputs'!$Q$23:$AM$23,'General Inputs'!$Q$39:$AM$39)/(1-Loss_ElectricEnergy)) -> 0 | AH38: =IF(AH$12="n/a",0,SUMPRODUCT($BK38:$CG38,'General Inputs'!$Q$25:$AM$25,'General Inputs'!$Q$39:$AM$39)/(1-Loss_ElectricEnergy)) -> 0 | AI38: =IF(AI$12="n/a",0,SUMPRODUCT($CI38:$DE38,'General Inputs'!$Q$24:$AM$24,'General Inputs'!$Q$39:$AM$39))/(1-Loss_ElectricDemand) -> 0 | AJ38: =IF(AJ$12="n/a",0,SUMPRODUCT($BK38:$CG38,OFFSET('General Inputs'!$Q$29:$AM$29,MATCH($D38&"_Electric_$/kWh",'General Inputs'!$K$30:$K$31,0),),'General Inputs'!$Q$39:$AM$39) ) -> 0 | AK38: =IF(AK$12="n/a",0, INDEX('General Inputs'!$Q$39:$AM$39,MATCH($A$2,'General Inputs'!$Q$35:$AM$35,0))*$DI38*$DU38) -> 0 | AL38: =IF(AL$12="n/a",0,INDEX('General Inputs'!$Q$39:$AM$39,MATCH($A$2,'General Inputs'!$Q$35:$AM$35,0))*$DJ38) -> 0 | AO38: n/a | AP38: 0 | AQ38: 0 | AR38: =IF(AR$12="n/a",0,SUMPRODUCT($BK38:$CG38,'General Inputs'!$Q$23:$AM$23,'General Inputs'!$Q$37:$AM$37)/(1-Loss_ElectricEnergy)) -> 0 | AS38: =IF(AS$12="n/a",0,SUMPRODUCT($BK38:$CG38,'General Inputs'!$Q$25:$AM$25,'General Inputs'!$Q$37:$AM$37)/(1-Loss_ElectricEnergy)) -> 0 | AT38: =IF(AT$12="n/a",0,SUMPRODUCT($CI38:$DE38,'General Inputs'!$Q$24:$AM$24,'General Inputs'!$Q$37:$AM$37))/(1-Loss_ElectricDemand) -> 0 | AU38: =IF(AU$12="n/a",0,SUMPRODUCT($BK38:$CG38,OFFSET('General Inputs'!$Q$29:$AM$29,MATCH($D38&"_Electric_$/kWh",'General Inputs'!$K$30:$K$31,0),),'General Inputs'!$Q$37:$AM$37) ) -> 0 | AV38: =IF(AV$12="n/a",0, INDEX('General Inputs'!$Q$37:$AM$37,MATCH($A$2,'General Inputs'!$Q$35:$AM$35,0))*$DI38*$DU38) -> 0 | AW38: =IF(AW$12="n/a",0,INDEX('General Inputs'!$Q$37:$AM$37,MATCH($A$2,'General Inputs'!$Q$35:$AM$35,0))*$DJ38) -> 0 | AZ38: n/a | BA38: 0 | BB38: 0 | BC38: =IF(BC$12="n/a",0,SUMPRODUCT($BK38:$CG38,'General Inputs'!$Q$23:$AM$23,'General Inputs'!$Q$40:$AM$40)/(1-Loss_ElectricEnergy)) -> 0 | BD38: =IF(BD$12="n/a",0,SUMPRODUCT($BK38:$CG38,'General Inputs'!$Q$25:$AM$25,'General Inputs'!$Q$40:$AM$40)/(1-Loss_ElectricEnergy)) -> 0 | BE38: =IF(BE$12="n/a",0,SUMPRODUCT($CI38:$DE38,'General Inputs'!$Q$24:$AM$24,'General Inputs'!$Q$40:$AM$40))/(1-Loss_ElectricDemand) -> 0 | BF38: =IF(BF$12="n/a",0,SUMPRODUCT($BK38:$CG38,OFFSET('General Inputs'!$Q$29:$AM$29,MATCH($D38&"_Electric_$/kWh",'General Inputs'!$K$30:$K$31,0),),'General Inputs'!$Q$40:$AM$40) ) -> 0 | BG38: =IF(BG$12="n/a",0, INDEX('General Inputs'!$Q$40:$AM$40,MATCH($A$2,'General Inputs'!$Q$35:$AM$35,0))*$DI38*$DU38) -> 0 | BH38: =IF(BH$12="n/a",0,INDEX('General Inputs'!$Q$40:$AM$40,MATCH($A$2,'General Inputs'!$Q$35:$AM$35,0))*$DJ38) -> 0 | BK38: 0 | BL38: 0 | BM38: 0 | BN38: 0 | BO38: 0 | BP38: 0 | BQ38: 0 | BR38: 0 | BS38: 0 | BT38: 0 | BU38: 0 | BV38: 0 | BW38: 0 | BX38: 0 | BY38: 0 | BZ38: 0 | CA38: 0 | CB38: 0 | CC38: 0 | CD38: 0 | CE38: 0 | CF38: 0 | CG38: 0 | CI38: 0 | CJ38: 0 | CK38: 0 | CL38: 0 | CM38: 0 | CN38: 0 | CO38: 0 | CP38: 0 | CQ38: 0 | CR38: 0 | CS38: 0 | CT38: 0 | CU38: 0 | CV38: 0 | CW38: 0 | CX38: 0 | CY38: 0 | CZ38: 0 | DA38: 0 | DB38: 0 | DC38: 0 | DD38: 0 | DE38: 0 | DG38: =INDEX('Measure Inputs'!$I:$I,MATCH($B38,'Measure Inputs'!$B:$B,0)) -> 0 | DH38: =INDEX('Measure Inputs'!N:N,MATCH($B38,'Measure Inputs'!$B:$B,0)) -> 8 | DI38: =INDEX('Measure Inputs'!M:M,MATCH($B38,'Measure Inputs'!$B:$B,0))*$DG38 -> 0 | DJ38: =INDEX('Measure Inputs'!$L:$L,MATCH($B38,'Measure Inputs'!$B:$B,0))*$DG38 -> 0 | DL38: 0 | DM38: 0 | DO38: 0 | DP38: 0 | DR38: =INDEX('Measure Inputs'!$J:$J,MATCH($B38,'Measure Inputs'!$B:$B,0))*$DG38 -> 0 | DS38: =INDEX('Measure Inputs'!$K:$K,MATCH($B38,'Measure Inputs'!$B:$B,0))*$DG38 -> 0 | DU38: =INDEX('Measure Inputs'!O:O,MATCH($B38,'Measure Inputs'!$B:$B,0)) -> 1
B39: C&I_C&I Prescriptive_Energy Star LED Lamp (≤5W) | C39: ='Measure Inputs'!D31 -> 26 | D39: =INDEX('Measure Inputs'!E:E,MATCH($C39,'Measure Inputs'!$D:$D,0)) -> C&I | E39: =INDEX('Measure Inputs'!F:F,MATCH($C39,'Measure Inputs'!$D:$D,0)) -> C&I Prescriptive | F39: =INDEX('Measure Inputs'!G:G,MATCH($C39,'Measure Inputs'!$D:$D,0)) -> Energy Star LED Lamp (≤5W) | H39: 0.7484182931 | I39: 53.8861171 | J39: 72 | K39: =IF(K$12="n/a",0,SUMPRODUCT($BK39:$CG39,'General Inputs'!$Q$23:$AM$23,'General Inputs'!$Q$38:$AM$38)/(1-Loss_ElectricEnergy)) -> 35.12502109 | L39: =IF(L$12="n/a",0,SUMPRODUCT($BK39:$CG39,'General Inputs'!$Q$25:$AM$25,'General Inputs'!$Q$38:$AM$38)/(1-Loss_ElectricEnergy)) -> 13.69927148 | M39: =IF(M$12="n/a",0,SUMPRODUCT($CI39:$DE39,'General Inputs'!$Q$24:$AM$24,'General Inputs'!$Q$38:$AM$38))/(1-Loss_ElectricDemand) -> 5.06182453 | N39: =IF(N$12="n/a",0,SUMPRODUCT($BK39:$CG39,OFFSET('General Inputs'!$Q$29:$AM$29,MATCH($D39&"_Electric_$/kWh",'General Inputs'!$K$30:$K$31,0),),'General Inputs'!$Q$38:$AM$38) ) -> 0 | O39: =IF(O$12="n/a",0, INDEX('General Inputs'!$Q$38:$AM$38,MATCH($A$2,'General Inputs'!$Q$35:$AM$35,0))*$DI39*$DU39) -> 72 | P39: =IF(P$12="n/a",0,INDEX('General Inputs'!$Q$38:$AM$38,MATCH($A$2,'General Inputs'!$Q$35:$AM$35,0))*$DJ39) -> 0 | S39: 0.5581506337 | T39: 40.18684562 | U39: 72 | V39: =IF(V$12="n/a",0,SUMPRODUCT($BK39:$CG39,'General Inputs'!$Q$23:$AM$23,'General Inputs'!$Q$36:$AM$36)/(1-Loss_ElectricEnergy)) -> 35.12502109 | W39: =IF(W$12="n/a",0,SUMPRODUCT($BK39:$CG39,'General Inputs'!$Q$25:$AM$25,'General Inputs'!$Q$36:$AM$36)/(1-Loss_ElectricEnergy)) -> 0 | X39: =IF(X$12="n/a",0,SUMPRODUCT($CI39:$DE39,'General Inputs'!$Q$24:$AM$24,'General Inputs'!$Q$36:$AM$36))/(1-Loss_ElectricDemand) -> 5.06182453 | Y39: =IF(Y$12="n/a",0,SUMPRODUCT($BK39:$CG39,OFFSET('General Inputs'!$Q$29:$AM$29,MATCH($D39&"_Electric_$/kWh",'General Inputs'!$K$30:$K$31,0),),'General Inputs'!$Q$36:$AM$36) ) -> 0 | Z39: =IF(Z$12="n/a",0, (INDEX('General Inputs'!$Q$36:$AM$36,MATCH($A$2,'General Inputs'!$Q$35:$AM$35,0))*$DI39+ IFERROR((INDEX('General Inputs'!$Q$36:$AM$36,MATCH($A$2+#REF!,'General Inputs'!$Q$35:$AM$35,0))*-#REF!),0)) *$DU39) -> 72 | AA39: =IF(AA$12="n/a",0,INDEX('General Inputs'!$Q$36:$AM$36,MATCH($A$2,'General Inputs'!$Q$35:$AM$35,0))*$DJ39) -> 0 | AD39: 2.402360063 | AE39: 172.9699246 | AF39: 72 | AG39: =IF(AG$12="n/a",0,SUMPRODUCT($BK39:$CG39,'General Inputs'!$Q$23:$AM$23,'General Inputs'!$Q$39:$AM$39)/(1-Loss_ElectricEnergy)) -> 0 | AH39: =IF(AH$12="n/a",0,SUMPRODUCT($BK39:$CG39,'General Inputs'!$Q$25:$AM$25,'General Inputs'!$Q$39:$AM$39)/(1-Loss_ElectricEnergy)) -> 0 | AI39: =IF(AI$12="n/a",0,SUMPRODUCT($CI39:$DE39,'General Inputs'!$Q$24:$AM$24,'General Inputs'!$Q$39:$AM$39))/(1-Loss_ElectricDemand) -> 0 | AJ39: =IF(AJ$12="n/a",0,SUMPRODUCT($BK39:$CG39,OFFSET('General Inputs'!$Q$29:$AM$29,MATCH($D39&"_Electric_$/kWh",'General Inputs'!$K$30:$K$31,0),),'General Inputs'!$Q$39:$AM$39) ) -> 132.9699246 | AK39: =IF(AK$12="n/a",0, INDEX('General Inputs'!$Q$39:$AM$39,MATCH($A$2,'General Inputs'!$Q$35:$AM$35,0))*$DI39*$DU39) -> 72 | AL39: =IF(AL$12="n/a",0,INDEX('General Inputs'!$Q$39:$AM$39,MATCH($A$2,'General Inputs'!$Q$35:$AM$35,0))*$DJ39) -> 40 | AO39: 1.004671141 | AP39: 40.18684562 | AQ39: 40 | AR39: =IF(AR$12="n/a",0,SUMPRODUCT($BK39:$CG39,'General Inputs'!$Q$23:$AM$23,'General Inputs'!$Q$37:$AM$37)/(1-Loss_ElectricEnergy)) -> 35.12502109 | AS39: =IF(AS$12="n/a",0,SUMPRODUCT($BK39:$CG39,'General Inputs'!$Q$25:$AM$25,'General Inputs'!$Q$37:$AM$37)/(1-Loss_ElectricEnergy)) -> 0 | AT39: =IF(AT$12="n/a",0,SUMPRODUCT($CI39:$DE39,'General Inputs'!$Q$24:$AM$24,'General Inputs'!$Q$37:$AM$37))/(1-Loss_ElectricDemand) -> 5.06182453 | AU39: =IF(AU$12="n/a",0,SUMPRODUCT($BK39:$CG39,OFFSET('General Inputs'!$Q$29:$AM$29,MATCH($D39&"_Electric_$/kWh",'General Inputs'!$K$30:$K$31,0),),'General Inputs'!$Q$37:$AM$37) ) -> 0 | AV39: =IF(AV$12="n/a",0, INDEX('General Inputs'!$Q$37:$AM$37,MATCH($A$2,'General Inputs'!$Q$35:$AM$35,0))*$DI39*$DU39) -> 0 | AW39: =IF(AW$12="n/a",0,INDEX('General Inputs'!$Q$37:$AM$37,MATCH($A$2,'General Inputs'!$Q$35:$AM$35,0))*$DJ39) -> 40 | AZ39: 0.2323342958 | BA39: 40.18684562 | BB39: 172.9699246 | BC39: =IF(BC$12="n/a",0,SUMPRODUCT($BK39:$CG39,'General Inputs'!$Q$23:$AM$23,'General Inputs'!$Q$40:$AM$40)/(1-Loss_ElectricEnergy)) -> 35.12502109 | BD39: =IF(BD$12="n/a",0,SUMPRODUCT($BK39:$CG39,'General Inputs'!$Q$25:$AM$25,'General Inputs'!$Q$40:$AM$40)/(1-Loss_ElectricEnergy)) -> 0 | BE39: =IF(BE$12="n/a",0,SUMPRODUCT($CI39:$DE39,'General Inputs'!$Q$24:$AM$24,'General Inputs'!$Q$40:$AM$40))/(1-Loss_ElectricDemand) -> 5.06182453 | BF39: =IF(BF$12="n/a",0,SUMPRODUCT($BK39:$CG39,OFFSET('General Inputs'!$Q$29:$AM$29,MATCH($D39&"_Electric_$/kWh",'General Inputs'!$K$30:$K$31,0),),'General Inputs'!$Q$40:$AM$40) ) -> 132.9699246 | BG39: =IF(BG$12="n/a",0, INDEX('General Inputs'!$Q$40:$AM$40,MATCH($A$2,'General Inputs'!$Q$35:$AM$35,0))*$DI39*$DU39) -> 0 | BH39: =IF(BH$12="n/a",0,INDEX('General Inputs'!$Q$40:$AM$40,MATCH($A$2,'General Inputs'!$Q$35:$AM$35,0))*$DJ39) -> 40 | BK39: 188.976 | BL39: 188.976 | BM39: 188.976 | BN39: 188.976 | BO39: 188.976 | BP39: 188.976 | BQ39: 188.976 | BR39: 188.976 | BS39: 0 | BT39: 0 | BU39: 0 | BV39: 0 | BW39: 0 | BX39: 0 | BY39: 0 | BZ39: 0 | CA39: 0 | CB39: 0 | CC39: 0 | CD39: 0 | CE39: 0 | CF39: 0 | CG39: 0 | CI39: 0.037862 | CJ39: 0.037862 | CK39: 0.037862 | CL39: 0.037862 | CM39: 0.037862 | CN39: 0.037862 | CO39: 0.037862 | CP39: 0.037862 | CQ39: 0 | CR39: 0 | CS39: 0 | CT39: 0 | CU39: 0 | CV39: 0 | CW39: 0 | CX39: 0 | CY39: 0 | CZ39: 0 | DA39: 0 | DB39: 0 | DC39: 0 | DD39: 0 | DE39: 0 | DG39: =INDEX('Measure Inputs'!$I:$I,MATCH($B39,'Measure Inputs'!$B:$B,0)) -> 8 | DH39: =INDEX('Measure Inputs'!N:N,MATCH($B39,'Measure Inputs'!$B:$B,0)) -> 8 | DI39: =INDEX('Measure Inputs'!M:M,MATCH($B39,'Measure Inputs'!$B:$B,0))*$DG39 -> 72 | DJ39: =INDEX('Measure Inputs'!$L:$L,MATCH($B39,'Measure Inputs'!$B:$B,0))*$DG39 -> 40 | DL39: 1511.808 | DM39: 0.302896 | DO39: 188.976 | DP39: 0.037862 | DR39: =INDEX('Measure Inputs'!$J:$J,MATCH($B39,'Measure Inputs'!$B:$B,0))*$DG39 -> 188.976 | DS39: =INDEX('Measure Inputs'!$K:$K,MATCH($B39,'Measure Inputs'!$B:$B,0))*$DG39 -> 0.037862 | DU39: =INDEX('Measure Inputs'!O:O,MATCH($B39,'Measure Inputs'!$B:$B,0)) -> 1
B40: C&I_C&I Prescriptive_Energy Star LED Lamp (6-10W) | C40: ='Measure Inputs'!D32 -> 27 | D40: =INDEX('Measure Inputs'!E:E,MATCH($C40,'Measure Inputs'!$D:$D,0)) -> C&I | E40: =INDEX('Measure Inputs'!F:F,MATCH($C40,'Measure Inputs'!$D:$D,0)) -> C&I Prescriptive | F40: =INDEX('Measure Inputs'!G:G,MATCH($C40,'Measure Inputs'!$D:$D,0)) -> Energy Star LED Lamp (6-10W) | H40: 6.976688009 | I40: 46904.27349 | J40: 6723 | K40: =IF(K$12="n/a",0,SUMPRODUCT($BK40:$CG40,'General Inputs'!$Q$23:$AM$23,'General Inputs'!$Q$38:$AM$38)/(1-Loss_ElectricEnergy)) -> 30525.74701 | L40: =IF(L$12="n/a",0,SUMPRODUCT($BK40:$CG40,'General Inputs'!$Q$25:$AM$25,'General Inputs'!$Q$38:$AM$38)/(1-Loss_ElectricEnergy)) -> 11905.48738 | M40: =IF(M$12="n/a",0,SUMPRODUCT($CI40:$DE40,'General Inputs'!$Q$24:$AM$24,'General Inputs'!$Q$38:$AM$38))/(1-Loss_ElectricDemand) -> 4473.039096 | N40: =IF(N$12="n/a",0,SUMPRODUCT($BK40:$CG40,OFFSET('General Inputs'!$Q$29:$AM$29,MATCH($D40&"_Electric_$/kWh",'General Inputs'!$K$30:$K$31,0),),'General Inputs'!$Q$38:$AM$38) ) -> 0 | O40: =IF(O$12="n/a",0, INDEX('General Inputs'!$Q$38:$AM$38,MATCH($A$2,'General Inputs'!$Q$35:$AM$35,0))*$DI40*$DU40) -> 6723 | P40: =IF(P$12="n/a",0,INDEX('General Inputs'!$Q$38:$AM$38,MATCH($A$2,'General Inputs'!$Q$35:$AM$35,0))*$DJ40) -> 0 | S40: 5.205828664 | T40: 34998.78611 | U40: 6723 | V40: =IF(V$12="n/a",0,SUMPRODUCT($BK40:$CG40,'General Inputs'!$Q$23:$AM$23,'General Inputs'!$Q$36:$AM$36)/(1-Loss_ElectricEnergy)) -> 30525.74701 | W40: =IF(W$12="n/a",0,SUMPRODUCT($BK40:$CG40,'General Inputs'!$Q$25:$AM$25,'General Inputs'!$Q$36:$AM$36)/(1-Loss_ElectricEnergy)) -> 0 | X40: =IF(X$12="n/a",0,SUMPRODUCT($CI40:$DE40,'General Inputs'!$Q$24:$AM$24,'General Inputs'!$Q$36:$AM$36))/(1-Loss_ElectricDemand) -> 4473.039096 | Y40: =IF(Y$12="n/a",0,SUMPRODUCT($BK40:$CG40,OFFSET('General Inputs'!$Q$29:$AM$29,MATCH($D40&"_Electric_$/kWh",'General Inputs'!$K$30:$K$31,0),),'General Inputs'!$Q$36:$AM$36) ) -> 0 | Z40: =IF(Z$12="n/a",0, (INDEX('General Inputs'!$Q$36:$AM$36,MATCH($A$2,'General Inputs'!$Q$35:$AM$35,0))*$DI40+ IFERROR((INDEX('General Inputs'!$Q$36:$AM$36,MATCH($A$2+#REF!,'General Inputs'!$Q$35:$AM$35,0))*-#REF!),0)) *$DU40) -> 6723 | AA40: =IF(AA$12="n/a",0,INDEX('General Inputs'!$Q$36:$AM$36,MATCH($A$2,'General Inputs'!$Q$35:$AM$35,0))*$DJ40) -> 0 | AD40: 17.44372527 | AE40: 117274.165 | AF40: 6723 | AG40: =IF(AG$12="n/a",0,SUMPRODUCT($BK40:$CG40,'General Inputs'!$Q$23:$AM$23,'General Inputs'!$Q$39:$AM$39)/(1-Loss_ElectricEnergy)) -> 0 | AH40: =IF(AH$12="n/a",0,SUMPRODUCT($BK40:$CG40,'General Inputs'!$Q$25:$AM$25,'General Inputs'!$Q$39:$AM$39)/(1-Loss_ElectricEnergy)) -> 0 | AI40: =IF(AI$12="n/a",0,SUMPRODUCT($CI40:$DE40,'General Inputs'!$Q$24:$AM$24,'General Inputs'!$Q$39:$AM$39))/(1-Loss_ElectricDemand) -> 0 | AJ40: =IF(AJ$12="n/a",0,SUMPRODUCT($BK40:$CG40,OFFSET('General Inputs'!$Q$29:$AM$29,MATCH($D40&"_Electric_$/kWh",'General Inputs'!$K$30:$K$31,0),),'General Inputs'!$Q$39:$AM$39) ) -> 115558.8282 | AK40: =IF(AK$12="n/a",0, INDEX('General Inputs'!$Q$39:$AM$39,MATCH($A$2,'General Inputs'!$Q$35:$AM$35,0))*$DI40*$DU40) -> 6723 | AL40: =IF(AL$12="n/a",0,INDEX('General Inputs'!$Q$39:$AM$39,MATCH($A$2,'General Inputs'!$Q$35:$AM$35,0))*$DJ40) -> 1715.3368 | AO40: 20.40344853 | AP40: 34998.78611 | AQ40: 1715.3368 | AR40: =IF(AR$12="n/a",0,SUMPRODUCT($BK40:$CG40,'General Inputs'!$Q$23:$AM$23,'General Inputs'!$Q$37:$AM$37)/(1-Loss_ElectricEnergy)) -> 30525.74701 | AS40: =IF(AS$12="n/a",0,SUMPRODUCT($BK40:$CG40,'General Inputs'!$Q$25:$AM$25,'General Inputs'!$Q$37:$AM$37)/(1-Loss_ElectricEnergy)) -> 0 | AT40: =IF(AT$12="n/a",0,SUMPRODUCT($CI40:$DE40,'General Inputs'!$Q$24:$AM$24,'General Inputs'!$Q$37:$AM$37))/(1-Loss_ElectricDemand) -> 4473.039096 | AU40: =IF(AU$12="n/a",0,SUMPRODUCT($BK40:$CG40,OFFSET('General Inputs'!$Q$29:$AM$29,MATCH($D40&"_Electric_$/kWh",'General Inputs'!$K$30:$K$31,0),),'General Inputs'!$Q$37:$AM$37) ) -> 0 | AV40: =IF(AV$12="n/a",0, INDEX('General Inputs'!$Q$37:$AM$37,MATCH($A$2,'General Inputs'!$Q$35:$AM$35,0))*$DI40*$DU40) -> 0 | AW40: =IF(AW$12="n/a",0,INDEX('General Inputs'!$Q$37:$AM$37,MATCH($A$2,'General Inputs'!$Q$35:$AM$35,0))*$DJ40) -> 1715.3368 | AZ40: 0.2984356027 | BA40: 34998.78611 | BB40: 117274.165 | BC40: =IF(BC$12="n/a",0,SUMPRODUCT($BK40:$CG40,'General Inputs'!$Q$23:$AM$23,'General Inputs'!$Q$40:$AM$40)/(1-Loss_ElectricEnergy)) -> 30525.74701 | BD40: =IF(BD$12="n/a",0,SUMPRODUCT($BK40:$CG40,'General Inputs'!$Q$25:$AM$25,'General Inputs'!$Q$40:$AM$40)/(1-Loss_ElectricEnergy)) -> 0 | BE40: =IF(BE$12="n/a",0,SUMPRODUCT($CI40:$DE40,'General Inputs'!$Q$24:$AM$24,'General Inputs'!$Q$40:$AM$40))/(1-Loss_ElectricDemand) -> 4473.039096 | BF40: =IF(BF$12="n/a",0,SUMPRODUCT($BK40:$CG40,OFFSET('General Inputs'!$Q$29:$AM$29,MATCH($D40&"_Electric_$/kWh",'General Inputs'!$K$30:$K$31,0),),'General Inputs'!$Q$40:$AM$40) ) -> 115558.8282 | BG40: =IF(BG$12="n/a",0, INDEX('General Inputs'!$Q$40:$AM$40,MATCH($A$2,'General Inputs'!$Q$35:$AM$35,0))*$DI40*$DU40) -> 0 | BH40: =IF(BH$12="n/a",0,INDEX('General Inputs'!$Q$40:$AM$40,MATCH($A$2,'General Inputs'!$Q$35:$AM$35,0))*$DJ40) -> 1715.3368 | BK40: 164231.462 | BL40: 164231.462 | BM40: 164231.462 | BN40: 164231.462 | BO40: 164231.462 | BP40: 164231.462 | BQ40: 164231.462 | BR40: 164231.462 | BS40: 0 | BT40: 0 | BU40: 0 | BV40: 0 | BW40: 0 | BX40: 0 | BY40: 0 | BZ40: 0 | CA40: 0 | CB40: 0 | CC40: 0 | CD40: 0 | CE40: 0 | CF40: 0 | CG40: 0 | CI40: 33.457937 | CJ40: 33.457937 | CK40: 33.457937 | CL40: 33.457937 | CM40: 33.457937 | CN40: 33.457937 | CO40: 33.457937 | CP40: 33.457937 | CQ40: 0 | CR40: 0 | CS40: 0 | CT40: 0 | CU40: 0 | CV40: 0 | CW40: 0 | CX40: 0 | CY40: 0 | CZ40: 0 | DA40: 0 | DB40: 0 | DC40: 0 | DD40: 0 | DE40: 0 | DG40: =INDEX('Measure Inputs'!$I:$I,MATCH($B40,'Measure Inputs'!$B:$B,0)) -> 747 | DH40: =INDEX('Measure Inputs'!N:N,MATCH($B40,'Measure Inputs'!$B:$B,0)) -> 8 | DI40: =INDEX('Measure Inputs'!M:M,MATCH($B40,'Measure Inputs'!$B:$B,0))*$DG40 -> 6723 | DJ40: =INDEX('Measure Inputs'!$L:$L,MATCH($B40,'Measure Inputs'!$B:$B,0))*$DG40 -> 1715.3368 | DL40: 1313851.696 | DM40: 267.663496 | DO40: 164231.462 | DP40: 33.457937 | DR40: =INDEX('Measure Inputs'!$J:$J,MATCH($B40,'Measure Inputs'!$B:$B,0))*$DG40 -> 164231.462 | DS40: =INDEX('Measure Inputs'!$K:$K,MATCH($B40,'Measure Inputs'!$B:$B,0))*$DG40 -> 33.457937 | DU40: =INDEX('Measure Inputs'!O:O,MATCH($B40,'Measure Inputs'!$B:$B,0)) -> 1
B41: C&I_C&I Prescriptive_Energy Star LED Lamp (11 to 20W) | C41: ='Measure Inputs'!D33 -> 28 | D41: =INDEX('Measure Inputs'!E:E,MATCH($C41,'Measure Inputs'!$D:$D,0)) -> C&I | E41: =INDEX('Measure Inputs'!F:F,MATCH($C41,'Measure Inputs'!$D:$D,0)) -> C&I Prescriptive | F41: =INDEX('Measure Inputs'!G:G,MATCH($C41,'Measure Inputs'!$D:$D,0)) -> Energy Star LED Lamp (11 to 20W) | H41: 3.347174898 | I41: 20297.26858 | J41: 6064 | K41: =IF(K$12="n/a",0,SUMPRODUCT($BK41:$CG41,'General Inputs'!$Q$23:$AM$23,'General Inputs'!$Q$38:$AM$38)/(1-Loss_ElectricEnergy)) -> 13270.66199 | L41: =IF(L$12="n/a",0,SUMPRODUCT($BK41:$CG41,'General Inputs'!$Q$25:$AM$25,'General Inputs'!$Q$38:$AM$38)/(1-Loss_ElectricEnergy)) -> 5175.752091 | M41: =IF(M$12="n/a",0,SUMPRODUCT($CI41:$DE41,'General Inputs'!$Q$24:$AM$24,'General Inputs'!$Q$38:$AM$38))/(1-Loss_ElectricDemand) -> 1850.854495 | N41: =IF(N$12="n/a",0,SUMPRODUCT($BK41:$CG41,OFFSET('General Inputs'!$Q$29:$AM$29,MATCH($D41&"_Electric_$/kWh",'General Inputs'!$K$30:$K$31,0),),'General Inputs'!$Q$38:$AM$38) ) -> 0 | O41: =IF(O$12="n/a",0, INDEX('General Inputs'!$Q$38:$AM$38,MATCH($A$2,'General Inputs'!$Q$35:$AM$35,0))*$DI41*$DU41) -> 6064 | P41: =IF(P$12="n/a",0,INDEX('General Inputs'!$Q$38:$AM$38,MATCH($A$2,'General Inputs'!$Q$35:$AM$35,0))*$DJ41) -> 0 | S41: 2.493653775 | T41: 15121.51649 | U41: 6064 | V41: =IF(V$12="n/a",0,SUMPRODUCT($BK41:$CG41,'General Inputs'!$Q$23:$AM$23,'General Inputs'!$Q$36:$AM$36)/(1-Loss_ElectricEnergy)) -> 13270.66199 | W41: =IF(W$12="n/a",0,SUMPRODUCT($BK41:$CG41,'General Inputs'!$Q$25:$AM$25,'General Inputs'!$Q$36:$AM$36)/(1-Loss_ElectricEnergy)) -> 0 | X41: =IF(X$12="n/a",0,SUMPRODUCT($CI41:$DE41,'General Inputs'!$Q$24:$AM$24,'General Inputs'!$Q$36:$AM$36))/(1-Loss_ElectricDemand) -> 1850.854495 | Y41: =IF(Y$12="n/a",0,SUMPRODUCT($BK41:$CG41,OFFSET('General Inputs'!$Q$29:$AM$29,MATCH($D41&"_Electric_$/kWh",'General Inputs'!$K$30:$K$31,0),),'General Inputs'!$Q$36:$AM$36) ) -> 0 | Z41: =IF(Z$12="n/a",0, (INDEX('General Inputs'!$Q$36:$AM$36,MATCH($A$2,'General Inputs'!$Q$35:$AM$35,0))*$DI41+ IFERROR((INDEX('General Inputs'!$Q$36:$AM$36,MATCH($A$2+#REF!,'General Inputs'!$Q$35:$AM$35,0))*-#REF!),0)) *$DU41) -> 6064 | AA41: =IF(AA$12="n/a",0,INDEX('General Inputs'!$Q$36:$AM$36,MATCH($A$2,'General Inputs'!$Q$35:$AM$35,0))*$DJ41) -> 0 | AD41: 8.736665753 | AE41: 52979.14112 | AF41: 6064 | AG41: =IF(AG$12="n/a",0,SUMPRODUCT($BK41:$CG41,'General Inputs'!$Q$23:$AM$23,'General Inputs'!$Q$39:$AM$39)/(1-Loss_ElectricEnergy)) -> 0 | AH41: =IF(AH$12="n/a",0,SUMPRODUCT($BK41:$CG41,'General Inputs'!$Q$25:$AM$25,'General Inputs'!$Q$39:$AM$39)/(1-Loss_ElectricEnergy)) -> 0 | AI41: =IF(AI$12="n/a",0,SUMPRODUCT($CI41:$DE41,'General Inputs'!$Q$24:$AM$24,'General Inputs'!$Q$39:$AM$39))/(1-Loss_ElectricDemand) -> 0 | AJ41: =IF(AJ$12="n/a",0,SUMPRODUCT($BK41:$CG41,OFFSET('General Inputs'!$Q$29:$AM$29,MATCH($D41&"_Electric_$/kWh",'General Inputs'!$K$30:$K$31,0),),'General Inputs'!$Q$39:$AM$39) ) -> 50237.66162 | AK41: =IF(AK$12="n/a",0, INDEX('General Inputs'!$Q$39:$AM$39,MATCH($A$2,'General Inputs'!$Q$35:$AM$35,0))*$DI41*$DU41) -> 6064 | AL41: =IF(AL$12="n/a",0,INDEX('General Inputs'!$Q$39:$AM$39,MATCH($A$2,'General Inputs'!$Q$35:$AM$35,0))*$DJ41) -> 2741.4795 | AO41: 5.515823295 | AP41: 15121.51649 | AQ41: 2741.4795 | AR41: =IF(AR$12="n/a",0,SUMPRODUCT($BK41:$CG41,'General Inputs'!$Q$23:$AM$23,'General Inputs'!$Q$37:$AM$37)/(1-Loss_ElectricEnergy)) -> 13270.66199 | AS41: =IF(AS$12="n/a",0,SUMPRODUCT($BK41:$CG41,'General Inputs'!$Q$25:$AM$25,'General Inputs'!$Q$37:$AM$37)/(1-Loss_ElectricEnergy)) -> 0 | AT41: =IF(AT$12="n/a",0,SUMPRODUCT($CI41:$DE41,'General Inputs'!$Q$24:$AM$24,'General Inputs'!$Q$37:$AM$37))/(1-Loss_ElectricDemand) -> 1850.854495 | AU41: =IF(AU$12="n/a",0,SUMPRODUCT($BK41:$CG41,OFFSET('General Inputs'!$Q$29:$AM$29,MATCH($D41&"_Electric_$/kWh",'General Inputs'!$K$30:$K$31,0),),'General Inputs'!$Q$37:$AM$37) ) -> 0 | AV41: =IF(AV$12="n/a",0, INDEX('General Inputs'!$Q$37:$AM$37,MATCH($A$2,'General Inputs'!$Q$35:$AM$35,0))*$DI41*$DU41) -> 0 | AW41: =IF(AW$12="n/a",0,INDEX('General Inputs'!$Q$37:$AM$37,MATCH($A$2,'General Inputs'!$Q$35:$AM$35,0))*$DJ41) -> 2741.4795 | AZ41: 0.2854239644 | BA41: 15121.51649 | BB41: 52979.14112 | BC41: =IF(BC$12="n/a",0,SUMPRODUCT($BK41:$CG41,'General Inputs'!$Q$23:$AM$23,'General Inputs'!$Q$40:$AM$40)/(1-Loss_ElectricEnergy)) -> 13270.66199 | BD41: =IF(BD$12="n/a",0,SUMPRODUCT($BK41:$CG41,'General Inputs'!$Q$25:$AM$25,'General Inputs'!$Q$40:$AM$40)/(1-Loss_ElectricEnergy)) -> 0 | BE41: =IF(BE$12="n/a",0,SUMPRODUCT($CI41:$DE41,'General Inputs'!$Q$24:$AM$24,'General Inputs'!$Q$40:$AM$40))/(1-Loss_ElectricDemand) -> 1850.854495 | BF41: =IF(BF$12="n/a",0,SUMPRODUCT($BK41:$CG41,OFFSET('General Inputs'!$Q$29:$AM$29,MATCH($D41&"_Electric_$/kWh",'General Inputs'!$K$30:$K$31,0),),'General Inputs'!$Q$40:$AM$40) ) -> 50237.66162 | BG41: =IF(BG$12="n/a",0, INDEX('General Inputs'!$Q$40:$AM$40,MATCH($A$2,'General Inputs'!$Q$35:$AM$35,0))*$DI41*$DU41) -> 0 | BH41: =IF(BH$12="n/a",0,INDEX('General Inputs'!$Q$40:$AM$40,MATCH($A$2,'General Inputs'!$Q$35:$AM$35,0))*$DJ41) -> 2741.4795 | BK41: 71397.441 | BL41: 71397.441 | BM41: 71397.441 | BN41: 71397.441 | BO41: 71397.441 | BP41: 71397.441 | BQ41: 71397.441 | BR41: 71397.441 | BS41: 0 | BT41: 0 | BU41: 0 | BV41: 0 | BW41: 0 | BX41: 0 | BY41: 0 | BZ41: 0 | CA41: 0 | CB41: 0 | CC41: 0 | CD41: 0 | CE41: 0 | CF41: 0 | CG41: 0 | CI41: 13.844228 | CJ41: 13.844228 | CK41: 13.844228 | CL41: 13.844228 | CM41: 13.844228 | CN41: 13.844228 | CO41: 13.844228 | CP41: 13.844228 | CQ41: 0 | CR41: 0 | CS41: 0 | CT41: 0 | CU41: 0 | CV41: 0 | CW41: 0 | CX41: 0 | CY41: 0 | CZ41: 0 | DA41: 0 | DB41: 0 | DC41: 0 | DD41: 0 | DE41: 0 | DG41: =INDEX('Measure Inputs'!$I:$I,MATCH($B41,'Measure Inputs'!$B:$B,0)) -> 379 | DH41: =INDEX('Measure Inputs'!N:N,MATCH($B41,'Measure Inputs'!$B:$B,0)) -> 8 | DI41: =INDEX('Measure Inputs'!M:M,MATCH($B41,'Measure Inputs'!$B:$B,0))*$DG41 -> 6064 | DJ41: =INDEX('Measure Inputs'!$L:$L,MATCH($B41,'Measure Inputs'!$B:$B,0))*$DG41 -> 2741.4795 | DL41: 571179.528 | DM41: 110.753824 | DO41: 71397.441 | DP41: 13.844228 | DR41: =INDEX('Measure Inputs'!$J:$J,MATCH($B41,'Measure Inputs'!$B:$B,0))*$DG41 -> 71397.441 | DS41: =INDEX('Measure Inputs'!$K:$K,MATCH($B41,'Measure Inputs'!$B:$B,0))*$DG41 -> 13.844228 | DU41: =INDEX('Measure Inputs'!O:O,MATCH($B41,'Measure Inputs'!$B:$B,0)) -> 1
B42: C&I_C&I Prescriptive_Energy Star LED Lamp (>20W) | C42: ='Measure Inputs'!D34 -> 29 | D42: =INDEX('Measure Inputs'!E:E,MATCH($C42,'Measure Inputs'!$D:$D,0)) -> C&I | E42: =INDEX('Measure Inputs'!F:F,MATCH($C42,'Measure Inputs'!$D:$D,0)) -> C&I Prescriptive | F42: =INDEX('Measure Inputs'!G:G,MATCH($C42,'Measure Inputs'!$D:$D,0)) -> Energy Star LED Lamp (>20W) | H42: 2.729366113 | I42: 120.092109 | J42: 44 | K42: =IF(K$12="n/a",0,SUMPRODUCT($BK42:$CG42,'General Inputs'!$Q$23:$AM$23,'General Inputs'!$Q$38:$AM$38)/(1-Loss_ElectricEnergy)) -> 79.47143827 | L42: =IF(L$12="n/a",0,SUMPRODUCT($BK42:$CG42,'General Inputs'!$Q$25:$AM$25,'General Inputs'!$Q$38:$AM$38)/(1-Loss_ElectricEnergy)) -> 30.99502218 | M42: =IF(M$12="n/a",0,SUMPRODUCT($CI42:$DE42,'General Inputs'!$Q$24:$AM$24,'General Inputs'!$Q$38:$AM$38))/(1-Loss_ElectricDemand) -> 9.625648522 | N42: =IF(N$12="n/a",0,SUMPRODUCT($BK42:$CG42,OFFSET('General Inputs'!$Q$29:$AM$29,MATCH($D42&"_Electric_$/kWh",'General Inputs'!$K$30:$K$31,0),),'General Inputs'!$Q$38:$AM$38) ) -> 0 | O42: =IF(O$12="n/a",0, INDEX('General Inputs'!$Q$38:$AM$38,MATCH($A$2,'General Inputs'!$Q$35:$AM$35,0))*$DI42*$DU42) -> 44 | P42: =IF(P$12="n/a",0,INDEX('General Inputs'!$Q$38:$AM$38,MATCH($A$2,'General Inputs'!$Q$35:$AM$35,0))*$DJ42) -> 0 | S42: 2.024933791 | T42: 89.09708679 | U42: 44 | V42: =IF(V$12="n/a",0,SUMPRODUCT($BK42:$CG42,'General Inputs'!$Q$23:$AM$23,'General Inputs'!$Q$36:$AM$36)/(1-Loss_ElectricEnergy)) -> 79.47143827 | W42: =IF(W$12="n/a",0,SUMPRODUCT($BK42:$CG42,'General Inputs'!$Q$25:$AM$25,'General Inputs'!$Q$36:$AM$36)/(1-Loss_ElectricEnergy)) -> 0 | X42: =IF(X$12="n/a",0,SUMPRODUCT($CI42:$DE42,'General Inputs'!$Q$24:$AM$24,'General Inputs'!$Q$36:$AM$36))/(1-Loss_ElectricDemand) -> 9.625648522 | Y42: =IF(Y$12="n/a",0,SUMPRODUCT($BK42:$CG42,OFFSET('General Inputs'!$Q$29:$AM$29,MATCH($D42&"_Electric_$/kWh",'General Inputs'!$K$30:$K$31,0),),'General Inputs'!$Q$36:$AM$36) ) -> 0 | Z42: =IF(Z$12="n/a",0, (INDEX('General Inputs'!$Q$36:$AM$36,MATCH($A$2,'General Inputs'!$Q$35:$AM$35,0))*$DI42+ IFERROR((INDEX('General Inputs'!$Q$36:$AM$36,MATCH($A$2+#REF!,'General Inputs'!$Q$35:$AM$35,0))*-#REF!),0)) *$DU42) -> 44 | AA42: =IF(AA$12="n/a",0,INDEX('General Inputs'!$Q$36:$AM$36,MATCH($A$2,'General Inputs'!$Q$35:$AM$35,0))*$DJ42) -> 0 | AD42: 7.519284895 | AE42: 330.8485354 | AF42: 44 | AG42: =IF(AG$12="n/a",0,SUMPRODUCT($BK42:$CG42,'General Inputs'!$Q$23:$AM$23,'General Inputs'!$Q$39:$AM$39)/(1-Loss_ElectricEnergy)) -> 0 | AH42: =IF(AH$12="n/a",0,SUMPRODUCT($BK42:$CG42,'General Inputs'!$Q$25:$AM$25,'General Inputs'!$Q$39:$AM$39)/(1-Loss_ElectricEnergy)) -> 0 | AI42: =IF(AI$12="n/a",0,SUMPRODUCT($CI42:$DE42,'General Inputs'!$Q$24:$AM$24,'General Inputs'!$Q$39:$AM$39))/(1-Loss_ElectricDemand) -> 0 | AJ42: =IF(AJ$12="n/a",0,SUMPRODUCT($BK42:$CG42,OFFSET('General Inputs'!$Q$29:$AM$29,MATCH($D42&"_Electric_$/kWh",'General Inputs'!$K$30:$K$31,0),),'General Inputs'!$Q$39:$AM$39) ) -> 300.8485354 | AK42: =IF(AK$12="n/a",0, INDEX('General Inputs'!$Q$39:$AM$39,MATCH($A$2,'General Inputs'!$Q$35:$AM$35,0))*$DI42*$DU42) -> 44 | AL42: =IF(AL$12="n/a",0,INDEX('General Inputs'!$Q$39:$AM$39,MATCH($A$2,'General Inputs'!$Q$35:$AM$35,0))*$DJ42) -> 30 | AO42: 2.969902893 | AP42: 89.09708679 | AQ42: 30 | AR42: =IF(AR$12="n/a",0,SUMPRODUCT($BK42:$CG42,'General Inputs'!$Q$23:$AM$23,'General Inputs'!$Q$37:$AM$37)/(1-Loss_ElectricEnergy)) -> 79.47143827 | AS42: =IF(AS$12="n/a",0,SUMPRODUCT($BK42:$CG42,'General Inputs'!$Q$25:$AM$25,'General Inputs'!$Q$37:$AM$37)/(1-Loss_ElectricEnergy)) -> 0 | AT42: =IF(AT$12="n/a",0,SUMPRODUCT($CI42:$DE42,'General Inputs'!$Q$24:$AM$24,'General Inputs'!$Q$37:$AM$37))/(1-Loss_ElectricDemand) -> 9.625648522 | AU42: =IF(AU$12="n/a",0,SUMPRODUCT($BK42:$CG42,OFFSET('General Inputs'!$Q$29:$AM$29,MATCH($D42&"_Electric_$/kWh",'General Inputs'!$K$30:$K$31,0),),'General Inputs'!$Q$37:$AM$37) ) -> 0 | AV42: =IF(AV$12="n/a",0, INDEX('General Inputs'!$Q$37:$AM$37,MATCH($A$2,'General Inputs'!$Q$35:$AM$35,0))*$DI42*$DU42) -> 0 | AW42: =IF(AW$12="n/a",0,INDEX('General Inputs'!$Q$37:$AM$37,MATCH($A$2,'General Inputs'!$Q$35:$AM$35,0))*$DJ42) -> 30 | AZ42: 0.2692987191 | BA42: 89.09708679 | BB42: 330.8485354 | BC42: =IF(BC$12="n/a",0,SUMPRODUCT($BK42:$CG42,'General Inputs'!$Q$23:$AM$23,'General Inputs'!$Q$40:$AM$40)/(1-Loss_ElectricEnergy)) -> 79.47143827 | BD42: =IF(BD$12="n/a",0,SUMPRODUCT($BK42:$CG42,'General Inputs'!$Q$25:$AM$25,'General Inputs'!$Q$40:$AM$40)/(1-Loss_ElectricEnergy)) -> 0 | BE42: =IF(BE$12="n/a",0,SUMPRODUCT($CI42:$DE42,'General Inputs'!$Q$24:$AM$24,'General Inputs'!$Q$40:$AM$40))/(1-Loss_ElectricDemand) -> 9.625648522 | BF42: =IF(BF$12="n/a",0,SUMPRODUCT($BK42:$CG42,OFFSET('General Inputs'!$Q$29:$AM$29,MATCH($D42&"_Electric_$/kWh",'General Inputs'!$K$30:$K$31,0),),'General Inputs'!$Q$40:$AM$40) ) -> 300.8485354 | BG42: =IF(BG$12="n/a",0, INDEX('General Inputs'!$Q$40:$AM$40,MATCH($A$2,'General Inputs'!$Q$35:$AM$35,0))*$DI42*$DU42) -> 0 | BH42: =IF(BH$12="n/a",0,INDEX('General Inputs'!$Q$40:$AM$40,MATCH($A$2,'General Inputs'!$Q$35:$AM$35,0))*$DJ42) -> 30 | BK42: 427.564 | BL42: 427.564 | BM42: 427.564 | BN42: 427.564 | BO42: 427.564 | BP42: 427.564 | BQ42: 427.564 | BR42: 427.564 | BS42: 0 | BT42: 0 | BU42: 0 | BV42: 0 | BW42: 0 | BX42: 0 | BY42: 0 | BZ42: 0 | CA42: 0 | CB42: 0 | CC42: 0 | CD42: 0 | CE42: 0 | CF42: 0 | CG42: 0 | CI42: 0.071999 | CJ42: 0.071999 | CK42: 0.071999 | CL42: 0.071999 | CM42: 0.071999 | CN42: 0.071999 | CO42: 0.071999 | CP42: 0.071999 | CQ42: 0 | CR42: 0 | CS42: 0 | CT42: 0 | CU42: 0 | CV42: 0 | CW42: 0 | CX42: 0 | CY42: 0 | CZ42: 0 | DA42: 0 | DB42: 0 | DC42: 0 | DD42: 0 | DE42: 0 | DG42: =INDEX('Measure Inputs'!$I:$I,MATCH($B42,'Measure Inputs'!$B:$B,0)) -> 2 | DH42: =INDEX('Measure Inputs'!N:N,MATCH($B42,'Measure Inputs'!$B:$B,0)) -> 8 | DI42: =INDEX('Measure Inputs'!M:M,MATCH($B42,'Measure Inputs'!$B:$B,0))*$DG42 -> 44 | DJ42: =INDEX('Measure Inputs'!$L:$L,MATCH($B42,'Measure Inputs'!$B:$B,0))*$DG42 -> 30 | DL42: 3420.512 | DM42: 0.575992 | DO42: 427.564 | DP42: 0.071999 | DR42: =INDEX('Measure Inputs'!$J:$J,MATCH($B42,'Measure Inputs'!$B:$B,0))*$DG42 -> 427.564 | DS42: =INDEX('Measure Inputs'!$K:$K,MATCH($B42,'Measure Inputs'!$B:$B,0))*$DG42 -> 0.071999 | DU42: =INDEX('Measure Inputs'!O:O,MATCH($B42,'Measure Inputs'!$B:$B,0)) -> 1
B43: C&I_C&I Prescriptive_High Performance T8 (1-2 Lamp) | C43: ='Measure Inputs'!D35 -> 30 | D43: =INDEX('Measure Inputs'!E:E,MATCH($C43,'Measure Inputs'!$D:$D,0)) -> C&I | E43: =INDEX('Measure Inputs'!F:F,MATCH($C43,'Measure Inputs'!$D:$D,0)) -> C&I Prescriptive | F43: =INDEX('Measure Inputs'!G:G,MATCH($C43,'Measure Inputs'!$D:$D,0)) -> High Performance T8 (1-2 Lamp) | H43: n/a | I43: 0 | J43: 0 | K43: =IF(K$12="n/a",0,SUMPRODUCT($BK43:$CG43,'General Inputs'!$Q$23:$AM$23,'General Inputs'!$Q$38:$AM$38)/(1-Loss_ElectricEnergy)) -> 0 | L43: =IF(L$12="n/a",0,SUMPRODUCT($BK43:$CG43,'General Inputs'!$Q$25:$AM$25,'General Inputs'!$Q$38:$AM$38)/(1-Loss_ElectricEnergy)) -> 0 | M43: =IF(M$12="n/a",0,SUMPRODUCT($CI43:$DE43,'General Inputs'!$Q$24:$AM$24,'General Inputs'!$Q$38:$AM$38))/(1-Loss_ElectricDemand) -> 0 | N43: =IF(N$12="n/a",0,SUMPRODUCT($BK43:$CG43,OFFSET('General Inputs'!$Q$29:$AM$29,MATCH($D43&"_Electric_$/kWh",'General Inputs'!$K$30:$K$31,0),),'General Inputs'!$Q$38:$AM$38) ) -> 0 | O43: =IF(O$12="n/a",0, INDEX('General Inputs'!$Q$38:$AM$38,MATCH($A$2,'General Inputs'!$Q$35:$AM$35,0))*$DI43*$DU43) -> 0 | P43: =IF(P$12="n/a",0,INDEX('General Inputs'!$Q$38:$AM$38,MATCH($A$2,'General Inputs'!$Q$35:$AM$35,0))*$DJ43) -> 0 | S43: n/a | T43: 0 | U43: 0 | V43: =IF(V$12="n/a",0,SUMPRODUCT($BK43:$CG43,'General Inputs'!$Q$23:$AM$23,'General Inputs'!$Q$36:$AM$36)/(1-Loss_ElectricEnergy)) -> 0 | W43: =IF(W$12="n/a",0,SUMPRODUCT($BK43:$CG43,'General Inputs'!$Q$25:$AM$25,'General Inputs'!$Q$36:$AM$36)/(1-Loss_ElectricEnergy)) -> 0 | X43: =IF(X$12="n/a",0,SUMPRODUCT($CI43:$DE43,'General Inputs'!$Q$24:$AM$24,'General Inputs'!$Q$36:$AM$36))/(1-Loss_ElectricDemand) -> 0 | Y43: =IF(Y$12="n/a",0,SUMPRODUCT($BK43:$CG43,OFFSET('General Inputs'!$Q$29:$AM$29,MATCH($D43&"_Electric_$/kWh",'General Inputs'!$K$30:$K$31,0),),'General Inputs'!$Q$36:$AM$36) ) -> 0 | Z43: =IF(Z$12="n/a",0, (INDEX('General Inputs'!$Q$36:$AM$36,MATCH($A$2,'General Inputs'!$Q$35:$AM$35,0))*$DI43+ IFERROR((INDEX('General Inputs'!$Q$36:$AM$36,MATCH($A$2+#REF!,'General Inputs'!$Q$35:$AM$35,0))*-#REF!),0)) *$DU43) -> 0 | AA43: =IF(AA$12="n/a",0,INDEX('General Inputs'!$Q$36:$AM$36,MATCH($A$2,'General Inputs'!$Q$35:$AM$35,0))*$DJ43) -> 0 | AD43: n/a | AE43: 0 | AF43: 0 | AG43: =IF(AG$12="n/a",0,SUMPRODUCT($BK43:$CG43,'General Inputs'!$Q$23:$AM$23,'General Inputs'!$Q$39:$AM$39)/(1-Loss_ElectricEnergy)) -> 0 | AH43: =IF(AH$12="n/a",0,SUMPRODUCT($BK43:$CG43,'General Inputs'!$Q$25:$AM$25,'General Inputs'!$Q$39:$AM$39)/(1-Loss_ElectricEnergy)) -> 0 | AI43: =IF(AI$12="n/a",0,SUMPRODUCT($CI43:$DE43,'General Inputs'!$Q$24:$AM$24,'General Inputs'!$Q$39:$AM$39))/(1-Loss_ElectricDemand) -> 0 | AJ43: =IF(AJ$12="n/a",0,SUMPRODUCT($BK43:$CG43,OFFSET('General Inputs'!$Q$29:$AM$29,MATCH($D43&"_Electric_$/kWh",'General Inputs'!$K$30:$K$31,0),),'General Inputs'!$Q$39:$AM$39) ) -> 0 | AK43: =IF(AK$12="n/a",0, INDEX('General Inputs'!$Q$39:$AM$39,MATCH($A$2,'General Inputs'!$Q$35:$AM$35,0))*$DI43*$DU43) -> 0 | AL43: =IF(AL$12="n/a",0,INDEX('General Inputs'!$Q$39:$AM$39,MATCH($A$2,'General Inputs'!$Q$35:$AM$35,0))*$DJ43) -> 0 | AO43: n/a | AP43: 0 | AQ43: 0 | AR43: =IF(AR$12="n/a",0,SUMPRODUCT($BK43:$CG43,'General Inputs'!$Q$23:$AM$23,'General Inputs'!$Q$37:$AM$37)/(1-Loss_ElectricEnergy)) -> 0 | AS43: =IF(AS$12="n/a",0,SUMPRODUCT($BK43:$CG43,'General Inputs'!$Q$25:$AM$25,'General Inputs'!$Q$37:$AM$37)/(1-Loss_ElectricEnergy)) -> 0 | AT43: =IF(AT$12="n/a",0,SUMPRODUCT($CI43:$DE43,'General Inputs'!$Q$24:$AM$24,'General Inputs'!$Q$37:$AM$37))/(1-Loss_ElectricDemand) -> 0 | AU43: =IF(AU$12="n/a",0,SUMPRODUCT($BK43:$CG43,OFFSET('General Inputs'!$Q$29:$AM$29,MATCH($D43&"_Electric_$/kWh",'General Inputs'!$K$30:$K$31,0),),'General Inputs'!$Q$37:$AM$37) ) -> 0 | AV43: =IF(AV$12="n/a",0, INDEX('General Inputs'!$Q$37:$AM$37,MATCH($A$2,'General Inputs'!$Q$35:$AM$35,0))*$DI43*$DU43) -> 0 | AW43: =IF(AW$12="n/a",0,INDEX('General Inputs'!$Q$37:$AM$37,MATCH($A$2,'General Inputs'!$Q$35:$AM$35,0))*$DJ43) -> 0 | AZ43: n/a | BA43: 0 | BB43: 0 | BC43: =IF(BC$12="n/a",0,SUMPRODUCT($BK43:$CG43,'General Inputs'!$Q$23:$AM$23,'General Inputs'!$Q$40:$AM$40)/(1-Loss_ElectricEnergy)) -> 0 | BD43: =IF(BD$12="n/a",0,SUMPRODUCT($BK43:$CG43,'General Inputs'!$Q$25:$AM$25,'General Inputs'!$Q$40:$AM$40)/(1-Loss_ElectricEnergy)) -> 0 | BE43: =IF(BE$12="n/a",0,SUMPRODUCT($CI43:$DE43,'General Inputs'!$Q$24:$AM$24,'General Inputs'!$Q$40:$AM$40))/(1-Loss_ElectricDemand) -> 0 | BF43: =IF(BF$12="n/a",0,SUMPRODUCT($BK43:$CG43,OFFSET('General Inputs'!$Q$29:$AM$29,MATCH($D43&"_Electric_$/kWh",'General Inputs'!$K$30:$K$31,0),),'General Inputs'!$Q$40:$AM$40) ) -> 0 | BG43: =IF(BG$12="n/a",0, INDEX('General Inputs'!$Q$40:$AM$40,MATCH($A$2,'General Inputs'!$Q$35:$AM$35,0))*$DI43*$DU43) -> 0 | BH43: =IF(BH$12="n/a",0,INDEX('General Inputs'!$Q$40:$AM$40,MATCH($A$2,'General Inputs'!$Q$35:$AM$35,0))*$DJ43) -> 0 | BK43: 0 | BL43: 0 | BM43: 0 | BN43: 0 | BO43: 0 | BP43: 0 | BQ43: 0 | BR43: 0 | BS43: 0 | BT43: 0 | BU43: 0 | BV43: 0 | BW43: 0 | BX43: 0 | BY43: 0 | BZ43: 0 | CA43: 0 | CB43: 0 | CC43: 0 | CD43: 0 | CE43: 0 | CF43: 0 | CG43: 0 | CI43: 0 | CJ43: 0 | CK43: 0 | CL43: 0 | CM43: 0 | CN43: 0 | CO43: 0 | CP43: 0 | CQ43: 0 | CR43: 0 | CS43: 0 | CT43: 0 | CU43: 0 | CV43: 0 | CW43: 0 | CX43: 0 | CY43: 0 | CZ43: 0 | DA43: 0 | DB43: 0 | DC43: 0 | DD43: 0 | DE43: 0 | DG43: =INDEX('Measure Inputs'!$I:$I,MATCH($B43,'Measure Inputs'!$B:$B,0)) -> 0 | DH43: =INDEX('Measure Inputs'!N:N,MATCH($B43,'Measure Inputs'!$B:$B,0)) -> 15 | DI43: =INDEX('Measure Inputs'!M:M,MATCH($B43,'Measure Inputs'!$B:$B,0))*$DG43 -> 0 | DJ43: =INDEX('Measure Inputs'!$L:$L,MATCH($B43,'Measure Inputs'!$B:$B,0))*$DG43 -> 0 | DL43: 0 | DM43: 0 | DO43: 0 | DP43: 0 | DR43: =INDEX('Measure Inputs'!$J:$J,MATCH($B43,'Measure Inputs'!$B:$B,0))*$DG43 -> 0 | DS43: =INDEX('Measure Inputs'!$K:$K,MATCH($B43,'Measure Inputs'!$B:$B,0))*$DG43 -> 0 | DU43: =INDEX('Measure Inputs'!O:O,MATCH($B43,'Measure Inputs'!$B:$B,0)) -> 1
B44: C&I_C&I Prescriptive_High Performance T8 (3-4 Lamp) | C44: ='Measure Inputs'!D36 -> 31 | D44: =INDEX('Measure Inputs'!E:E,MATCH($C44,'Measure Inputs'!$D:$D,0)) -> C&I | E44: =INDEX('Measure Inputs'!F:F,MATCH($C44,'Measure Inputs'!$D:$D,0)) -> C&I Prescriptive | F44: =INDEX('Measure Inputs'!G:G,MATCH($C44,'Measure Inputs'!$D:$D,0)) -> High Performance T8 (3-4 Lamp) | H44: n/a | I44: 0 | J44: 0 | K44: =IF(K$12="n/a",0,SUMPRODUCT($BK44:$CG44,'General Inputs'!$Q$23:$AM$23,'General Inputs'!$Q$38:$AM$38)/(1-Loss_ElectricEnergy)) -> 0 | L44: =IF(L$12="n/a",0,SUMPRODUCT($BK44:$CG44,'General Inputs'!$Q$25:$AM$25,'General Inputs'!$Q$38:$AM$38)/(1-Loss_ElectricEnergy)) -> 0 | M44: =IF(M$12="n/a",0,SUMPRODUCT($CI44:$DE44,'General Inputs'!$Q$24:$AM$24,'General Inputs'!$Q$38:$AM$38))/(1-Loss_ElectricDemand) -> 0 | N44: =IF(N$12="n/a",0,SUMPRODUCT($BK44:$CG44,OFFSET('General Inputs'!$Q$29:$AM$29,MATCH($D44&"_Electric_$/kWh",'General Inputs'!$K$30:$K$31,0),),'General Inputs'!$Q$38:$AM$38) ) -> 0 | O44: =IF(O$12="n/a",0, INDEX('General Inputs'!$Q$38:$AM$38,MATCH($A$2,'General Inputs'!$Q$35:$AM$35,0))*$DI44*$DU44) -> 0 | P44: =IF(P$12="n/a",0,INDEX('General Inputs'!$Q$38:$AM$38,MATCH($A$2,'General Inputs'!$Q$35:$AM$35,0))*$DJ44) -> 0 | S44: n/a | T44: 0 | U44: 0 | V44: =IF(V$12="n/a",0,SUMPRODUCT($BK44:$CG44,'General Inputs'!$Q$23:$AM$23,'General Inputs'!$Q$36:$AM$36)/(1-Loss_ElectricEnergy)) -> 0 | W44: =IF(W$12="n/a",0,SUMPRODUCT($BK44:$CG44,'General Inputs'!$Q$25:$AM$25,'General Inputs'!$Q$36:$AM$36)/(1-Loss_ElectricEnergy)) -> 0 | X44: =IF(X$12="n/a",0,SUMPRODUCT($CI44:$DE44,'General Inputs'!$Q$24:$AM$24,'General Inputs'!$Q$36:$AM$36))/(1-Loss_ElectricDemand) -> 0 | Y44: =IF(Y$12="n/a",0,SUMPRODUCT($BK44:$CG44,OFFSET('General Inputs'!$Q$29:$AM$29,MATCH($D44&"_Electric_$/kWh",'General Inputs'!$K$30:$K$31,0),),'General Inputs'!$Q$36:$AM$36) ) -> 0 | Z44: =IF(Z$12="n/a",0, (INDEX('General Inputs'!$Q$36:$AM$36,MATCH($A$2,'General Inputs'!$Q$35:$AM$35,0))*$DI44+ IFERROR((INDEX('General Inputs'!$Q$36:$AM$36,MATCH($A$2+#REF!,'General Inputs'!$Q$35:$AM$35,0))*-#REF!),0)) *$DU44) -> 0 | AA44: =IF(AA$12="n/a",0,INDEX('General Inputs'!$Q$36:$AM$36,MATCH($A$2,'General Inputs'!$Q$35:$AM$35,0))*$DJ44) -> 0 | AD44: n/a | AE44: 0 | AF44: 0 | AG44: =IF(AG$12="n/a",0,SUMPRODUCT($BK44:$CG44,'General Inputs'!$Q$23:$AM$23,'General Inputs'!$Q$39:$AM$39)/(1-Loss_ElectricEnergy)) -> 0 | AH44: =IF(AH$12="n/a",0,SUMPRODUCT($BK44:$CG44,'General Inputs'!$Q$25:$AM$25,'General Inputs'!$Q$39:$AM$39)/(1-Loss_ElectricEnergy)) -> 0 | AI44: =IF(AI$12="n/a",0,SUMPRODUCT($CI44:$DE44,'General Inputs'!$Q$24:$AM$24,'General Inputs'!$Q$39:$AM$39))/(1-Loss_ElectricDemand) -> 0 | AJ44: =IF(AJ$12="n/a",0,SUMPRODUCT($BK44:$CG44,OFFSET('General Inputs'!$Q$29:$AM$29,MATCH($D44&"_Electric_$/kWh",'General Inputs'!$K$30:$K$31,0),),'General Inputs'!$Q$39:$AM$39) ) -> 0 | AK44: =IF(AK$12="n/a",0, INDEX('General Inputs'!$Q$39:$AM$39,MATCH($A$2,'General Inputs'!$Q$35:$AM$35,0))*$DI44*$DU44) -> 0 | AL44: =IF(AL$12="n/a",0,INDEX('General Inputs'!$Q$39:$AM$39,MATCH($A$2,'General Inputs'!$Q$35:$AM$35,0))*$DJ44) -> 0 | AO44: n/a | AP44: 0 | AQ44: 0 | AR44: =IF(AR$12="n/a",0,SUMPRODUCT($BK44:$CG44,'General Inputs'!$Q$23:$AM$23,'General Inputs'!$Q$37:$AM$37)/(1-Loss_ElectricEnergy)) -> 0 | AS44: =IF(AS$12="n/a",0,SUMPRODUCT($BK44:$CG44,'General Inputs'!$Q$25:$AM$25,'General Inputs'!$Q$37:$AM$37)/(1-Loss_ElectricEnergy)) -> 0 | AT44: =IF(AT$12="n/a",0,SUMPRODUCT($CI44:$DE44,'General Inputs'!$Q$24:$AM$24,'General Inputs'!$Q$37:$AM$37))/(1-Loss_ElectricDemand) -> 0 | AU44: =IF(AU$12="n/a",0,SUMPRODUCT($BK44:$CG44,OFFSET('General Inputs'!$Q$29:$AM$29,MATCH($D44&"_Electric_$/kWh",'General Inputs'!$K$30:$K$31,0),),'General Inputs'!$Q$37:$AM$37) ) -> 0 | AV44: =IF(AV$12="n/a",0, INDEX('General Inputs'!$Q$37:$AM$37,MATCH($A$2,'General Inputs'!$Q$35:$AM$35,0))*$DI44*$DU44) -> 0 | AW44: =IF(AW$12="n/a",0,INDEX('General Inputs'!$Q$37:$AM$37,MATCH($A$2,'General Inputs'!$Q$35:$AM$35,0))*$DJ44) -> 0 | AZ44: n/a | BA44: 0 | BB44: 0 | BC44: =IF(BC$12="n/a",0,SUMPRODUCT($BK44:$CG44,'General Inputs'!$Q$23:$AM$23,'General Inputs'!$Q$40:$AM$40)/(1-Loss_ElectricEnergy)) -> 0 | BD44: =IF(BD$12="n/a",0,SUMPRODUCT($BK44:$CG44,'General Inputs'!$Q$25:$AM$25,'General Inputs'!$Q$40:$AM$40)/(1-Loss_ElectricEnergy)) -> 0 | BE44: =IF(BE$12="n/a",0,SUMPRODUCT($CI44:$DE44,'General Inputs'!$Q$24:$AM$24,'General Inputs'!$Q$40:$AM$40))/(1-Loss_ElectricDemand) -> 0 | BF44: =IF(BF$12="n/a",0,SUMPRODUCT($BK44:$CG44,OFFSET('General Inputs'!$Q$29:$AM$29,MATCH($D44&"_Electric_$/kWh",'General Inputs'!$K$30:$K$31,0),),'General Inputs'!$Q$40:$AM$40) ) -> 0 | BG44: =IF(BG$12="n/a",0, INDEX('General Inputs'!$Q$40:$AM$40,MATCH($A$2,'General Inputs'!$Q$35:$AM$35,0))*$DI44*$DU44) -> 0 | BH44: =IF(BH$12="n/a",0,INDEX('General Inputs'!$Q$40:$AM$40,MATCH($A$2,'General Inputs'!$Q$35:$AM$35,0))*$DJ44) -> 0 | BK44: 0 | BL44: 0 | BM44: 0 | BN44: 0 | BO44: 0 | BP44: 0 | BQ44: 0 | BR44: 0 | BS44: 0 | BT44: 0 | BU44: 0 | BV44: 0 | BW44: 0 | BX44: 0 | BY44: 0 | BZ44: 0 | CA44: 0 | CB44: 0 | CC44: 0 | CD44: 0 | CE44: 0 | CF44: 0 | CG44: 0 | CI44: 0 | CJ44: 0 | CK44: 0 | CL44: 0 | CM44: 0 | CN44: 0 | CO44: 0 | CP44: 0 | CQ44: 0 | CR44: 0 | CS44: 0 | CT44: 0 | CU44: 0 | CV44: 0 | CW44: 0 | CX44: 0 | CY44: 0 | CZ44: 0 | DA44: 0 | DB44: 0 | DC44: 0 | DD44: 0 | DE44: 0 | DG44: =INDEX('Measure Inputs'!$I:$I,MATCH($B44,'Measure Inputs'!$B:$B,0)) -> 0 | DH44: =INDEX('Measure Inputs'!N:N,MATCH($B44,'Measure Inputs'!$B:$B,0)) -> 15 | DI44: =INDEX('Measure Inputs'!M:M,MATCH($B44,'Measure Inputs'!$B:$B,0))*$DG44 -> 0 | DJ44: =INDEX('Measure Inputs'!$L:$L,MATCH($B44,'Measure Inputs'!$B:$B,0))*$DG44 -> 0 | DL44: 0 | DM44: 0 | DO44: 0 | DP44: 0 | DR44: =INDEX('Measure Inputs'!$J:$J,MATCH($B44,'Measure Inputs'!$B:$B,0))*$DG44 -> 0 | DS44: =INDEX('Measure Inputs'!$K:$K,MATCH($B44,'Measure Inputs'!$B:$B,0))*$DG44 -> 0 | DU44: =INDEX('Measure Inputs'!O:O,MATCH($B44,'Measure Inputs'!$B:$B,0)) -> 1
B45: C&I_C&I Prescriptive_LED Parking Garage/Canopy (<30W) | C45: ='Measure Inputs'!D37 -> 32 | D45: =INDEX('Measure Inputs'!E:E,MATCH($C45,'Measure Inputs'!$D:$D,0)) -> C&I | E45: =INDEX('Measure Inputs'!F:F,MATCH($C45,'Measure Inputs'!$D:$D,0)) -> C&I Prescriptive | F45: =INDEX('Measure Inputs'!G:G,MATCH($C45,'Measure Inputs'!$D:$D,0)) -> LED Parking Garage/Canopy (<30W) | H45: n/a | I45: 0 | J45: 0 | K45: =IF(K$12="n/a",0,SUMPRODUCT($BK45:$CG45,'General Inputs'!$Q$23:$AM$23,'General Inputs'!$Q$38:$AM$38)/(1-Loss_ElectricEnergy)) -> 0 | L45: =IF(L$12="n/a",0,SUMPRODUCT($BK45:$CG45,'General Inputs'!$Q$25:$AM$25,'General Inputs'!$Q$38:$AM$38)/(1-Loss_ElectricEnergy)) -> 0 | M45: =IF(M$12="n/a",0,SUMPRODUCT($CI45:$DE45,'General Inputs'!$Q$24:$AM$24,'General Inputs'!$Q$38:$AM$38))/(1-Loss_ElectricDemand) -> 0 | N45: =IF(N$12="n/a",0,SUMPRODUCT($BK45:$CG45,OFFSET('General Inputs'!$Q$29:$AM$29,MATCH($D45&"_Electric_$/kWh",'General Inputs'!$K$30:$K$31,0),),'General Inputs'!$Q$38:$AM$38) ) -> 0 | O45: =IF(O$12="n/a",0, INDEX('General Inputs'!$Q$38:$AM$38,MATCH($A$2,'General Inputs'!$Q$35:$AM$35,0))*$DI45*$DU45) -> 0 | P45: =IF(P$12="n/a",0,INDEX('General Inputs'!$Q$38:$AM$38,MATCH($A$2,'General Inputs'!$Q$35:$AM$35,0))*$DJ45) -> 0 | S45: n/a | T45: 0 | U45: 0 | V45: =IF(V$12="n/a",0,SUMPRODUCT($BK45:$CG45,'General Inputs'!$Q$23:$AM$23,'General Inputs'!$Q$36:$AM$36)/(1-Loss_ElectricEnergy)) -> 0 | W45: =IF(W$12="n/a",0,SUMPRODUCT($BK45:$CG45,'General Inputs'!$Q$25:$AM$25,'General Inputs'!$Q$36:$AM$36)/(1-Loss_ElectricEnergy)) -> 0 | X45: =IF(X$12="n/a",0,SUMPRODUCT($CI45:$DE45,'General Inputs'!$Q$24:$AM$24,'General Inputs'!$Q$36:$AM$36))/(1-Loss_ElectricDemand) -> 0 | Y45: =IF(Y$12="n/a",0,SUMPRODUCT($BK45:$CG45,OFFSET('General Inputs'!$Q$29:$AM$29,MATCH($D45&"_Electric_$/kWh",'General Inputs'!$K$30:$K$31,0),),'General Inputs'!$Q$36:$AM$36) ) -> 0 | Z45: =IF(Z$12="n/a",0, (INDEX('General Inputs'!$Q$36:$AM$36,MATCH($A$2,'General Inputs'!$Q$35:$AM$35,0))*$DI45+ IFERROR((INDEX('General Inputs'!$Q$36:$AM$36,MATCH($A$2+#REF!,'General Inputs'!$Q$35:$AM$35,0))*-#REF!),0)) *$DU45) -> 0 | AA45: =IF(AA$12="n/a",0,INDEX('General Inputs'!$Q$36:$AM$36,MATCH($A$2,'General Inputs'!$Q$35:$AM$35,0))*$DJ45) -> 0 | AD45: n/a | AE45: 0 | AF45: 0 | AG45: =IF(AG$12="n/a",0,SUMPRODUCT($BK45:$CG45,'General Inputs'!$Q$23:$AM$23,'General Inputs'!$Q$39:$AM$39)/(1-Loss_ElectricEnergy)) -> 0 | AH45: =IF(AH$12="n/a",0,SUMPRODUCT($BK45:$CG45,'General Inputs'!$Q$25:$AM$25,'General Inputs'!$Q$39:$AM$39)/(1-Loss_ElectricEnergy)) -> 0 | AI45: =IF(AI$12="n/a",0,SUMPRODUCT($CI45:$DE45,'General Inputs'!$Q$24:$AM$24,'General Inputs'!$Q$39:$AM$39))/(1-Loss_ElectricDemand) -> 0 | AJ45: =IF(AJ$12="n/a",0,SUMPRODUCT($BK45:$CG45,OFFSET('General Inputs'!$Q$29:$AM$29,MATCH($D45&"_Electric_$/kWh",'General Inputs'!$K$30:$K$31,0),),'General Inputs'!$Q$39:$AM$39) ) -> 0 | AK45: =IF(AK$12="n/a",0, INDEX('General Inputs'!$Q$39:$AM$39,MATCH($A$2,'General Inputs'!$Q$35:$AM$35,0))*$DI45*$DU45) -> 0 | AL45: =IF(AL$12="n/a",0,INDEX('General Inputs'!$Q$39:$AM$39,MATCH($A$2,'General Inputs'!$Q$35:$AM$35,0))*$DJ45) -> 0 | AO45: n/a | AP45: 0 | AQ45: 0 | AR45: =IF(AR$12="n/a",0,SUMPRODUCT($BK45:$CG45,'General Inputs'!$Q$23:$AM$23,'General Inputs'!$Q$37:$AM$37)/(1-Loss_ElectricEnergy)) -> 0 | AS45: =IF(AS$12="n/a",0,SUMPRODUCT($BK45:$CG45,'General Inputs'!$Q$25:$AM$25,'General Inputs'!$Q$37:$AM$37)/(1-Loss_ElectricEnergy)) -> 0 | AT45: =IF(AT$12="n/a",0,SUMPRODUCT($CI45:$DE45,'General Inputs'!$Q$24:$AM$24,'General Inputs'!$Q$37:$AM$37))/(1-Loss_ElectricDemand) -> 0 | AU45: =IF(AU$12="n/a",0,SUMPRODUCT($BK45:$CG45,OFFSET('General Inputs'!$Q$29:$AM$29,MATCH($D45&"_Electric_$/kWh",'General Inputs'!$K$30:$K$31,0),),'General Inputs'!$Q$37:$AM$37) ) -> 0 | AV45: =IF(AV$12="n/a",0, INDEX('General Inputs'!$Q$37:$AM$37,MATCH($A$2,'General Inputs'!$Q$35:$AM$35,0))*$DI45*$DU45) -> 0 | AW45: =IF(AW$12="n/a",0,INDEX('General Inputs'!$Q$37:$AM$37,MATCH($A$2,'General Inputs'!$Q$35:$AM$35,0))*$DJ45) -> 0 | AZ45: n/a | BA45: 0 | BB45: 0 | BC45: =IF(BC$12="n/a",0,SUMPRODUCT($BK45:$CG45,'General Inputs'!$Q$23:$AM$23,'General Inputs'!$Q$40:$AM$40)/(1-Loss_ElectricEnergy)) -> 0 | BD45: =IF(BD$12="n/a",0,SUMPRODUCT($BK45:$CG45,'General Inputs'!$Q$25:$AM$25,'General Inputs'!$Q$40:$AM$40)/(1-Loss_ElectricEnergy)) -> 0 | BE45: =IF(BE$12="n/a",0,SUMPRODUCT($CI45:$DE45,'General Inputs'!$Q$24:$AM$24,'General Inputs'!$Q$40:$AM$40))/(1-Loss_ElectricDemand) -> 0 | BF45: =IF(BF$12="n/a",0,SUMPRODUCT($BK45:$CG45,OFFSET('General Inputs'!$Q$29:$AM$29,MATCH($D45&"_Electric_$/kWh",'General Inputs'!$K$30:$K$31,0),),'General Inputs'!$Q$40:$AM$40) ) -> 0 | BG45: =IF(BG$12="n/a",0, INDEX('General Inputs'!$Q$40:$AM$40,MATCH($A$2,'General Inputs'!$Q$35:$AM$35,0))*$DI45*$DU45) -> 0 | BH45: =IF(BH$12="n/a",0,INDEX('General Inputs'!$Q$40:$AM$40,MATCH($A$2,'General Inputs'!$Q$35:$AM$35,0))*$DJ45) -> 0 | BK45: =IF(AND($A$2<=BK$13,$A$2+$DH45>BK$13),$DR45,0)*$DU45 -> 0 | BL45: 0 | BM45: 0 | BN45: 0 | BO45: 0 | BP45: 0 | BQ45: 0 | BR45: 0 | BS45: 0 | BT45: 0 | BU45: =IF(AND($A$2<=BU$13,$A$2+$DH45>BU$13),$DR45,0)*$DU45 -> 0 | BV45: 0 | BW45: 0 | BX45: 0 | BY45: 0 | BZ45: 0 | CA45: 0 | CB45: 0 | CC45: 0 | CD45: 0 | CE45: 0 | CF45: 0 | CG45: 0 | CI45: =IF(AND($A$2<=CI$13,$A$2+$DH45>CI$13),$DS45,0)*$DU45 -> 0 | CJ45: 0 | CK45: 0 | CL45: 0 | CM45: 0 | CN45: 0 | CO45: 0 | CP45: 0 | CQ45: 0 | CR45: 0 | CS45: =IF(AND($A$2<=CS$13,$A$2+$DH45>CS$13),$DS45,0)*$DU45 -> 0 | CT45: 0 | CU45: 0 | CV45: 0 | CW45: 0 | CX45: 0 | CY45: 0 | CZ45: 0 | DA45: 0 | DB45: 0 | DC45: 0 | DD45: 0 | DE45: 0 | DG45: =INDEX('Measure Inputs'!$I:$I,MATCH($B45,'Measure Inputs'!$B:$B,0)) -> 0 | DH45: =INDEX('Measure Inputs'!N:N,MATCH($B45,'Measure Inputs'!$B:$B,0)) -> 8 | DI45: =INDEX('Measure Inputs'!M:M,MATCH($B45,'Measure Inputs'!$B:$B,0))*$DG45 -> 0 | DJ45: =INDEX('Measure Inputs'!$L:$L,MATCH($B45,'Measure Inputs'!$B:$B,0))*$DG45 -> 0 | DL45: 0 | DM45: 0 | DO45: 0 | DP45: 0 | DR45: =INDEX('Measure Inputs'!$J:$J,MATCH($B45,'Measure Inputs'!$B:$B,0))*$DG45 -> 0 | DS45: =INDEX('Measure Inputs'!$K:$K,MATCH($B45,'Measure Inputs'!$B:$B,0))*$DG45 -> 0 | DU45: =INDEX('Measure Inputs'!O:O,MATCH($B45,'Measure Inputs'!$B:$B,0)) -> 1
